Workbook

Sheet Resumo
B2: QUADRO RESUMO DO ORÇAMENTO
B3: Obra: Realização das obras de revitalização do setor comercial e portuário do município de Santana, no estado do Amapá
E4: =Orçamento!G4 -> Base de Preço: | F4: =Orçamento!H4 -> SINAPI: AGO/2023 - AP
F5: =Orçamento!H5 -> SICRO: ABRL/2023 - AP
F6: =Orçamento!H6 -> ORSE: JUN/2023
B7: Item | C7: DESCRIÇÃO | D7: PREÇO SEM DESONERAÇÃO | F7: PREÇO COM DESONERAÇÃO
D8: RELAÇÃO (%) | E8: VALOR | F8: RELAÇÃO (%) | G8: VALOR
B9: 1 | C9: =Orçamento!C10 -> Administração de Obras | D9: =E9/$E$19 -> 0.06152687674 | E9: =Orçamento!N10 -> 2514836.706 | F9: =G9/$G$19 -> 0.05482800992 | G9: =Orçamento!O10 -> 2304217.677
B10: 2 | C10: =Orçamento!C13 -> Projeto Urbanístico | D10: 0.1124624033 | E10: =Orçamento!N13 -> 4596764.778 | F10: 0.1117769333 | G10: =Orçamento!O13 -> 4697569.473
B11: 3 | C11: =Orçamento!C175 -> Edificações Novas | D11: 0.230894153 | E11: =Orçamento!N175 -> 9437519.373 | F11: 0.231308708 | G11: =Orçamento!O175 -> 9721046.132
B12: 4 | C12: =Orçamento!C1258 -> Edificações a serem Reformadas | D12: 0.009991570998 | E12: =Orçamento!N1258 -> 408393.3856 | F12: 0.009892899173 | G12: =Orçamento!O1258 -> 415761.8193
B13: 5 | C13: =Orçamento!C1402 -> Projeto Viário | D13: 0.1326176772 | E13: =Orçamento!N1402 -> 5420587.232 | F13: 0.1332870933 | G13: =Orçamento!O1402 -> 5601561.629
B14: 6 | C14: =Orçamento!C1455 -> Projeto de Drenagem | D14: 0.04173851744 | E14: =Orçamento!N1455 -> 1706011.442 | F14: 0.04168422692 | G14: =Orçamento!O1455 -> 1751833.281
B15: 7 | C15: =Orçamento!C1492 -> Projeto de Iluminação e Eletrificação Pública | D15: 0.0101892343 | E15: =Orçamento!N1492 -> 416472.6341 | F15: 0.01026219968 | G15: =Orçamento!O1492 -> 431282.1482
B16: 8 | C16: =Orçamento!C1541 -> Projeto de Abastecimento de Água e Rede de Esgoto | D16: 0.01281961566 | E16: =Orçamento!N1541 -> 523986.2923 | F16: 0.01300922234 | G16: =Orçamento!O1541 -> 546729.3109
B17: 9 | C17: =Orçamento!C1617 -> Estruturas de Contenção | D17: 0.3156234135 | E17: =Orçamento!N1617 -> 12900725.47 | F17: 0.3217405 | G17: =Orçamento!O1617 -> 13521558.57
B18: 10 | C18: =Orçamento!C1661 -> Estruturas de Acesso e Embarcação | D18: 0.07213653793 | E18: =Orçamento!N1661 -> 2948493.781 | F18: 0.07221020734 | G18: =Orçamento!O1661 -> 3034726.893
B19: Custo total | D19: =ROUND(SUM(D9:D18),3) -> 1 | E19: =SUM(E9:E18) -> 40873791.09 | F19: =ROUND(SUM(F9:F18),3) -> 1 | G19: =SUM(G9:G18) -> 42026286.94

Sheet Orçamento
B2: QUADRO DEMONSTRATIVO DO ORÇAMENTO
B3: Obra: Realização das obras de revitalização do setor comercial e portuário do município de Santana, no estado do Amapá | K3: BDIs adotados: | N3: Sem Desoneração | O3: Com Desoneração
G4: Base de Preço: | H4: SINAPI: AGO/2023 - AP | K4: Serviços | N4: =BDI!C24 -> 0.2395756778 | O4: =BDI!C77 -> 0.3026049495
H5: SICRO: ABRL/2023 - AP | K5: Fornecimento | N5: =BDI!C50 -> 0.146920122 | O5: =BDI!C103 -> 0.2031110915
H6: ORSE: JUN/2023
B8: Item | C8: Código | E8: DESCRIÇÃO | F8: UND | G8: QUANT | H8: PREÇO SEM DESONERAÇÃO | K8: PREÇO COM DESONERAÇÃO | N8: TOTAL SEM DESONERAÇÃO | O8: TOTAL COM DESONERAÇÃO
H9: Custo Direto | I9: BDI | J9: Custo com BDI | K9: Custo Direto | L9: BDI | M9: Custo com BDI
B10: 1 | C10: Administração de Obras | N10: =N11 -> 2514836.706 | O10: =O11 -> 2304217.677
B11: 1.1 | C11: Administração Local | G11: 1 | N11: =SUM(N12) -> 2514836.706 | O11: =SUM(O12) -> 2304217.677
B12: 1.1.1 | C12: Composição Própria | D12: 1 | E12: Administração Local | F12: UN | G12: 1 | H12: ='Adm Local'!I17 -> 2028788.36 | I12: =$N$4 -> 0.2395756778 | J12: =H12*(1+I12) -> 2514836.706 | K12: ='Adm Local'!J17 -> 1768930.54 | L12: =$O$4 -> 0.3026049495 | M12: =K12*(1+L12) -> 2304217.677 | N12: =J12*G12 -> 2514836.706 | O12: =M12*G12 -> 2304217.677
B13: 2 | C13: Projeto Urbanístico | N13: =N14+N45+N84+N106+N129+N142 -> 4596764.778 | O13: =O14+O45+O84+O106+O129+O142 -> 4697569.473
B14: 2.1 | C14: Praça da Natureza | N14: =N15+N17+N21+N28+N31+N38+N42 -> 626058.1311 | O14: =O15+O17+O21+O28+O31+O38+O42 -> 649938.5485
B15: 2.1.1 | C15: SERVIÇOS PRELIMINARES | G15: 1 | N15: =SUM(N16) -> 1859.363517 | O15: =SUM(O16) -> 1953.907424
B16: 2.1.1.1 | C16: Composição Própria | D16: 1.1 | E16: MOBILIZAÇÃO | F16: UN | G16: 1 | H16: ='CPU Própria (sem des)'!$K$28 -> 1500 | I16: =$N$4 -> 0.2395756778 | J16: =H16*(1+I16) -> 1859.363517 | K16: ='CPU Própria (des)'!$J$28 -> 1500 | L16: =$O$4 -> 0.3026049495 | M16: =K16*(1+L16) -> 1953.907424 | N16: =J16*G16 -> 1859.363517 | O16: =M16*G16 -> 1953.907424
B17: 2.1.2 | C17: PAVIMENTAÇÃO | G17: 1 | N17: =SUM(N18:N20) -> 219982.8956 | O17: =SUM(O18:O20) -> 228386.1653
B18: 2.1.2.1 | C18: Composição Sinapi | D18: 100575 | E18: REGULARIZAÇÃO DE SUPERFÍCIES COM MOTONIVELADORA. AF_11/2019 | F18: M2 | G18: 1979.58 | H18: =VLOOKUP(D18,'CPU (sem des)'!B:I,8,FALSE) -> 0.12 | I18: =$N$4 -> 0.2395756778 | J18: =H18*(1+I18) -> 0.1487490813 | K18: =VLOOKUP(D18,'CPU (des)'!B:I,8,FALSE) -> 0.12 | L18: =$O$4 -> 0.3026049495 | M18: =K18*(1+L18) -> 0.1563125939 | N18: =J18*G18 -> 294.4607064 | O18: =M18*G18 -> 309.4332847
B19: 2.1.2.2 | C19: Composição Orse | D19: 3212 | E19: Colchão de areia | F19: M3 | G19: 197.95 | H19: =VLOOKUP(D19,'CPU (sem des)'!B:I,8,FALSE) -> 134.79 | I19: =$N$4 -> 0.2395756778 | J19: =H19*(1+I19) -> 167.0824056 | K19: =VLOOKUP(D19,'CPU (des)'!B:I,8,FALSE) -> 132.9 | L19: =$O$4 -> 0.3026049495 | M19: =K19*(1+L19) -> 173.1161978 | N19: =J19*G19 -> 33073.96219 | O19: 34268.35135
B20: 2.1.2.3 | C20: Composição Sinapi | D20: 92397 | E20: EXECUÇÃO DE PÁTIO/ESTACIONAMENTO EM PISO INTERTRAVADO, COM BLOCO RETANGULAR COR NATURAL DE 20 X 10 CM, ESPESSURA 6 CM. AF_12/2015 | F20: M2 | G20: 1979.58 | H20: =VLOOKUP(D20,'CPU (sem des)'!B:I,8,FALSE) -> 76.05 | I20: =$N$4 -> 0.2395756778 | J20: =H20*(1+I20) -> 94.2697303 | K20: =VLOOKUP(D20,'CPU (des)'!B:I,8,FALSE) -> 75.16 | L20: =$O$4 -> 0.3026049495 | M20: =K20*(1+L20) -> 97.90378801 | N20: =J20*G20 -> 186614.4727 | O20: 193808.3807
B21: 2.1.3 | C21: ESTACIONAMENTO | G21: 1 | N21: =SUM(N22:N27) -> 175873.1783 | O21: =SUM(O22:O27) -> 183385.3859
B22: 2.1.3.1 | C22: Composição Sinapi | D22: 96398 | E22: EXECUÇÃO E COMPACTAÇÃO DE BASE E OU SUB BASE PARA PAVIMENTAÇÃO DE CONCRETO COMPACTADO COM ROLO - EXCLUSIVE CARGA E TRANSPORTE. AF_11/2019 | F22: M3 | G22: 1 | H22: =VLOOKUP(D22,'CPU (sem des)'!B:I,8,FALSE) -> 620.01 | I22: =$N$4 -> 0.2395756778 | J22: =H22*(1+I22) -> 768.549316 | K22: =VLOOKUP(D22,'CPU (des)'!B:I,8,FALSE) -> 619.37 | L22: =$O$4 -> 0.3026049495 | M22: =K22*(1+L22) -> 806.7944276 | N22: =J22*G22 -> 768.549316 | O22: =M22*G22 -> 806.7944276
B23: 2.1.3.2 | C23: Composição Sinapi | D23: 95995 | E23: EXECUÇÃO DE PAVIMENTO COM APLICAÇÃO DE CONCRETO ASFÁLTICO, CAMADA DE ROLAMENTO - EXCLUSIVE CARGA E TRANSPORTE. AF_11/2019 | F23: M3 | G23: 65.03 | H23: =VLOOKUP(D23,'CPU (sem des)'!B:I,8,FALSE) -> 1417.5 | I23: 0.2395756778 | J23: 1757.098523 | K23: =VLOOKUP(D23,'CPU (des)'!B:I,8,FALSE) -> 1414.08 | L23: 0.3026049495 | M23: 1841.987607 | N23: 114264.117 | O23: 119784.4541
B24: 2.1.3.3 | C24: Composição Sinapi | D24: 94266 | E24: GUIA (MEIO-FIO) CONCRETO, MOLDADA IN LOCO EM TRECHO CURVO COM EXTRUSORA, 15 CM BASE X 30 CM ALTURA. AF_06/2016 | F24: M | G24: 180.94 | H24: =VLOOKUP(D24,'CPU (sem des)'!B:I,8,FALSE) -> 54.8 | I24: 0.2395756778 | J24: 67.92874714 | K24: =VLOOKUP(D24,'CPU (des)'!B:I,8,FALSE) -> 52.67 | L24: 0.3026049495 | M24: 68.60820269 | N24: 12291.02751 | O24: 12413.9682
B25: 2.1.3.4 | C25: Composição Sinapi | D25: 102498 | E25: PINTURA DE MEIO-FIO COM TINTA BRANCA A BASE DE CAL (CAIAÇÃO). AF_05/2021 | F25: M | G25: 103.17 | H25: =VLOOKUP(D25,'CPU (sem des)'!B:I,8,FALSE) -> 1.36 | I25: 0.2395756778 | J25: 1.685822922 | K25: =VLOOKUP(D25,'CPU (des)'!B:I,8,FALSE) -> 1.23 | L25: 0.3026049495 | M25: 1.602204088 | N25: 173.9263508 | O25: 165.2993958
B26: 2.1.3.5 | C26: Composição Sinapi | D26: 102500 | E26: PINTURA DE DEMARCAÇÃO DE VAGA COM TINTA ACRÍLICA, E = 10 CM, APLICAÇÃO MANUAL. AF_05/2021 | F26: M | G26: 528.9 | H26: =VLOOKUP(D26,'CPU (sem des)'!B:I,8,FALSE) -> 3.51 | I26: 0.2395756778 | J26: 4.350910629 | K26: =VLOOKUP(D26,'CPU (des)'!B:I,8,FALSE) -> 3.21 | L26: 0.3026049495 | M26: 4.181361888 | N26: 2301.196632 | O26: 2211.522303
B27: 2.1.3.6 | C27: Composição Sinapi | D27: 101094 | E27: PISO PODOTÁTIL, DIRECIONAL OU ALERTA, ASSENTADO SOBRE ARGAMASSA. AF_05/2020 | F27: M | G27: 194.88 | H27: =VLOOKUP(D27,'CPU (sem des)'!B:I,8,FALSE) -> 190.73 | I27: 0.2395756778 | J27: 236.424269 | K27: =VLOOKUP(D27,'CPU (des)'!B:I,8,FALSE) -> 189.1 | L27: 0.3026049495 | M27: 246.322596 | N27: 46074.36155 | O27: 48003.3475
B28: 2.1.4 | C28: ESTACIONAMENTO CENTRO COMERCIAL | G28: 1 | N28: =SUM(N29:N30) -> 152557.8097 | O28: =SUM(O29:O30) -> 158170.3437
B29: 2.1.4.1 | C29: Composição Sinapi | D29: 92398 | E29: EXECUÇÃO DE PÁTIO/ESTACIONAMENTO EM PISO INTERTRAVADO, COM BLOCO RETANGULAR COR NATURAL DE 20 X 10 CM, ESPESSURA 8 CM. AF_12/2015 | F29: M2 | G29: 1254.57 | H29: =VLOOKUP(D29,'CPU (sem des)'!B:I,8,FALSE) -> 94.18 | I29: =$N$4 -> 0.2395756778 | J29: =H29*(1+I29) -> 116.7432373 | K29: =VLOOKUP(D29,'CPU (des)'!B:I,8,FALSE) -> 93.02 | L29: =$O$4 -> 0.3026049495 | M29: =K29*(1+L29) -> 121.1683124 | N29: =J29*G29 -> 146462.5633 | O29: =M29*G29 -> 152014.1297
B30: 2.1.4.2 | C30: Composição Sinapi | D30: 94266 | E30: GUIA (MEIO-FIO) CONCRETO, MOLDADA IN LOCO EM TRECHO CURVO COM EXTRUSORA, 15 CM BASE X 30 CM ALTURA. AF_06/2016 | F30: M | G30: 89.73 | H30: =VLOOKUP(D30,'CPU (sem des)'!B:I,8,FALSE) -> 54.8 | I30: =$N$4 -> 0.2395756778 | J30: =H30*(1+I30) -> 67.92874714 | K30: =VLOOKUP(D30,'CPU (des)'!B:I,8,FALSE) -> 52.67 | L30: =$O$4 -> 0.3026049495 | M30: =K30*(1+L30) -> 68.60820269 | N30: =J30*G30 -> 6095.246481 | O30: 6156.214028
B31: 2.1.5 | C31: MOBILIÁRIO URBANO | G31: 1 | N31: =SUM(N32:N37) -> 45730.80422 | O31: =SUM(O32:O37) -> 47271.49207
B32: 2.1.5.1 | C32: Composição Orse | D32: 3740 | E32: Mesa de concreto com 02 bancos integrados | F32: UN | G32: 8 | H32: =VLOOKUP(D32,'CPU (sem des)'!B:I,8,FALSE) -> 909.61 | I32: =$N$4 -> 0.2395756778 | J32: =H32*(1+I32) -> 1127.530432 | K32: =VLOOKUP(D32,'CPU (des)'!B:I,8,FALSE) -> 883.29 | L32: =$O$4 -> 0.3026049495 | M32: =K32*(1+L32) -> 1150.577926 | N32: =J32*G32 -> 9020.243458 | O32: =M32*G32 -> 9204.623407
B33: 2.1.5.2 | C33: Composição Sinapi | D33: 103310 | E33: INSTALAÇÃO DE LIXEIRA METÁLICA DUPLA, CAPACIDADE DE 60 L, EM TUBO DE AÇO CARBONO E CESTOS EM CHAPA DE AÇO COM PINTURA ELETROSTÁTICA, SOBRE SOLO. AF_11/2021 | F33: UN | G33: 4 | H33: =VLOOKUP(D33,'CPU (sem des)'!B:I,8,FALSE) -> 1288.84 | I33: 0.2395756778 | J33: 1597.614717 | K33: =VLOOKUP(D33,'CPU (des)'!B:I,8,FALSE) -> 1285.06 | L33: 0.3026049495 | M33: 1673.925516 | N33: 6390.458866 | O33: 6695.702066
B34: 2.1.5.3 | C34: Composição Sinapi | D34: 92435 | E34: MONTAGEM E DESMONTAGEM DE FÔRMA DE PILARES RETANGULARES E ESTRUTURAS SIMILARES, PÉ-DIREITO SIMPLES, EM CHAPA DE MADEIRA COMPENSADA PLASTIFICADA, 12 UTILIZAÇÕES. AF_09/2020 | F34: M2 | G34: 53.76 | H34: =VLOOKUP(D34,'CPU (sem des)'!B:I,8,FALSE) -> 57.64 | I34: 0.2395756778 | J34: 71.44914207 | K34: =VLOOKUP(D34,'CPU (des)'!B:I,8,FALSE) -> 55.21 | L34: 0.3026049495 | M34: 71.91681926 | N34: 3841.105878 | O34: 3866.248204
B35: 2.1.5.4 | C35: Composição Sinapi | D35: 92761 | E35: ARMAÇÃO DE PILAR OU VIGA DE ESTRUTURA CONVENCIONAL DE CONCRETO ARMADO UTILIZANDO AÇO CA-50 DE 8,0 MM - MONTAGEM. AF_06/2022 | F35: KG | G35: 320 | H35: =VLOOKUP(D35,'CPU (sem des)'!B:I,8,FALSE) -> 15.29 | I35: 0.2395756778 | J35: 18.95311211 | K35: =VLOOKUP(D35,'CPU (des)'!B:I,8,FALSE) -> 15.09 | L35: 0.3026049495 | M35: 19.65630869 | N35: 6064.995876 | O35: 6290.01878
B36: 2.1.5.5 | C36: Composição Sinapi | D36: 103685 | E36: CONCRETAGEM DE MURETAS, FCK=25 MPA, COM USO DE BOMBA - LANÇAMENTO, ADENSAMENTO E ACABAMENTO. AF_02/2022 | F36: M3 | G36: 10.13 | H36: =VLOOKUP(D36,'CPU (sem des)'!B:I,8,FALSE) -> 855.82 | I36: 0.2395756778 | J36: 1060.853657 | K36: =VLOOKUP(D36,'CPU (des)'!B:I,8,FALSE) -> 851.35 | L36: 0.3026049495 | M36: 1108.972724 | N36: 10746.44754 | O36: 11233.89369
B37: 2.1.5.6 | C37: Composição Sinapi | D37: 103314 | E37: INSTALAÇÃO DE PERGOLADO DE MADEIRA, EM MAÇARANDUBA, ANGELIM OU EQUIVALENTE DA REGIÃO, FIXADO COM CONCRETO SOBRE PISO DE CONCRETO EXISTENTE. AF_11/2021 | F37: M2 | G37: 44.98 | H37: =VLOOKUP(D37,'CPU (sem des)'!B:I,8,FALSE) -> 173.39 | I37: 0.2395756778 | J37: 214.9300268 | K37: =VLOOKUP(D37,'CPU (des)'!B:I,8,FALSE) -> 170.35 | L37: 0.3026049495 | M37: 221.8987532 | N37: 9667.552604 | O37: 9981.005917
B38: 2.1.6 | C38: PAISAGISMO | G38: 1 | N38: =SUM(N39:N41) -> 25874.96232 | O38: =SUM(O39:O41) -> 26633.56712
B39: 2.1.6.1 | C39: Composição Sinapi | D39: 103946 | E39: PLANTIO DE GRAMA ESMERALDA OU SÃO CARLOS OU CURITIBANA, EM PLACAS. AF_05/2022 | F39: M2 | G39: 734.63 | H39: =VLOOKUP(D39,'CPU (sem des)'!B:I,8,FALSE) -> 18.87 | I39: =$N$4 -> 0.2395756778 | J39: =H39*(1+I39) -> 23.39079304 | K39: =VLOOKUP(D39,'CPU (des)'!B:I,8,FALSE) -> 18.49 | L39: =$O$4 -> 0.3026049495 | M39: =K39*(1+L39) -> 24.08516552 | N39: =J39*G39 -> 17183.57829 | O39: =M39*G39 -> 17693.68514
B40: 2.1.6.2 | C40: Composição Sinapi | D40: 98511 | E40: PLANTIO DE ÁRVORE ORNAMENTAL COM ALTURA DE MUDA MAIOR QUE 2,00 M E MENOR OU IGUAL A 4,00 M. AF_05/2018 | F40: UN | G40: 42 | H40: =VLOOKUP(D40,'CPU (sem des)'!B:I,8,FALSE) -> 127.24 | I40: =$N$4 -> 0.2395756778 | J40: =H40*(1+I40) -> 157.7236092 | K40: =VLOOKUP(D40,'CPU (des)'!B:I,8,FALSE) -> 124.74 | L40: =$O$4 -> 0.3026049495 | M40: =K40*(1+L40) -> 162.4869414 | N40: =J40*G40 -> 6624.391588 | O40: 6824.451539
B41: 2.1.6.3 | C41: Composição Sinapi | D41: 98510 | E41: PLANTIO DE ÁRVORE ORNAMENTAL COM ALTURA DE MUDA MENOR OU IGUAL A 2,00 M. AF_05/2018 | F41: UN | G41: 25 | H41: =VLOOKUP(D41,'CPU (sem des)'!B:I,8,FALSE) -> 66.7 | I41: =$N$4 -> 0.2395756778 | J41: =H41*(1+I41) -> 82.67969771 | K41: =VLOOKUP(D41,'CPU (des)'!B:I,8,FALSE) -> 64.96 | L41: =$O$4 -> 0.3026049495 | M41: =K41*(1+L41) -> 84.61721752 | N41: =J41*G41 -> 2066.992443 | O41: 2115.430438
B42: 2.1.7 | C42: SERVIÇOS COMPLEMENTARES | G42: 1 | N42: =SUM(N43:N44) -> 4179.11734 | O42: =SUM(O43:O44) -> 4137.686977
B43: 2.1.7.1 | C43: Composição Orse | D43: 6191 | E43: Limpeza de ruas (varrição e remoção de entulhos) | F43: M2 | G43: 3898.77 | H43: =VLOOKUP(D43,'CPU (sem des)'!B:I,8,FALSE) -> 0.48 | I43: =$N$4 -> 0.2395756778 | J43: =H43*(1+I43) -> 0.5949963253 | K43: =VLOOKUP(D43,'CPU (des)'!B:I,8,FALSE) -> 0.43 | L43: =$O$4 -> 0.3026049495 | M43: =K43*(1+L43) -> 0.5601201283 | N43: =J43*G43 -> 2319.753823 | O43: =M43*G43 -> 2183.779553
B44: 2.1.7.2 | C44: Composição Própria | D44: 1.1 | E44: DESMOBILIZAÇÃO | F44: UN | G44: 1 | H44: ='CPU Própria (sem des)'!$K$28 -> 1500 | I44: =$N$4 -> 0.2395756778 | J44: =H44*(1+I44) -> 1859.363517 | K44: ='CPU Própria (des)'!$J$28 -> 1500 | L44: =$O$4 -> 0.3026049495 | M44: =K44*(1+L44) -> 1953.907424 | N44: =J44*G44 -> 1859.363517 | O44: 1953.907424
B45: 2.2 | C45: Praça das Águas | N45: =N46+N48+N59+N71+N77+N79+N82 -> 916147.919 | O45: =O46+O48+O59+O71+O77+O79+O82 -> 951232.1294
B46: 2.2.1 | C46: SERVIÇOS PRELIMINARES | G46: 1 | N46: =SUM(N47) -> 1859.363517 | O46: =SUM(O47) -> 1953.907424
B47: 2.2.1.1 | C47: Composição Própria | D47: 1.1 | E47: MOBILIZAÇÃO | F47: UN | G47: 1 | H47: ='CPU Própria (sem des)'!$K$28 -> 1500 | I47: =$N$4 -> 0.2395756778 | J47: =H47*(1+I47) -> 1859.363517 | K47: ='CPU Própria (des)'!$J$28 -> 1500 | L47: =$O$4 -> 0.3026049495 | M47: =K47*(1+L47) -> 1953.907424 | N47: =J47*G47 -> 1859.363517 | O47: =M47*G47 -> 1953.907424
B48: 2.2.2 | C48: PAVIMENTAÇÃO | G48: 1 | N48: =SUM(N49:N58) -> 721195.0295 | O48: =SUM(O49:O58) -> 749142.7678
B49: 2.2.2.1 | C49: Composição Orse | D49: 3212 | E49: Colchão de areia | F49: M3 | G49: 507.37 | H49: =VLOOKUP(D49,'CPU (sem des)'!B:I,8,FALSE) -> 134.79 | I49: =$N$4 -> 0.2395756778 | J49: =H49*(1+I49) -> 167.0824056 | K49: =VLOOKUP(D49,'CPU (des)'!B:I,8,FALSE) -> 132.9 | L49: =$O$4 -> 0.3026049495 | M49: =K49*(1+L49) -> 173.1161978 | N49: =J49*G49 -> 84772.60013 | O49: =M49*G49 -> 87833.96528
B50: 2.2.2.2 | C50: Composição Sinapi | D50: 100575 | E50: REGULARIZAÇÃO DE SUPERFÍCIES COM MOTONIVELADORA. AF_11/2019 | F50: M2 | G50: 5073.69 | H50: =VLOOKUP(D50,'CPU (sem des)'!B:I,8,FALSE) -> 0.12 | I50: =$N$4 -> 0.2395756778 | J50: 0.1487490813 | K50: =VLOOKUP(D50,'CPU (des)'!B:I,8,FALSE) -> 0.12 | L50: =$O$4 -> 0.3026049495 | M50: 0.1563125939 | N50: 754.7067265 | O50: 793.0816448
B51: 2.2.2.3 | C51: Composição Sinapi | D51: 92397 | E51: EXECUÇÃO DE PÁTIO/ESTACIONAMENTO EM PISO INTERTRAVADO, COM BLOCO RETANGULAR COR NATURAL DE 20 X 10 CM, ESPESSURA 6 CM. AF_12/2015 | F51: M2 | G51: 5073.69 | H51: =VLOOKUP(D51,'CPU (sem des)'!B:I,8,FALSE) -> 76.05 | I51: =$N$4 -> 0.2395756778 | J51: 94.2697303 | K51: =VLOOKUP(D51,'CPU (des)'!B:I,8,FALSE) -> 75.16 | L51: =$O$4 -> 0.3026049495 | M51: 97.90378801 | N51: 478295.3879 | O51: 496733.4702
B52: 2.2.2.4 | C52: Composição Sinapi | D52: 101167 | E52: EXECUÇÃO DE PAVIMENTO EM PARALELEPÍPEDOS, REJUNTAMENTO COM PÓ DE PEDRA. AF_05/2020 | F52: M2 | G52: 180.39 | H52: =VLOOKUP(D52,'CPU (sem des)'!B:I,8,FALSE) -> 308.78 | I52: =$N$4 -> 0.2395756778 | J52: 382.7561778 | K52: =VLOOKUP(D52,'CPU (des)'!B:I,8,FALSE) -> 307.09 | L52: =$O$4 -> 0.3026049495 | M52: 400.016954 | N52: 69045.38691 | O52: 72159.05832
B53: 2.2.2.5 | C53: Insumo Sinapi | D53: 6076 | E53: SAIBRO PARA ARGAMASSA (COLETADO NO COMERCIO) | F53: M3 | G53: 29.72 | H53: =VLOOKUP(D53,'Insumo SINAPI (sem des.)'!A:E,5,FALSE) -> 65 | I53: =$N$5 -> 0.146920122 | J53: 74.54980793 | K53: =VLOOKUP(D53,'Insumos SINAPI (des)'!A:E,5,FALSE) -> 65 | L53: =$O$5 -> 0.2031110915 | M53: 78.20222094 | N53: 2215.620292 | O53: 2324.170006
B54: 2.2.2.6 | C54: Composição Sinapi | D54: 101094 | E54: PISO PODOTÁTIL, DIRECIONAL OU ALERTA, ASSENTADO SOBRE ARGAMASSA. AF_05/2020 | F54: M | G54: 243.79 | H54: =VLOOKUP(D54,'CPU (sem des)'!B:I,8,FALSE) -> 190.73 | I54: =$N$4 -> 0.2395756778 | J54: 236.424269 | K54: =VLOOKUP(D54,'CPU (des)'!B:I,8,FALSE) -> 189.1 | L54: =$O$4 -> 0.3026049495 | M54: 246.322596 | N54: 57637.87255 | O54: 60050.98567
B55: 2.2.2.7 | C55: Composição Orse | D55: 11613 | E55: Revestimento de piso com pedra Itapé 20x40cm assentada com argamassa industrializada ac-iii | F55: M2 | G55: 133.11 | H55: =VLOOKUP(D55,'CPU (sem des)'!B:I,8,FALSE) -> 82.92 | I55: =$N$4 -> 0.2395756778 | J55: 102.7856152 | K55: =VLOOKUP(D55,'CPU (des)'!B:I,8,FALSE) -> 80.19 | L55: =$O$4 -> 0.3026049495 | M55: 104.4558909 | N55: 13681.79324 | O55: 13904.12364
B56: 2.2.2.8 | C56: Composição Sinapi | D56: 97090 | E56: ARMAÇÃO PARA EXECUÇÃO DE RADIER, PISO DE CONCRETO OU LAJE SOBRE SOLO, COM USO DE TELA Q-138. AF_09/2021 | F56: KG | G56: 180 | H56: =VLOOKUP(D56,'CPU (sem des)'!B:I,8,FALSE) -> 12.85 | I56: =$N$4 -> 0.2395756778 | J56: 15.92854746 | K56: =VLOOKUP(D56,'CPU (des)'!B:I,8,FALSE) -> 12.73 | L56: =$O$4 -> 0.3026049495 | M56: 16.58216101 | N56: 2867.138543 | O56: 2984.788981
B57: 2.2.2.9 | C57: Composição Sinapi | D57: 97096 | E57: CONCRETAGEM DE RADIER, PISO DE CONCRETO OU LAJE SOBRE SOLO, FCK 30 MPA - LANÇAMENTO, ADENSAMENTO E ACABAMENTO. AF_09/2021 | F57: M3 | G57: 8.56 | H57: =VLOOKUP(D57,'CPU (sem des)'!B:I,8,FALSE) -> 826.13 | I57: =$N$4 -> 0.2395756778 | J57: 1024.050655 | K57: =VLOOKUP(D57,'CPU (des)'!B:I,8,FALSE) -> 824.19 | L57: =$O$4 -> 0.3026049495 | M57: 1073.593973 | N57: 8765.873604 | O57: 9189.964412
B58: 2.2.2.10 | C58: Composição Sinapi | D58: 94263 | E58: GUIA (MEIO-FIO) CONCRETO, MOLDADA IN LOCO EM TRECHO RETO COM EXTRUSORA, 13 CM BASE X 22 CM ALTURA. AF_06/2016 | F58: M | G58: 69 | H58: =VLOOKUP(D58,'CPU (sem des)'!B:I,8,FALSE) -> 36.93 | I58: =$N$4 -> 0.2395756778 | J58: 45.77752978 | K58: =VLOOKUP(D58,'CPU (des)'!B:I,8,FALSE) -> 35.26 | L58: =$O$4 -> 0.3026049495 | M58: 45.92985052 | N58: 3158.649555 | O58: 3169.159686
B59: 2.2.3 | C59: MOBILIÁRIO URBANO | G59: 1 | N59: =SUM(N60:N70) -> 71960.2806 | O59: =SUM(O60:O70) -> 74149.42397
B60: 2.2.3.1 | C60: Composição Orse | D60: 3740 | E60: Mesa de concreto com 02 bancos integrados | F60: UN | G60: 10 | H60: =VLOOKUP(D60,'CPU (sem des)'!B:I,8,FALSE) -> 909.61 | I60: =$N$4 -> 0.2395756778 | J60: =H60*(1+I60) -> 1127.530432 | K60: =VLOOKUP(D60,'CPU (des)'!B:I,8,FALSE) -> 883.29 | L60: =$O$4 -> 0.3026049495 | M60: =K60*(1+L60) -> 1150.577926 | N60: =J60*G60 -> 11275.30432 | O60: =M60*G60 -> 11505.77926
B61: 2.2.3.2 | C61: Composição Sinapi | D61: 103310 | E61: INSTALAÇÃO DE LIXEIRA METÁLICA DUPLA, CAPACIDADE DE 60 L, EM TUBO DE AÇO CARBONO E CESTOS EM CHAPA DE AÇO COM PINTURA ELETROSTÁTICA, SOBRE SOLO. AF_11/2021 | F61: UN | G61: 6 | H61: =VLOOKUP(D61,'CPU (sem des)'!B:I,8,FALSE) -> 1288.84 | I61: 0.2395756778 | J61: 1597.614717 | K61: =VLOOKUP(D61,'CPU (des)'!B:I,8,FALSE) -> 1285.06 | L61: 0.3026049495 | M61: 1673.925516 | N61: 9585.688299 | O61: 10043.5531
B62: 2.2.3.3 | C62: Composição Sinapi | D62: 92435 | E62: MONTAGEM E DESMONTAGEM DE FÔRMA DE PILARES RETANGULARES E ESTRUTURAS SIMILARES, PÉ-DIREITO SIMPLES, EM CHAPA DE MADEIRA COMPENSADA PLASTIFICADA, 12 UTILIZAÇÕES. AF_09/2020 | F62: M2 | G62: 1 | H62: =VLOOKUP(D62,'CPU (sem des)'!B:I,8,FALSE) -> 57.64 | I62: 0.2395756778 | J62: 71.44914207 | K62: =VLOOKUP(D62,'CPU (des)'!B:I,8,FALSE) -> 55.21 | L62: 0.3026049495 | M62: 71.91681926 | N62: 71.44914207 | O62: 71.91681926
B63: 2.2.3.4 | C63: Composição Sinapi | D63: 92761 | E63: ARMAÇÃO DE PILAR OU VIGA DE ESTRUTURA CONVENCIONAL DE CONCRETO ARMADO UTILIZANDO AÇO CA-50 DE 8,0 MM - MONTAGEM. AF_06/2022 | F63: KG | G63: 1 | H63: =VLOOKUP(D63,'CPU (sem des)'!B:I,8,FALSE) -> 15.29 | I63: 0.2395756778 | J63: 18.95311211 | K63: =VLOOKUP(D63,'CPU (des)'!B:I,8,FALSE) -> 15.09 | L63: 0.3026049495 | M63: 19.65630869 | N63: 18.95311211 | O63: 19.65630869
B64: 2.2.3.5 | C64: Composição Sinapi | D64: 103685 | E64: CONCRETAGEM DE MURETAS, FCK=25 MPA, COM USO DE BOMBA - LANÇAMENTO, ADENSAMENTO E ACABAMENTO. AF_02/2022 | F64: M3 | G64: 1 | H64: =VLOOKUP(D64,'CPU (sem des)'!B:I,8,FALSE) -> 855.82 | I64: 0.2395756778 | J64: 1060.853657 | K64: =VLOOKUP(D64,'CPU (des)'!B:I,8,FALSE) -> 851.35 | L64: 0.3026049495 | M64: 1108.972724 | N64: 1060.853657 | O64: 1108.972724
B65: 2.2.3.6 | C65: Composição Sinapi | D65: 92435 | E65: MONTAGEM E DESMONTAGEM DE FÔRMA DE PILARES RETANGULARES E ESTRUTURAS SIMILARES, PÉ-DIREITO SIMPLES, EM CHAPA DE MADEIRA COMPENSADA PLASTIFICADA, 12 UTILIZAÇÕES. AF_09/2020 | F65: M2 | G65: 26.88 | H65: =VLOOKUP(D65,'CPU (sem des)'!B:I,8,FALSE) -> 57.64 | I65: 0.2395756778 | J65: 71.44914207 | K65: =VLOOKUP(D65,'CPU (des)'!B:I,8,FALSE) -> 55.21 | L65: 0.3026049495 | M65: 71.91681926 | N65: 1920.552939 | O65: 1933.124102
B66: 2.2.3.7 | C66: Composição Sinapi | D66: 92761 | E66: ARMAÇÃO DE PILAR OU VIGA DE ESTRUTURA CONVENCIONAL DE CONCRETO ARMADO UTILIZANDO AÇO CA-50 DE 8,0 MM - MONTAGEM. AF_06/2022 | F66: KG | G66: 160 | H66: =VLOOKUP(D66,'CPU (sem des)'!B:I,8,FALSE) -> 15.29 | I66: 0.2395756778 | J66: 18.95311211 | K66: =VLOOKUP(D66,'CPU (des)'!B:I,8,FALSE) -> 15.09 | L66: 0.3026049495 | M66: 19.65630869 | N66: 3032.497938 | O66: 3145.00939
B67: 2.2.3.8 | C67: Composição Sinapi | D67: 103685 | E67: CONCRETAGEM DE MURETAS, FCK=25 MPA, COM USO DE BOMBA - LANÇAMENTO, ADENSAMENTO E ACABAMENTO. AF_02/2022 | F67: M3 | G67: 5.06 | H67: =VLOOKUP(D67,'CPU (sem des)'!B:I,8,FALSE) -> 855.82 | I67: 0.2395756778 | J67: 1060.853657 | K67: =VLOOKUP(D67,'CPU (des)'!B:I,8,FALSE) -> 851.35 | L67: 0.3026049495 | M67: 1108.972724 | N67: 5367.919502 | O67: 5611.401982
B68: 2.2.3.9 | C68: Composição Sinapi | D68: 103314 | E68: INSTALAÇÃO DE PERGOLADO DE MADEIRA, EM MAÇARANDUBA, ANGELIM OU EQUIVALENTE DA REGIÃO, FIXADO COM CONCRETO SOBRE PISO DE CONCRETO EXISTENTE. AF_11/2021 | F68: M2 | G68: 60.48 | H68: =VLOOKUP(D68,'CPU (sem des)'!B:I,8,FALSE) -> 173.39 | I68: 0.2395756778 | J68: 214.9300268 | K68: =VLOOKUP(D68,'CPU (des)'!B:I,8,FALSE) -> 170.35 | L68: 0.3026049495 | M68: 221.8987532 | N68: 12998.96802 | O68: 13420.43659
B69: 2.2.3.10 | C69: Composição Orse | D69: 8464 | E69: Banco de concreto sem encosto, dimensão: 2,00x0,60m | F69: UN | G69: 12 | H69: =VLOOKUP(D69,'CPU (sem des)'!B:I,8,FALSE) -> 681.31 | I69: 0.2395756778 | J69: 844.535305 | K69: =VLOOKUP(D69,'CPU (des)'!B:I,8,FALSE) -> 644.05 | L69: 0.3026049495 | M69: 838.9427178 | N69: 10134.42366 | O69: 10067.31261
B70: 2.2.3.11 | C70: Composição Sinapi | D70: 103307 | E70: INSTALAÇÃO DE LIXEIRA METÁLICA DUPLA, CAPACIDADE DE 60 L, EM TUBO DE AÇO CARBONO E CESTOS EM CHAPA DE AÇO COM PINTURA ELETROSTÁTICA, SOBRE PISO DE CONCRETO EXISTENTE. AF_11/2021 | F70: UN | G70: 10 | H70: =VLOOKUP(D70,'CPU (sem des)'!B:I,8,FALSE) -> 1330.59 | I70: 0.2395756778 | J70: 1649.367001 | K70: =VLOOKUP(D70,'CPU (des)'!B:I,8,FALSE) -> 1322.14 | L70: 0.3026049495 | M70: 1722.226108 | N70: 16493.67001 | O70: 17222.26108
B71: 2.2.4 | C71: ESPELHO D'AGUA E FONTE | G71: 1 | N71: =SUM(N72:N76) -> 57467.30011 | O71: =SUM(O72:O76) -> 59444.07558
B72: 2.2.4.1 | C72: Composição Sinapi | D72: 103685 | E72: CONCRETAGEM DE MURETAS, FCK=25 MPA, COM USO DE BOMBA - LANÇAMENTO, ADENSAMENTO E ACABAMENTO. AF_02/2022 | F72: M3 | G72: 31.16 | H72: =VLOOKUP(D72,'CPU (sem des)'!B:I,8,FALSE) -> 855.82 | I72: =$N$4 -> 0.2395756778 | J72: =H72*(1+I72) -> 1060.853657 | K72: =VLOOKUP(D72,'CPU (des)'!B:I,8,FALSE) -> 851.35 | L72: =$O$4 -> 0.3026049495 | M72: =K72*(1+L72) -> 1108.972724 | N72: =J72*G72 -> 33056.19994 | O72: =M72*G72 -> 34555.59007
B73: 2.2.4.2 | C73: Composição Sinapi | D73: 92435 | E73: MONTAGEM E DESMONTAGEM DE FÔRMA DE PILARES RETANGULARES E ESTRUTURAS SIMILARES, PÉ-DIREITO SIMPLES, EM CHAPA DE MADEIRA COMPENSADA PLASTIFICADA, 12 UTILIZAÇÕES. AF_09/2020 | F73: M2 | G73: 43.55 | H73: =VLOOKUP(D73,'CPU (sem des)'!B:I,8,FALSE) -> 57.64 | I73: =$N$4 -> 0.2395756778 | J73: =H73*(1+I73) -> 71.44914207 | K73: =VLOOKUP(D73,'CPU (des)'!B:I,8,FALSE) -> 55.21 | L73: =$O$4 -> 0.3026049495 | M73: =K73*(1+L73) -> 71.91681926 | N73: =J73*G73 -> 3111.610137 | O73: 3131.977479
B74: 2.2.4.3 | C74: Composição Sinapi | D74: 92761 | E74: ARMAÇÃO DE PILAR OU VIGA DE ESTRUTURA CONVENCIONAL DE CONCRETO ARMADO UTILIZANDO AÇO CA-50 DE 8,0 MM - MONTAGEM. AF_06/2022 | F74: KG | G74: 820.12 | H74: =VLOOKUP(D74,'CPU (sem des)'!B:I,8,FALSE) -> 15.29 | I74: =$N$4 -> 0.2395756778 | J74: =H74*(1+I74) -> 18.95311211 | K74: =VLOOKUP(D74,'CPU (des)'!B:I,8,FALSE) -> 15.09 | L74: =$O$4 -> 0.3026049495 | M74: =K74*(1+L74) -> 19.65630869 | N74: =J74*G74 -> 15543.82631 | O74: 16120.53188
B75: 2.2.4.4 | C75: Composição Orse | D75: 13008 | E75: Bombeamento com Bomba submersa | F75: H | G75: 1 | H75: 578.89 | I75: =$N$4 -> 0.2395756778 | J75: =H75*(1+I75) -> 717.5779641 | K75: 578.89 | L75: =$O$4 -> 0.3026049495 | M75: =K75*(1+L75) -> 754.0649792 | N75: =J75*G75 -> 717.5779641 | O75: 754.0649792
B76: 2.2.4.5 | C76: Composição Sinapi | D76: 89357 | E76: TUBO, PVC, SOLDÁVEL, DN 32MM, INSTALADO EM RAMAL OU SUB-RAMAL DE ÁGUA - FORNECIMENTO E INSTALAÇÃO. AF_06/2022 | F76: M | G76: 141.32 | H76: =VLOOKUP(D76,'CPU (sem des)'!B:I,8,FALSE) -> 28.76 | I76: =$N$4 -> 0.2395756778 | J76: =H76*(1+I76) -> 35.65019649 | K76: =VLOOKUP(D76,'CPU (des)'!B:I,8,FALSE) -> 26.52 | L76: =$O$4 -> 0.3026049495 | M76: =K76*(1+L76) -> 34.54508326 | N76: =J76*G76 -> 5038.085768 | O76: 4881.911167
B77: 2.2.5 | C77: ACADEMIA E PLAYGROUND | G77: 1 | N77: =SUM(N78) -> 48902.76247 | O77: =SUM(O78) -> 51298.65175
B78: 2.2.5.1 | C78: Composição Própria | D78: 10000 | E78: Playgound e Academia | F78: unid | G78: 1 | H78: ='Cotação Playground'!K16 -> 42638.33333 | I78: =N5 -> 0.146920122 | J78: =H78*(1+I78) -> 48902.76247 | K78: ='Cotação Playground'!K16 -> 42638.33333 | L78: =O5 -> 0.2031110915 | M78: =K78*(1+L78) -> 51298.65175 | N78: =J78*G78 -> 48902.76247 | O78: =M78*G78 -> 51298.65175
B79: 2.2.6 | C79: PAISAGISMO | G79: 1 | N79: =SUM(N80:N81) -> 12903.81931 | O79: =SUM(O80:O81) -> 13289.39544
B80: 2.2.6.1 | C80: Composição Sinapi | D80: 103946 | E80: PLANTIO DE GRAMA ESMERALDA OU SÃO CARLOS OU CURITIBANA, EM PLACAS. AF_05/2022 | F80: M2 | G80: 342.63 | H80: =VLOOKUP(D80,'CPU (sem des)'!B:I,8,FALSE) -> 18.87 | I80: =$N$4 -> 0.2395756778 | J80: =H80*(1+I80) -> 23.39079304 | K80: =VLOOKUP(D80,'CPU (des)'!B:I,8,FALSE) -> 18.49 | L80: =$O$4 -> 0.3026049495 | M80: =K80*(1+L80) -> 24.08516552 | N80: =J80*G80 -> 8014.387419 | O80: =M80*G80 -> 8252.300261
B81: 2.2.6.2 | C81: Composição Sinapi | D81: 98511 | E81: PLANTIO DE ÁRVORE ORNAMENTAL COM ALTURA DE MUDA MAIOR QUE 2,00 M E MENOR OU IGUAL A 4,00 M. AF_05/2018 | F81: UN | G81: 31 | H81: =VLOOKUP(D81,'CPU (sem des)'!B:I,8,FALSE) -> 127.24 | I81: =$N$4 -> 0.2395756778 | J81: =H81*(1+I81) -> 157.7236092 | K81: =VLOOKUP(D81,'CPU (des)'!B:I,8,FALSE) -> 124.74 | L81: =$O$4 -> 0.3026049495 | M81: =K81*(1+L81) -> 162.4869414 | N81: =J81*G81 -> 4889.431887 | O81: 5037.095184
B82: 2.2.7 | C82: SERVIÇOS COMPLEMENTARES | G82: 1 | N82: =SUM(N83) -> 1859.363517 | O82: =SUM(O83) -> 1953.907424
B83: 2.2.7.1 | C83: Composição Própria | D83: 1.1 | E83: DESMOBILIZAÇÃO | F83: UN | G83: 1 | H83: ='CPU Própria (sem des)'!$K$28 -> 1500 | I83: =$N$4 -> 0.2395756778 | J83: =H83*(1+I83) -> 1859.363517 | K83: ='CPU Própria (des)'!$J$28 -> 1500 | L83: =$O$4 -> 0.3026049495 | M83: =K83*(1+L83) -> 1953.907424 | N83: =J83*G83 -> 1859.363517 | O83: =M83*G83 -> 1953.907424
B84: 2.3 | C84: Praça de Serviços | N84: =N85+N87+N94+N101+N103 -> 648032.2583 | O84: =O85+O87+O94+O101+O103 -> 672710.7797
B85: 2.3.1 | C85: SERVIÇOS PRELIMINARES | G85: 1 | N85: =SUM(N86) -> 1859.363517 | O85: =SUM(O86) -> 1953.907424
B86: 2.3.1.1 | C86: Composição Própria | D86: 1.1 | E86: MOBILIZAÇÃO | F86: UN | G86: 1 | H86: ='CPU Própria (sem des)'!$K$28 -> 1500 | I86: =$N$4 -> 0.2395756778 | J86: =H86*(1+I86) -> 1859.363517 | K86: ='CPU Própria (des)'!$J$28 -> 1500 | L86: =$O$4 -> 0.3026049495 | M86: =K86*(1+L86) -> 1953.907424 | N86: =J86*G86 -> 1859.363517 | O86: =M86*G86 -> 1953.907424
B87: 2.3.2 | C87: PAVIMENTAÇÃO | G87: 1 | N87: =SUM(N88:N93) -> 548656.9511 | O87: =SUM(O88:O93) -> 570175.0901
B88: 2.3.2.1 | C88: Composição Sinapi | D88: 100575 | E88: REGULARIZAÇÃO DE SUPERFÍCIES COM MOTONIVELADORA. AF_11/2019 | F88: M2 | G88: 3483.09 | H88: =VLOOKUP(D88,'CPU (sem des)'!B:I,8,FALSE) -> 0.12 | I88: =$N$4 -> 0.2395756778 | J88: =H88*(1+I88) -> 0.1487490813 | K88: =VLOOKUP(D88,'CPU (des)'!B:I,8,FALSE) -> 0.12 | L88: =$O$4 -> 0.3026049495 | M88: =K88*(1+L88) -> 0.1563125939 | N88: =J88*G88 -> 518.1064377 | O88: =M88*G88 -> 544.4508328
B89: 2.3.2.2 | C89: Composição Orse | D89: 3212 | E89: Colchão de areia | F89: M3 | G89: 348.31 | H89: =VLOOKUP(D89,'CPU (sem des)'!B:I,8,FALSE) -> 134.79 | I89: 0.2395756778 | J89: 167.0824056 | K89: =VLOOKUP(D89,'CPU (des)'!B:I,8,FALSE) -> 132.9 | L89: 0.3026049495 | M89: 173.1161978 | N89: 58196.4727 | O89: 60298.10285
B90: 2.3.2.3 | C90: Composição Sinapi | D90: 92397 | E90: EXECUÇÃO DE PÁTIO/ESTACIONAMENTO EM PISO INTERTRAVADO, COM BLOCO RETANGULAR COR NATURAL DE 20 X 10 CM, ESPESSURA 6 CM. AF_12/2015 | F90: M2 | G90: 3483.09 | H90: =VLOOKUP(D90,'CPU (sem des)'!B:I,8,FALSE) -> 76.05 | I90: 0.2395756778 | J90: 94.2697303 | K90: =VLOOKUP(D90,'CPU (des)'!B:I,8,FALSE) -> 75.16 | L90: 0.3026049495 | M90: 97.90378801 | N90: 328349.9549 | O90: 341007.705
B91: 2.3.2.4 | C91: Composição Sinapi | D91: 94991 | E91: EXECUÇÃO DE PASSEIO (CALÇADA) OU PISO DE CONCRETO COM CONCRETO MOLDADO IN LOCO, USINADO, ACABAMENTO CONVENCIONAL, NÃO ARMADO. AF_07/2016 | F91: M3 | G91: 19.52 | H91: =VLOOKUP(D91,'CPU (sem des)'!B:I,8,FALSE) -> 920.54 | I91: 0.2395756778 | J91: 1141.078994 | K91: =VLOOKUP(D91,'CPU (des)'!B:I,8,FALSE) -> 912.21 | L91: 0.3026049495 | M91: 1188.249261 | N91: 22273.86197 | O91: 23194.62558
B92: 2.3.2.5 | C92: Composição Sinapi | D92: 101094 | E92: PISO PODOTÁTIL, DIRECIONAL OU ALERTA, ASSENTADO SOBRE ARGAMASSA. AF_05/2020 | F92: M | G92: 586.95 | H92: =VLOOKUP(D92,'CPU (sem des)'!B:I,8,FALSE) -> 190.73 | I92: 0.2395756778 | J92: 236.424269 | K92: =VLOOKUP(D92,'CPU (des)'!B:I,8,FALSE) -> 189.1 | L92: 0.3026049495 | M92: 246.322596 | N92: 138769.2247 | O92: 144579.0477
B93: 2.3.2.6 | C93: Composição Sinapi | D93: 94263 | E93: GUIA (MEIO-FIO) CONCRETO, MOLDADA IN LOCO EM TRECHO RETO COM EXTRUSORA, 13 CM BASE X 22 CM ALTURA. AF_06/2016 | F93: M | G93: 12 | H93: =VLOOKUP(D93,'CPU (sem des)'!B:I,8,FALSE) -> 36.93 | I93: 0.2395756778 | J93: 45.77752978 | K93: =VLOOKUP(D93,'CPU (des)'!B:I,8,FALSE) -> 35.26 | L93: 0.3026049495 | M93: 45.92985052 | N93: 549.3303574 | O93: 551.1582063
B94: 2.3.3 | C94: MOBILIÁRIO URBANO | G94: 1 | N94: =SUM(N95:N100) -> 91935.7211 | O94: =SUM(O95:O100) -> 94985.0325
B95: 2.3.3.1 | C95: Composição Orse | D95: 3740 | E95: Mesa de concreto com 02 bancos integrados | F95: UN | G95: 17 | H95: =VLOOKUP(D95,'CPU (sem des)'!B:I,8,FALSE) -> 909.61 | I95: =$N$4 -> 0.2395756778 | J95: =H95*(1+I95) -> 1127.530432 | K95: =VLOOKUP(D95,'CPU (des)'!B:I,8,FALSE) -> 883.29 | L95: =$O$4 -> 0.3026049495 | M95: =K95*(1+L95) -> 1150.577926 | N95: =J95*G95 -> 19168.01735 | O95: =M95*G95 -> 19559.82474
B96: 2.3.3.2 | C96: Composição Sinapi | D96: 103310 | E96: INSTALAÇÃO DE LIXEIRA METÁLICA DUPLA, CAPACIDADE DE 60 L, EM TUBO DE AÇO CARBONO E CESTOS EM CHAPA DE AÇO COM PINTURA ELETROSTÁTICA, SOBRE SOLO. AF_11/2021 | F96: UN | G96: 8 | H96: =VLOOKUP(D96,'CPU (sem des)'!B:I,8,FALSE) -> 1288.84 | I96: 0.2395756778 | J96: 1597.614717 | K96: =VLOOKUP(D96,'CPU (des)'!B:I,8,FALSE) -> 1285.06 | L96: 0.3026049495 | M96: 1673.925516 | N96: 12780.91773 | O96: 13391.40413
B97: 2.3.3.3 | C97: Composição Sinapi | D97: 92435 | E97: MONTAGEM E DESMONTAGEM DE FÔRMA DE PILARES RETANGULARES E ESTRUTURAS SIMILARES, PÉ-DIREITO SIMPLES, EM CHAPA DE MADEIRA COMPENSADA PLASTIFICADA, 12 UTILIZAÇÕES. AF_09/2020 | F97: M2 | G97: 80.64 | H97: =VLOOKUP(D97,'CPU (sem des)'!B:I,8,FALSE) -> 57.64 | I97: 0.2395756778 | J97: 71.44914207 | K97: =VLOOKUP(D97,'CPU (des)'!B:I,8,FALSE) -> 55.21 | L97: 0.3026049495 | M97: 71.91681926 | N97: 5761.658816 | O97: 5799.372305
B98: 2.3.3.4 | C98: Composição Sinapi | D98: 92761 | E98: ARMAÇÃO DE PILAR OU VIGA DE ESTRUTURA CONVENCIONAL DE CONCRETO ARMADO UTILIZANDO AÇO CA-50 DE 8,0 MM - MONTAGEM. AF_06/2022 | F98: KG | G98: 480 | H98: =VLOOKUP(D98,'CPU (sem des)'!B:I,8,FALSE) -> 15.29 | I98: 0.2395756778 | J98: 18.95311211 | K98: =VLOOKUP(D98,'CPU (des)'!B:I,8,FALSE) -> 15.09 | L98: 0.3026049495 | M98: 19.65630869 | N98: 9097.493814 | O98: 9435.028171
B99: 2.3.3.5 | C99: Composição Sinapi | D99: 103685 | E99: CONCRETAGEM DE MURETAS, FCK=25 MPA, COM USO DE BOMBA - LANÇAMENTO, ADENSAMENTO E ACABAMENTO. AF_02/2022 | F99: M3 | G99: 15.2 | H99: =VLOOKUP(D99,'CPU (sem des)'!B:I,8,FALSE) -> 855.82 | I99: 0.2395756778 | J99: 1060.853657 | K99: =VLOOKUP(D99,'CPU (des)'!B:I,8,FALSE) -> 851.35 | L99: 0.3026049495 | M99: 1108.972724 | N99: 16124.97558 | O99: 16856.3854
B100: 2.3.3.6 | C100: Composição Sinapi | D100: 103314 | E100: INSTALAÇÃO DE PERGOLADO DE MADEIRA, EM MAÇARANDUBA, ANGELIM OU EQUIVALENTE DA REGIÃO, FIXADO COM CONCRETO SOBRE PISO DE CONCRETO EXISTENTE. AF_11/2021 | F100: M2 | G100: 134.94 | H100: =VLOOKUP(D100,'CPU (sem des)'!B:I,8,FALSE) -> 173.39 | I100: 0.2395756778 | J100: 214.9300268 | K100: =VLOOKUP(D100,'CPU (des)'!B:I,8,FALSE) -> 170.35 | L100: 0.3026049495 | M100: 221.8987532 | N100: 29002.65781 | O100: 29943.01775
B101: 2.3.4 | C101: PAISAGISMO | G101: 1 | N101: =SUM(N102) -> 1577.236092 | O101: =SUM(O102) -> 1624.869414
B102: 2.3.4.1 | C102: Composição Sinapi | D102: 98511 | E102: PLANTIO DE ÁRVORE ORNAMENTAL COM ALTURA DE MUDA MAIOR QUE 2,00 M E MENOR OU IGUAL A 4,00 M. AF_05/2018 | F102: UN | G102: 10 | H102: =VLOOKUP(D102,'CPU (sem des)'!B:I,8,FALSE) -> 127.24 | I102: =$N$4 -> 0.2395756778 | J102: =H102*(1+I102) -> 157.7236092 | K102: =VLOOKUP(D102,'CPU (des)'!B:I,8,FALSE) -> 124.74 | L102: =$O$4 -> 0.3026049495 | M102: =K102*(1+L102) -> 162.4869414 | N102: =J102*G102 -> 1577.236092 | O102: =M102*G102 -> 1624.869414
B103: 2.3.5 | C103: SERVIÇOS COMPLEMENTARES | G103: 1 | N103: =SUM(N104:N105) -> 4002.986528 | O103: =SUM(O104:O105) -> 3971.880217
B104: 2.3.5.1 | C104: Composição Própria | D104: 1.1 | E104: DESMOBILIZAÇÃO | F104: UN | G104: 1 | H104: ='CPU Própria (sem des)'!$K$28 -> 1500 | I104: =$N$4 -> 0.2395756778 | J104: =H104*(1+I104) -> 1859.363517 | K104: ='CPU Própria (des)'!$J$28 -> 1500 | L104: =$O$4 -> 0.3026049495 | M104: =K104*(1+L104) -> 1953.907424 | N104: =J104*G104 -> 1859.363517 | O104: =M104*G104 -> 1953.907424
B105: 2.3.5.2 | C105: Composição Orse | D105: 6191 | E105: Limpeza de ruas (varrição e remoção de entulhos) | F105: M2 | G105: 3602.75 | H105: =VLOOKUP(D105,'CPU (sem des)'!B:I,8,FALSE) -> 0.48 | I105: =$N$4 -> 0.2395756778 | J105: =H105*(1+I105) -> 0.5949963253 | K105: =VLOOKUP(D105,'CPU (des)'!B:I,8,FALSE) -> 0.43 | L105: =$O$4 -> 0.3026049495 | M105: =K105*(1+L105) -> 0.5601201283 | N105: =J105*G105 -> 2143.623011 | O105: 2017.972792
B106: 2.4 | C106: Praça Institucional | N106: =N107+N109+N116+N122+N126 -> 271385.4009 | O106: =O107+O109+O116+O122+O126 -> 281703.2511
B107: 2.4.1 | C107: SERVIÇOS PRELIMINARES | G107: 1 | N107: =SUM(N108) -> 1859.363517 | O107: =SUM(O108) -> 1953.907424
B108: 2.4.1.1 | C108: Composição Própria | D108: 1.1 | E108: MOBILIZAÇÃO | F108: UN | G108: 1 | H108: ='CPU Própria (sem des)'!$K$28 -> 1500 | I108: =$N$4 -> 0.2395756778 | J108: =H108*(1+I108) -> 1859.363517 | K108: ='CPU Própria (des)'!$J$28 -> 1500 | L108: =$O$4 -> 0.3026049495 | M108: =K108*(1+L108) -> 1953.907424 | N108: =J108*G108 -> 1859.363517 | O108: =M108*G108 -> 1953.907424
B109: 2.4.2 | C109: PAVIMENTAÇÃO | G109: 1 | N109: =SUM(N110:N115) -> 223749.2274 | O109: =SUM(O110:O115) -> 232480.9946
B110: 2.4.2.1 | C110: Composição Sinapi | D110: 100575 | E110: REGULARIZAÇÃO DE SUPERFÍCIES COM MOTONIVELADORA. AF_11/2019 | F110: M2 | G110: 1201.28 | H110: =VLOOKUP(D110,'CPU (sem des)'!B:I,8,FALSE) -> 0.12 | I110: =$N$4 -> 0.2395756778 | J110: =H110*(1+I110) -> 0.1487490813 | K110: =VLOOKUP(D110,'CPU (des)'!B:I,8,FALSE) -> 0.12 | L110: =$O$4 -> 0.3026049495 | M110: =K110*(1+L110) -> 0.1563125939 | N110: =J110*G110 -> 178.6892964 | O110: =M110*G110 -> 187.7751929
B111: 2.4.2.2 | C111: Composição Orse | D111: 3212 | E111: Colchão de areia | F111: M3 | G111: 120.12 | H111: =VLOOKUP(D111,'CPU (sem des)'!B:I,8,FALSE) -> 134.79 | I111: 0.2395756778 | J111: 167.0824056 | K111: =VLOOKUP(D111,'CPU (des)'!B:I,8,FALSE) -> 132.9 | L111: 0.3026049495 | M111: 173.1161978 | N111: 20069.93856 | O111: 20794.71768
B112: 2.4.2.3 | C112: Composição Sinapi | D112: 92397 | E112: EXECUÇÃO DE PÁTIO/ESTACIONAMENTO EM PISO INTERTRAVADO, COM BLOCO RETANGULAR COR NATURAL DE 20 X 10 CM, ESPESSURA 6 CM. AF_12/2015 | F112: M2 | G112: 1201.28 | H112: =VLOOKUP(D112,'CPU (sem des)'!B:I,8,FALSE) -> 76.05 | I112: 0.2395756778 | J112: 94.2697303 | K112: =VLOOKUP(D112,'CPU (des)'!B:I,8,FALSE) -> 75.16 | L112: 0.3026049495 | M112: 97.90378801 | N112: 113244.3416 | O112: 117609.8625
B113: 2.4.2.4 | C113: Composição Sinapi | D113: 94991 | E113: EXECUÇÃO DE PASSEIO (CALÇADA) OU PISO DE CONCRETO COM CONCRETO MOLDADO IN LOCO, USINADO, ACABAMENTO CONVENCIONAL, NÃO ARMADO. AF_07/2016 | F113: M3 | G113: 32.06 | H113: =VLOOKUP(D113,'CPU (sem des)'!B:I,8,FALSE) -> 920.54 | I113: 0.2395756778 | J113: 1141.078994 | K113: =VLOOKUP(D113,'CPU (des)'!B:I,8,FALSE) -> 912.21 | L113: 0.3026049495 | M113: 1188.249261 | N113: 36582.99256 | O113: 38095.27131
B114: 2.4.2.5 | C114: Composição Sinapi | D114: 101094 | E114: PISO PODOTÁTIL, DIRECIONAL OU ALERTA, ASSENTADO SOBRE ARGAMASSA. AF_05/2020 | F114: M | G114: 213.08 | H114: =VLOOKUP(D114,'CPU (sem des)'!B:I,8,FALSE) -> 190.73 | I114: 0.2395756778 | J114: 236.424269 | K114: =VLOOKUP(D114,'CPU (des)'!B:I,8,FALSE) -> 189.1 | L114: 0.3026049495 | M114: 246.322596 | N114: 50377.28324 | O114: 52486.41875
B115: 2.4.2.6 | C115: Composição Sinapi | D115: 94263 | E115: GUIA (MEIO-FIO) CONCRETO, MOLDADA IN LOCO EM TRECHO RETO COM EXTRUSORA, 13 CM BASE X 22 CM ALTURA. AF_06/2016 | F115: M | G115: 72 | H115: =VLOOKUP(D115,'CPU (sem des)'!B:I,8,FALSE) -> 36.93 | I115: 0.2395756778 | J115: 45.77752978 | K115: =VLOOKUP(D115,'CPU (des)'!B:I,8,FALSE) -> 35.26 | L115: 0.3026049495 | M115: 45.92985052 | N115: 3295.982144 | O115: 3306.949238
B116: 2.4.3 | C116: MOBILIÁRIO URBANO | G116: 1 | N116: =SUM(N117:N121) -> 37660.86634 | O116: =SUM(O117:O121) -> 38964.41167
B117: 2.4.3.1 | C117: Composição Orse | D117: 3740 | E117: Mesa de concreto com 02 bancos integrados | F117: UN | G117: 8 | H117: =VLOOKUP(D117,'CPU (sem des)'!B:I,8,FALSE) -> 909.61 | I117: =$N$4 -> 0.2395756778 | J117: =H117*(1+I117) -> 1127.530432 | K117: =VLOOKUP(D117,'CPU (des)'!B:I,8,FALSE) -> 883.29 | L117: =$O$4 -> 0.3026049495 | M117: =K117*(1+L117) -> 1150.577926 | N117: =J117*G117 -> 9020.243458 | O117: =M117*G117 -> 9204.623407
B118: 2.4.3.2 | C118: Composição Sinapi | D118: 103310 | E118: INSTALAÇÃO DE LIXEIRA DE MADEIRA DUPLA, CAPACIDADE DE 60 L, CESTOS EM MADEIRA, SOBRE SOLO. AF_11/2021 | F118: UN | G118: 5 | H118: =VLOOKUP(D118,'CPU (sem des)'!B:I,8,FALSE) -> 1288.84 | I118: =$N$4 -> 0.2395756778 | J118: =H118*(1+I118) -> 1597.614717 | K118: =VLOOKUP(D118,'CPU (des)'!B:I,8,FALSE) -> 1285.06 | L118: =$O$4 -> 0.3026049495 | M118: =K118*(1+L118) -> 1673.925516 | N118: =J118*G118 -> 7988.073583 | O118: 8369.627582
B119: 2.4.3.3 | C119: Composição Sinapi | D119: 92435 | E119: MONTAGEM E DESMONTAGEM DE FÔRMA DE PILARES RETANGULARES E ESTRUTURAS SIMILARES, PÉ-DIREITO SIMPLES, EM CHAPA DE MADEIRA COMPENSADA PLASTIFICADA, 12 UTILIZAÇÕES. AF_09/2020 | F119: M2 | G119: 53.76 | H119: =VLOOKUP(D119,'CPU (sem des)'!B:I,8,FALSE) -> 57.64 | I119: =$N$4 -> 0.2395756778 | J119: =H119*(1+I119) -> 71.44914207 | K119: =VLOOKUP(D119,'CPU (des)'!B:I,8,FALSE) -> 55.21 | L119: =$O$4 -> 0.3026049495 | M119: =K119*(1+L119) -> 71.91681926 | N119: =J119*G119 -> 3841.105878 | O119: 3866.248204
B120: 2.4.3.4 | C120: Composição Sinapi | D120: 92761 | E120: ARMAÇÃO DE PILAR OU VIGA DE UMA ESTRUTURA CONVENCIONAL DE CONCRETO ARMADO EM UM EDIFÍCIO DE MÚLTIPLOS PAVIMENTOS UTILIZANDO AÇO CA-50 DE 8,0 MM - MONTAGEM. AF_12/2015 | F120: KG | G120: 320 | H120: =VLOOKUP(D120,'CPU (sem des)'!B:I,8,FALSE) -> 15.29 | I120: =$N$4 -> 0.2395756778 | J120: =H120*(1+I120) -> 18.95311211 | K120: =VLOOKUP(D120,'CPU (des)'!B:I,8,FALSE) -> 15.09 | L120: =$O$4 -> 0.3026049495 | M120: =K120*(1+L120) -> 19.65630869 | N120: =J120*G120 -> 6064.995876 | O120: 6290.01878
B121: 2.4.3.5 | C121: Composição Sinapi | D121: 103685 | E121: CONCRETAGEM DE MURETAS, FCK=25 MPA, COM USO DE BOMBA - LANÇAMENTO, ADENSAMENTO E ACABAMENTO. AF_02/2022 | F121: M3 | G121: 10.13 | H121: =VLOOKUP(D121,'CPU (sem des)'!B:I,8,FALSE) -> 855.82 | I121: =$N$4 -> 0.2395756778 | J121: =H121*(1+I121) -> 1060.853657 | K121: =VLOOKUP(D121,'CPU (des)'!B:I,8,FALSE) -> 851.35 | L121: =$O$4 -> 0.3026049495 | M121: =K121*(1+L121) -> 1108.972724 | N121: =J121*G121 -> 10746.44754 | O121: 11233.89369
B122: 2.4.4 | C122: PAISAGISMO | G122: 1 | N122: =SUM(N123:N125) -> 5304.585986 | O122: =SUM(O123:O125) -> 5453.837715
B123: 2.4.4.1 | C123: Composição Sinapi | D123: 103946 | E123: PLANTIO DE GRAMA ESMERALDA OU SÃO CARLOS OU CURITIBANA, EM PLACAS. AF_05/2022 | F123: M2 | G123: 119.49 | H123: =VLOOKUP(D123,'CPU (sem des)'!B:I,8,FALSE) -> 18.87 | I123: =$N$4 -> 0.2395756778 | J123: =H123*(1+I123) -> 23.39079304 | K123: =VLOOKUP(D123,'CPU (des)'!B:I,8,FALSE) -> 18.49 | L123: =$O$4 -> 0.3026049495 | M123: =K123*(1+L123) -> 24.08516552 | N123: =J123*G123 -> 2794.96586 | O123: =M123*G123 -> 2877.936428
B124: 2.4.4.2 | C124: Composição Sinapi | D124: 98511 | E124: PLANTIO DE ÁRVORE ORNAMENTAL COM ALTURA DE MUDA MAIOR QUE 2,00 M E MENOR OU IGUAL A 4,00 M. AF_05/2018 | F124: UN | G124: 7 | H124: =VLOOKUP(D124,'CPU (sem des)'!B:I,8,FALSE) -> 127.24 | I124: =$N$4 -> 0.2395756778 | J124: =H124*(1+I124) -> 157.7236092 | K124: =VLOOKUP(D124,'CPU (des)'!B:I,8,FALSE) -> 124.74 | L124: =$O$4 -> 0.3026049495 | M124: =K124*(1+L124) -> 162.4869414 | N124: =J124*G124 -> 1104.065265 | O124: 1137.40859
B125: 2.4.4.3 | C125: Composição Sinapi | D125: 98510 | E125: PLANTIO DE ÁRVORE ORNAMENTAL COM ALTURA DE MUDA MENOR OU IGUAL A 2,00 M. AF_05/2018 | F125: UN | G125: 17 | H125: =VLOOKUP(D125,'CPU (sem des)'!B:I,8,FALSE) -> 66.7 | I125: =$N$4 -> 0.2395756778 | J125: =H125*(1+I125) -> 82.67969771 | K125: =VLOOKUP(D125,'CPU (des)'!B:I,8,FALSE) -> 64.96 | L125: =$O$4 -> 0.3026049495 | M125: =K125*(1+L125) -> 84.61721752 | N125: =J125*G125 -> 1405.554861 | O125: 1438.492698
B126: 2.4.5 | C126: SERVIÇOS COMPLEMENTARES | G126: 1 | N126: =SUM(N127:N128) -> 2811.357637 | O126: =SUM(O127:O128) -> 2850.09963
B127: 2.4.5.1 | C127: Composição Orse | D127: 6191 | E127: Limpeza de ruas (varrição e remoção de entulhos) | F127: M2 | G127: 1600 | H127: =VLOOKUP(D127,'CPU (sem des)'!B:I,8,FALSE) -> 0.48 | I127: =$N$4 -> 0.2395756778 | J127: =H127*(1+I127) -> 0.5949963253 | K127: =VLOOKUP(D127,'CPU (des)'!B:I,8,FALSE) -> 0.43 | L127: =$O$4 -> 0.3026049495 | M127: =K127*(1+L127) -> 0.5601201283 | N127: =J127*G127 -> 951.9941205 | O127: =M127*G127 -> 896.1922053
B128: 2.4.5.2 | C128: Composição Própria | D128: 1.1 | E128: DESMOBILIZAÇÃO | F128: UN | G128: 1 | H128: ='CPU Própria (sem des)'!$K$28 -> 1500 | I128: =$N$4 -> 0.2395756778 | J128: =H128*(1+I128) -> 1859.363517 | K128: ='CPU Própria (des)'!$J$28 -> 1500 | L128: =$O$4 -> 0.3026049495 | M128: =K128*(1+L128) -> 1953.907424 | N128: =J128*G128 -> 1859.363517 | O128: 1953.907424
B129: 2.5 | C129: Entorno | N129: =N137+N140+SUM(N130:N136) -> 264023.8322 | O129: =O137+O140+SUM(O130:O136) -> 275163.6194
B130: 2.5.1 | C130: Composição Orse | D130: 3212 | E130: Colchão de areia | F130: M3 | G130: 135.53 | H130: =VLOOKUP(D130,'CPU (sem des)'!B:I,8,FALSE) -> 134.79 | I130: =$N$4 -> 0.2395756778 | J130: =H130*(1+I130) -> 167.0824056 | K130: =VLOOKUP(D130,'CPU (des)'!B:I,8,FALSE) -> 132.9 | L130: =$O$4 -> 0.3026049495 | M130: =K130*(1+L130) -> 173.1161978 | N130: =J130*G130 -> 22644.67843 | O130: =M130*G130 -> 23462.43829
B131: 2.5.2 | C131: Composição Sinapi | D131: 100575 | E131: REGULARIZAÇÃO DE SUPERFÍCIES COM MOTONIVELADORA. AF_11/2019 | F131: M2 | G131: 903.56 | H131: =VLOOKUP(D131,'CPU (sem des)'!B:I,8,FALSE) -> 0.12 | I131: 0.2395756778 | J131: 0.1487490813 | K131: =VLOOKUP(D131,'CPU (des)'!B:I,8,FALSE) -> 0.12 | L131: 0.3026049495 | M131: 0.1563125939 | N131: 134.4037199 | O131: 141.2378074
B132: 2.5.3 | C132: Composição Sinapi | D132: 92397 | E132: EXECUÇÃO DE PÁTIO/ESTACIONAMENTO EM PISO INTERTRAVADO, COM BLOCO RETANGULAR COR NATURAL DE 20 X 10 CM, ESPESSURA 6 CM. AF_12/2015 | F132: M2 | G132: 903.56 | H132: =VLOOKUP(D132,'CPU (sem des)'!B:I,8,FALSE) -> 76.05 | I132: 0.2395756778 | J132: 94.2697303 | K132: =VLOOKUP(D132,'CPU (des)'!B:I,8,FALSE) -> 75.16 | L132: 0.3026049495 | M132: 97.90378801 | N132: 85178.35751 | O132: 88461.94669
B133: 2.5.4 | C133: Composição Sinapi | D133: 96398 | E133: EXECUÇÃO E COMPACTAÇÃO DE BASE E OU SUB BASE PARA PAVIMENTAÇÃO DE CONCRETO COMPACTADO COM ROLO - EXCLUSIVE CARGA E TRANSPORTE. AF_11/2019 | F133: M3 | G133: 75.93 | H133: =VLOOKUP(D133,'CPU (sem des)'!B:I,8,FALSE) -> 620.01 | I133: 0.2395756778 | J133: 768.549316 | K133: =VLOOKUP(D133,'CPU (des)'!B:I,8,FALSE) -> 619.37 | L133: 0.3026049495 | M133: 806.7944276 | N133: 58355.94956 | O133: 61259.90089
B134: 2.5.5 | C134: Composição Sinapi | D134: 95995 | E134: EXECUÇÃO DE PAVIMENTO COM APLICAÇÃO DE CONCRETO ASFÁLTICO, CAMADA DE ROLAMENTO - EXCLUSIVE CARGA E TRANSPORTE. AF_11/2019 | F134: M3 | G134: 18.98 | H134: =VLOOKUP(D134,'CPU (sem des)'!B:I,8,FALSE) -> 1417.5 | I134: 0.2395756778 | J134: 1757.098523 | K134: =VLOOKUP(D134,'CPU (des)'!B:I,8,FALSE) -> 1414.08 | L134: 0.3026049495 | M134: 1841.987607 | N134: 33349.72997 | O134: 34960.92478
B135: 2.5.6 | C135: Composição Sinapi | D135: 94266 | E135: GUIA (MEIO-FIO) CONCRETO, MOLDADA IN LOCO EM TRECHO CURVO COM EXTRUSORA, 15 CM BASE X 30 CM ALTURA. AF_06/2016 | F135: M | G135: 77.9 | H135: =VLOOKUP(D135,'CPU (sem des)'!B:I,8,FALSE) -> 54.8 | I135: 0.2395756778 | J135: 67.92874714 | K135: =VLOOKUP(D135,'CPU (des)'!B:I,8,FALSE) -> 52.67 | L135: 0.3026049495 | M135: 68.60820269 | N135: 5291.649402 | O135: 5344.57899
B136: 2.5.7 | C136: Composição Sinapi | D136: 101094 | E136: PISO PODOTÁTIL, DIRECIONAL OU ALERTA, ASSENTADO SOBRE ARGAMASSA. AF_05/2020 | F136: M | G136: 209.97 | H136: =VLOOKUP(D136,'CPU (sem des)'!B:I,8,FALSE) -> 190.73 | I136: 0.2395756778 | J136: 236.424269 | K136: =VLOOKUP(D136,'CPU (des)'!B:I,8,FALSE) -> 189.1 | L136: 0.3026049495 | M136: 246.322596 | N136: 49642.00377 | O136: 51720.35547
B137: 2.5.8 | C137: MOBILIÁRIO URBANO | G137: 1 | N137: =SUM(N138:N139) -> 8796.165363 | O137: =SUM(O138:O139) -> 9162.288746
B138: 2.5.8.1 | C138: Composição Sinapi | D138: 103307 | E138: INSTALAÇÃO DE LIXEIRA METÁLICA DUPLA, CAPACIDADE DE 60 L, EM TUBO DE AÇO CARBONO E CESTOS EM CHAPA DE AÇO COM PINTURA ELETROSTÁTICA, SOBRE PISO DE CONCRETO EXISTENTE. AF_11/2021 | F138: UN | G138: 5 | H138: =VLOOKUP(D138,'CPU (sem des)'!B:I,8,FALSE) -> 1330.59 | I138: =$N$4 -> 0.2395756778 | J138: =H138*(1+I138) -> 1649.367001 | K138: =VLOOKUP(D138,'CPU (des)'!B:I,8,FALSE) -> 1322.14 | L138: =$O$4 -> 0.3026049495 | M138: =K138*(1+L138) -> 1722.226108 | N138: =J138*G138 -> 8246.835006 | O138: =M138*G138 -> 8611.13054
B139: 2.5.8.2 | C139: Composição Sinapi | D139: 94263 | E139: GUIA (MEIO-FIO) CONCRETO, MOLDADA IN LOCO EM TRECHO RETO COM EXTRUSORA, 13 CM BASE X 22 CM ALTURA. AF_06/2016 | F139: M | G139: 12 | H139: =VLOOKUP(D139,'CPU (sem des)'!B:I,8,FALSE) -> 36.93 | I139: =$N$4 -> 0.2395756778 | J139: =H139*(1+I139) -> 45.77752978 | K139: =VLOOKUP(D139,'CPU (des)'!B:I,8,FALSE) -> 35.26 | L139: =$O$4 -> 0.3026049495 | M139: =K139*(1+L139) -> 45.92985052 | N139: =J139*G139 -> 549.3303574 | O139: 551.1582063
B140: 2.5.9 | C140: PAISAGISMO | G140: 1 | N140: =SUM(N141) -> 630.894437 | O140: =SUM(O141) -> 649.9477656
B141: 2.5.9.1 | C141: Composição Sinapi | D141: 98511 | E141: PLANTIO DE ÁRVORE ORNAMENTAL COM ALTURA DE MUDA MAIOR QUE 2,00 M E MENOR OU IGUAL A 4,00 M. AF_05/2018 | F141: UN | G141: 4 | H141: =VLOOKUP(D141,'CPU (sem des)'!B:I,8,FALSE) -> 127.24 | I141: =$N$4 -> 0.2395756778 | J141: =H141*(1+I141) -> 157.7236092 | K141: =VLOOKUP(D141,'CPU (des)'!B:I,8,FALSE) -> 124.74 | L141: =$O$4 -> 0.3026049495 | M141: =K141*(1+L141) -> 162.4869414 | N141: =J141*G141 -> 630.894437 | O141: =M141*G141 -> 649.9477656
B142: 2.6 | C142: Demolição | N142: =N143+N147+N151+N155+N159+N163+N167+N171 -> 1871117.237 | O142: =O143+O147+O151+O155+O159+O163+O167+O171 -> 1866821.144
B143: 2.6.1 | C143: QUADRA 1 | G143: 1 | N143: =SUM(N144:N146) -> 218413.0473 | O143: =SUM(O144:O146) -> 219129.0084
B144: 2.6.1.1 | C144: Composição Sinapi | D144: 97625 | E144: DEMOLIÇÃO DE ALVENARIA PARA QUALQUER TIPO DE BLOCO, DE FORMA MECANIZADA, SEM REAPROVEITAMENTO. AF_12/2017 | F144: M3 | G144: 889.22 | H144: =VLOOKUP(D144,'CPU (sem des)'!B:I,8,FALSE) -> 49.77 | I144: =$N$4 -> 0.2395756778 | J144: =H144*(1+I144) -> 61.69368148 | K144: =VLOOKUP(D144,'CPU (des)'!B:I,8,FALSE) -> 48.81 | L144: =$O$4 -> 0.3026049495 | M144: =K144*(1+L144) -> 63.58014759 | N144: =J144*G144 -> 54859.25545 | O144: =M144*G144 -> 56536.73884
B145: 2.6.1.2 | C145: Composição Sinapi | D145: 97627 | E145: DEMOLIÇÃO DE PILARES E VIGAS EM CONCRETO ARMADO, DE FORMA MECANIZADA COM MARTELETE, SEM REAPROVEITAMENTO. AF_12/2017 | F145: M3 | G145: 266.76 | H145: =VLOOKUP(D145,'CPU (sem des)'!B:I,8,FALSE) -> 233.31 | I145: =$N$4 -> 0.2395756778 | J145: =H145*(1+I145) -> 289.2054014 | K145: =VLOOKUP(D145,'CPU (des)'!B:I,8,FALSE) -> 210.51 | L145: =$O$4 -> 0.3026049495 | M145: =K145*(1+L145) -> 274.2113679 | N145: =J145*G145 -> 77148.43287 | O145: 73148.62451
B146: 2.6.1.3 | C146: Composição Sinapi | D146: 95876 | E146: TRANSPORTE COM CAMINHÃO BASCULANTE DE 14 M³, EM VIA URBANA PAVIMENTADA, DMT ATÉ 30 KM (UNIDADE: M3XKM). AF_07/2020 | F146: M3XKM | G146: 34679.4 | H146: =VLOOKUP(D146,'CPU (sem des)'!B:I,8,FALSE) -> 2.01 | I146: =$N$4 -> 0.2395756778 | J146: =H146*(1+I146) -> 2.491547112 | K146: =VLOOKUP(D146,'CPU (des)'!B:I,8,FALSE) -> 1.98 | L146: =$O$4 -> 0.3026049495 | M146: =K146*(1+L146) -> 2.5791578 | N146: =J146*G146 -> 86405.35893 | O146: 89443.64501
B147: 2.6.2 | C147: QUADRA 2 | G147: 1 | N147: =SUM(N148:N150) -> 73888.5023 | O147: =SUM(O148:O150) -> 74034.91262
B148: 2.6.2.1 | C148: Composição Sinapi | D148: 97625 | E148: DEMOLIÇÃO DE ALVENARIA PARA QUALQUER TIPO DE BLOCO, DE FORMA MECANIZADA, SEM REAPROVEITAMENTO. AF_12/2017 | F148: M3 | G148: 383.65 | H148: =VLOOKUP(D148,'CPU (sem des)'!B:I,8,FALSE) -> 49.77 | I148: =$N$4 -> 0.2395756778 | J148: =H148*(1+I148) -> 61.69368148 | K148: =VLOOKUP(D148,'CPU (des)'!B:I,8,FALSE) -> 48.81 | L148: =$O$4 -> 0.3026049495 | M148: =K148*(1+L148) -> 63.58014759 | N148: =J148*G148 -> 23668.7809 | O148: =M148*G148 -> 24392.52362
B149: 2.6.2.2 | C149: Composição Sinapi | D149: 97627 | E149: DEMOLIÇÃO DE PILARES E VIGAS EM CONCRETO ARMADO, DE FORMA MECANIZADA COM MARTELETE, SEM REAPROVEITAMENTO. AF_12/2017 | F149: M3 | G149: 93.12 | H149: =VLOOKUP(D149,'CPU (sem des)'!B:I,8,FALSE) -> 233.31 | I149: =$N$4 -> 0.2395756778 | J149: =H149*(1+I149) -> 289.2054014 | K149: =VLOOKUP(D149,'CPU (des)'!B:I,8,FALSE) -> 210.51 | L149: =$O$4 -> 0.3026049495 | M149: =K149*(1+L149) -> 274.2113679 | N149: =J149*G149 -> 26930.80698 | O149: 25534.56258
B150: 2.6.2.3 | C150: Composição Sinapi | D150: 95876 | E150: TRANSPORTE COM CAMINHÃO BASCULANTE DE 14 M³, EM VIA URBANA PAVIMENTADA, DMT ATÉ 30 KM (UNIDADE: M3XKM). AF_07/2020 | F150: M3XKM | G150: 9347.17 | H150: =VLOOKUP(D150,'CPU (sem des)'!B:I,8,FALSE) -> 2.01 | I150: =$N$4 -> 0.2395756778 | J150: =H150*(1+I150) -> 2.491547112 | K150: =VLOOKUP(D150,'CPU (des)'!B:I,8,FALSE) -> 1.98 | L150: =$O$4 -> 0.3026049495 | M150: =K150*(1+L150) -> 2.5791578 | N150: =J150*G150 -> 23288.91442 | O150: 24107.82641
B151: 2.6.3 | C151: QUADRA 3 | G151: 1 | N151: =SUM(N152:N154) -> 456594.7451 | O151: =SUM(O152:O154) -> 453295.8064
B152: 2.6.3.1 | C152: Composição Sinapi | D152: 97625 | E152: DEMOLIÇÃO DE ALVENARIA PARA QUALQUER TIPO DE BLOCO, DE FORMA MECANIZADA, SEM REAPROVEITAMENTO. AF_12/2017 | F152: M3 | G152: 1504.47 | H152: =VLOOKUP(D152,'CPU (sem des)'!B:I,8,FALSE) -> 49.77 | I152: =$N$4 -> 0.2395756778 | J152: =H152*(1+I152) -> 61.69368148 | K152: =VLOOKUP(D152,'CPU (des)'!B:I,8,FALSE) -> 48.81 | L152: =$O$4 -> 0.3026049495 | M152: =K152*(1+L152) -> 63.58014759 | N152: =J152*G152 -> 92816.29298 | O152: =M152*G152 -> 95654.42464
B153: 2.6.3.2 | C153: Composição Sinapi | D153: 97627 | E153: DEMOLIÇÃO DE PILARES E VIGAS EM CONCRETO ARMADO, DE FORMA MECANIZADA COM MARTELETE, SEM REAPROVEITAMENTO. AF_12/2017 | F153: M3 | G153: 752.23 | H153: =VLOOKUP(D153,'CPU (sem des)'!B:I,8,FALSE) -> 233.31 | I153: =$N$4 -> 0.2395756778 | J153: =H153*(1+I153) -> 289.2054014 | K153: =VLOOKUP(D153,'CPU (des)'!B:I,8,FALSE) -> 210.51 | L153: =$O$4 -> 0.3026049495 | M153: =K153*(1+L153) -> 274.2113679 | N153: =J153*G153 -> 217548.9791 | O153: 206270.0173
B154: 2.6.3.3 | C154: Composição Sinapi | D154: 95876 | E154: TRANSPORTE COM CAMINHÃO BASCULANTE DE 14 M³, EM VIA URBANA PAVIMENTADA, DMT ATÉ 30 KM (UNIDADE: M3XKM). AF_07/2020 | F154: M3XKM | G154: 58690.23 | H154: =VLOOKUP(D154,'CPU (sem des)'!B:I,8,FALSE) -> 2.01 | I154: =$N$4 -> 0.2395756778 | J154: =H154*(1+I154) -> 2.491547112 | K154: =VLOOKUP(D154,'CPU (des)'!B:I,8,FALSE) -> 1.98 | L154: =$O$4 -> 0.3026049495 | M154: =K154*(1+L154) -> 2.5791578 | N154: =J154*G154 -> 146229.4731 | O154: 151371.3645
B155: 2.6.4 | C155: QUADRA 4 | G155: 1 | N155: =SUM(N156:N158) -> 290459.0192 | O155: =SUM(O156:O158) -> 288934.441
B156: 2.6.4.1 | C156: Composição Sinapi | D156: 97625 | E156: DEMOLIÇÃO DE ALVENARIA PARA QUALQUER TIPO DE BLOCO, DE FORMA MECANIZADA, SEM REAPROVEITAMENTO. AF_12/2017 | F156: M3 | G156: 912 | H156: =VLOOKUP(D156,'CPU (sem des)'!B:I,8,FALSE) -> 49.77 | I156: =$N$4 -> 0.2395756778 | J156: =H156*(1+I156) -> 61.69368148 | K156: =VLOOKUP(D156,'CPU (des)'!B:I,8,FALSE) -> 48.81 | L156: =$O$4 -> 0.3026049495 | M156: =K156*(1+L156) -> 63.58014759 | N156: =J156*G156 -> 56264.63751 | O156: =M156*G156 -> 57985.0946
B157: 2.6.4.2 | C157: Composição Sinapi | D157: 97627 | E157: DEMOLIÇÃO DE PILARES E VIGAS EM CONCRETO ARMADO, DE FORMA MECANIZADA COM MARTELETE, SEM REAPROVEITAMENTO. AF_12/2017 | F157: M3 | G157: 456.22 | H157: =VLOOKUP(D157,'CPU (sem des)'!B:I,8,FALSE) -> 233.31 | I157: =$N$4 -> 0.2395756778 | J157: =H157*(1+I157) -> 289.2054014 | K157: =VLOOKUP(D157,'CPU (des)'!B:I,8,FALSE) -> 210.51 | L157: =$O$4 -> 0.3026049495 | M157: =K157*(1+L157) -> 274.2113679 | N157: =J157*G157 -> 131941.2882 | O157: 125100.7103
B158: 2.6.4.3 | C158: Composição Sinapi | D158: 95876 | E158: TRANSPORTE COM CAMINHÃO BASCULANTE DE 14 M³, EM VIA URBANA PAVIMENTADA, DMT ATÉ 30 KM (UNIDADE: M3XKM). AF_07/2020 | F158: M3XKM | G158: 41040 | H158: =VLOOKUP(D158,'CPU (sem des)'!B:I,8,FALSE) -> 2.01 | I158: =$N$4 -> 0.2395756778 | J158: =H158*(1+I158) -> 2.491547112 | K158: =VLOOKUP(D158,'CPU (des)'!B:I,8,FALSE) -> 1.98 | L158: =$O$4 -> 0.3026049495 | M158: =K158*(1+L158) -> 2.5791578 | N158: =J158*G158 -> 102253.0935 | O158: 105848.6361
B159: 2.6.5 | C159: QUADRA 5 | G159: 1 | N159: =SUM(N160:N162) -> 550341.9817 | O159: =SUM(O160:O162) -> 550936.5855
B160: 2.6.5.1 | C160: Composição Sinapi | D160: 97625 | E160: DEMOLIÇÃO DE ALVENARIA PARA QUALQUER TIPO DE BLOCO, DE FORMA MECANIZADA, SEM REAPROVEITAMENTO. AF_12/2017 | F160: M3 | G160: 1962.71 | H160: =VLOOKUP(D160,'CPU (sem des)'!B:I,8,FALSE) -> 49.77 | I160: =$N$4 -> 0.2395756778 | J160: =H160*(1+I160) -> 61.69368148 | K160: =VLOOKUP(D160,'CPU (des)'!B:I,8,FALSE) -> 48.81 | L160: =$O$4 -> 0.3026049495 | M160: =K160*(1+L160) -> 63.58014759 | N160: =J160*G160 -> 121086.8056 | O160: =M160*G160 -> 124789.3915
B161: 2.6.5.2 | C161: Composição Sinapi | D161: 97627 | E161: DEMOLIÇÃO DE PILARES E VIGAS EM CONCRETO ARMADO, DE FORMA MECANIZADA COM MARTELETE, SEM REAPROVEITAMENTO. AF_12/2017 | F161: M3 | G161: 723.35 | H161: =VLOOKUP(D161,'CPU (sem des)'!B:I,8,FALSE) -> 233.31 | I161: =$N$4 -> 0.2395756778 | J161: =H161*(1+I161) -> 289.2054014 | K161: =VLOOKUP(D161,'CPU (des)'!B:I,8,FALSE) -> 210.51 | L161: =$O$4 -> 0.3026049495 | M161: =K161*(1+L161) -> 274.2113679 | N161: =J161*G161 -> 209196.7271 | O161: 198350.793
B162: 2.6.5.3 | C162: Composição Sinapi | D162: 95876 | E162: TRANSPORTE COM CAMINHÃO BASCULANTE DE 14 M³, EM VIA URBANA PAVIMENTADA, DMT ATÉ 30 KM (UNIDADE: M3XKM). AF_07/2020 | F162: M3XKM | G162: 88322.01 | H162: =VLOOKUP(D162,'CPU (sem des)'!B:I,8,FALSE) -> 2.01 | I162: =$N$4 -> 0.2395756778 | J162: =H162*(1+I162) -> 2.491547112 | K162: =VLOOKUP(D162,'CPU (des)'!B:I,8,FALSE) -> 1.98 | L162: =$O$4 -> 0.3026049495 | M162: =K162*(1+L162) -> 2.5791578 | N162: =J162*G162 -> 220058.449 | O162: 227796.401
B163: 2.6.6 | C163: QUADRA 6 | G163: 1 | N163: =SUM(N164:N166) -> 79294.46674 | O163: =SUM(O164:O166) -> 79423.72833
B164: 2.6.6.1 | C164: Composição Sinapi | D164: 97625 | E164: DEMOLIÇÃO DE ALVENARIA PARA QUALQUER TIPO DE BLOCO, DE FORMA MECANIZADA, SEM REAPROVEITAMENTO. AF_12/2017 | F164: M3 | G164: 308.55 | H164: =VLOOKUP(D164,'CPU (sem des)'!B:I,8,FALSE) -> 49.77 | I164: =$N$4 -> 0.2395756778 | J164: =H164*(1+I164) -> 61.69368148 | K164: =VLOOKUP(D164,'CPU (des)'!B:I,8,FALSE) -> 48.81 | L164: =$O$4 -> 0.3026049495 | M164: =K164*(1+L164) -> 63.58014759 | N164: =J164*G164 -> 19035.58542 | O164: =M164*G164 -> 19617.65454
B165: 2.6.6.2 | C165: Composição Sinapi | D165: 97627 | E165: DEMOLIÇÃO DE PILARES E VIGAS EM CONCRETO ARMADO, DE FORMA MECANIZADA COM MARTELETE, SEM REAPROVEITAMENTO. AF_12/2017 | F165: M3 | G165: 102.2 | H165: =VLOOKUP(D165,'CPU (sem des)'!B:I,8,FALSE) -> 233.31 | I165: =$N$4 -> 0.2395756778 | J165: =H165*(1+I165) -> 289.2054014 | K165: =VLOOKUP(D165,'CPU (des)'!B:I,8,FALSE) -> 210.51 | L165: =$O$4 -> 0.3026049495 | M165: =K165*(1+L165) -> 274.2113679 | N165: =J165*G165 -> 29556.79202 | O165: 28024.4018
B166: 2.6.6.3 | C166: Composição Sinapi | D166: 95876 | E166: TRANSPORTE COM CAMINHÃO BASCULANTE DE 14 M³, EM VIA URBANA PAVIMENTADA, DMT ATÉ 30 KM (UNIDADE: M3XKM). AF_07/2020 | F166: M3XKM | G166: 12322.5 | H166: =VLOOKUP(D166,'CPU (sem des)'!B:I,8,FALSE) -> 2.01 | I166: =$N$4 -> 0.2395756778 | J166: =H166*(1+I166) -> 2.491547112 | K166: =VLOOKUP(D166,'CPU (des)'!B:I,8,FALSE) -> 1.98 | L166: =$O$4 -> 0.3026049495 | M166: =K166*(1+L166) -> 2.5791578 | N166: =J166*G166 -> 30702.08929 | O166: 31781.67199
B167: 2.6.7 | C167: QUADRA 7 | G167: 1 | N167: =SUM(N168:N170) -> 140613.871 | O167: =SUM(O168:O170) -> 139877.2966
B168: 2.6.7.1 | C168: Composição Sinapi | D168: 97625 | E168: DEMOLIÇÃO DE ALVENARIA PARA QUALQUER TIPO DE BLOCO, DE FORMA MECANIZADA, SEM REAPROVEITAMENTO. AF_12/2017 | F168: M3 | G168: 441.61 | H168: =VLOOKUP(D168,'CPU (sem des)'!B:I,8,FALSE) -> 49.77 | I168: =$N$4 -> 0.2395756778 | J168: =H168*(1+I168) -> 61.69368148 | K168: =VLOOKUP(D168,'CPU (des)'!B:I,8,FALSE) -> 48.81 | L168: =$O$4 -> 0.3026049495 | M168: =K168*(1+L168) -> 63.58014759 | N168: =J168*G168 -> 27244.54668 | O168: =M168*G168 -> 28077.62898
B169: 2.6.7.2 | C169: Composição Sinapi | D169: 97627 | E169: DEMOLIÇÃO DE PILARES E VIGAS EM CONCRETO ARMADO, DE FORMA MECANIZADA COM MARTELETE, SEM REAPROVEITAMENTO. AF_12/2017 | F169: M3 | G169: 220.8 | H169: =VLOOKUP(D169,'CPU (sem des)'!B:I,8,FALSE) -> 233.31 | I169: =$N$4 -> 0.2395756778 | J169: =H169*(1+I169) -> 289.2054014 | K169: =VLOOKUP(D169,'CPU (des)'!B:I,8,FALSE) -> 210.51 | L169: =$O$4 -> 0.3026049495 | M169: =K169*(1+L169) -> 274.2113679 | N169: =J169*G169 -> 63856.55263 | O169: 60545.87004
B170: 2.6.7.3 | C170: Composição Sinapi | D170: 95876 | E170: TRANSPORTE COM CAMINHÃO BASCULANTE DE 14 M³, EM VIA URBANA PAVIMENTADA, DMT ATÉ 30 KM (UNIDADE: M3XKM). AF_07/2020 | F170: M3XKM | G170: 19872.3 | H170: =VLOOKUP(D170,'CPU (sem des)'!B:I,8,FALSE) -> 2.01 | I170: =$N$4 -> 0.2395756778 | J170: =H170*(1+I170) -> 2.491547112 | K170: =VLOOKUP(D170,'CPU (des)'!B:I,8,FALSE) -> 1.98 | L170: =$O$4 -> 0.3026049495 | M170: =K170*(1+L170) -> 2.5791578 | N170: =J170*G170 -> 49512.77168 | O170: 51253.79755
B171: 2.6.8 | C171: QUADRA 8 | G171: 1 | N171: =SUM(N172:N174) -> 61511.60331 | O171: =SUM(O172:O174) -> 61189.36561
B172: 2.6.8.1 | C172: Composição Sinapi | D172: 97625 | E172: DEMOLIÇÃO DE ALVENARIA PARA QUALQUER TIPO DE BLOCO, DE FORMA MECANIZADA, SEM REAPROVEITAMENTO. AF_12/2017 | F172: M3 | G172: 193.18 | H172: =VLOOKUP(D172,'CPU (sem des)'!B:I,8,FALSE) -> 49.77 | I172: =$N$4 -> 0.2395756778 | J172: =H172*(1+I172) -> 61.69368148 | K172: =VLOOKUP(D172,'CPU (des)'!B:I,8,FALSE) -> 48.81 | L172: =$O$4 -> 0.3026049495 | M172: =K172*(1+L172) -> 63.58014759 | N172: =J172*G172 -> 11917.98539 | O172: =M172*G172 -> 12282.41291
B173: 2.6.8.2 | C173: Composição Sinapi | D173: 97627 | E173: DEMOLIÇÃO DE PILARES E VIGAS EM CONCRETO ARMADO, DE FORMA MECANIZADA COM MARTELETE, SEM REAPROVEITAMENTO. AF_12/2017 | F173: M3 | G173: 96.59 | H173: =VLOOKUP(D173,'CPU (sem des)'!B:I,8,FALSE) -> 233.31 | I173: =$N$4 -> 0.2395756778 | J173: =H173*(1+I173) -> 289.2054014 | K173: =VLOOKUP(D173,'CPU (des)'!B:I,8,FALSE) -> 210.51 | L173: =$O$4 -> 0.3026049495 | M173: =K173*(1+L173) -> 274.2113679 | N173: =J173*G173 -> 27934.34972 | O173: 26486.07603
B174: 2.6.8.3 | C174: Composição Sinapi | D174: 95876 | E174: TRANSPORTE COM CAMINHÃO BASCULANTE DE 14 M³, EM VIA URBANA PAVIMENTADA, DMT ATÉ 30 KM (UNIDADE: M3XKM). AF_07/2020 | F174: M3XKM | G174: 8693.1 | H174: =VLOOKUP(D174,'CPU (sem des)'!B:I,8,FALSE) -> 2.01 | I174: =$N$4 -> 0.2395756778 | J174: =H174*(1+I174) -> 2.491547112 | K174: =VLOOKUP(D174,'CPU (des)'!B:I,8,FALSE) -> 1.98 | L174: =$O$4 -> 0.3026049495 | M174: =K174*(1+L174) -> 2.5791578 | N174: =J174*G174 -> 21659.2682 | O174: 22420.87667
B175: 3 | C175: Edificações Novas | N175: =N176+N194+N445+N746+N857+N970+N1094+N1148+N1203 -> 9437519.373 | O175: =O176+O194+O445+O746+O857+O970+O1094+O1148+O1203 -> 9721046.132
B176: 3.1 | C176: Administração de Obra | N176: =SUM(N177:N178)+N179 -> 100903.5701 | O176: =SUM(O177:O178)+O179 -> 102974.4962
B177: 3.1.1 | C177: Composição Própria | D177: 1.1 | E177: MOBILIZAÇÃO | F177: UN | G177: 1 | H177: ='CPU Própria (sem des)'!$K$28 -> 1500 | I177: =$N$4 -> 0.2395756778 | J177: =H177*(1+I177) -> 1859.363517 | K177: ='CPU Própria (des)'!$J$28 -> 1500 | L177: =$O$4 -> 0.3026049495 | M177: =K177*(1+L177) -> 1953.907424 | N177: =J177*G177 -> 1859.363517 | O177: =M177*G177 -> 1953.907424
B178: 3.1.2 | C178: Composição Própria | D178: 1.1 | E178: DESMOBILIZAÇÃO | F178: UN | G178: 1 | H178: ='CPU Própria (sem des)'!$K$28 -> 1500 | I178: =$N$4 -> 0.2395756778 | J178: =H178*(1+I178) -> 1859.363517 | K178: ='CPU Própria (des)'!$J$28 -> 1500 | L178: =$O$4 -> 0.3026049495 | M178: =K178*(1+L178) -> 1953.907424 | N178: =J178*G178 -> 1859.363517 | O178: 1953.907424
B179: 3.1.3 | C179: Canteiro de Obras | G179: 1 | N179: =SUM(N180:N193) -> 97184.84302 | O179: =SUM(O180:O193) -> 99066.68133
B180: 3.1.3.1 | C180: Composição Sinapi | D180: 93584 | E180: EXECUÇÃO DE DEPÓSITO EM CANTEIRO DE OBRA EM CHAPA DE MADEIRA COMPENSADA, NÃO INCLUSO MOBILIÁRIO. AF_04/2016 | F180: M2 | G180: 13.8 | H180: =VLOOKUP(D180,'CPU (sem des)'!B:I,8,FALSE) -> 766.01 | I180: =$N$4 -> 0.2395756778 | J180: =H180*(1+I180) -> 949.5273649 | K180: =VLOOKUP(D180,'CPU (des)'!B:I,8,FALSE) -> 744.34 | L180: =$O$4 -> 0.3026049495 | M180: =K180*(1+L180) -> 969.5809681 | N180: =J180*G180 -> 13103.47764 | O180: =M180*G180 -> 13380.21736
B181: 3.1.3.2 | C181: Composição Sinapi | D181: 93582 | E181: EXECUÇÃO DE CENTRAL DE ARMADURA EM CANTEIRO DE OBRA, NÃO INCLUSO MOBILIÁRIO E EQUIPAMENTOS. AF_04/2016 | F181: M2 | G181: 13.8 | H181: =VLOOKUP(D181,'CPU (sem des)'!B:I,8,FALSE) -> 262.36 | I181: 0.2395756778 | J181: 325.2150748 | K181: =VLOOKUP(D181,'CPU (des)'!B:I,8,FALSE) -> 255.24 | L181: 0.3026049495 | M181: 332.4768873 | N181: 4487.968033 | O181: 4588.181045
B182: 3.1.3.3 | C182: Composição Sinapi | D182: 93210 | E182: EXECUÇÃO DE REFEITÓRIO EM CANTEIRO DE OBRA EM CHAPA DE MADEIRA COMPENSADA, NÃO INCLUSO MOBILIÁRIO E EQUIPAMENTOS. AF_02/2016 | F182: M2 | G182: 13.8 | H182: =VLOOKUP(D182,'CPU (sem des)'!B:I,8,FALSE) -> 559.15 | I182: 0.2395756778 | J182: 693.1087402 | K182: =VLOOKUP(D182,'CPU (des)'!B:I,8,FALSE) -> 541.64 | L182: 0.3026049495 | M182: 705.5429449 | N182: 9564.900615 | O182: 9736.492639
B183: 3.1.3.4 | C183: Composição Sinapi | D183: 93212 | E183: EXECUÇÃO DE SANITÁRIO E VESTIÁRIO EM CANTEIRO EM CHAPA DE MADEIRA COMPENSADA, NÃO INCLUSO MOBILIÁRIO. AF_02/2016 | F183: M2 | G183: 27.6 | H183: =VLOOKUP(D183,'CPU (sem des)'!B:I,8,FALSE) -> 925.26 | I183: 0.2395756778 | J183: 1146.929792 | K183: =VLOOKUP(D183,'CPU (des)'!B:I,8,FALSE) -> 896.72 | L183: 0.3026049495 | M183: 1168.07191 | N183: 31655.26225 | O183: 32238.78473
B184: 3.1.3.5 | C184: Composição Sinapi | D184: 86931 | E184: VASO SANITÁRIO SIFONADO COM CAIXA ACOPLADA LOUÇA BRANCA, INCLUSO ENGATE FLEXÍVEL EM PLÁSTICO BRANCO, 1/2 X 40CM - FORNECIMENTO E INSTALAÇÃO. AF_01/2020 | F184: UN | G184: 8 | H184: =VLOOKUP(D184,'CPU (sem des)'!B:I,8,FALSE) -> 467.89 | I184: 0.2395756778 | J184: 579.9850639 | K184: =VLOOKUP(D184,'CPU (des)'!B:I,8,FALSE) -> 464.37 | L184: 0.3026049495 | M184: 604.8906604 | N184: 4639.880511 | O184: 4839.125283
B185: 3.1.3.6 | C185: Composição Sinapi | D185: 86902 | E185: LAVATÓRIO LOUÇA BRANCA COM COLUNA, *44 X 35,5* CM, PADRÃO POPULAR - FORNECIMENTO E INSTALAÇÃO. AF_01/2020 | F185: UN | G185: 4 | H185: =VLOOKUP(D185,'CPU (sem des)'!B:I,8,FALSE) -> 288.8 | I185: 0.2395756778 | J185: 357.9894557 | K185: =VLOOKUP(D185,'CPU (des)'!B:I,8,FALSE) -> 285.53 | L185: 0.3026049495 | M185: 371.9327912 | N185: 1431.957823 | O185: 1487.731165
B186: 3.1.3.7 | C186: Composição Orse | D186: 51 | E186: Placa de obra em chapa aço galvanizado, instalada - Rev 02_01/2022 | F186: M2 | G186: 4.5 | H186: =VLOOKUP(D186,'CPU (sem des)'!B:I,8,FALSE) -> 350.83 | I186: 0.2395756778 | J186: =H186*(1+I186) -> 434.880335 | K186: =VLOOKUP(D186,'CPU (des)'!B:I,8,FALSE) -> 344.34 | L186: 0.3026049495 | M186: =K186*(1+L186) -> 448.5389883 | N186: =J186*G186 -> 1956.961508 | O186: =M186*G186 -> 2018.425447
B187: 3.1.3.8 | C187: Composição Sinapi | D187: 101489 | E187: ENTRADA DE ENERGIA ELÉTRICA, AÉREA, MONOFÁSICA, COM CAIXA DE SOBREPOR, CABO DE 10 MM2 E DISJUNTOR DIN 50A (NÃO INCLUSO O POSTE DE CONCRETO). AF_07/2020_PS | F187: UN | G187: 1 | H187: =VLOOKUP(D187,'CPU (sem des)'!B:I,8,FALSE) -> 1555.42 | I187: 0.2395756778 | J187: 1928.060801 | K187: =VLOOKUP(D187,'CPU (des)'!B:I,8,FALSE) -> 1506.87 | L187: 0.3026049495 | M187: 1962.85632 | N187: 1928.060801 | O187: 1962.85632
B188: 3.1.3.9 | C188: Composição Sinapi | D188: 95636 | E188: KIT CAVALETE PARA MEDIÇÃO DE ÁGUA - ENTRADA PRINCIPAL, EM AÇO GALVANIZADO DN 25 (1 ) FORNECIMENTO E INSTALAÇÃO (EXCLUSIVE HIDRÔMETRO). AF_11/2016 | F188: UN | G188: 1 | H188: =VLOOKUP(D188,'CPU (sem des)'!B:I,8,FALSE) -> 357.28 | I188: 0.2395756778 | J188: 442.8755982 | K188: =VLOOKUP(D188,'CPU (des)'!B:I,8,FALSE) -> 341.02 | L188: 0.3026049495 | M188: 444.2143399 | N188: 442.8755982 | O188: 444.2143399
B189: 3.1.3.10 | C189: Composição Sinapi | D189: 98525 | E189: LIMPEZA MECANIZADA DE CAMADA VEGETAL, VEGETAÇÃO E PEQUENAS ÁRVORES (DIÂMETRO DE TRONCO MENOR QUE 0,20 M), COM TRATOR DE ESTEIRAS.AF_05/2018 | F189: M2 | G189: 360 | H189: =VLOOKUP(D189,'CPU (sem des)'!B:I,8,FALSE) -> 0.34 | I189: 0.2395756778 | J189: 0.4214557305 | K189: =VLOOKUP(D189,'CPU (des)'!B:I,8,FALSE) -> 0.32 | L189: 0.3026049495 | M189: 0.4168335839 | N189: 151.724063 | O189: 150.0600902
B190: 3.1.3.11 | C190: Composição Sinapi | D190: 89712 | E190: TUBO PVC, SERIE NORMAL, ESGOTO PREDIAL, DN 50 MM, FORNECIDO E INSTALADO EM RAMAL DE DESCARGA OU RAMAL DE ESGOTO SANITÁRIO. AF_08/2022 | F190: M | G190: 45 | H190: =VLOOKUP(D190,'CPU (sem des)'!B:I,8,FALSE) -> 25.23 | I190: =N5 -> 0.146920122 | J190: 28.93679468 | K190: =VLOOKUP(D190,'CPU (des)'!B:I,8,FALSE) -> 23.65 | L190: =O5 -> 0.2031110915 | M190: 28.45357731 | N190: 1302.15576 | O190: 1280.410979
B191: 3.1.3.12 | C191: Composição Sinapi | D191: 89402 | E191: TUBO, PVC, SOLDÁVEL, DN 25MM, INSTALADO EM RAMAL DE DISTRIBUIÇÃO DE ÁGUA - FORNECIMENTO E INSTALAÇÃO. AF_06/2022 | F191: M | G191: 45 | H191: =VLOOKUP(D191,'CPU (sem des)'!B:I,8,FALSE) -> 11.17 | I191: =N5 -> 0.146920122 | J191: 12.81109776 | K191: =VLOOKUP(D191,'CPU (des)'!B:I,8,FALSE) -> 10.38 | L191: =O5 -> 0.2031110915 | M191: 12.48829313 | N191: 576.4993993 | O191: 561.9731908
B192: 3.1.3.13 | C192: Composição Sinapi | D192: 98459 | E192: TAPUME COM TELHA METÁLICA. AF_05/2018 | F192: M2 | G192: 212.8 | H192: =VLOOKUP(D192,'CPU (sem des)'!B:I,8,FALSE) -> 81.44 | I192: 0.2395756778 | J192: 100.9510432 | K192: =VLOOKUP(D192,'CPU (des)'!B:I,8,FALSE) -> 79.39 | L192: 0.3026049495 | M192: 103.4138069 | N192: 21482.38199 | O192: 22006.45812
B193: 3.1.3.14 | C193: Composição Sinapi | D193: 99059 | E193: LOCACAO CONVENCIONAL DE OBRA, UTILIZANDO GABARITO DE TÁBUAS CORRIDAS PONTALETADAS A CADA 2,00M - 2 UTILIZAÇÕES. AF_10/2018 | F193: M | G193: 76 | H193: =VLOOKUP(D193,'CPU (sem des)'!B:I,8,FALSE) -> 47.35 | I193: 0.2395756778 | J193: 58.69390834 | K193: =VLOOKUP(D193,'CPU (des)'!B:I,8,FALSE) -> 44.16 | L193: 0.3026049495 | M193: 57.52303457 | N193: 4460.737034 | O193: 4371.750627
B194: 3.2 | C194: Comércio Secos e Molhados | N194: =N195+N208+N209+N214+N221+N229+N230+N240+N248+N261+N263+N274+N280+N380+N381+N403+N434+N440+N443 -> 5859674.344 | O194: =O195+O208+O209+O214+O221+O229+O230+O240+O248+O261+O263+O274+O280+O380+O381+O403+O434+O440+O443 -> 6051034.389
B195: 3.2.1 | C195: Serviços Iniciais | G195: 1 | N195: =SUM(N196:N207) -> 209897.7043 | O195: =SUM(O196:O207) -> 210617.251
B196: 3.2.1.1 | C196: Composição Sinapi | D196: 98525 | E196: LIMPEZA MECANIZADA DE CAMADA VEGETAL, VEGETAÇÃO E PEQUENAS ÁRVORES (DIÂMETRO DE TRONCO MENOR QUE 0,20 M), COM TRATOR DE ESTEIRAS.AF_05/2018 | F196: M2 | G196: 4920.06 | H196: =VLOOKUP(D196,'CPU (sem des)'!B:I,8,FALSE) -> 0.34 | I196: =$N$4 -> 0.2395756778 | J196: =H196*(1+I196) -> 0.4214557305 | K196: =VLOOKUP(D196,'CPU (des)'!B:I,8,FALSE) -> 0.32 | L196: =$O$4 -> 0.3026049495 | M196: =K196*(1+L196) -> 0.4168335839 | N196: =J196*G196 -> 2073.587481 | O196: =M196*G196 -> 2050.846243
B197: 3.2.1.2 | C197: Composição Sinapi | D197: 98526 | E197: REMOÇÃO DE RAÍZES REMANESCENTES DE TRONCO DE ÁRVORE COM DIÂMETRO MAIOR OU IGUAL A 0,20 M E MENOR QUE 0,40 M.AF_05/2018 | F197: UN | G197: 7 | H197: =VLOOKUP(D197,'CPU (sem des)'!B:I,8,FALSE) -> 68.23 | I197: 0.2395756778 | J197: 84.5762485 | K197: =VLOOKUP(D197,'CPU (des)'!B:I,8,FALSE) -> 63.78 | L197: 0.3026049495 | M197: 83.08014368 | N197: 592.0337395 | O197: 581.5610058
B198: 3.2.1.3 | C198: Composição Sinapi | D198: 98529 | E198: CORTE RASO E RECORTE DE ÁRVORE COM DIÂMETRO DE TRONCO MAIOR OU IGUAL A 0,20 M E MENOR QUE 0,40 M.AF_05/2018 | F198: UN | G198: 7 | H198: =VLOOKUP(D198,'CPU (sem des)'!B:I,8,FALSE) -> 53.15 | I198: 0.2395756778 | J198: 65.88344727 | K198: =VLOOKUP(D198,'CPU (des)'!B:I,8,FALSE) -> 47.25 | L198: 0.3026049495 | M198: 61.54808387 | N198: 461.1841309 | O198: 430.8365871
B199: 3.2.1.4 | C199: Composição Sinapi | D199: 101506 | E199: ENTRADA DE ENERGIA ELÉTRICA, AÉREA, TRIFÁSICA, COM CAIXA DE SOBREPOR, CABO DE 16 MM2 E DISJUNTOR DIN 50A (NÃO INCLUSO O POSTE DE CONCRETO). AF_07/2020_P | F199: UN | G199: 1 | H199: =VLOOKUP(D199,'CPU (sem des)'!B:I,8,FALSE) -> 2178.19 | I199: 0.2395756778 | J199: 2700.031346 | K199: =VLOOKUP(D199,'CPU (des)'!B:I,8,FALSE) -> 2117.4 | L199: 0.3026049495 | M199: 2758.13572 | N199: 2700.031346 | O199: 2758.13572
B200: 3.2.1.5 | C200: Composição Sinapi | D200: 95636 | E200: KIT CAVALETE PARA MEDIÇÃO DE ÁGUA - ENTRADA PRINCIPAL, EM AÇO GALVANIZADO DN 25 (1 ) FORNECIMENTO E INSTALAÇÃO (EXCLUSIVE HIDRÔMETRO). AF_11/2016 | F200: UN | G200: 1 | H200: =VLOOKUP(D200,'CPU (sem des)'!B:I,8,FALSE) -> 357.28 | I200: 0.2395756778 | J200: 442.8755982 | K200: =VLOOKUP(D200,'CPU (des)'!B:I,8,FALSE) -> 341.02 | L200: 0.3026049495 | M200: 444.2143399 | N200: 442.8755982 | O200: 444.2143399
B201: 3.2.1.6 | C201: Composição Sinapi | D201: 99059 | E201: LOCACAO CONVENCIONAL DE OBRA, UTILIZANDO GABARITO DE TÁBUAS CORRIDAS PONTALETADAS A CADA 2,00M - 2 UTILIZAÇÕES. AF_10/2018 | F201: M | G201: 1700 | H201: =VLOOKUP(D201,'CPU (sem des)'!B:I,8,FALSE) -> 47.35 | I201: 0.2395756778 | J201: 58.69390834 | K201: =VLOOKUP(D201,'CPU (des)'!B:I,8,FALSE) -> 44.16 | L201: 0.3026049495 | M201: 57.52303457 | N201: 99779.64418 | O201: 97789.15877
B202: 3.2.1.7 | C202: Composição Sinapi | D202: 93582 | E202: EXECUÇÃO DE CENTRAL DE ARMADURA EM CANTEIRO DE OBRA, NÃO INCLUSO MOBILIÁRIO E EQUIPAMENTOS. AF_04/2016 | F202: M2 | G202: 40 | H202: =VLOOKUP(D202,'CPU (sem des)'!B:I,8,FALSE) -> 262.36 | I202: 0.2395756778 | J202: 325.2150748 | K202: =VLOOKUP(D202,'CPU (des)'!B:I,8,FALSE) -> 255.24 | L202: 0.3026049495 | M202: 332.4768873 | N202: 13008.60299 | O202: 13299.07549
... 1487 more rows

Sheet Cronograma
B1: CRONOGRAMA FÍSICO-FINANCEIRO
D4: Mês 1 | E4: Mês 2 | F4: Mês 3 | G4: Mês 4 | H4: Mês 5 | I4: Mês 6 | J4: Mês 7 | K4: Mês 8 | L4: Mês 9 | M4: Mês 10 | N4: Mês 11 | O4: Mês 12 | P4: Mês 13 | Q4: Mês 14 | R4: Mês 15 | S4: Mês 16 | T4: Mês 17 | U4: Mês 18 | V4: Mês 19 | W4: Mês 20 | X4: Mês 21 | Y4: Mês 22 | Z4: Mês 23 | AA4: Mês 24 | AB4: Mês 25 | AC4: Mês 26 | AD4: Mês 27 | AE4: Mês 28 | AF4: Mês 29 | AG4: Mês 30 | AH4: Mês 31 | AI4: Mês 32 | AJ4: Mês 33 | AK4: Mês 34 | AL4: Mês 35 | AM4: Mês 36 | AN4: Mês 37 | AO4: Mês 38 | AP4: Mês 39 | AQ4: Mês 40
B5: Administração de Obras | C5: =Resumo!G9 -> 2304217.677 | D5: =D6*$C$5 -> 5348.883285 | E5: 12401.23258 | F5: 11203.94649 | G5: 14573.75427 | H5: 31499.96494 | I5: 35516.35391 | J5: 39532.74288 | K5: 55368.79083 | L5: 72180.24753 | M5: 60360.58855 | N5: 11762.28199 | O5: 9696.710518 | P5: 39999.70584 | Q5: 60721.31349 | R5: 55402.85201 | S5: 32842.56664 | T5: 28621.0233 | U5: 108501.5666 | V5: 142728.6504 | W5: 151607.699 | X5: 167211.0484 | Y5: 153981.5096 | Z5: 100531.0208 | AA5: 59760.2356 | AB5: 24695.28476 | AC5: 26459.77047 | AD5: 24672.41533 | AE5: 50475.473 | AF5: 52074.13601 | AG5: 64830.85617 | AH5: 67782.8341 | AI5: 112820.7485 | AJ5: 93801.84593 | AK5: 60589.82489 | AL5: 49545.46098 | AM5: 64212.65733 | AN5: 78824.6939 | AO5: 49136.95174 | AP5: 19184.41736 | AQ5: 3755.464747 | AR5: =SUM(D5:AQ5) -> 2304217.525
D6: 0.00232134461 | E6: 0.005381970943 | F6: 0.004862364613 | G6: 0.006324816625 | H6: 0.01367056822 | I6: 0.01541362792 | J6: 0.01715668762 | K6: 0.024029323 | L6: 0.03132527289 | M6: 0.0261956972 | N6: 0.005104674835 | O6: 0.004208244132 | P6: 0.01735934337 | Q6: 0.02635224706 | R6: 0.02404410511 | S6: 0.0142532396 | T6: 0.01242114562 | U6: 0.04708824506 | V6: 0.06194234676 | W6: 0.06579573646 | X6: 0.07256738375 | Y6: 0.06682593885 | Z6: 0.04362913355 | AA6: 0.02593515196 | AB6: 0.01071742701 | AC6: 0.01148319047 | AD6: 0.01070750198 | AE6: 0.02190568778 | AF6: 0.02259948638 | AG6: 0.02813573423 | AH6: 0.02941685362 | AI6: 0.04896271287 | AJ6: 0.04070876067 | AK6: 0.02629518274 | AL6: 0.02150207486 | AM6: 0.02786744411 | AN6: 0.03420887475 | AO6: 0.02132478725 | AP6: 0.008325783434 | AQ6: 0.001629822037 | AR6: 0.999999934
B7: Projeto Urbanístico | C7: =Resumo!G10 -> 4697569.473 | D7: =D8*$C$7 -> 0 | E7: 0 | F7: 79294.9727 | G7: 0 | H7: 0 | I7: 0 | J7: 0 | K7: 0 | L7: 0 | M7: 0 | N7: 0 | O7: 0 | P7: 180856.4247 | Q7: 746443.7892 | R7: 590954.2396 | S7: 182735.4525 | T7: 84086.49356 | U7: 0 | V7: 0 | W7: 0 | X7: 0 | Y7: 0 | Z7: 0 | AA7: 0 | AB7: 0 | AC7: 0 | AD7: 0 | AE7: 0 | AF7: 0 | AG7: 0 | AH7: 0 | AI7: 0 | AJ7: 0 | AK7: 0 | AL7: 16911.2501 | AM7: 699468.0945 | AN7: 1040041.881 | AO7: 684905.6291 | AP7: 327890.3492 | AQ7: 63980.89622 | AR7: 4697569.473
D8: 0 | E8: 0 | F8: 0.01688 | G8: 0 | H8: 0 | I8: 0 | J8: 0 | K8: 0 | L8: 0 | M8: 0 | N8: 0 | O8: 0 | P8: 0.0385 | Q8: 0.1589 | R8: 0.1258 | S8: 0.0389 | T8: =0.38-SUM(P8:S8) -> 0.0179 | U8: 0 | V8: 0 | W8: 0 | X8: 0 | Y8: 0 | Z8: 0 | AA8: 0 | AB8: 0 | AC8: 0 | AD8: 0 | AE8: 0 | AF8: 0 | AG8: 0 | AH8: 0 | AI8: 0 | AJ8: 0 | AK8: 0 | AL8: 0.0036 | AM8: 0.1489 | AN8: 0.2214 | AO8: 0.1458 | AP8: 0.0698 | AQ8: =1-SUM(D8:AP8) -> 0.01362 | AR8: 1
B9: Edificações Novas | C9: =Resumo!G11 -> 9721046.132 | D9: =D10*$C$9 -> 0 | E9: 0 | F9: 0 | G9: 246914.5717 | H9: 533685.4326 | I9: 601732.7556 | J9: 669780.0785 | K9: 938080.9517 | L9: 1222907.603 | M9: 1022654.053 | N9: 199281.4457 | O9: 164285.6796 | P9: 394674.4729 | Q9: 119568.8674 | R9: 121513.0766 | S9: 111792.0305 | T9: 183727.7719 | U9: 189560.3996 | V9: 119568.8674 | W9: 107903.6121 | X9: 123457.2859 | Y9: 107903.6121 | Z9: 119568.8674 | AA9: 114708.3444 | AB9: 115680.449 | AC9: 107903.6121 | AD9: 344125.0331 | AE9: 261496.1409 | AF9: 247886.6764 | AG9: 114708.3444 | AH9: 107903.6121 | AI9: 123457.2859 | AJ9: 107903.6121 | AK9: 119568.8674 | AL9: 114708.3444 | AM9: 205114.0734 | AN9: 183727.7719 | AO9: 153592.5289 | AP9: 0 | AQ9: 0 | AR9: 9721046.132
D10: 0 | E10: 0 | F10: 0 | G10: 0.0254 | H10: 0.0549 | I10: 0.0619 | J10: 0.0689 | K10: 0.0965 | L10: 0.1258 | M10: 0.1052 | N10: 0.0205 | O10: 0.0169 | P10: 0.0406 | Q10: 0.0123 | R10: 0.0125 | S10: 0.0115 | T10: 0.0189 | U10: 0.0195 | V10: 0.0123 | W10: 0.0111 | X10: 0.0127 | Y10: 0.0111 | Z10: 0.0123 | AA10: 0.0118 | AB10: 0.0119 | AC10: 0.0111 | AD10: 0.0354 | AE10: 0.0269 | AF10: 0.0255 | AG10: 0.0118 | AH10: 0.0111 | AI10: 0.0127 | AJ10: 0.0111 | AK10: 0.0123 | AL10: 0.0118 | AM10: 0.0211 | AN10: 0.0189 | AO10: =1-SUM(C10:AN10) -> 0.0158 | AP10: 0 | AQ10: 0 | AR10: 1
B11: Edificações a serem Reformadas | C11: =Resumo!G12 -> 415761.8193 | D11: =D12*$C$11 -> 91384.44788 | E11: 211872.2231 | F11: 112505.1483 | G11: 0 | H11: 0 | I11: 0 | J11: 0 | K11: 0 | L11: 0 | M11: 0 | N11: 0 | O11: 0 | P11: 0 | Q11: 0 | R11: 0 | S11: 0 | T11: 0 | U11: 0 | V11: 0 | W11: 0 | X11: 0 | Y11: 0 | Z11: 0 | AA11: 0 | AB11: 0 | AC11: 0 | AD11: 0 | AE11: 0 | AF11: 0 | AG11: 0 | AH11: 0 | AI11: 0 | AJ11: 0 | AK11: 0 | AL11: 0 | AM11: 0 | AN11: 0 | AO11: 0 | AP11: 0 | AQ11: 0 | AR11: 415761.8193
D12: 0.2198 | E12: 0.5096 | F12: =1-E12-D12 -> 0.2706 | G12: 0 | H12: 0 | I12: 0 | J12: 0 | K12: 0 | L12: 0 | M12: 0 | N12: 0 | O12: 0 | P12: 0 | Q12: 0 | R12: 0 | S12: 0 | T12: 0 | U12: 0 | V12: 0 | W12: 0 | X12: 0 | Y12: 0 | Z12: 0 | AA12: 0 | AB12: 0 | AC12: 0 | AD12: 0 | AE12: 0 | AF12: 0 | AG12: 0 | AH12: 0 | AI12: 0 | AJ12: 0 | AK12: 0 | AL12: 0 | AM12: 0 | AN12: 0 | AO12: 0 | AP12: 0 | AQ12: 0 | AR12: 1
B13: Projeto Viário | C13: =Resumo!G13 -> 5601561.629 | D13: =D14*$C$13 -> 0 | E13: 0 | F13: 0 | G13: 0 | H13: 0 | I13: 0 | J13: 0 | K13: 0 | L13: 0 | M13: 0 | N13: 0 | O13: 0 | P13: 0 | Q13: 0 | R13: 0 | S13: 0 | T13: 0 | U13: 0 | V13: 0 | W13: 0 | X13: 0 | Y13: 0 | Z13: 0 | AA13: 0 | AB13: 0 | AC13: 0 | AD13: 0 | AE13: 0 | AF13: 0 | AG13: 316488.232 | AH13: 574160.0669 | AI13: 1506259.922 | AJ13: 1593644.283 | AK13: 928738.918 | AL13: 574160.0669 | AM13: 108110.1394 | AN13: 0 | AO13: 0 | AP13: 0 | AQ13: 0 | AR13: 5601561.629
D14: 0 | E14: 0 | F14: 0 | G14: 0 | H14: 0 | I14: 0 | J14: 0 | K14: 0 | L14: 0 | M14: 0 | N14: 0 | O14: 0 | P14: 0 | Q14: 0 | R14: 0 | S14: 0 | T14: 0 | U14: 0 | V14: 0 | W14: 0 | X14: 0 | Y14: 0 | Z14: 0 | AA14: 0 | AB14: 0 | AC14: 0 | AD14: 0 | AE14: 0 | AF14: 0 | AG14: 0.0565 | AH14: 0.1025 | AI14: 0.2689 | AJ14: 0.2845 | AK14: 0.1658 | AL14: 0.1025 | AM14: =1-SUM(AG14:AL14) -> 0.0193 | AN14: 0 | AO14: 0 | AP14: 0 | AQ14: 0 | AR14: 1
B15: Projeto de Drenagem | C15: =Resumo!G14 -> 1751833.281 | D15: =D16*$C$15 -> 0 | E15: 0 | F15: 0 | G15: 0 | H15: 0 | I15: 0 | J15: 0 | K15: 0 | L15: 0 | M15: 0 | N15: 0 | O15: 0 | P15: 80233.96428 | Q15: 132438.5961 | R15: 179562.9113 | S15: 202862.294 | T15: 167475.2617 | U15: 172905.9449 | V15: 155387.612 | W15: 144526.2457 | X15: 140321.8458 | Y15: 138219.6459 | Z15: 122978.6963 | AA15: 114920.2632 | AB15: 0 | AC15: 0 | AD15: 0 | AE15: 0 | AF15: 0 | AG15: 0 | AH15: 0 | AI15: 0 | AJ15: 0 | AK15: 0 | AL15: 0 | AM15: 0 | AN15: 0 | AO15: 0 | AP15: 0 | AQ15: 0 | AR15: 1751833.281
D16: 0 | E16: 0 | F16: 0 | G16: 0 | H16: 0 | I16: 0 | J16: 0 | K16: 0 | L16: 0 | M16: 0 | N16: 0 | O16: 0 | P16: 0.0458 | Q16: 0.0756 | R16: 0.1025 | S16: 0.1158 | T16: 0.0956 | U16: 0.0987 | V16: 0.0887 | W16: 0.0825 | X16: 0.0801 | Y16: 0.0789 | Z16: 0.0702 | AA16: =1-SUM(P16:Z16) -> 0.0656 | AB16: 0 | AC16: 0 | AD16: 0 | AE16: 0 | AF16: 0 | AG16: 0 | AH16: 0 | AI16: 0 | AJ16: 0 | AK16: 0 | AL16: 0 | AM16: 0 | AN16: 0 | AO16: 0 | AP16: 0 | AQ16: 0 | AR16: 1
B17: Projeto de Iluminação e Eletrificação Pública | C17: =Resumo!G15 -> 431282.1482 | D17: =D18*$C$17 -> 0 | E17: 0 | F17: 0 | G17: 0 | H17: 0 | I17: 0 | J17: 0 | K17: 0 | L17: 0 | M17: 0 | N17: 0 | O17: 0 | P17: 0 | Q17: 0 | R17: 0 | S17: 0 | T17: 0 | U17: 0 | V17: 0 | W17: 0 | X17: 0 | Y17: 0 | Z17: 0 | AA17: 0 | AB17: 0 | AC17: 0 | AD17: 0 | AE17: 0 | AF17: 0 | AG17: 0 | AH17: 0 | AI17: 0 | AJ17: 0 | AK17: 44206.42019 | AL17: 176351.2704 | AM17: 90094.84077 | AN17: 120629.6169 | AO17: 0 | AP17: 0 | AQ17: 0 | AR17: 431282.1482
D18: 0 | E18: 0 | F18: 0 | G18: 0 | H18: 0 | I18: 0 | J18: 0 | K18: 0 | L18: 0 | M18: 0 | N18: 0 | O18: 0 | P18: 0 | Q18: 0 | R18: 0 | S18: 0 | T18: 0 | U18: 0 | V18: 0 | W18: 0 | X18: 0 | Y18: 0 | Z18: 0 | AA18: 0 | AB18: 0 | AC18: 0 | AD18: 0 | AE18: 0 | AF18: 0 | AG18: 0 | AH18: 0 | AI18: 0 | AJ18: 0 | AK18: 0.1025 | AL18: 0.4089 | AM18: 0.2089 | AN18: =1-AM18-AL18-AK18 -> 0.2797 | AO18: 0 | AP18: 0 | AQ18: 0 | AR18: 1
B19: Projeto de Abastecimento de Água e Rede de Esgoto | C19: =Resumo!G16 -> 546729.3109 | D19: =D20*$C$19 -> 0 | E19: 0 | F19: 0 | G19: 0 | H19: 0 | I19: 0 | J19: 0 | K19: 0 | L19: 0 | M19: 0 | N19: 0 | O19: 0 | P19: 25040.20244 | Q19: 41332.7359 | R19: 56039.75437 | S19: 63311.2542 | T19: 52267.32212 | U19: 53962.18299 | V19: 48494.88988 | W19: 45105.16815 | X19: 43793.0178 | Y19: 43136.94263 | Z19: 38380.39763 | AA19: 35865.4428 | AB19: 0 | AC19: 0 | AD19: 0 | AE19: 0 | AF19: 0 | AG19: 0 | AH19: 0 | AI19: 0 | AJ19: 0 | AK19: 0 | AL19: 0 | AM19: 0 | AN19: 0 | AO19: 0 | AP19: 0 | AQ19: 0 | AR19: 546729.3109
D20: 0 | E20: 0 | F20: 0 | G20: 0 | H20: 0 | I20: 0 | J20: 0 | K20: 0 | L20: 0 | M20: 0 | N20: 0 | O20: 0 | P20: 0.0458 | Q20: 0.0756 | R20: 0.1025 | S20: 0.1158 | T20: 0.0956 | U20: 0.0987 | V20: 0.0887 | W20: 0.0825 | X20: 0.0801 | Y20: 0.0789 | Z20: 0.0702 | AA20: =1-SUM(P20:Z20) -> 0.0656 | AB20: 0 | AC20: 0 | AD20: 0 | AE20: 0 | AF20: 0 | AG20: 0 | AH20: 0 | AI20: 0 | AJ20: 0 | AK20: 0 | AL20: 0 | AM20: 0 | AN20: 0 | AO20: 0 | AP20: 0 | AQ20: 0 | AR20: 1
B21: Estruturas de Contenção | C21: =Resumo!G17 -> 13521558.57 | D21: =D22*$C$21 -> 0 | E21: 0 | F21: 0 | G21: 0 | H21: 0 | I21: 0 | J21: 0 | K21: 0 | L21: 0 | M21: 0 | N21: 0 | O21: 0 | P21: 0 | Q21: 0 | R21: 0 | S21: 0 | T21: 0 | U21: 1430580.897 | V21: 2106658.826 | W21: 2283791.243 | X21: 2539348.7 | Y21: 2332468.854 | Z21: 1430580.897 | AA21: 751798.6567 | AB21: 304235.0679 | AC21: 342095.4319 | AD21: 0 | AE21: 0 | AF21: 0 | AG21: 0 | AH21: 0 | AI21: 0 | AJ21: 0 | AK21: 0 | AL21: 0 | AM21: 0 | AN21: 0 | AO21: 0 | AP21: 0 | AQ21: 0 | AR21: 13521558.57
D22: 0 | E22: 0 | F22: 0 | G22: 0 | H22: 0 | I22: 0 | J22: 0 | K22: 0 | L22: 0 | M22: 0 | N22: 0 | O22: 0 | P22: 0 | Q22: 0 | R22: 0 | S22: 0 | T22: 0 | U22: 0.1058 | V22: 0.1558 | W22: 0.1689 | X22: 0.1878 | Y22: 0.1725 | Z22: 0.1058 | AA22: 0.0556 | AB22: 0.0225 | AC22: =1-SUM(U22:AB22) -> 0.0253 | AD22: 0 | AE22: 0 | AF22: 0 | AG22: 0 | AH22: 0 | AI22: 0 | AJ22: 0 | AK22: 0 | AL22: 0 | AM22: 0 | AN22: 0 | AO22: 0 | AP22: 0 | AQ22: 0 | AR22: 1
B23: Estruturas de Acesso e Embarcação | C23: =Resumo!G18 -> 3034726.893 | D23: =D24*$C$23 -> 0 | E23: 0 | F23: 0 | G23: 0 | H23: 0 | I23: 0 | J23: 0 | K23: 0 | L23: 0 | M23: 0 | N23: 0 | O23: 0 | P23: 0 | Q23: 0 | R23: 0 | S23: 0 | T23: 0 | U23: 0 | V23: 0 | W23: 0 | X23: 0 | Y23: 0 | Z23: 0 | AA23: 0 | AB23: 0 | AC23: 0 | AD23: 77689.00847 | AE23: 624243.3219 | AF23: 667032.9711 | AG23: 724996.2548 | AH23: 532898.0424 | AI23: 407867.2944 | AJ23: 0 | AK23: 0 | AL23: 0 | AM23: 0 | AN23: 0 | AO23: 0 | AP23: 0 | AQ23: 0 | AR23: 3034726.893
D24: 0 | E24: 0 | F24: 0 | G24: 0 | H24: 0 | I24: 0 | J24: 0 | K24: 0 | L24: 0 | M24: 0 | N24: 0 | O24: 0 | P24: 0 | Q24: 0 | R24: 0 | S24: 0 | T24: 0 | U24: 0 | V24: 0 | W24: 0 | X24: 0 | Y24: 0 | Z24: 0 | AA24: 0 | AB24: 0 | AC24: 0 | AD24: 0.0256 | AE24: 0.2057 | AF24: 0.2198 | AG24: 0.2389 | AH24: 0.1756 | AI24: =1-SUM(AD24:AH24) -> 0.1344 | AJ24: 0 | AK24: 0 | AL24: 0 | AM24: 0 | AN24: 0 | AO24: 0 | AP24: 0 | AQ24: 0 | AR24: 1
B26: NO MÊS | D26: =D5+D7+D9+D11+D13+D15+D17+D19+D21+D23 -> 96733.33116 | E26: 224273.4557 | F26: 203004.0675 | G26: 261488.326 | H26: 565185.3976 | I26: 637249.1095 | J26: 709312.8214 | K26: 993449.7425 | L26: 1295087.851 | M26: 1083014.642 | N26: 211043.7277 | O26: 173982.3901 | P26: 720804.7702 | Q26: 1100505.302 | R26: 1003472.834 | S26: 593543.5978 | T26: 516177.8726 | U26: 1955510.991 | V26: 2572838.845 | W26: 2732933.968 | X26: 3014131.898 | Y26: 2775710.564 | Z26: 1812039.879 | AA26: 1077052.943 | AB26: 444610.8016 | AC26: 476458.8144 | AD26: 446486.4569 | AE26: 936214.9359 | AF26: 966993.7835 | AG26: 1221023.687 | AH26: 1282744.556 | AI26: 2150405.251 | AJ26: 1795349.741 | AK26: 1153104.031 | AL26: 931676.3928 | AM26: 1166999.805 | AN26: 1423223.964 | AO26: 887635.1097 | AP26: 347074.7665 | AQ26: 67736.36096 | AR26: =SUM(D26:AQ26) -> 42026286.78
D27: =D26/SUM($C$5:$C$24) -> 0.002301733944 | E27: =E26/SUM($C$5:$C$24) -> 0.005336504175 | F27: 0.004830406926 | G27: 0.006222018291 | H27: 0.01344837812 | I27: 0.01516310757 | J27: 0.01687783702 | K27: 0.02363877028 | L27: 0.03081613783 | M27: 0.02576993402 | N27: 0.005021707676 | O27: 0.004139846816 | P27: 0.0171512837 | Q27: 0.02618611784 | R27: 0.02387726604 | S27: 0.01412315103 | T27: 0.01228226213 | U27: 0.04653066292 | V27: 0.06121975157 | W27: 0.06502915597 | X27: 0.07172015702 | Y27: 0.0660470093 | Z27: 0.04311682072 | AA27: 0.0256280776 | AB27: 0.01057935007 | AC27: 0.01133716179 | AD27: 0.01062398059 | AE27: 0.02227688916 | AF27: 0.02300926049 | AG27: 0.02905380837 | AH27: 0.03052243367 | AI27: 0.05116809996 | AJ27: 0.04271968504 | AK27: 0.02743768519 | AL27: 0.0221688962 | AM27: 0.02776833003 | AN27: 0.03386508939 | AO27: 0.02112095011 | AP27: 0.008258516082 | AQ27: 0.001611761731 | AR27: =SUM(D27:AQ27) -> 0.9999999964
B28: ACUMULADO | D28: =D26 -> 96733.33116 | E28: =D28+E26 -> 321006.7868 | F28: 524010.8543 | G28: 785499.1803 | H28: 1350684.578 | I28: 1987933.687 | J28: 2697246.509 | K28: 3690696.251 | L28: 4985784.102 | M28: 6068798.744 | N28: 6279842.471 | O28: 6453824.862 | P28: 7174629.632 | Q28: 8275134.934 | R28: 9278607.768 | S28: 9872151.366 | T28: 10388329.24 | U28: 12343840.23 | V28: 14916679.07 | W28: 17649613.04 | X28: 20663744.94 | Y28: 23439455.5 | Z28: 25251495.38 | AA28: 26328548.33 | AB28: 26773159.13 | AC28: 27249617.94 | AD28: 27696104.4 | AE28: 28632319.34 | AF28: 29599313.12 | AG28: 30820336.81 | AH28: 32103081.36 | AI28: 34253486.61 | AJ28: 36048836.35 | AK28: 37201940.38 | AL28: 38133616.78 | AM28: 39300616.58 | AN28: 40723840.55 | AO28: 41611475.66 | AP28: 41958550.42 | AQ28: 42026286.78
D29: =D27 -> 0.002301733944 | E29: =D29+E27 -> 0.007638238118 | F29: 0.01246864504 | G29: 0.01869066334 | H29: 0.03213904145 | I29: 0.04730214902 | J29: 0.06417998604 | K29: 0.08781875632 | L29: 0.1186348942 | M29: 0.1444048282 | N29: 0.1494265359 | O29: 0.1535663827 | P29: 0.1707176664 | Q29: 0.1969037842 | R29: 0.2207810503 | S29: 0.2349042013 | T29: 0.2471864634 | U29: 0.2937171263 | V29: 0.3549368779 | W29: 0.4199660339 | X29: 0.4916861909 | Y29: 0.5577332002 | Z29: 0.6008500209 | AA29: 0.6264780985 | AB29: 0.6370574486 | AC29: 0.6483946104 | AD29: 0.659018591 | AE29: 0.6812954801 | AF29: 0.7043047406 | AG29: 0.733358549 | AH29: 0.7638809827 | AI29: 0.8150490826 | AJ29: 0.8577687677 | AK29: 0.8852064528 | AL29: 0.907375349 | AM29: 0.9351436791 | AN29: 0.9690087685 | AO29: 0.9901297186 | AP29: 0.9983882346 | AQ29: 0.9999999964

Sheet Curva ABC
B2: QUADRO DEMONSTRATIVO DO ORÇAMENTO
B3: Obra: Realização das obras de revitalização do setor comercial e portuário do município de Santana, no estado do Amapá | H3: BDIs adotados: | K3: Com Desoneração
G4: Base de Preço: | H4: Serviços | K4: =BDI!C77 -> 0.3026049495
H5: Fornecimento | K5: =BDI!C103 -> 0.2031110915
B8: Item | C8: Código | E8: DESCRIÇÃO | F8: UND | G8: QUANT | H8: PREÇO COM DESONERAÇÃO | K8: TOTAL COM DESONERAÇÃO | L8: % | M8: ACUMULADO
H9: Custo Direto | I9: BDI | J9: Custo com BDI
B10: 9.4.1 | C10: Composição SICRO | D10: 2306015 | E10: Estaca prancha metálica - fornecimento e cravação até 12 metros | F10: KG | G10: 262604.14 | H10: =VLOOKUP(D10,'CPU (des)'!B:I,8,FALSE) -> 15.63 | I10: =$K$4 -> 0.3026049495 | J10: =H10*(1+I10) -> 20.35971536 | K10: =J10*G10 -> 5346545.543 | L10: =K10/$K$1467 -> 0.1357352658 | M10: =L10 -> 0.1357352658
B11: 9.5.1 | C11: Composição SICRO | D11: 2306015 | E11: Estaca prancha metálica - fornecimento e cravação até 12 metros | F11: KG | G11: 250265.07 | H11: =VLOOKUP(D11,'CPU (des)'!B:I,8,FALSE) -> 15.63 | I11: 0.3026049495 | J11: 20.35971536 | K11: 5095325.59 | L11: =K11/$K$1467 -> 0.1293574267 | M11: =L11+M10 -> 0.2650926924
B12: 10.4.1 | C12: Composição SICRO | D12: 2408149 | E12: Estrutura em chapa de aço ASTM A36 corte, solda e montagem - fornecimento e instalação | F12: KG | G12: 125000 | H12: =VLOOKUP(D12,'CPU (des)'!B:I,8,FALSE) -> 14.35 | I12: 0.3026049495 | J12: 18.69238103 | K12: 2336547.628 | L12: 0.05931903333 | M12: =L12+M11 -> 0.3244117258
B13: 5.4.16 | C13: Composição Sinapi | D13: 92396 | E13: EXECUÇÃO DE PASSEIO EM PISO INTERTRAVADO, COM BLOCO RETANGULAR COR NATURAL DE 20 X 10 CM, ESPESSURA 6 CM. AF_10/2022 | F13: M2 | G13: 13474 | H13: =VLOOKUP(D13,'CPU (des)'!B:I,8,FALSE) -> 83.09 | I13: 0.3026049495 | J13: 108.2334453 | K13: 1458337.441 | L13: 0.03702349837 | M13: 0.3614352241
B14: 9.5.2 | C14: Composição SICRO | D14: 5605936 | E14: Tirante de barra de aço ancorado na rocha com resina de poliéster, D = 32 mm, tensão de escoamento = 686 MPa, tensão de ruptura = 789 MPa - fornecimento, perfuração e instalação | F14: M | G14: 3990 | H14: =VLOOKUP(D14,'CPU (des)'!B:I,8,FALSE) -> 246.44 | I14: 0.3026049495 | J14: 321.0139638 | K14: 1280845.715 | L14: 0.03251743246 | M14: 0.3939526566
B15: 5.4.11 | C15: Composição Sinapi | D15: 93590 | E15: TRANSPORTE COM CAMINHÃO BASCULANTE DE 10 M³, EM VIA URBANA PAVIMENTADA, ADICIONAL PARA DMT EXCEDENTE A 30 KM (UNIDADE: M3XKM). AF_07/2020 | F15: M3XKM | G15: 529800 | H15: =VLOOKUP(D15,'CPU (des)'!B:I,8,FALSE) -> 0.91 | I15: 0.3026049495 | J15: 1.185370504 | K15: 628009.2931 | L15: 0.01594356723 | M15: 0.4098962238
B16: 3.3.6.3 | C16: Composição Orse | D16: 12734 | E16: Telhamento com telha em aço galvalume, dupla, trapezoidal, com preenchimento PIR 50mm, pré-pintada, TP40 - 2 x 0,43mm, Kingspan- Isoeste ou similar | F16: M2 | G16: 1285.8 | H16: =VLOOKUP(D16,'CPU (des)'!B:I,8,FALSE) -> 360.7 | I16: 0.3026049495 | J16: 469.8496053 | K16: 604132.6225 | L16: 0.01533739896 | M16: 0.4252336228
B17: 5.4.5 | C17: Composição Sinapi | D17: 100573 | E17: EXECUÇÃO E COMPACTAÇÃO DE BASE E OU SUB-BASE PARA PAVIMENTAÇÃO DE SOLO (PREDOMINANTEMENTE ARGILOSO) BRITA - 50/50 - EXCLUSIVE SOLO, ESCAVAÇÃO, CARGA E TRANSPORTE. AF_11/2019 | F17: M3 | G17: 2185 | H17: =VLOOKUP(D17,'CPU (des)'!B:I,8,FALSE) -> 209.39 | I17: 0.3026049495 | J17: 272.7524504 | K17: 595964.1041 | L17: 0.01513002095 | M17: 0.4403636437
B18: 9.5.3 | C18: Composição Sinapi | D18: 100763 | E18: VIGA METÁLICA EM PERFIL LAMINADO OU SOLDADO EM AÇO ESTRUTURAL, COM CONEXÕES PARAFUSADAS, INCLUSOS MÃO DE OBRA, TRANSPORTE E IÇAMENTO UTILIZANDO GUINDASTE - FORNECIMENTO E INSTALAÇÃO. AF_01/2020_P | F18: KG | G18: 24599.56 | H18: =VLOOKUP(D18,'CPU (des)'!B:I,8,FALSE) -> 18.51 | I18: 0.3026049495 | J18: 24.11121762 | K18: 593125.3444 | L18: 0.01505795202 | M18: 0.4554215958
B19: 5.4.17 | C19: Composição Sinapi | D19: 92398 | E19: EXECUÇÃO DE PAVIMENTO EM PISO INTERTRAVADO, COM BLOCO RETANGULAR COR NATURAL DE 20 X 10 CM, ESPESSURA 8 CM. AF_10/2022 | F19: M2 | G19: 4889 | H19: =VLOOKUP(D19,'CPU (des)'!B:I,8,FALSE) -> 93.02 | I19: 0.3026049495 | J19: 121.1683124 | K19: 592391.8794 | L19: 0.0150393312 | M19: 0.470460927
B20: 10.3.1 | C20: Cotação | D20: 2306113 | E20: ESTACA TRILHO TR 68 - FORNECIMENTO E CRAVAÇÃO DE ESTACA COM UTILIZAÇÃO DE PLATAFORMA FLUTUANTE | F20: M | G20: 1 | H20: ='Cotação Estaca'!L6 -> 421070.91 | I20: 0.3026049495 | J20: =H20*(I20+1) -> 548489.0515 | K20: 548489.0515 | L20: 0.01392474946 | M20: 0.4843856764
B21: 3.3.6.2 | C21: Insumo Orse | D21: 101010 | E21: Telha em aço galvalume, dupla, trapezoidal, com preenchimento PIR 50mm, pré-pintada, TP40 - 2 x 0,43mm, Kingspan- Isoeste ou similar | F21: M2 | G21: 1285.8 | H21: 335.66 | I21: =$K$5 -> 0.2031110915 | J21: =H21*(1+I21) -> 403.836269 | K21: 519252.6746 | L21: 0.01318251181 | M21: 0.4975681882
B22: 2.2.2.3 | C22: Composição Sinapi | D22: 92397 | E22: EXECUÇÃO DE PÁTIO/ESTACIONAMENTO EM PISO INTERTRAVADO, COM BLOCO RETANGULAR COR NATURAL DE 20 X 10 CM, ESPESSURA 6 CM. AF_12/2015 | F22: M2 | G22: 5073.69 | H22: =VLOOKUP(D22,'CPU (des)'!B:I,8,FALSE) -> 75.16 | I22: =$K$4 -> 0.3026049495 | J22: 97.90378801 | K22: 496733.4702 | L22: 0.01261080618 | M22: 0.5101789944
B23: 5.4.4 | C23: Composição Sinapi | D23: 93590 | E23: TRANSPORTE COM CAMINHÃO BASCULANTE DE 10 M³, EM VIA URBANA PAVIMENTADA, ADICIONAL PARA DMT EXCEDENTE A 30 KM (UNIDADE: M3XKM). AF_07/2020 | F23: M3XKM | G23: 327750 | H23: =VLOOKUP(D23,'CPU (des)'!B:I,8,FALSE) -> 0.91 | I23: 0.3026049495 | J23: 1.185370504 | K23: 388505.1827 | L23: 0.009863163757 | M23: 0.5200421582
B24: 5.4.8 | C24: Composição Sinapi | D24: 93590 | E24: TRANSPORTE COM CAMINHÃO BASCULANTE DE 10 M³, EM VIA URBANA PAVIMENTADA, ADICIONAL PARA DMT EXCEDENTE A 30 KM (UNIDADE: M3XKM). AF_07/2020 | F24: M3XKM | G24: 327750 | H24: =VLOOKUP(D24,'CPU (des)'!B:I,8,FALSE) -> 0.91 | I24: 0.3026049495 | J24: 1.185370504 | K24: 388505.1827 | L24: 0.009863163757 | M24: 0.5299053219
B25: 6.2.17 | C25: Composição Sinapi | D25: 92855 | E25: TUBO DE CONCRETO PARA REDES COLETORAS DE ESGOTO SANITÁRIO, DIÂMETRO DE 600 MM, JUNTA ELÁSTICA, INSTALADO EM LOCAL COM ALTO NÍVEL DE INTERFERÊNCIAS - FORNECIMENTO E ASSENTAMENTO. AF_12/2015 | F25: M | G25: 587 | H25: =VLOOKUP(D25,'CPU (des)'!B:I,8,FALSE) -> 478.45 | I25: 0.3026049495 | J25: 623.2313381 | K25: 365836.7955 | L25: 0.009287670751 | M25: 0.5391929927
B26: 3.3.5.10 | C26: Composição Orse | D26: 12093 | E26: Gradil em alumínio anodizado branco, com barras de apoio em alumínio anodizado branco de 1"x2" horizontais a cada 5cm com 1,85m e barras externas verticais em alumínio anodizado branco de 1.1/2" x 1.1/2" com 3,05m - Fixado com rebite | F26: M2 | G26: 556.77 | H26: =VLOOKUP(D26,'CPU (des)'!B:I,8,FALSE) -> 486.22 | I26: 0.3026049495 | J26: 633.3525786 | K26: 352631.7152 | L26: 0.008952427168 | M26: 0.5481454198
B27: 2.3.2.3 | C27: Composição Sinapi | D27: 92397 | E27: EXECUÇÃO DE PÁTIO/ESTACIONAMENTO EM PISO INTERTRAVADO, COM BLOCO RETANGULAR COR NATURAL DE 20 X 10 CM, ESPESSURA 6 CM. AF_12/2015 | F27: M2 | G27: 3483.09 | H27: =VLOOKUP(D27,'CPU (des)'!B:I,8,FALSE) -> 75.16 | I27: 0.3026049495 | J27: 97.90378801 | K27: 341007.705 | L27: 0.008657322955 | M27: 0.5568027428
B28: 3.3.3.9 | C28: Composição Orse | D28: 12734 | E28: Fechamento lateral com telha em aço galvalume, dupla, trapezoidal, com preenchimento PIR 50mm, pré-pintada, TP40 - 2 x 0,43mm, Kingspan- Isoeste ou similar | F28: M2 | G28: 643.79 | H28: =VLOOKUP(D28,'CPU (des)'!B:I,8,FALSE) -> 360.7 | I28: 0.3026049495 | J28: 469.8496053 | K28: 302484.4774 | L28: 0.007679315662 | M28: 0.5644820585
B29: 6.2.5 | C29: Composição Sinapi | D29: 101590 | E29: ESCORAMENTO DE VALA, TIPO CONTÍNUO COM PERFIL METÁLICO "U", COM PROFUNDIDADE DE 1,5 A 3,0 M, LARGURA MENOR QUE 1,5 M. AF_08/2020 | F29: M2 | G29: 4009.25 | H29: =VLOOKUP(D29,'CPU (des)'!B:I,8,FALSE) -> 57.52 | I29: 0.3026049495 | J29: 74.9258367 | K29: 300396.4108 | L29: 0.007626304933 | M29: 0.5721083634
B30: 5.4.2 | C30: Composição Sinapi | D30: 101827 | E30: RECOMPOSIÇÃO DE BASE E OU SUB-BASE PARA REMENDO PROFUNDO DE SOLO BRITA (40/60) - INCLUSO RETIRADA E COLOCAÇÃO DO MATERIAL. AF_12/2020 | F30: M3 | G30: 673 | H30: =VLOOKUP(D30,'CPU (des)'!B:I,8,FALSE) -> 306.53 | I30: 0.3026049495 | J30: 399.2874952 | K30: 268720.4843 | L30: 0.006822133292 | M30: 0.5789304967
B31: 3.3.3.8 | C31: Composição Sinapi | D31: 87623 | E31: CONTRAPISO EM ARGAMASSA PRONTA, PREPARO MECÂNICO COM MISTURADOR 300 KG, APLICADO EM ÁREAS SECAS SOBRE LAJE, ADERIDO, ACABAMENTO NÃO REFORÇADO, ESPESSURA 2CM. AF_07/2021 | F31: M2 | G31: 2320.87 | H31: =VLOOKUP(D31,'CPU (des)'!B:I,8,FALSE) -> 88.22 | I31: 0.3026049495 | J31: 114.9158086 | K31: 266704.6528 | L31: 0.006770956431 | M31: 0.5857014531
B32: 5.4.15 | C32: Composição Sinapi | D32: 100965 | E32: TRANSPORTE COM CAMINHÃO TANQUE DE TRANSPORTE DE MATERIAL ASFÁLTICO DE 30000 L, EM VIA URBANA EM LEITO NATURAL (UNIDADE: TXKM). AF_07/2020 | F32: TXKM | G32: 117000 | H32: =VLOOKUP(D32,'CPU (des)'!B:I,8,FALSE) -> 1.65 | I32: 0.3026049495 | J32: 2.149298167 | K32: 251467.8855 | L32: 0.006384133455 | M32: 0.5920855866
B33: 3.2.3.2.7 | C33: Composição Sinapi | D33: 96557 | E33: CONCRETAGEM DE BLOCOS DE COROAMENTO E VIGAS BALDRAMES, FCK 30 MPA, COM USO DE BOMBA - LANÇAMENTO, ADENSAMENTO E ACABAMENTO. AF_06/2017 | F33: M3 | G33: 211.1 | H33: =VLOOKUP(D33,'CPU (des)'!B:I,8,FALSE) -> 894.03 | I33: 0.3026049495 | J33: 1164.567903 | K33: 245840.2843 | L33: 0.006241262898 | M33: 0.5983268495
B34: 3.3.5.8 | C34: Composição Orse | D34: 1857 | E34: Porta em aço, em chapa galvanizada nº24, raiada, de enrolar | F34: M2 | G34: 894.72 | H34: =VLOOKUP(D34,'CPU (des)'!B:I,8,FALSE) -> 210.75 | I34: 0.3026049495 | J34: 274.5239931 | K34: 245622.1071 | L34: 0.00623572393 | M34: 0.6045625734
B35: 2.6.5.3 | C35: Composição Sinapi | D35: 95876 | E35: TRANSPORTE COM CAMINHÃO BASCULANTE DE 14 M³, EM VIA URBANA PAVIMENTADA, DMT ATÉ 30 KM (UNIDADE: M3XKM). AF_07/2020 | F35: M3XKM | G35: 88322.01 | H35: =VLOOKUP(D35,'CPU (des)'!B:I,8,FALSE) -> 1.98 | I35: 0.3026049495 | J35: 2.5791578 | K35: 227796.401 | L35: 0.005783174347 | M35: 0.6103457478
B36: 9.3.2 | C36: Composição Sinapi | D36: 95875 | E36: TRANSPORTE COM CAMINHÃO BASCULANTE DE 10 M³, EM VIA URBANA PAVIMENTADA, DMT ATÉ 30 KM (UNIDADE: M3XKM). AF_07/2020 | F36: M3XKM | G36: 73660 | H36: =VLOOKUP(D36,'CPU (des)'!B:I,8,FALSE) -> 2.29 | I36: 0.3026049495 | J36: 2.982965334 | K36: 219725.2265 | L36: 0.005578267646 | M36: 0.6159240154
B37: 2.6.3.2 | C37: Composição Sinapi | D37: 97627 | E37: DEMOLIÇÃO DE PILARES E VIGAS EM CONCRETO ARMADO, DE FORMA MECANIZADA COM MARTELETE, SEM REAPROVEITAMENTO. AF_12/2017 | F37: M3 | G37: 752.23 | H37: =VLOOKUP(D37,'CPU (des)'!B:I,8,FALSE) -> 210.51 | I37: 0.3026049495 | J37: 274.2113679 | K37: 206270.0173 | L37: 0.005236673922 | M37: 0.6211606893
B38: 3.2.2.1.3 | C38: Composição Sinapi | D38: 100651 | E38: ESTACA HÉLICE CONTÍNUA, DIÂMETRO DE 30 CM, INCLUSO CONCRETO FCK=30MPA E ARMADURA MÍNIMA (EXCLUSIVE MOBILIZAÇÃO, DESMOBILIZAÇÃO E BOMBEAMENTO). AF_12/2019 | F38: M | G38: 940 | H38: =VLOOKUP(D38,'CPU (des)'!B:I,8,FALSE) -> 163.2 | I38: 0.3026049495 | J38: 212.5851278 | K38: 199830.0201 | L38: 0.005073178685 | M38: 0.626233868
B39: 2.6.5.2 | C39: Composição Sinapi | D39: 97627 | E39: DEMOLIÇÃO DE PILARES E VIGAS EM CONCRETO ARMADO, DE FORMA MECANIZADA COM MARTELETE, SEM REAPROVEITAMENTO. AF_12/2017 | F39: M3 | G39: 723.35 | H39: =VLOOKUP(D39,'CPU (des)'!B:I,8,FALSE) -> 210.51 | I39: 0.3026049495 | J39: 274.2113679 | K39: 198350.793 | L39: 0.00503562485 | M39: 0.6312694929
B40: 2.1.2.3 | C40: Composição Sinapi | D40: 92397 | E40: EXECUÇÃO DE PÁTIO/ESTACIONAMENTO EM PISO INTERTRAVADO, COM BLOCO RETANGULAR COR NATURAL DE 20 X 10 CM, ESPESSURA 6 CM. AF_12/2015 | F40: M2 | G40: 1979.58 | H40: =VLOOKUP(D40,'CPU (des)'!B:I,8,FALSE) -> 75.16 | I40: 0.3026049495 | J40: 97.90378801 | K40: 193808.3807 | L40: 0.004920304493 | M40: 0.6361897973
B41: 3.3.5.7 | C41: Composição Orse | D41: 11347 | E41: Fornecimento e instalação de fachada em pele de vidro, em vidro laminado 3+3 refletivo | F41: M2 | G41: 82.05 | H41: =VLOOKUP(D41,'CPU (des)'!B:I,8,FALSE) -> 1749.08 | I41: 0.3026049495 | J41: 2278.360265 | K41: 186939.4598 | L41: 0.004745919968 | M41: 0.6409357173
B42: 6.2.32 | C42: Composição Sinapi | D42: 94273 | E42: ASSENTAMENTO DE GUIA (MEIO-FIO) EM TRECHO RETO, CONFECCIONADA EM CONCRETO PRÉ-FABRICADO, DIMENSÕES 100X15X13X30 CM (COMPRIMENTO X BASE INFERIOR X BASE SUPERIOR X ALTURA), PARA VIAS URBANAS (USO VIÁRIO). AF_06/2016 | F42: M | G42: 2365 | H42: =VLOOKUP(D42,'CPU (des)'!B:I,8,FALSE) -> 59.99 | I42: 0.3026049495 | J42: 78.14327092 | K42: 184808.8357 | L42: 0.004691828814 | M42: 0.6456275461
B43: 3.3.3.2 | C43: Composição Sinapi | D43: 93391 | E43: REVESTIMENTO CERÂMICO PARA PISO COM PLACAS TIPO ESMALTADA PADRÃO POPULAR DE DIMENSÕES 35X35 CM APLICADA EM AMBIENTES DE ÁREA MAIOR QUE 10 M2. AF_06/2014 | F43: M2 | G43: 2320.87 | H43: =VLOOKUP(D43,'CPU (des)'!B:I,8,FALSE) -> 57.7 | I43: 0.3026049495 | J43: 75.16030559 | K43: 174437.2984 | L43: 0.004428521719 | M43: 0.6500560678
B44: 3.3.4.1 | C44: Composição Sinapi | D44: 103324 | E44: ALVENARIA DE VEDAÇÃO DE BLOCOS CERÂMICOS FURADOS NA VERTICAL DE 14X19X39 CM (ESPESSURA 14 CM) E ARGAMASSA DE ASSENTAMENTO COM PREPARO EM BETONEIRA. AF_12/2021 | F44: M2 | G44: 1722.95 | H44: =VLOOKUP(D44,'CPU (des)'!B:I,8,FALSE) -> 74.37 | I44: 0.3026049495 | J44: 96.8747301 | K44: 166910.3162 | L44: 0.004237430683 | M44: 0.6542934985
B45: 2.1.4.1 | C45: Composição Sinapi | D45: 92398 | E45: EXECUÇÃO DE PÁTIO/ESTACIONAMENTO EM PISO INTERTRAVADO, COM BLOCO RETANGULAR COR NATURAL DE 20 X 10 CM, ESPESSURA 8 CM. AF_12/2015 | F45: M2 | G45: 1254.57 | H45: =VLOOKUP(D45,'CPU (des)'!B:I,8,FALSE) -> 93.02 | I45: 0.3026049495 | J45: 121.1683124 | K45: 152014.1297 | L45: 0.003859254191 | M45: 0.6581527527
B46: 5.4.14 | C46: Composição SICRO | D46: 4011462 | E46: Concreto asfáltico - faixa C - areia extraída e brita produzida | F46: T | G46: 780 | H46: =VLOOKUP(D46,'CPU (des)'!B:I,8,FALSE) -> 149.14 | I46: 0.3026049495 | J46: 194.2705022 | K46: 151530.9917 | L46: 0.003846988539 | M46: 0.6619997413
B47: 2.6.3.3 | C47: Composição Sinapi | D47: 95876 | E47: TRANSPORTE COM CAMINHÃO BASCULANTE DE 14 M³, EM VIA URBANA PAVIMENTADA, DMT ATÉ 30 KM (UNIDADE: M3XKM). AF_07/2020 | F47: M3XKM | G47: 58690.23 | H47: =VLOOKUP(D47,'CPU (des)'!B:I,8,FALSE) -> 1.98 | I47: 0.3026049495 | J47: 2.5791578 | K47: 151371.3645 | L47: 0.003842936008 | M47: 0.6658426773
B48: 3.3.3.2.7 | C48: Composição Sinapi | D48: 96557 | E48: CONCRETAGEM DE BLOCOS DE COROAMENTO E VIGAS BALDRAMES, FCK 30 MPA, COM USO DE BOMBA - LANÇAMENTO, ADENSAMENTO E ACABAMENTO. AF_06/2017 | F48: M3 | G48: 128.8 | H48: =VLOOKUP(D48,'CPU (des)'!B:I,8,FALSE) -> 894.03 | I48: 0.3026049495 | J48: 1164.567903 | K48: 149996.3459 | L48: 0.003808027765 | M48: 0.669650705
B49: 6.2.16 | C49: Composição Orse | D49: 8570 | E49: Fornecimento de tubo de concreto armado ca2 d=0,60 m | F49: M | G49: 587 | H49: =VLOOKUP(D49,'CPU (des)'!B:I,8,FALSE) -> 190.2 | I49: 0.3026049495 | J49: 247.7554614 | K49: 145432.4558 | L49: 0.003692162142 | M49: 0.6733428672
B50: 2.3.2.5 | C50: Composição Sinapi | D50: 101094 | E50: PISO PODOTÁTIL, DIRECIONAL OU ALERTA, ASSENTADO SOBRE ARGAMASSA. AF_05/2020 | F50: M | G50: 586.95 | H50: =VLOOKUP(D50,'CPU (des)'!B:I,8,FALSE) -> 189.1 | I50: 0.3026049495 | J50: 246.322596 | K50: 144579.0477 | L50: 0.003670496268 | M50: 0.6770133634
B51: 3.3.3.5 | C51: Composição Sinapi | D51: 96620 | E51: LASTRO DE CONCRETO MAGRO, APLICADO EM PISOS, LAJES SOBRE SOLO OU RADIERS. AF_08/2017 | F51: M3 | G51: 153.59 | H51: =VLOOKUP(D51,'CPU (des)'!B:I,8,FALSE) -> 715.54 | I51: 0.3026049495 | J51: 932.0659456 | K51: 143156.0086 | L51: 0.003634368905 | M51: 0.6806477324
B52: 3.3.3.6 | C52: Composição Sinapi | D52: 99841 | E52: GUARDA-CORPO PANORÂMICO COM PERFIS DE ALUMÍNIO E VIDRO LAMINADO 8 MM, FIXADO COM CHUMBADOR MECÂNICO. AF_04/2019_P | F52: M | G52: 61.44 | H52: =VLOOKUP(D52,'CPU (des)'!B:I,8,FALSE) -> 1777.3 | I52: 0.3026049495 | J52: 2315.119777 | K52: 142240.9591 | L52: 0.003611138113 | M52: 0.6842588705
B53: 8.4.25 | C53: Composição SICRO | D53: 4208130 | E53: Tubo PEAD para estais - D = 160 mm - fornecimento e instalação | F53: M | G53: 132 | H53: =VLOOKUP(D53,'CPU (des)'!B:I,8,FALSE) -> 815.95 | I53: 0.3026049495 | J53: 1062.860509 | K53: 140297.5871 | L53: 0.003561800815 | M53: 0.6878206713
B54: 9.6.2 | C54: Composição Sinapi | D54: 92762 | E54: ARMAÇÃO DE PILAR OU VIGA DE ESTRUTURA CONVENCIONAL DE CONCRETO ARMADO UTILIZANDO AÇO CA-50 DE 10,0 MM - MONTAGEM. AF_06/2022 | F54: KG | G54: 7372.34 | H54: =VLOOKUP(D54,'CPU (des)'!B:I,8,FALSE) -> 13.75 | I54: =$K$4 -> 0.3026049495 | J54: 17.91081806 | K54: 132044.6404 | L54: 0.003352279376 | M54: 0.6911729507
B55: 3.2.3.1.9 | C55: Composição Sinapi | D55: 96557 | E55: CONCRETAGEM DE BLOCOS DE COROAMENTO E VIGAS BALDRAMES, FCK 30 MPA, COM USO DE BOMBA - LANÇAMENTO, ADENSAMENTO E ACABAMENTO. AF_06/2017 | F55: M3 | G55: 108.4 | H55: =VLOOKUP(D55,'CPU (des)'!B:I,8,FALSE) -> 894.03 | I55: 0.3026049495 | J55: 1164.567903 | K55: 126239.1607 | L55: 0.003204892933 | M55: 0.6943778436
B56: 3.3.3.3 | C56: Composição Sinapi | D56: 87543 | E56: MASSA ÚNICA, PARA RECEBIMENTO DE PINTURA OU CERÂMICA, ARGAMASSA INDUSTRIALIZADA, PREPARO MECÂNICO, APLICADO COM EQUIPAMENTO DE MISTURA E PROJEÇÃO DE 1,5 M3/H EM FACES INTERNAS DE PAREDES, ESPESSURA DE 5MM, SEM EXECUÇÃO DE TALISCAS. AF_06/2014 | F56: M2 | G56: 3402.5 | H56: =VLOOKUP(D56,'CPU (des)'!B:I,8,FALSE) -> 28.47 | I56: 0.3026049495 | J56: 37.08516291 | K56: 126182.2668 | L56: 0.003203448541 | M56: 0.6975812921
B57: 2.6.4.2 | C57: Composição Sinapi | D57: 97627 | E57: DEMOLIÇÃO DE PILARES E VIGAS EM CONCRETO ARMADO, DE FORMA MECANIZADA COM MARTELETE, SEM REAPROVEITAMENTO. AF_12/2017 | F57: M3 | G57: 456.22 | H57: =VLOOKUP(D57,'CPU (des)'!B:I,8,FALSE) -> 210.51 | I57: 0.3026049495 | J57: 274.2113679 | K57: 125100.7103 | L57: 0.003175990557 | M57: 0.7007572827
B58: 7.2.1 | C58: Composição Sinapi | D58: 92979 | E58: CABO DE COBRE FLEXÍVEL ISOLADO, 10 MM², ANTI-CHAMA 450/750 V, PARA DISTRIBUIÇÃO - FORNECIMENTO E INSTALAÇÃO. AF_12/2015 | F58: M | G58: 7280 | H58: =VLOOKUP(D58,'CPU (des)'!B:I,8,FALSE) -> 13.18 | I58: 0.3026049495 | J58: 17.16833324 | K58: 124985.466 | L58: 0.003173064795 | M58: 0.7039303475
B59: 2.6.5.1 | C59: Composição Sinapi | D59: 97625 | E59: DEMOLIÇÃO DE ALVENARIA PARA QUALQUER TIPO DE BLOCO, DE FORMA MECANIZADA, SEM REAPROVEITAMENTO. AF_12/2017 | F59: M3 | G59: 1962.71 | H59: =VLOOKUP(D59,'CPU (des)'!B:I,8,FALSE) -> 48.81 | I59: 0.3026049495 | J59: 63.58014759 | K59: 124789.3915 | L59: 0.00316808696 | M59: 0.7070984344
B60: 3.3.1.8 | C60: Composição Sinapi | D60: 98458 | E60: TAPUME COM COMPENSADO DE MADEIRA. AF_05/2018 | F60: M2 | G60: 894.43 | H60: =VLOOKUP(D60,'CPU (des)'!B:I,8,FALSE) -> 106.71 | I60: 0.3026049495 | J60: 139.0009742 | K60: 124326.6413 | L60: 0.003156338904 | M60: 0.7102547733
B61: 2.1.3.2 | C61: Composição Sinapi | D61: 95995 | E61: EXECUÇÃO DE PAVIMENTO COM APLICAÇÃO DE CONCRETO ASFÁLTICO, CAMADA DE ROLAMENTO - EXCLUSIVE CARGA E TRANSPORTE. AF_11/2019 | F61: M3 | G61: 65.03 | H61: =VLOOKUP(D61,'CPU (des)'!B:I,8,FALSE) -> 1414.08 | I61: 0.3026049495 | J61: 1841.987607 | K61: 119784.4541 | L61: 0.003041024261 | M61: 0.7132957976
B62: 2.4.2.3 | C62: Composição Sinapi | D62: 92397 | E62: EXECUÇÃO DE PÁTIO/ESTACIONAMENTO EM PISO INTERTRAVADO, COM BLOCO RETANGULAR COR NATURAL DE 20 X 10 CM, ESPESSURA 6 CM. AF_12/2015 | F62: M2 | G62: 1201.28 | H62: =VLOOKUP(D62,'CPU (des)'!B:I,8,FALSE) -> 75.16 | I62: 0.3026049495 | J62: 97.90378801 | K62: 117609.8625 | L62: 0.002985816881 | M62: 0.7162816145
B63: 9.4.6 | C63: Composição Sinapi | D63: 89272 | E63: GUINDASTE HIDRÁULICO AUTOPROPELIDO, COM LANÇA TELESCÓPICA 28,80 M, CAPACIDADE MÁXIMA 30 T, POTÊNCIA 97 KW, TRAÇÃO 4 X 4 - CHP DIURNO. AF_11/2014 | F63: CHP | G63: 445 | H63: =VLOOKUP(D63,'CPU (des)'!B:I,8,FALSE) -> 197.08 | I63: 0.3026049495 | J63: 256.7173835 | K63: 114239.2356 | L63: 0.002900245193 | M63: 0.7191818597
B64: 3.3.4.1 | C64: Composição Sinapi | D64: 103324 | E64: ALVENARIA DE VEDAÇÃO DE BLOCOS CERÂMICOS FURADOS NA VERTICAL DE 14X19X39 CM (ESPESSURA 14 CM) E ARGAMASSA DE ASSENTAMENTO COM PREPARO EM BETONEIRA. AF_12/2021 | F64: M2 | G64: 1179.09 | H64: =VLOOKUP(D64,'CPU (des)'!B:I,8,FALSE) -> 74.37 | I64: 0.3026049495 | J64: 96.8747301 | K64: 114224.0255 | L64: 0.002899859046 | M64: 0.7220817187
B65: 9.6.6 | C65: Composição Sinapi | D65: 99837 | E65: GUARDA-CORPO DE AÇO GALVANIZADO DE 1,10M, MONTANTES TUBULARES DE 1.1/4" ESPAÇADOS DE 1,20M, TRAVESSA SUPERIOR DE 1.1/2", GRADIL FORMADO POR TUBOS HORIZONTAIS DE 1" E VERTICAIS DE 3/4", FIXADO COM CHUMBADOR MECÂNICO. AF_04/2019_PS | F65: M | G65: 169 | H65: =VLOOKUP(D65,'CPU (des)'!B:I,8,FALSE) -> 512.36 | I65: 0.3026049495 | J65: 667.402672 | K65: 112791.0516 | L65: 0.002863479463 | M65: 0.7249451982
B66: 9.6.3 | C66: Composição Sinapi | D66: 96557 | E66: CONCRETAGEM DE BLOCOS DE COROAMENTO E VIGAS BALDRAMES, FCK 30 MPA, COM USO DE BOMBA - LANÇAMENTO, ADENSAMENTO E ACABAMENTO. AF_06/2017 | F66: M3 | G66: 92.15 | H66: =VLOOKUP(D66,'CPU (des)'!B:I,8,FALSE) -> 894.03 | I66: 0.3026049495 | J66: 1164.567903 | K66: 107314.9323 | L66: 0.002724454647 | M66: 0.7276696528
B67: 2.6.4.3 | C67: Composição Sinapi | D67: 95876 | E67: TRANSPORTE COM CAMINHÃO BASCULANTE DE 14 M³, EM VIA URBANA PAVIMENTADA, DMT ATÉ 30 KM (UNIDADE: M3XKM). AF_07/2020 | F67: M3XKM | G67: 41040 | H67: =VLOOKUP(D67,'CPU (des)'!B:I,8,FALSE) -> 1.98 | I67: 0.3026049495 | J67: 2.5791578 | K67: 105848.6361 | L67: 0.002687229097 | M67: 0.7303568819
B68: 3.2.3.1.1 | C68: Composição Sinapi | D68: 92443 | E68: MONTAGEM E DESMONTAGEM DE FÔRMA DE PILARES RETANGULARES E ESTRUTURAS SIMILARES, PÉ-DIREITO SIMPLES, EM CHAPA DE MADEIRA COMPENSADA PLASTIFICADA, 18 UTILIZAÇÕES. AF_09/2020 | F68: M2 | G68: 1664.3 | H68: =VLOOKUP(D68,'CPU (des)'!B:I,8,FALSE) -> 48.15 | I68: 0.3026049495 | J68: 62.72042832 | K68: 104385.6089 | L68: 0.002650086536 | M68: 0.7330069685
B69: 9.3.5 | C69: Composição Sinapi | D69: 96385 | E69: EXECUÇÃO E COMPACTAÇÃO DE ATERRO COM SOLO PREDOMINANTEMENTE ARGILOSO - EXCLUSIVE SOLO, ESCAVAÇÃO, CARGA E TRANSPORTE. AF_11/2019 | F69: M3 | G69: 7366 | H69: =VLOOKUP(D69,'CPU (des)'!B:I,8,FALSE) -> 10.58 | I69: 0.3026049495 | J69: 13.78156037 | K69: 101514.9737 | L69: 0.002577208371 | M69: 0.7355841768
B70: 3.3.7.2 | C70: Composição Orse | D70: 12734 | E70: Telhamento com telha em aço galvalume, dupla, trapezoidal, com preenchimento PIR 50mm, pré-pintada, TP40 - 2 x 0,43mm, Kingspan- Isoeste ou similar | F70: M2 | G70: 213.9 | H70: =VLOOKUP(D70,'CPU (des)'!B:I,8,FALSE) -> 360.7 | I70: 0.3026049495 | J70: 469.8496053 | K70: 100500.8306 | L70: 0.002551461843 | M70: 0.7381356387
B71: 3.3.6.6 | C71: Composição Sinapi | D71: 87623 | E71: CONTRAPISO EM ARGAMASSA PRONTA, PREPARO MECÂNICO COM MISTURADOR 300 KG, APLICADO EM ÁREAS SECAS SOBRE LAJE, ADERIDO, ACABAMENTO NÃO REFORÇADO, ESPESSURA 2CM. AF_07/2021 | F71: M2 | G71: 871.2 | H71: =VLOOKUP(D71,'CPU (des)'!B:I,8,FALSE) -> 88.22 | I71: 0.3026049495 | J71: 114.9158086 | K71: 100114.6525 | L71: 0.002541657759 | M71: 0.7406772964
B72: 3.2.1.6 | C72: Composição Sinapi | D72: 99059 | E72: LOCACAO CONVENCIONAL DE OBRA, UTILIZANDO GABARITO DE TÁBUAS CORRIDAS PONTALETADAS A CADA 2,00M - 2 UTILIZAÇÕES. AF_10/2018 | F72: M | G72: 1700 | H72: =VLOOKUP(D72,'CPU (des)'!B:I,8,FALSE) -> 44.16 | I72: 0.3026049495 | J72: 57.52303457 | K72: 97789.15877 | L72: 0.002482619356 | M72: 0.7431599158
B73: 3.3.7.13 | C73: Composição Sinapi | D73: 96562 | E73: SUPORTE PARA ELETROCALHA LISA OU PERFURADA EM AÇO GALVANIZADO, LARGURA 200 OU 400 MM E ALTURA 50 MM, ESPAÇADO A CADA 1,5 M, EM PERFILADO DE SEÇÃO 38X76 MM, POR METRO DE ELETRECOLHA FIXADA. AF_07/2017 | F73: M | G73: 3620 | H73: =VLOOKUP(D73,'CPU (des)'!B:I,8,FALSE) -> 20.68 | I73: 0.3026049495 | J73: 26.93787036 | K73: 97515.09069 | L73: 0.002475661461 | M73: 0.7456355773
B74: 2.6.3.1 | C74: Composição Sinapi | D74: 97625 | E74: DEMOLIÇÃO DE ALVENARIA PARA QUALQUER TIPO DE BLOCO, DE FORMA MECANIZADA, SEM REAPROVEITAMENTO. AF_12/2017 | F74: M3 | G74: 1504.47 | H74: =VLOOKUP(D74,'CPU (des)'!B:I,8,FALSE) -> 48.81 | I74: 0.3026049495 | J74: 63.58014759 | K74: =J74*G74 -> 95654.42464 | L74: 0.002428423857 | M74: 0.7480640011
B75: 7.2.6 | C75: Composição Sinapi | D75: 101659 | E75: LUMINÁRIA DE LED PARA ILUMINAÇÃO PÚBLICA, DE 181 W ATÉ 239 W - FORNECIMENTO E INSTALAÇÃO. AF_08/2020 | F75: UN | G75: 80 | H75: =VLOOKUP(D75,'CPU (des)'!B:I,8,FALSE) -> 906.9 | I75: 0.3026049495 | J75: 1181.332429 | K75: 94506.5943 | L75: =K75/$K$1467 -> 0.002399283348 | M75: 0.7504632845
B76: 8.5.4 | C76: Insumo Sinapi | D76: 760 | E76: BOMBA SUBMERSIVEL, ELETRICA, TRIFASICA, POTENCIA 13 HP, DIAMETRO DO ROTOR 170 MM, BOCAL DE SAIDA DIAMETRO DE 3 POLEGADAS, HM/Q = 11 M / 68,40 M3/H A 72 M / 3,6 M3/H | F76: UN | G76: 2 | H76: =VLOOKUP(D76,'Insumos SINAPI (des)'!A:E,5,FALSE) -> 38505 | I76: =$K$5 -> 0.2031110915 | J76: 46325.79258 | K76: 92651.58515 | L76: 0.002352189359 | M76: =L76+M75 -> 0.7528154738
B77: 3.2.3.2.3 | C77: Composição Sinapi | D77: 92760 | E77: ARMAÇÃO DE PILAR OU VIGA DE UMA ESTRUTURA CONVENCIONAL DE CONCRETO ARMADO EM UM EDIFÍCIO DE MÚLTIPLOS PAVIMENTOS UTILIZANDO AÇO CA-50 DE 6,3 MM - MONTAGEM. AF_12/2015 | F77: KG | G77: 4593.8 | H77: =VLOOKUP(D77,'CPU (des)'!B:I,8,FALSE) -> 15.47 | I77: =$K$4 -> 0.3026049495 | J77: 20.15129857 | K77: 92571.03537 | L77: 0.002350144404 | M77: 0.7551656182
B78: 3.3.6.1 | C78: Composição Sinapi | D78: 92580 | E78: TRAMA DE AÇO COMPOSTA POR TERÇAS PARA TELHADOS DE ATÉ 2 ÁGUAS PARA TELHA ONDULADA DE FIBROCIMENTO, METÁLICA, PLÁSTICA OU TERMOACÚSTICA, INCLUSO TRANSPORTE VERTICAL. AF_07/2019 | F78: M2 | G78: 1285.8 | H78: =VLOOKUP(D78,'CPU (des)'!B:I,8,FALSE) -> 55.05 | I78: 0.3026049495 | J78: 71.70840247 | K78: 92202.6639 | L78: 0.002340792384 | M78: 0.7575064106
B79: 6.2.30 | C79: Composição SICRO | D79: 2003713 | E79: Chaminé dos poços de visita - CPV 01 - areia extraída e brita produzida | F79: UN | G79: 49 | H79: =VLOOKUP(D79,'CPU (des)'!B:I,8,FALSE) -> 1418.69 | I79: 0.3026049495 | J79: 1847.992616 | K79: 90551.63818 | L79: 0.002298877018 | M79: 0.7598052876
B80: 2.6.1.3 | C80: Composição Sinapi | D80: 95876 | E80: TRANSPORTE COM CAMINHÃO BASCULANTE DE 14 M³, EM VIA URBANA PAVIMENTADA, DMT ATÉ 30 KM (UNIDADE: M3XKM). AF_07/2020 | F80: M3XKM | G80: 34679.4 | H80: =VLOOKUP(D80,'CPU (des)'!B:I,8,FALSE) -> 1.98 | I80: 0.3026049495 | J80: 2.5791578 | K80: 89443.64501 | L80: 0.002270747874 | M80: 0.7620760355
B81: 2.5.3 | C81: Composição Sinapi | D81: 92397 | E81: EXECUÇÃO DE PÁTIO/ESTACIONAMENTO EM PISO INTERTRAVADO, COM BLOCO RETANGULAR COR NATURAL DE 20 X 10 CM, ESPESSURA 6 CM. AF_12/2015 | F81: M2 | G81: 903.56 | H81: =VLOOKUP(D81,'CPU (des)'!B:I,8,FALSE) -> 75.16 | I81: 0.3026049495 | J81: 97.90378801 | K81: 88461.94669 | L81: 0.002245825037 | M81: 0.7643218605
B82: 2.2.2.1 | C82: Composição Orse | D82: 3212 | E82: Colchão de areia | F82: M3 | G82: 507.37 | H82: =VLOOKUP(D82,'CPU (des)'!B:I,8,FALSE) -> 132.9 | I82: 0.3026049495 | J82: 173.1161978 | K82: 87833.96528 | L82: 0.002229882178 | M82: 0.7665517427
B83: 3.3.6.3 | C83: Composição Sinapi | D83: 87543 | E83: MASSA ÚNICA, PARA RECEBIMENTO DE PINTURA OU CERÂMICA, ARGAMASSA INDUSTRIALIZADA, PREPARO MECÂNICO, APLICADO COM EQUIPAMENTO DE MISTURA E PROJEÇÃO DE 1,5 M3/H EM FACES INTERNAS DE PAREDES, ESPESSURA DE 5MM, SEM EXECUÇÃO DE TALISCAS. AF_06/2014 | F83: M2 | G83: 2358.18 | H83: =VLOOKUP(D83,'CPU (des)'!B:I,8,FALSE) -> 28.47 | I83: 0.3026049495 | J83: 37.08516291 | K83: 87453.48948 | L83: 0.00222022286 | M83: 0.7687719656
B84: 3.3.7.3 | C84: Insumo Orse | D84: 101010 | E84: Telha em aço galvalume, dupla, trapezoidal, com preenchimento PIR 50mm, pré-pintada, TP40 - 2 x 0,43mm, Kingspan- Isoeste ou similar | F84: M2 | G84: 213.9 | H84: 335.66 | I84: =$K$5 -> 0.2031110915 | J84: 403.836269 | K84: 86380.57793 | L84: 0.00219298435 | M84: 0.7709649499
B85: 3.2.1.8 | C85: Composição Sinapi | D85: 98458 | E85: TAPUME COM COMPENSADO DE MADEIRA. AF_05/2018 | F85: M2 | G85: 610.24 | H85: =VLOOKUP(D85,'CPU (des)'!B:I,8,FALSE) -> 106.71 | I85: =$K$4 -> 0.3026049495 | J85: =H85*(1+I85) -> 139.0009742 | K85: 84823.95448 | L85: 0.002153465618 | M85: 0.7731184155
B86: 3.3.3.4 | C86: Composição Sinapi | D86: 87791 | E86: EMBOÇO OU MASSA ÚNICA EM ARGAMASSA INDUSTRIALIZADA, PREPARO MECÂNICO E APLICAÇÃO COM EQUIPAMENTO DE MISTURA E PROJEÇÃO DE 1,5 M3/H DE ARGAMASSA EM PANOS DE FACHADA COM PRESENÇA DE VÃOS, ESPESSURA MAIOR OU IGUAL A 50 MM. AF_06/2014 | F86: M2 | G86: 411.96 | H86: =VLOOKUP(D86,'CPU (des)'!B:I,8,FALSE) -> 157.03 | I86: 0.3026049495 | J86: 204.5480552 | K86: 84265.61683 | L86: 0.002139290838 | M86: 0.7752577064
B87: 3.2.3.2.5 | C87: Composição Sinapi | D87: 92762 | E87: ARMAÇÃO DE PILAR OU VIGA DE UMA ESTRUTURA CONVENCIONAL DE CONCRETO ARMADO EM UM EDIFÍCIO DE MÚLTIPLOS PAVIMENTOS UTILIZANDO AÇO CA-50 DE 10,0 MM - MONTAGEM. AF_12/2015 | F87: KG | G87: 4646.3 | H87: =VLOOKUP(D87,'CPU (des)'!B:I,8,FALSE) -> 13.75 | I87: 0.3026049495 | J87: 17.91081806 | K87: 83219.03393 | L87: 0.002112720746 | M87: 0.7773704271
B88: 4.5.3 | C88: Composição Sinapi | D88: 96485 | E88: FORRO EM RÉGUAS DE PVC, LISO, PARA AMBIENTES RESIDENCIAIS, INCLUSIVE ESTRUTURA DE FIXAÇÃO. AF_05/2017_PS | F88: M2 | G88: 891 | H88: =VLOOKUP(D88,'CPU (des)'!B:I,8,FALSE) -> 68.67 | I88: 0.3026049495 | J88: 89.44988189 | K88: 79699.84476 | L88: 0.002023377435 | M88: 0.7793938046
B89: 6.2.11 | C89: Composição Sinapi | D89: 96624 | E89: LASTRO COM MATERIAL GRANULAR (PEDRA BRITADA N.2), APLICADO EM PISOS OU LAJES SOBRE SOLO, ESPESSURA DE *10 CM*. AF_08/2017 | F89: M3 | G89: 183.01 | H89: =VLOOKUP(D89,'CPU (des)'!B:I,8,FALSE) -> 331.94 | I89: 0.3026049495 | J89: 432.386687 | K89: 79131.08758 | L89: 0.002008938129 | M89: 0.7814027427
B90: 9.3.1 | C90: Composição Sinapi | D90: 100974 | E90: CARGA, MANOBRA E DESCARGA DE SOLOS E MATERIAIS GRANULARES EM CAMINHÃO BASCULANTE 10 M³ - CARGA COM PÁ CARREGADEIRA (CAÇAMBA DE 1,7 A 2,8 M³ / 128 HP) E DESCARGA LIVRE (UNIDADE: M3). AF_07/2020 | F90: M3 | G90: 7366 | H90: =VLOOKUP(D90,'CPU (des)'!B:I,8,FALSE) -> 7.86 | I90: 0.3026049495 | J90: 10.2384749 | K90: 75416.60614 | L90: 0.001914636843 | M90: 0.7833173795
B91: 3.3.5.11 | C91: Composição Sinapi | D91: 99841 | E91: GUARDA-CORPO PANORÂMICO COM PERFIS DE ALUMÍNIO E VIDRO LAMINADO 8 MM, FIXADO COM CHUMBADOR MECÂNICO. AF_04/2019_PS | F91: M | G91: 32.5 | H91: =VLOOKUP(D91,'CPU (des)'!B:I,8,FALSE) -> 1777.3 | I91: 0.3026049495 | J91: 2315.119777 | K91: 75241.39275 | L91: 0.001910188618 | M91: 0.7852275682
B92: 3.3.3.1.9 | C92: Composição Sinapi | D92: 96557 | E92: CONCRETAGEM DE BLOCOS DE COROAMENTO E VIGAS BALDRAMES, FCK 30 MPA, COM USO DE BOMBA - LANÇAMENTO, ADENSAMENTO E ACABAMENTO. AF_06/2017 | F92: M3 | G92: 64.6 | H92: =VLOOKUP(D92,'CPU (des)'!B:I,8,FALSE) -> 894.03 | I92: 0.3026049495 | J92: 1164.567903 | K92: 75231.08654 | L92: 0.001909926969 | M92: 0.7871374951
B93: 3.2.3.2.1 | C93: Composição Sinapi | D93: 92538 | E93: MONTAGEM E DESMONTAGEM DE FÔRMA DE LAJE MACIÇA, PÉ-DIREITO SIMPLES, EM CHAPA DE MADEIRA COMPENSADA PLASTIFICADA, . AF_09/2020 | F93: M2 | G93: 1448.6 | H93: =VLOOKUP(D93,'CPU (des)'!B:I,8,FALSE) -> 39.33 | I93: 0.3026049495 | J93: 51.23145267 | K93: 74213.88233 | L93: 0.001884102728 | M93: 0.7890215979
B94: 5.4.1 | C94: Composição Sinapi | D94: 100576 | E94: REGULARIZAÇÃO E COMPACTAÇÃO DE SUBLEITO DE SOLO PREDOMINANTEMENTE ARGILOSO. AF_11/2019 | F94: M2 | G94: 24888 | H94: =VLOOKUP(D94,'CPU (des)'!B:I,8,FALSE) -> 2.27 | I94: 0.3026049495 | J94: 2.956913235 | K94: 73591.6566 | L94: 0.001868305991 | M94: 0.7908899038
B95: 2.6.1.2 | C95: Composição Sinapi | D95: 97627 | E95: DEMOLIÇÃO DE PILARES E VIGAS EM CONCRETO ARMADO, DE FORMA MECANIZADA COM MARTELETE, SEM REAPROVEITAMENTO. AF_12/2017 | F95: M3 | G95: 266.76 | H95: =VLOOKUP(D95,'CPU (des)'!B:I,8,FALSE) -> 210.51 | I95: 0.3026049495 | J95: 274.2113679 | K95: 73148.62451 | L95: 0.001857058526 | M95: 0.7927469624
B96: 2.2.2.4 | C96: Composição Sinapi | D96: 101167 | E96: EXECUÇÃO DE PAVIMENTO EM PARALELEPÍPEDOS, REJUNTAMENTO COM PÓ DE PEDRA. AF_05/2020 | F96: M2 | G96: 180.39 | H96: =VLOOKUP(D96,'CPU (des)'!B:I,8,FALSE) -> 307.09 | I96: 0.3026049495 | J96: 400.016954 | K96: 72159.05832 | L96: 0.001831935944 | M96: 0.7945788983
B97: 3.2.3.1.6 | C97: Composição Sinapi | D97: 92761 | E97: ARMAÇÃO DE PILAR OU VIGA DE UMA ESTRUTURA CONVENCIONAL DE CONCRETO ARMADO EM UM EDIFÍCIO DE MÚLTIPLOS PAVIMENTOS UTILIZANDO AÇO CA-50 DE 8,0 MM - MONTAGEM. AF_12/2015 | F97: KG | G97: 3623.6 | H97: =VLOOKUP(D97,'CPU (des)'!B:I,8,FALSE) -> 15.09 | I97: 0.3026049495 | J97: 19.65630869 | K97: 71226.60016 | L97: 0.001808263191 | M97: 0.7963871615
B98: 3.3.6.2 | C98: Composição Sinapi | D98: 93391 | E98: REVESTIMENTO CERÂMICO PARA PISO COM PLACAS TIPO ESMALTADA PADRÃO POPULAR DE DIMENSÕES 35X35 CM APLICADA EM AMBIENTES DE ÁREA MAIOR QUE 10 M2. AF_06/2014 | F98: M2 | G98: 943.14 | H98: =VLOOKUP(D98,'CPU (des)'!B:I,8,FALSE) -> 57.7 | I98: 0.3026049495 | J98: 75.16030559 | K98: 70886.69061 | L98: 0.001799633747 | M98: 0.7981867953
B99: 3.3.3.2.5 | C99: Composição Sinapi | D99: 92762 | E99: ARMAÇÃO DE PILAR OU VIGA DE UMA ESTRUTURA CONVENCIONAL DE CONCRETO ARMADO EM UM EDIFÍCIO DE MÚLTIPLOS PAVIMENTOS UTILIZANDO AÇO CA-50 DE 10,0 MM - MONTAGEM. AF_12/2015 | F99: KG | G99: 3952.3 | H99: =VLOOKUP(D99,'CPU (des)'!B:I,8,FALSE) -> 13.75 | I99: 0.3026049495 | J99: 17.91081806 | K99: 70788.9262 | L99: 0.001797151756 | M99: 0.799983947
B100: 3.3.8.1.17 | C100: Composição Orse | D100: 1527 | E100: Tubo pvc rígido soldável ponta e bolsa p/ esgoto predial, d = 100 mm | F100: M | G100: 70.73 | H100: =VLOOKUP(D100,'CPU (des)'!B:I,8,FALSE) -> 740.72 | I100: 0.3026049495 | J100: 964.8655382 | K100: 68244.93952 | L100: 0.00173256637 | M100: 0.8017165134
B101: 3.3.7.75 | C101: Insumo Sinapi | D101: 980 | E101: CABO DE COBRE, FLEXIVEL, CLASSE 4 OU 5, ISOLACAO EM PVC/A, ANTICHAMA BWF-B, 1 CONDUTOR, 450/750 V, SECAO NOMINAL 10 MM2 | F101: M | G101: 4573.5 | H101: =VLOOKUP(D101,'Insumos SINAPI (des)'!A:E,5,FALSE) -> 12.36 | I101: =$K$5 -> 0.2031110915 | J101: 14.87045309 | K101: 68010.01721 | L101: 0.001726602287 | M101: 0.8034431157
B102: 9.3.3 | C102: Composição Sinapi | D102: 102716 | E102: ENCHIMENTO DE AREIA PARA DRENO, LANÇAMENTO MECANIZADO. AF_07/2021 | F102: M3 | G102: 375.15 | H102: =VLOOKUP(D102,'CPU (des)'!B:I,8,FALSE) -> 136.25 | I102: =$K$4 -> 0.3026049495 | J102: 177.4799244 | K102: 66581.59363 | L102: 0.001690338226 | M102: 0.8051334539
B103: 6.2.27 | C103: Composição SICRO | D103: 2003679 | E103: Poço de visita - PVI 02 - areia extraída e brita produzida | F103: UN | G103: 27 | H103: =VLOOKUP(D103,'CPU (des)'!B:I,8,FALSE) -> 1841.72 | I103: 0.3026049495 | J103: 2399.033588 | K103: 64773.90687 | L103: 0.001644445632 | M103: 0.8067778995
B104: 6.2.18 | C104: Composição Orse | D104: 2672 | E104: Fornecimento e assentamento de tubo de concreto armado ca1 d=0,80 m | F104: M | G104: 114 | H104: =VLOOKUP(D104,'CPU (des)'!B:I,8,FALSE) -> 414.24 | I104: 0.3026049495 | J104: 539.5910743 | K104: 61513.38247 | L104: 0.001561669166 | M104: 0.8083395687
B105: 2.5.4 | C105: Composição Sinapi | D105: 96398 | E105: EXECUÇÃO E COMPACTAÇÃO DE BASE E OU SUB BASE PARA PAVIMENTAÇÃO DE CONCRETO COMPACTADO COM ROLO - EXCLUSIVE CARGA E TRANSPORTE. AF_11/2019 | F105: M3 | G105: 75.93 | H105: =VLOOKUP(D105,'CPU (des)'!B:I,8,FALSE) -> 619.37 | I105: 0.3026049495 | J105: 806.7944276 | K105: 61259.90089 | L105: 0.00155523391 | M105: 0.8098948026
B106: 3.2.2.2.4 | C106: Composição Sinapi | D106: 96557 | E106: CONCRETAGEM DE BLOCOS DE COROAMENTO E VIGAS BALDRAMES, FCK 30 MPA, COM USO DE BOMBA - LANÇAMENTO, ADENSAMENTO E ACABAMENTO. AF_06/2017 | F106: M3 | G106: 52.4 | H106: =VLOOKUP(D106,'CPU (des)'!B:I,8,FALSE) -> 894.03 | I106: 0.3026049495 | J106: 1164.567903 | K106: 61023.35812 | L106: 0.001549228687 | M106: 0.8114440313
B107: 2.6.7.2 | C107: Composição Sinapi | D107: 97627 | E107: DEMOLIÇÃO DE PILARES E VIGAS EM CONCRETO ARMADO, DE FORMA MECANIZADA COM MARTELETE, SEM REAPROVEITAMENTO. AF_12/2017 | F107: M3 | G107: 220.8 | H107: =VLOOKUP(D107,'CPU (des)'!B:I,8,FALSE) -> 210.51 | I107: 0.3026049495 | J107: 274.2113679 | K107: 60545.87004 | L107: 0.001537106473 | M107: 0.8129811378
B108: 3.3.5.6 | C108: Composição Sinapi | D108: 101965 | E108: PEITORIL LINEAR EM GRANITO OU MÁRMORE, L = 15CM, COMPRIMENTO DE ATÉ 2M, ASSENTADO COM ARGAMASSA 1:6 COM ADITIVO. AF_11/2020 | F108: M | G108: 329.86 | H108: =VLOOKUP(D108,'CPU (des)'!B:I,8,FALSE) -> 140.37 | I108: 0.3026049495 | J108: 182.8466568 | K108: 60313.7982 | L108: 0.001531214756 | M108: 0.8145123525
B109: 2.3.2.2 | C109: Composição Orse | D109: 3212 | E109: Colchão de areia | F109: M3 | G109: 348.31 | H109: =VLOOKUP(D109,'CPU (des)'!B:I,8,FALSE) -> 132.9 | I109: 0.3026049495 | J109: 173.1161978 | K109: 60298.10285 | L109: 0.001530816291 | M109: 0.8160431688
B110: 5.4.9 | C110: Composição SICRO | D110: 4011219 | E110: Base de solo estabilizado granulometricamente sem mistura com material de jazida | F110: M3 | G110: 3532 | H110: =VLOOKUP(D110,'CPU (des)'!B:I,8,FALSE) -> 13.07 | I110: 0.3026049495 | J110: 17.02504669 | K110: 60132.46491 | L110: 0.001526611162 | M110: 0.81756978
B111: 2.2.2.6 | C111: Composição Sinapi | D111: 101094 | E111: PISO PODOTÁTIL, DIRECIONAL OU ALERTA, ASSENTADO SOBRE ARGAMASSA. AF_05/2020 | F111: M | G111: 243.79 | H111: =VLOOKUP(D111,'CPU (des)'!B:I,8,FALSE) -> 189.1 | I111: 0.3026049495 | J111: 246.322596 | K111: 60050.98567 | L111: 0.00152454261 | M111: 0.8190943226
B112: 6.2.14 | C112: Composição Sinapi | D112: 95571 | E112: TUBO DE CONCRETO (SIMPLES) PARA REDES COLETORAS DE ÁGUAS PLUVIAIS, DIÂMETRO DE 400 MM, JUNTA RÍGIDA, INSTALADO EM LOCAL COM ALTO NÍVEL DE INTERFERÊNCIAS - FORNECIMENTO E ASSENTAMENTO. AF_12/2015 | F112: M | G112: 361 | H112: =VLOOKUP(D112,'CPU (des)'!B:I,8,FALSE) -> 125.75 | I112: 0.3026049495 | J112: 163.8025724 | K112: 59132.72864 | L112: 0.001501230387 | M112: 0.820595553
B113: 2.6.4.1 | C113: Composição Sinapi | D113: 97625 | E113: DEMOLIÇÃO DE ALVENARIA PARA QUALQUER TIPO DE BLOCO, DE FORMA MECANIZADA, SEM REAPROVEITAMENTO. AF_12/2017 | F113: M3 | G113: 912 | H113: =VLOOKUP(D113,'CPU (des)'!B:I,8,FALSE) -> 48.81 | I113: 0.3026049495 | J113: 63.58014759 | K113: 57985.0946 | L113: 0.001472094862 | M113: 0.8220676478
B114: 3.2.2.3.4 | C114: Composição Sinapi | D114: 96557 | E114: CONCRETAGEM DE BLOCOS DE COROAMENTO E VIGAS BALDRAMES, FCK 30 MPA, COM USO DE BOMBA - LANÇAMENTO, ADENSAMENTO E ACABAMENTO. AF_06/2017 | F114: M3 | G114: 49.5 | H114: =VLOOKUP(D114,'CPU (des)'!B:I,8,FALSE) -> 894.03 | I114: 0.3026049495 | J114: 1164.567903 | K114: 57646.1112 | L114: 0.001463488931 | M114: 0.8235311368
B115: 3.2.2.3.3 | C115: Composição Sinapi | D115: 96536 | E115: FABRICAÇÃO, MONTAGEM E DESMONTAGEM DE FÔRMA PARA VIGA BALDRAME, EM MADEIRA SERRADA, E=25 MM, 4 UTILIZAÇÕES. AF_06/2017 | F115: M2 | G115: 774.6 | H115: =VLOOKUP(D115,'CPU (des)'!B:I,8,FALSE) -> 56.87 | I115: 0.3026049495 | J115: 74.07914348 | K115: 57381.70454 | L115: 0.001456776315 | M115: 0.8249879131
B116: 2.6.1.1 | C116: Composição Sinapi | D116: 97625 | E116: DEMOLIÇÃO DE ALVENARIA PARA QUALQUER TIPO DE BLOCO, DE FORMA MECANIZADA, SEM REAPROVEITAMENTO. AF_12/2017 | F116: M3 | G116: 889.22 | H116: =VLOOKUP(D116,'CPU (des)'!B:I,8,FALSE) -> 48.81 | I116: 0.3026049495 | J116: 63.58014759 | K116: 56536.73884 | L116: 0.001435324774 | M116: 0.8264232378
B117: 6.2.21 | C117: Composição Orse | D117: 5425 | E117: Fornecimento de tubo de ferro fundido, junta elástica, ponta / bolsa, classe k 7, diam. = 600mm | F117: M | G117: 18 | H117: =VLOOKUP(D117,'CPU (des)'!B:I,8,FALSE) -> 2406.52 | I117: 0.3026049495 | J117: 3134.744863 | K117: 56425.40754 | L117: 0.001432498354 | M117: 0.8278557362
B118: 3.3.3.1 | C118: Composição Sinapi | D118: 88650 | E118: RODAPÉ CERÂMICO DE 7CM DE ALTURA COM PLACAS TIPO ESMALTADA EXTRA DE DIMENSÕES 60X60CM. AF_06/2014 | F118: M | G118: 2051.54 | H118: =VLOOKUP(D118,'CPU (des)'!B:I,8,FALSE) -> 20.9 | I118: 0.3026049495 | J118: 27.22444345 | K118: 55852.03471 | L118: 0.001417941868 | M118: 0.8292736781
B119: 3.3.11.2 | C119: Composição Sinapi | D119: 100754 | E119: PINTURA COM TINTA ACRÍLICA DE ACABAMENTO APLICADA A ROLO OU PINCEL (EXCETO PERFIL) EXECUTADO EM OBRA (02 DEMÃOS). AF_01/2020 | F119: M2 | G119: 1888 | H119: =VLOOKUP(D119,'CPU (des)'!B:I,8,FALSE) -> 22.26 | I119: 0.3026049495 | J119: 28.99598618 | K119: 54744.4219 | L119: 0.001389822381 | M119: 0.8306635004
B120: 2.4.2.5 | C120: Composição Sinapi | D120: 101094 | E120: PISO PODOTÁTIL, DIRECIONAL OU ALERTA, ASSENTADO SOBRE ARGAMASSA. AF_05/2020 | F120: M | G120: 213.08 | H120: =VLOOKUP(D120,'CPU (des)'!B:I,8,FALSE) -> 189.1 | I120: 0.3026049495 | J120: 246.322596 | K120: 52486.41875 | L120: 0.001332497393 | M120: 0.8319959978
B121: 7.2.7 | C121: Composição Orse | D121: 799 | E121: Poste em tubo de aço galvanizado, pesado, d=2" (50mm), altura útil=2,50m, altura total=3,20m | F121: UN | G121: 80 | H121: =VLOOKUP(D121,'CPU (des)'!B:I,8,FALSE) -> 500.88 | I121: 0.3026049495 | J121: 652.4487671 | K121: 52195.90137 | L121: 0.001325121892 | M121: 0.8333211197
B122: 2.5.7 | C122: Composição Sinapi | D122: 101094 | E122: PISO PODOTÁTIL, DIRECIONAL OU ALERTA, ASSENTADO SOBRE ARGAMASSA. AF_05/2020 | F122: M | G122: 209.97 | H122: =VLOOKUP(D122,'CPU (des)'!B:I,8,FALSE) -> 189.1 | I122: 0.3026049495 | J122: 246.322596 | K122: 51720.35547 | L122: 0.001313048984 | M122: 0.8346341687
B123: 2.2.5.1 | C123: Composição Própria | D123: 10000 | E123: Playgound e Academia | F123: unid | G123: 1 | H123: ='Cotação Playground'!K16 -> 42638.33333 | I123: =$K$5 -> 0.2031110915 | J123: 51298.65175 | K123: 51298.65175 | L123: 0.001302342994 | M123: 0.8359365117
B124: 2.6.7.3 | C124: Composição Sinapi | D124: 95876 | E124: TRANSPORTE COM CAMINHÃO BASCULANTE DE 14 M³, EM VIA URBANA PAVIMENTADA, DMT ATÉ 30 KM (UNIDADE: M3XKM). AF_07/2020 | F124: M3XKM | G124: 19872.3 | H124: =VLOOKUP(D124,'CPU (des)'!B:I,8,FALSE) -> 1.98 | I124: =$K$4 -> 0.3026049495 | J124: 2.5791578 | K124: 51253.79755 | L124: 0.001301204259 | M124: 0.837237716
B125: 3.3.3.2.3 | C125: Composição Sinapi | D125: 92760 | E125: ARMAÇÃO DE PILAR OU VIGA DE UMA ESTRUTURA CONVENCIONAL DE CONCRETO ARMADO EM UM EDIFÍCIO DE MÚLTIPLOS PAVIMENTOS UTILIZANDO AÇO CA-50 DE 6,3 MM - MONTAGEM. AF_12/2015 | F125: KG | G125: 2496.4 | H125: =VLOOKUP(D125,'CPU (des)'!B:I,8,FALSE) -> 15.47 | I125: 0.3026049495 | J125: 20.15129857 | K125: 50305.70175 | L125: 0.001277134505 | M125: 0.8385148505
B126: 3.3.8.4.2 | C126: Composição Sinapi | D126: 100754 | E126: PINTURA COM TINTA ACRÍLICA DE ACABAMENTO APLICADA A ROLO OU PINCEL (EXCETO PERFIL) EXECUTADO EM OBRA (02 DEMÃOS). AF_01/2020 | F126: M2 | G126: 1722.95 | H126: =VLOOKUP(D126,'CPU (des)'!B:I,8,FALSE) -> 22.26 | I126: 0.3026049495 | J126: 28.99598618 | K126: 49958.63438 | L126: 0.001268323343 | M126: 0.8397831738
B127: 3.3.7.36 | C127: Composição Sinapi | D127: 102107 | E127: TRANSFORMADOR DE DISTRIBUIÇÃO, 225 KVA, TRIFÁSICO, 60 HZ, CLASSE 15 KV, IMERSO EM ÓLEO MINERAL, INSTALAÇÃO EM POSTE (NÃO INCLUSO SUPORTE) - FORNECIMENTO E INSTALAÇÃO. AF_12/2020 | F127: UN | G127: 1 | H127: =VLOOKUP(D127,'CPU (des)'!B:I,8,FALSE) -> 37685.35 | I127: 0.3026049495 | J127: 49089.12344 | K127: 49089.12344 | L127: 0.001246248659 | M127: 0.8410294225
B128: 6.2.19 | C128: Composição Orse | D128: 2678 | E128: Fornecimento e assentamento de tubo de concreto armado ca2 d=1,00 m | F128: M | G128: 68 | H128: =VLOOKUP(D128,'CPU (des)'!B:I,8,FALSE) -> 550.69 | I128: 0.3026049495 | J128: 717.3315197 | K128: 48778.54334 | L128: 0.001238363816 | M128: 0.8422677863
B129: 3.3.3.1.1 | C129: Composição Sinapi | D129: 92443 | E129: MONTAGEM E DESMONTAGEM DE FÔRMA DE PILARES RETANGULARES E ESTRUTURAS SIMILARES, PÉ-DIREITO SIMPLES, EM CHAPA DE MADEIRA COMPENSADA PLASTIFICADA, 18 UTILIZAÇÕES. AF_09/2020 | F129: M2 | G129: 774.5 | H129: =VLOOKUP(D129,'CPU (des)'!B:I,8,FALSE) -> 48.15 | I129: 0.3026049495 | J129: 62.72042832 | K129: 48576.97173 | L129: 0.001233246423 | M129: 0.8435010327
B130: 6.2.24 | C130: Composição SICRO | D130: 2003625 | E130: Boca de lobo simples - grelha de concreto - BLSG 01 - areia extraída e brita produzida | F130: UN | G130: 46 | H130: =VLOOKUP(D130,'CPU (des)'!B:I,8,FALSE) -> 807.68 | I130: 0.3026049495 | J130: 1052.087966 | K130: 48396.04642 | L130: 0.001228653187 | M130: 0.8447296859
B131: 3.2.3.1.5 | C131: Composição Sinapi | D131: 92759 | E131: ARMAÇÃO DE PILAR OU VIGA DE UMA ESTRUTURA CONVENCIONAL DE CONCRETO ARMADO EM UM EDIFÍCIO DE MÚLTIPLOS PAVIMENTOS UTILIZANDO AÇO CA-60 DE 5,0 MM - MONTAGEM. AF_12/2015 | F131: KG | G131: 2378 | H131: =VLOOKUP(D131,'CPU (des)'!B:I,8,FALSE) -> 15.54 | I131: 0.3026049495 | J131: 20.24248092 | K131: 48136.61962 | L131: 0.001222066997 | M131: 0.8459517529
B132: 3.3.5.5 | C132: Composição Sinapi | D132: 98689 | E132: SOLEIRA EM GRANITO, LARGURA 15 CM, ESPESSURA 2,0 CM. AF_09/2020 | F132: M | G132: 294.66 | H132: =VLOOKUP(D132,'CPU (des)'!B:I,8,FALSE) -> 125.31 | I132: 0.3026049495 | J132: 163.2294262 | K132: 48097.18273 | L132: 0.001221065794 | M132: 0.8471728187
B133: 2.1.3.6 | C133: Composição Sinapi | D133: 101094 | E133: PISO PODOTÁTIL, DIRECIONAL OU ALERTA, ASSENTADO SOBRE ARGAMASSA. AF_05/2020 | F133: M | G133: 194.88 | H133: =VLOOKUP(D133,'CPU (des)'!B:I,8,FALSE) -> 189.1 | I133: 0.3026049495 | J133: 246.322596 | K133: 48003.3475 | L133: 0.001218683555 | M133: 0.8483915023
B134: 3.2.3.1.7 | C134: Composição Sinapi | D134: 92762 | E134: ARMAÇÃO DE PILAR OU VIGA DE UMA ESTRUTURA CONVENCIONAL DE CONCRETO ARMADO EM UM EDIFÍCIO DE MÚLTIPLOS PAVIMENTOS UTILIZANDO AÇO CA-50 DE 10,0 MM - MONTAGEM. AF_12/2015 | F134: KG | G134: 2607.9 | H134: =VLOOKUP(D134,'CPU (des)'!B:I,8,FALSE) -> 13.75 | I134: 0.3026049495 | J134: 17.91081806 | K134: 46709.62241 | L134: 0.001185839148 | M134: 0.8495773414
B135: 3.7.4.12 | C135: Composição Sinapi | D135: 96557 | E135: CONCRETAGEM DE BLOCOS DE COROAMENTO E VIGAS BALDRAMES, FCK 30 MPA, COM USO DE BOMBA - LANÇAMENTO, ADENSAMENTO E ACABAMENTO. AF_06/2017 | F135: M3 | G135: 39.9 | H135: =VLOOKUP(D135,'CPU (des)'!B:I,8,FALSE) -> 894.03 | I135: 0.3026049495 | J135: 1164.567903 | K135: 46466.25933 | L135: 0.001179660775 | M135: 0.8507570022
B136: 9.4.5 | C136: Composição Sinapi | D136: 100945 | E136: TRANSPORTE COM CAMINHÃO CARROCERIA 9T, EM VIA URBANA EM LEITO NATURAL (UNIDADE: TXKM). AF_07/2020 | F136: TXKM | G136: 13680 | H136: =VLOOKUP(D136,'CPU (des)'!B:I,8,FALSE) -> 2.59 | I136: 0.3026049495 | J136: 3.373746819 | K136: 46152.85649 | L136: 0.00117170427 | M136: 0.8519287064
B137: 9.6.1 | C137: Composição Sinapi | D137: 96530 | E137: FABRICAÇÃO, MONTAGEM E DESMONTAGEM DE FÔRMA PARA VIGA BALDRAME, EM MADEIRA SERRADA, E=25 MM, 1 UTILIZAÇÃO. AF_06/2017 | F137: M2 | G137: 263.3 | H137: =VLOOKUP(D137,'CPU (des)'!B:I,8,FALSE) -> 133.52 | I137: 0.3026049495 | J137: 173.9238129 | K137: 45794.13993 | L137: 0.001162597364 | M137: 0.8530913038
B138: 3.3.3.2.1 | C138: Composição Sinapi | D138: 92538 | E138: MONTAGEM E DESMONTAGEM DE FÔRMA DE LAJE MACIÇA, PÉ-DIREITO SIMPLES, EM CHAPA DE MADEIRA COMPENSADA PLASTIFICADA, . AF_09/2020 | F138: M2 | G138: 878.6 | H138: =VLOOKUP(D138,'CPU (des)'!B:I,8,FALSE) -> 39.33 | I138: 0.3026049495 | J138: 51.23145267 | K138: =J138*G138 -> 45011.95431 | L138: 0.00114273965 | M138: 0.8542340435
B139: 6.2.2 | C139: Composição Sinapi | D139: 93361 | E139: REATERRO MECANIZADO DE VALA COM ESCAVADEIRA HIDRÁULICA (CAPACIDADE DA CAÇAMBA: 0,8 M³ / POTÊNCIA: 111 HP), LARGURA ATÉ 1,5 M, PROFUNDIDADE DE 1,5 A 3,0 M, COM SOLO DE 1ª CATEGORIA EM LOCAIS COM ALTO NÍVEL DE INTERFERÊNCIA. AF_04/2016 | F139: M3 | G139: 2091.76 | H139: =VLOOKUP(D139,'CPU (des)'!B:I,8,FALSE) -> 16.23 | I139: 0.3026049495 | J139: 21.14127833 | K139: 44222.48036 | L139: =K139/$K$1467 -> 0.001122696903 | M139: 0.8553567404
B140: 5.3.1 | C140: Composição Sinapi | D140: 101144 | E140: ESCAVAÇÃO HORIZONTAL, INCLUINDO CARGA, DESCARGA E TRANSPORTE EM SOLO DE 1A CATEGORIA COM TRATOR DE ESTEIRAS (100HP/LÂMINA: 2,19M3) E CAMINHÃO BASCULANTE DE 14M3, DMT ATÉ 200M. AF_07/2020 | F140: M3 | G140: 2385 | H140: =VLOOKUP(D140,'CPU (des)'!B:I,8,FALSE) -> 13.96 | I140: 0.3026049495 | J140: 18.1843651 | K140: 43369.71075 | L140: 0.00110104724 | M140: =L140+M139 -> 0.8564577876
B141: 3.4.5.1 | C141: Composição Sinapi | D141: 98546 | E141: IMPERMEABILIZAÇÃO DE SUPERFÍCIE COM MANTA ASFÁLTICA, UMA CAMADA, INCLUSIVE APLICAÇÃO DE PRIMER ASFÁLTICO, E=3MM. AF_06/2018 | F141: M2 | G141: 189.51 | H141: =VLOOKUP(D141,'CPU (des)'!B:I,8,FALSE) -> 172.91 | I141: 0.3026049495 | J141: 225.2334218 | K141: 42683.98577 | L141: 0.001083638418 | M141: 0.857541426
B142: 3.7.4.7 | C142: Composição Sinapi | D142: 92482 | E142: MONTAGEM E DESMONTAGEM DE FÔRMA DE LAJE MACIÇA, PÉ-DIREITO SIMPLES, EM MADEIRA SERRADA, 1 UTILIZAÇÃO. AF_09/2020 | F142: M2 | G142: 147.7 | H142: =VLOOKUP(D142,'CPU (des)'!B:I,8,FALSE) -> 220.36 | I142: 0.3026049495 | J142: 287.0420267 | K142: 42396.10734 | L142: 0.001076329913 | M142: 0.8586177559
B143: 3.7.5.1 | C143: Composição Sinapi | D143: 98546 | E143: IMPERMEABILIZAÇÃO DE SUPERFÍCIE COM MANTA ASFÁLTICA, UMA CAMADA, INCLUSIVE APLICAÇÃO DE PRIMER ASFÁLTICO, E=3MM. AF_06/2018 | F143: M2 | G143: 186.12 | H143: =VLOOKUP(D143,'CPU (des)'!B:I,8,FALSE) -> 172.91 | I143: 0.3026049495 | J143: 225.2334218 | K143: 41920.44447 | L143: 0.001064254036 | M143: 0.85968201
B144: 3.3.5.4 | C144: Composição Sinapi | D144: 102220 | E144: PINTURA TINTA DE ACABAMENTO (PIGMENTADA) ESMALTE SINTÉTICO BRILHANTE EM MADEIRA, 2 DEMÃOS. AF_01/2021 | F144: M2 | G144: 2633.94 | H144: =VLOOKUP(D144,'CPU (des)'!B:I,8,FALSE) -> 12.11 | I144: 0.3026049495 | J144: 15.77454594 | K144: 41549.20753 | L144: 0.001054829269 | M144: 0.8607368392
B145: 7.2.8 | C145: Composição Orse | D145: 8386 | E145: Luminária c/02 pétalas, c/ alojam. p/ equip., em ch. de alum., pintado c/ epoxi preto, refletor em ch. alumínio de alto brilho, difusor em vidro temp., incl. suporte p/fixação em poste reto c/02 braços, ref. CW-580D/5-AL, Tecnolux ou similar,completa | F145: UN | G145: 16 | H145: =VLOOKUP(D145,'CPU (des)'!B:I,8,FALSE) -> 1945.35 | I145: 0.3026049495 | J145: 2534.022539 | K145: 40544.36062 | L145: 0.001029318748 | M145: 0.861766158
B146: 10.4.2 | C146: Composição Sinapi | D146: 99837 | E146: GUARDA-CORPO DE AÇO GALVANIZADO DE 1,10M, MONTANTES TUBULARES DE 1.1/4" ESPAÇADOS DE 1,20M, TRAVESSA SUPERIOR DE 1.1/2", GRADIL FORMADO POR TUBOS HORIZONTAIS DE 1" E VERTICAIS DE 3/4", FIXADO COM CHUMBADOR MECÂNICO. AF_04/2019_P | F146: M | G146: 60 | H146: =VLOOKUP(D146,'CPU (des)'!B:I,8,FALSE) -> 512.36 | I146: 0.3026049495 | J146: 667.402672 | K146: 40044.16032 | L146: 0.001016619928 | M146: 0.8627827779
B147: 3.9.5.1 | C147: Composição Sinapi | D147: 98546 | E147: IMPERMEABILIZAÇÃO DE SUPERFÍCIE COM MANTA ASFÁLTICA, UMA CAMADA, INCLUSIVE APLICAÇÃO DE PRIMER ASFÁLTICO, E=3MM. AF_06/2018 | F147: M2 | G147: 174 | H147: =VLOOKUP(D147,'CPU (des)'!B:I,8,FALSE) -> 172.91 | I147: 0.3026049495 | J147: 225.2334218 | K147: 39190.6154 | L147: 0.0009949505814 | M147: 0.8637777285
B148: 2.4.2.4 | C148: Composição Sinapi | D148: 94991 | E148: EXECUÇÃO DE PASSEIO (CALÇADA) OU PISO DE CONCRETO COM CONCRETO MOLDADO IN LOCO, USINADO, ACABAMENTO CONVENCIONAL, NÃO ARMADO. AF_07/2016 | F148: M3 | G148: 32.06 | H148: =VLOOKUP(D148,'CPU (des)'!B:I,8,FALSE) -> 912.21 | I148: 0.3026049495 | J148: 1188.249261 | K148: 38095.27131 | L148: 0.0009671425659 | M148: 0.8647448711
B149: 3.3.3.1.7 | C149: Composição Sinapi | D149: 92762 | E149: ARMAÇÃO DE PILAR OU VIGA DE UMA ESTRUTURA CONVENCIONAL DE CONCRETO ARMADO EM UM EDIFÍCIO DE MÚLTIPLOS PAVIMENTOS UTILIZANDO AÇO CA-50 DE 10,0 MM - MONTAGEM. AF_12/2015 | F149: KG | G149: 2101.6 | H149: =VLOOKUP(D149,'CPU (des)'!B:I,8,FALSE) -> 13.75 | I149: 0.3026049495 | J149: =H149*(1+I149) -> 17.91081806 | K149: 37641.37523 | L149: 0.0009556192927 | M149: 0.8657004904
B150: 5.2.10 | C150: Composição Sinapi | D150: 93590 | E150: TRANSPORTE COM CAMINHÃO BASCULANTE DE 10 M³, EM VIA URBANA PAVIMENTADA, ADICIONAL PARA DMT EXCEDENTE A 30 KM (UNIDADE: M3XKM). AF_07/2020 | F150: M3XKM | G150: 31299.13 | H150: =VLOOKUP(D150,'CPU (des)'!B:I,8,FALSE) -> 0.91 | I150: 0.3026049495 | J150: 1.185370504 | K150: 37101.06551 | L150: 0.0009419021957 | M150: 0.8666423925
B151: 5.5.1 | C151: Composição Sinapi | D151: 102509 | E151: PINTURA DE FAIXA DE PEDESTRE OU ZEBRADA TINTA RETRORREFLETIVA A BASE DE RESINA ACRÍLICA COM MICROESFERAS DE VIDRO, E = 30 CM, APLICAÇÃO MANUAL. AF_05/2021 | F151: M2 | G151: 1187 | H151: =VLOOKUP(D151,'CPU (des)'!B:I,8,FALSE) -> 23.97 | I151: 0.3026049495 | J151: 31.22344064 | K151: 37062.22404 | L151: 0.0009409161092 | M151: 0.8675833087
B152: 5.4.10 | C152: Composição Sinapi | D152: 100974 | E152: CARGA, MANOBRA E DESCARGA DE SOLOS E MATERIAIS GRANULARES EM CAMINHÃO BASCULANTE 10 M³ - CARGA COM PÁ CARREGADEIRA (CAÇAMBA DE 1,7 A 2,8 M³ / 128 HP) E DESCARGA LIVRE (UNIDADE: M3). AF_07/2020 | F152: M3 | G152: 3532 | H152: =VLOOKUP(D152,'CPU (des)'!B:I,8,FALSE) -> 7.86 | I152: 0.3026049495 | J152: 10.2384749 | K152: 36162.29336 | L152: 0.0009180691458 | M152: 0.8685013778
B153: 7.2.4 | C153: Composição Sinapi | D153: 91856 | E153: ELETRODUTO FLEXÍVEL CORRUGADO, PVC, DN 32 MM (1"), PARA CIRCUITOS TERMINAIS, INSTALADO EM PAREDE - FORNECIMENTO E INSTALAÇÃO. AF_12/2015 | F153: M | G153: 2400 | H153: =VLOOKUP(D153,'CPU (des)'!B:I,8,FALSE) -> 11.44 | I153: 0.3026049495 | J153: 14.90180062 | K153: 35764.32149 | L153: 0.0009079656469 | M153: 0.8694093434
B154: 5.4.6 | C154: Composição SICRO | D154: 4011227 | E154: Sub-base de solo estabilizado granulometricamente sem mistura com material de jazida | F154: M3 | G154: 2185 | H154: =VLOOKUP(D154,'CPU (des)'!B:I,8,FALSE) -> 12.32 | I154: 0.3026049495 | J154: 16.04809298 | K154: 35065.08316 | L154: 0.0008902137545 | M154: 0.8702995572
B155: 7.2.9 | C155: Composição Sinapi | D155: 101658 | E155: LUMINÁRIA DE LED PARA ILUMINAÇÃO PÚBLICA, DE 138 W ATÉ 180 W - FORNECIMENTO E INSTALAÇÃO. AF_08/2020 | F155: UN | G155: 34 | H155: =VLOOKUP(D155,'CPU (des)'!B:I,8,FALSE) -> 790.66 | I155: 0.3026049495 | J155: 1029.917629 | K155: 35017.1994 | L155: 0.000888998107 | M155: 0.8711885553
B156: 2.5.5 | C156: Composição Sinapi | D156: 95995 | E156: EXECUÇÃO DE PAVIMENTO COM APLICAÇÃO DE CONCRETO ASFÁLTICO, CAMADA DE ROLAMENTO - EXCLUSIVE CARGA E TRANSPORTE. AF_11/2019 | F156: M3 | G156: 18.98 | H156: =VLOOKUP(D156,'CPU (des)'!B:I,8,FALSE) -> 1414.08 | I156: =$K$4 -> 0.3026049495 | J156: 1841.987607 | K156: 34960.92478 | L156: 0.0008875694368 | M156: 0.8720761247
B157: 3.3.7.26 | C157: Composição Orse | D157: 12474 | E157: Módulo para 36 medidores em chapa galvanizada 12,5mm, com barramento para 200A, pintado eletrostaticamente na cor bege | F157: UN | G157: 4 | H157: =VLOOKUP(D157,'CPU (des)'!B:I,8,FALSE) -> 6679.14 | I157: 0.3026049495 | J157: 8700.280823 | K157: 34801.12329 | L157: 0.0008835124812 | M157: 0.8729596372
B158: 4.9.3 | C158: Composição Sinapi | D158: 102491 | E158: PINTURA DE PISO COM TINTA ACRÍLICA, APLICAÇÃO MANUAL, 2 DEMÃOS, INCLUSO FUNDO PREPARADOR. AF_05/2021 | F158: M2 | G158: 1923.21 | H158: =VLOOKUP(D158,'CPU (des)'!B:I,8,FALSE) -> 13.83 | I158: 0.3026049495 | J158: 18.01502645 | K158: 34646.67902 | L158: 0.000879591532 | M158: 0.8738392288
B159: 2.2.4.1 | C159: Composição Sinapi | D159: 103685 | E159: CONCRETAGEM DE MURETAS, FCK=25 MPA, COM USO DE BOMBA - LANÇAMENTO, ADENSAMENTO E ACABAMENTO. AF_02/2022 | F159: M3 | G159: 31.16 | H159: =VLOOKUP(D159,'CPU (des)'!B:I,8,FALSE) -> 851.35 | I159: 0.3026049495 | J159: 1108.972724 | K159: 34555.59007 | L159: 0.000877279014 | M159: 0.8747165078
B160: 3.2.3.2.2 | C160: Composição Sinapi | D160: 92759 | E160: ARMAÇÃO DE PILAR OU VIGA DE UMA ESTRUTURA CONVENCIONAL DE CONCRETO ARMADO EM UM EDIFÍCIO DE MÚLTIPLOS PAVIMENTOS UTILIZANDO AÇO CA-60 DE 5,0 MM - MONTAGEM. AF_12/2015 | F160: KG | G160: 1699.1 | H160: =VLOOKUP(D160,'CPU (des)'!B:I,8,FALSE) -> 15.54 | I160: 0.3026049495 | J160: 20.24248092 | K160: 34393.99932 | L160: 0.0008731766336 | M160: 0.8755896844
B161: 2.1.2.2 | C161: Composição Orse | D161: 3212 | E161: Colchão de areia | F161: M3 | G161: 197.95 | H161: =VLOOKUP(D161,'CPU (des)'!B:I,8,FALSE) -> 132.9 | I161: 0.3026049495 | J161: 173.1161978 | K161: 34268.35135 | L161: 0.0008699867495 | M161: 0.8764596712
B162: 5.5.3 | C162: Composição SICRO | D162: 5213472 | E162: Placa de marco quilométrico em aço - 0,60 x 0,865 m - película retrorrefletiva tipo I + I - fornecimento e implantação | F162: UN | G162: 83 | H162: =VLOOKUP(D162,'CPU (des)'!B:I,8,FALSE) -> 307.9 | I162: 0.3026049495 | J162: 401.072064 | K162: 33288.98131 | L162: 0.0008451230217 | M162: 0.8773047942
B163: 3.2.2.3.1 | C163: Composição Sinapi | D163: 96523 | E163: ESCAVAÇÃO MANUAL PARA BLOCO DE COROAMENTO OU SAPATA, COM PREVISÃO DE FÔRMA. AF_06/2017 | F163: M3 | G163: 357.16 | H163: =VLOOKUP(D163,'CPU (des)'!B:I,8,FALSE) -> 71.43 | I163: 0.3026049495 | J163: 93.04507155 | K163: 33231.97775 | L163: 0.0008436758456 | M163: 0.87814847
B164: 3.4.4.11 | C164: Composição Sinapi | D164: 96557 | E164: CONCRETAGEM DE BLOCOS DE COROAMENTO E VIGAS BALDRAMES, FCK 30 MPA, COM USO DE BOMBA - LANÇAMENTO, ADENSAMENTO E ACABAMENTO. AF_06/2017 | F164: M3 | G164: 28.2 | H164: =VLOOKUP(D164,'CPU (des)'!B:I,8,FALSE) -> 894.03 | I164: 0.3026049495 | J164: 1164.567903 | K164: 32840.81487 | L164: 0.0008337452094 | M164: 0.8789822152
B165: 3.9.3.11 | C165: Composição Sinapi | D165: 96557 | E165: CONCRETAGEM DE BLOCOS DE COROAMENTO E VIGAS BALDRAMES, FCK 30 MPA, COM USO DE BOMBA - LANÇAMENTO, ADENSAMENTO E ACABAMENTO. AF_06/2017 | F165: M3 | G165: 28.2 | H165: =VLOOKUP(D165,'CPU (des)'!B:I,8,FALSE) -> 894.03 | I165: 0.3026049495 | J165: 1164.567903 | K165: 32840.81487 | L165: 0.0008337452094 | M165: 0.8798159604
B166: 3.1.3.4 | C166: Composição Sinapi | D166: 93212 | E166: EXECUÇÃO DE SANITÁRIO E VESTIÁRIO EM CANTEIRO EM CHAPA DE MADEIRA COMPENSADA, NÃO INCLUSO MOBILIÁRIO. AF_02/2016 | F166: M2 | G166: 27.6 | H166: =VLOOKUP(D166,'CPU (des)'!B:I,8,FALSE) -> 896.72 | I166: 0.3026049495 | J166: 1168.07191 | K166: 32238.78473 | L166: 0.0008184611872 | M166: 0.8806344216
B167: 9.2.5 | C167: Composição Sinapi | D167: 93212 | E167: EXECUÇÃO DE SANITÁRIO E VESTIÁRIO EM CANTEIRO DE OBRA EM CHAPA DE MADEIRA COMPENSADA, NÃO INCLUSO MOBILIÁRIO. AF_02/2016 | F167: M2 | G167: 27.6 | H167: =VLOOKUP(D167,'CPU (des)'!B:I,8,FALSE) -> 896.72 | I167: 0.3026049495 | J167: 1168.07191 | K167: 32238.78473 | L167: 0.0008184611872 | M167: 0.8814528828
B168: 10.1.5 | C168: Composição Sinapi | D168: 93212 | E168: EXECUÇÃO DE SANITÁRIO E VESTIÁRIO EM CANTEIRO DE OBRA EM CHAPA DE MADEIRA COMPENSADA, NÃO INCLUSO MOBILIÁRIO. AF_02/2016 | F168: M2 | G168: 27.6 | H168: =VLOOKUP(D168,'CPU (des)'!B:I,8,FALSE) -> 896.72 | I168: 0.3026049495 | J168: 1168.07191 | K168: 32238.78473 | L168: 0.0008184611872 | M168: 0.882271344
B169: 3.3.3.1.2 | C169: Composição Sinapi | D169: 92763 | E169: ARMAÇÃO DE PILAR OU VIGA DE UMA ESTRUTURA CONVENCIONAL DE CONCRETO ARMADO EM UM EDIFÍCIO DE MÚLTIPLOS PAVIMENTOS UTILIZANDO AÇO CA-50 DE 12,5 MM - MONTAGEM. AF_12/2015 | F169: KG | G169: 2101.6 | H169: =VLOOKUP(D169,'CPU (des)'!B:I,8,FALSE) -> 11.71 | I169: 0.3026049495 | J169: 15.25350396 | K169: 32056.76392 | L169: 0.0008138401394 | M169: 0.8830851841
B170: 3.3.3.1.5 | C170: Composição Sinapi | D170: 92759 | E170: ARMAÇÃO DE PILAR OU VIGA DE UMA ESTRUTURA CONVENCIONAL DE CONCRETO ARMADO EM UM EDIFÍCIO DE MÚLTIPLOS PAVIMENTOS UTILIZANDO AÇO CA-60 DE 5,0 MM - MONTAGEM. AF_12/2015 | F170: KG | G170: 1580.6 | H170: =VLOOKUP(D170,'CPU (des)'!B:I,8,FALSE) -> 15.54 | I170: 0.3026049495 | J170: 20.24248092 | K170: 31995.26534 | L170: 0.0008122788459 | M170: 0.883897463
B171: 3.3.2.1.2 | C171: Composição Sinapi | D171: 100651 | E171: ESTACA HÉLICE CONTÍNUA, DIÂMETRO DE 30 CM, INCLUSO CONCRETO FCK=30MPA E ARMADURA MÍNIMA (EXCLUSIVE MOBILIZAÇÃO, DESMOBILIZAÇÃO E BOMBEAMENTO). AF_12/2019 | F171: M | G171: 150 | H171: =VLOOKUP(D171,'CPU (des)'!B:I,8,FALSE) -> 163.2 | I171: 0.3026049495 | J171: 212.5851278 | K171: 31887.76916 | L171: 0.0008095497901 | M171: 0.8847070128
B172: 3.4.4.6 | C172: Composição Sinapi | D172: 92482 | E172: MONTAGEM E DESMONTAGEM DE FÔRMA DE LAJE MACIÇA, PÉ-DIREITO SIMPLES, EM MADEIRA SERRADA, 1 UTILIZAÇÃO. AF_09/2020 | F172: M2 | G172: 110.8 | H172: =VLOOKUP(D172,'CPU (des)'!B:I,8,FALSE) -> 220.36 | I172: 0.3026049495 | J172: 287.0420267 | K172: 31804.25656 | L172: 0.0008074296162 | M172: 0.8855144424
B173: 3.9.3.6 | C173: Composição Sinapi | D173: 92482 | E173: MONTAGEM E DESMONTAGEM DE FÔRMA DE LAJE MACIÇA, PÉ-DIREITO SIMPLES, EM MADEIRA SERRADA, 1 UTILIZAÇÃO. AF_09/2020 | F173: M2 | G173: 110.8 | H173: =VLOOKUP(D173,'CPU (des)'!B:I,8,FALSE) -> 220.36 | I173: 0.3026049495 | J173: 287.0420267 | K173: 31804.25656 | L173: 0.0008074296162 | M173: 0.886321872
B174: 2.6.6.3 | C174: Composição Sinapi | D174: 95876 | E174: TRANSPORTE COM CAMINHÃO BASCULANTE DE 14 M³, EM VIA URBANA PAVIMENTADA, DMT ATÉ 30 KM (UNIDADE: M3XKM). AF_07/2020 | F174: M3XKM | G174: 12322.5 | H174: =VLOOKUP(D174,'CPU (des)'!B:I,8,FALSE) -> 1.98 | I174: 0.3026049495 | J174: 2.5791578 | K174: 31781.67199 | L174: 0.0008068562513 | M174: 0.8871287283
B175: 6.2.26 | C175: Composição SICRO | D175: 2003677 | E175: Poço de visita - PVI 01 - areia extraída e brita produzida | F175: UN | G175: 13 | H175: =VLOOKUP(D175,'CPU (des)'!B:I,8,FALSE) -> 1867.13 | I175: 0.3026049495 | J175: 2432.132779 | K175: 31617.72613 | L175: 0.0008026940807 | M175: 0.8879314223
B176: 6.2.12 | C176: Composição Sinapi | D176: 93590 | E176: TRANSPORTE COM CAMINHÃO BASCULANTE DE 10 M³, EM VIA URBANA PAVIMENTADA, ADICIONAL PARA DMT EXCEDENTE A 30 KM (UNIDADE: M3XKM). AF_07/2020 | F176: M3XKM | G176: 26536.45 | H176: =VLOOKUP(D176,'CPU (des)'!B:I,8,FALSE) -> 0.91 | I176: 0.3026049495 | J176: 1.185370504 | K176: 31455.52511 | L176: 0.0007985762071 | M176: 0.8887299986
B177: 3.3.7.72 | C177: Insumo Sinapi | D177: 1014 | E177: CABO DE COBRE, FLEXIVEL, CLASSE 4 OU 5, ISOLACAO EM PVC/A, ANTICHAMA BWF-B, 1 CONDUTOR, 450/750 V, SECAO NOMINAL 2,5 MM2 | F177: M | G177: 9616.4 | H177: =VLOOKUP(D177,'Insumos SINAPI (des)'!A:E,5,FALSE) -> 2.71 | I177: =$K$5 -> 0.2031110915 | J177: 3.260431058 | K177: 31353.60922 | L177: 0.0007959888205 | M177: 0.8895259874
B178: 4.5.1 | C178: Composição Sinapi | D178: 87269 | E178: REVESTIMENTO CERÂMICO PARA PAREDES INTERNAS COM PLACAS TIPO ESMALTADA EXTRA DE DIMENSÕES 25X35 CM APLICADAS NA ALTURA INTEIRA DAS PAREDES. AF_02/2023_PE | F178: M2 | G178: 300 | H178: =VLOOKUP(D178,'CPU (des)'!B:I,8,FALSE) -> 79.16 | I178: =$K$4 -> 0.3026049495 | J178: 103.1142078 | K178: 30934.26234 | L178: 0.000785342664 | M178: 0.89031133
B179: 6.2.1 | C179: Composição Sinapi | D179: 90087 | E179: ESCAVAÇÃO MECANIZADA DE VALA COM PROF. DE 3,0 M ATÉ 4,5 M(MÉDIA MONTANTE E JUSANTE/UMA COMPOSIÇÃO POR TRECHO), ESCAVADEIRA (1,2 M3), LARG. DE 1,5 M A 2,5 M, EM SOLO DE 1A CATEGORIA, EM LOCAIS COM ALTO NÍVEL DE INTERFERÊNCIA. AF_02/2021 | F179: M3 | G179: 2830.76 | H179: =VLOOKUP(D179,'CPU (des)'!B:I,8,FALSE) -> 8.33 | I179: 0.3026049495 | J179: 10.85069923 | K179: 30715.72535 | L179: 0.0007797945627 | M179: 0.8910911246
B180: 2.3.3.6 | C180: Composição Sinapi | D180: 103314 | E180: INSTALAÇÃO DE PERGOLADO DE MADEIRA, EM MAÇARANDUBA, ANGELIM OU EQUIVALENTE DA REGIÃO, FIXADO COM CONCRETO SOBRE PISO DE CONCRETO EXISTENTE. AF_11/2021 | F180: M2 | G180: 134.94 | H180: =VLOOKUP(D180,'CPU (des)'!B:I,8,FALSE) -> 170.35 | I180: 0.3026049495 | J180: 221.8987532 | K180: 29943.01775 | L180: 0.0007601774715 | M180: 0.8918513021
B181: 3.3.3.7 | C181: Composição Sinapi | D181: 98560 | E181: IMPERMEABILIZAÇÃO DE PISO COM ARGAMASSA DE CIMENTO E AREIA, COM ADITIVO IMPERMEABILIZANTE, E = 2CM. AF_06/2018 | F181: M2 | G181: 494.34 | H181: =VLOOKUP(D181,'CPU (des)'!B:I,8,FALSE) -> 46.26 | I181: 0.3026049495 | J181: 60.25850497 | K181: 29788.18934 | L181: 0.0007562467699 | M181: 0.8926075488
B182: 3.3.3.2.2 | C182: Composição Sinapi | D182: 92759 | E182: ARMAÇÃO DE PILAR OU VIGA DE UMA ESTRUTURA CONVENCIONAL DE CONCRETO ARMADO EM UM EDIFÍCIO DE MÚLTIPLOS PAVIMENTOS UTILIZANDO AÇO CA-60 DE 5,0 MM - MONTAGEM. AF_12/2015 | F182: KG | G182: 1468 | H182: =VLOOKUP(D182,'CPU (des)'!B:I,8,FALSE) -> 15.54 | I182: 0.3026049495 | J182: 20.24248092 | K182: 29715.96198 | L182: 0.0007544131 | M182: 0.8933619619
B183: 9.2.2 | C183: Composição Sinapi | D183: 98458 | E183: TAPUME COM COMPENSADO DE MADEIRA. AF_05/2018 | F183: M2 | G183: 212.8 | H183: =VLOOKUP(D183,'CPU (des)'!B:I,8,FALSE) -> 106.71 | I183: 0.3026049495 | J183: 139.0009742 | K183: 29579.4073 | L183: 0.0007509463221 | M183: 0.8941129083
B184: 3.3.5.9 | C184: Composição Orse | D184: 9074 | E184: Brise em perfil "C" de alumínio dobrado anodizado branco | F184: M2 | G184: 32.96 | H184: =VLOOKUP(D184,'CPU (des)'!B:I,8,FALSE) -> 686.01 | I184: 0.3026049495 | J184: 893.6000214 | K184: 29453.05671 | L184: 0.0007477386001 | M184: 0.8948606469
B185: 3.3.3.12 | C185: Insumo Sinapi | D185: 11062 | E185: PLACA CIMENTICIA LISA E = 10 MM, DE 1,20 X 3,00 M (SEM AMIANTO) | F185: M2 | G185: 492.66 | H185: =VLOOKUP(D185,'Insumos SINAPI (des)'!A:E,5,FALSE) -> 49.35 | I185: =$K$5 -> 0.2031110915 | J185: 59.37353236 | K185: 29250.96445 | L185: 0.000742607989 | M185: 0.8956032549
B186: 3.3.7.76 | C186: Composição Orse | D186: 12312 | E186: Luminária de emergência, tipo balizamento, com autonomia de 3h, modelo LED - 3000 lumens, SEGURIMAX ou similarr | F186: UN | G186: 80 | H186: =VLOOKUP(D186,'CPU (des)'!B:I,8,FALSE) -> 278.31 | I186: =$K$4 -> 0.3026049495 | J186: 362.5279835 | K186: 29002.23868 | L186: 0.0007362934709 | M186: 0.8963395483
B187: 8.4.24 | C187: Composição SICRO | D187: 4208128 | E187: Tubo PEAD para estais - D = 110 mm - fornecimento e instalação | F187: M | G187: 56.3 | H187: =VLOOKUP(D187,'CPU (des)'!B:I,8,FALSE) -> 389.23 | I187: 0.3026049495 | J187: 507.0129245 | K187: 28544.82765 | L187: 0.0007246809619 | M187: 0.8970642293
B188: 2.6.7.1 | C188: Composição Sinapi | D188: 97625 | E188: DEMOLIÇÃO DE ALVENARIA PARA QUALQUER TIPO DE BLOCO, DE FORMA MECANIZADA, SEM REAPROVEITAMENTO. AF_12/2017 | F188: M3 | G188: 441.61 | H188: =VLOOKUP(D188,'CPU (des)'!B:I,8,FALSE) -> 48.81 | I188: 0.3026049495 | J188: 63.58014759 | K188: 28077.62898 | L188: 0.0007128199695 | M188: 0.8977770493
B189: 2.6.6.2 | C189: Composição Sinapi | D189: 97627 | E189: DEMOLIÇÃO DE PILARES E VIGAS EM CONCRETO ARMADO, DE FORMA MECANIZADA COM MARTELETE, SEM REAPROVEITAMENTO. AF_12/2017 | F189: M3 | G189: 102.2 | H189: =VLOOKUP(D189,'CPU (des)'!B:I,8,FALSE) -> 210.51 | I189: 0.3026049495 | J189: 274.2113679 | K189: 28024.4018 | L189: 0.0007114686662 | M189: 0.8984885179
B190: 8.3.3 | C190: Composição Sinapi | D190: 93367 | E190: REATERRO MECANIZADO DE VALA COM ESCAVADEIRA HIDRÁULICA (CAPACIDADE DA CAÇAMBA: 0,8 M³ / POTÊNCIA: 111 HP), LARGURA DE 1,5 A 2,5 M, PROFUNDIDADE ATÉ 1,5 M, COM SOLO DE 1ª CATEGORIA EM LOCAIS COM BAIXO NÍVEL DE INTERFERÊNCIA. AF_04/2016 | F190: M3 | G190: 1110.34 | H190: =VLOOKUP(D190,'CPU (des)'!B:I,8,FALSE) -> 19.26 | I190: 0.3026049495 | J190: 25.08817133 | K190: 27856.40015 | L190: 0.0007072035293 | M190: 0.8991957215
B191: 3.2.2.3.7 | C191: Composição Sinapi | D191: 98557 | E191: IMPERMEABILIZAÇÃO DE SUPERFÍCIE COM EMULSÃO ASFÁLTICA, 2 DEMÃOS AF_06/2018 | F191: M2 | G191: 292.5 | H191: =VLOOKUP(D191,'CPU (des)'!B:I,8,FALSE) -> 71.35 | I191: 0.3026049495 | J191: 92.94086315 | K191: 27185.20247 | L191: 0.0006901635182 | M191: 0.899885885
B192: 2.6.8.2 | C192: Composição Sinapi | D192: 97627 | E192: DEMOLIÇÃO DE PILARES E VIGAS EM CONCRETO ARMADO, DE FORMA MECANIZADA COM MARTELETE, SEM REAPROVEITAMENTO. AF_12/2017 | F192: M3 | G192: 96.59 | H192: =VLOOKUP(D192,'CPU (des)'!B:I,8,FALSE) -> 210.51 | I192: 0.3026049495 | J192: 274.2113679 | K192: 26486.07603 | L192: 0.0006724144664 | M192: 0.9005582994
B193: 8.5.8 | C193: Insumo Sinapi | D193: 1802 | E193: CURVA 90 GRAUS DE FERRO GALVANIZADO, COM ROSCA BSP MACHO, DE 6" | F193: UN | G193: 11 | H193: =VLOOKUP(D193,'Insumos SINAPI (des)'!A:E,5,FALSE) -> 1983.88 | I193: =$K$5 -> 0.2031110915 | J193: 2386.828032 | K193: 26255.10835 | L193: 0.0006665507815 | M193: 0.9012248502
B194: 4.6.45 | C194: Composição Orse | D194: 12369 | E194: Luminária de sobrepor, (tecnolux ref.FLP-6478/4x20) Tubled corpo/ refletor e aletas fabricadas em chapa de aço tratada e pintada em epoxi branco, para uso de 4 lampadas tubled de 20w - Rev 02 | F194: UN | G194: 62 | H194: =VLOOKUP(D194,'CPU (des)'!B:I,8,FALSE) -> 322.09 | I194: =$K$4 -> 0.3026049495 | J194: 419.5560282 | K194: 26012.47375 | L194: 0.0006603909027 | M194: 0.9018852411
B195: 3.6.4.7 | C195: Composição Sinapi | D195: 92482 | E195: MONTAGEM E DESMONTAGEM DE FÔRMA DE LAJE MACIÇA, PÉ-DIREITO SIMPLES, EM MADEIRA SERRADA, 1 UTILIZAÇÃO. AF_09/2020 | F195: M2 | G195: 89.1 | H195: =VLOOKUP(D195,'CPU (des)'!B:I,8,FALSE) -> 220.36 | I195: 0.3026049495 | J195: 287.0420267 | K195: 25575.44458 | L195: 0.0006492958376 | M195: 0.902534537
B196: 3.3.7.10 | C196: Composição Sinapi | D196: 91990 | E196: TOMADA ALTA DE EMBUTIR (1 MÓDULO), 2P+T 10 A, SEM SUPORTE E SEM PLACA - FORNECIMENTO E INSTALAÇÃO. AF_12/2015 | F196: UN | G196: 638 | H196: =VLOOKUP(D196,'CPU (des)'!B:I,8,FALSE) -> 30.75 | I196: 0.3026049495 | J196: 40.0551022 | K196: 25555.1552 | L196: 0.0006487807417 | M196: 0.9031833177
B197: 2.6.2.2 | C197: Composição Sinapi | D197: 97627 | E197: DEMOLIÇÃO DE PILARES E VIGAS EM CONCRETO ARMADO, DE FORMA MECANIZADA COM MARTELETE, SEM REAPROVEITAMENTO. AF_12/2017 | F197: M3 | G197: 93.12 | H197: =VLOOKUP(D197,'CPU (des)'!B:I,8,FALSE) -> 210.51 | I197: 0.3026049495 | J197: 274.2113679 | K197: 25534.56258 | L197: 0.0006482579472 | M197: 0.9038315756
B198: 6.2.6 | C198: Composição SICRO | D198: 1600989 | E198: Demolição de concreto simples com martelete | F198: M3 | G198: 49 | H198: =VLOOKUP(D198,'CPU (des)'!B:I,8,FALSE) -> 394.36 | I198: 0.3026049495 | J198: 513.6952879 | K198: 25171.06911 | L198: 0.0006390297674 | M198: 0.9044706054
B199: 3.3.5.8 | C199: Composição Sinapi | D199: 100708 | E199: PORTA DE CORRER DE ALUMÍNIO, COM DUAS FOLHAS PARA VIDRO, INCLUSO VIDRO LISO INCOLOR, FECHADURA E PUXADOR, SEM ALIZAR. AF_12/2019 | F199: M2 | G199: 108.51 | H199: =VLOOKUP(D199,'CPU (des)'!B:I,8,FALSE) -> 177.3 | I199: 0.3026049495 | J199: 230.9518576 | K199: 25060.58606 | L199: 0.0006362248824 | M199: 0.9051068303
B200: 5.2.9 | C200: Composição Sinapi | D200: 100974 | E200: CARGA, MANOBRA E DESCARGA DE SOLOS E MATERIAIS GRANULARES EM CAMINHÃO BASCULANTE 10 M³ - CARGA COM PÁ CARREGADEIRA (CAÇAMBA DE 1,7 A 2,8 M³ / 128 HP) E DESCARGA LIVRE (UNIDADE: M3). AF_07/2020 | F200: M3 | G200: 2407.63 | H200: =VLOOKUP(D200,'CPU (des)'!B:I,8,FALSE) -> 7.86 | I200: 0.3026049495 | J200: 10.2384749 | K200: 24650.45933 | L200: 0.0006258128022 | M200: 0.9057326431
B201: 2.6.2.1 | C201: Composição Sinapi | D201: 97625 | E201: DEMOLIÇÃO DE ALVENARIA PARA QUALQUER TIPO DE BLOCO, DE FORMA MECANIZADA, SEM REAPROVEITAMENTO. AF_12/2017 | F201: M3 | G201: 383.65 | H201: =VLOOKUP(D201,'CPU (des)'!B:I,8,FALSE) -> 48.81 | I201: 0.3026049495 | J201: 63.58014759 | K201: 24392.52362 | L201: 0.0006192644671 | M201: 0.9063519076
B202: 9.4.3 | C202: Composição SICRO | D202: 5502768 | E202: Escavação, carga e transporte de material de 3a categoria - DMT de 50 a 200 m - caminho de serviço em revestimento primário - com caminhão basculante de 12 m3 | F202: M3 | G202: 456 | H202: =VLOOKUP(D202,'CPU (des)'!B:I,8,FALSE) -> 40.99 | I202: 0.3026049495 | J202: 53.39377688 | K202: =J202*G202 -> 24347.56226 | L202: 0.0006181230118 | M202: 0.9069700306
B203: 3.2.2.2.3 | C203: Composição Sinapi | D203: 96534 | E203: FABRICAÇÃO, MONTAGEM E DESMONTAGEM DE FÔRMA PARA BLOCO DE COROAMENTO, EM MADEIRA SERRADA, E=25 MM, 4 UTILIZAÇÕES. AF_06/2017 | F203: M2 | G203: 279 | H203: =VLOOKUP(D203,'CPU (des)'!B:I,8,FALSE) -> 66.47 | I203: 0.3026049495 | J203: 86.584151 | K203: 24156.97813 | L203: =K203/$K$1467 -> 0.0006132845629 | M203: 0.9075833151
... 1264 more rows

Sheet Adm Local
B4: Código | D4: DESCRIÇÃO | E4: UND | F4: QUANT | G4: PREÇO SEM DESONERAÇÃO | H4: PREÇO COM DESONERAÇÃO | I4: TOTAL SEM DESONERAÇÃO | J4: TOTAL COM DESONERAÇÃO
G5: Custo Direto | H5: Custo Direto
B6: Composição Sinapi | C6: 93567 | D6: ENGENHEIRO CIVIL DE OBRA PLENO COM ENCARGOS COMPLEMENTARES | E6: MES | F6: 8 | G6: =VLOOKUP(C6,'CPU (sem des)'!B:I,8,FALSE) -> 22242.48 | H6: =VLOOKUP(C6,'CPU (des)'!B:I,8,FALSE) -> 19159.87 | I6: =G6*F6 -> 177939.84 | J6: =H6*F6 -> 153278.96
B7: Composição Sinapi | C7: 93565 | D7: ENGENHEIRO CIVIL DE OBRA JUNIOR COM ENCARGOS COMPLEMENTARES | E7: MES | F7: 36 | G7: =VLOOKUP(C7,'CPU (sem des)'!B:I,8,FALSE) -> 19584.39 | H7: =VLOOKUP(C7,'CPU (des)'!B:I,8,FALSE) -> 16876.08 | I7: =G7*F7 -> 705038.04 | J7: =H7*F7 -> 607538.88
B8: Composição Sinapi | C8: 93569 | D8: ARQUITETO JUNIOR COM ENCARGOS COMPLEMENTARES | E8: MES | F8: 10 | G8: =VLOOKUP(C8,'CPU (sem des)'!B:I,8,FALSE) -> 14456.76 | H8: =VLOOKUP(C8,'CPU (des)'!B:I,8,FALSE) -> 12470.51 | I8: 144567.6 | J8: 124705.1
B9: Composição Sinapi | C9: 88326 | D9: VIGIA NOTURNO COM ENCARGOS COMPLEMENTARES | E9: H | F9: 17520 | G9: =VLOOKUP(C9,'CPU (sem des)'!B:I,8,FALSE) -> 22.06 | H9: =VLOOKUP(C9,'CPU (des)'!B:I,8,FALSE) -> 19.46 | I9: 386491.2 | J9: 340939.2
B10: Composição Sinapi | C10: 93572 | D10: ENCARREGADO GERAL DE OBRAS COM ENCARGOS COMPLEMENTARES | E10: MES | F10: 48 | G10: =VLOOKUP(C10,'CPU (sem des)'!B:I,8,FALSE) -> 4411.66 | H10: =VLOOKUP(C10,'CPU (des)'!B:I,8,FALSE) -> 3854.99 | I10: 211759.68 | J10: 185039.52
B11: Composição Sinapi | C11: 93563 | D11: TÉCNICO DE SEGURANÇA DO TRABALHO | E11: MES | F11: 24 | G11: =VLOOKUP(C11,'CPU (sem des)'!B:I,8,FALSE) -> 3731.51 | H11: =VLOOKUP(C11,'CPU (des)'!B:I,8,FALSE) -> 3257.71 | I11: 89556.24 | J11: 78185.04
B12: Composição Sinapi | C12: 93566 | D12: AUXILIAR DE ESCRITORIO COM ENCARGOS COMPLEMENTARES | E12: MES | F12: 40 | G12: =VLOOKUP(C12,'CPU (sem des)'!B:I,8,FALSE) -> 2749.59 | H12: =VLOOKUP(C12,'CPU (des)'!B:I,8,FALSE) -> 2414.05 | I12: 109983.6 | J12: 96562
B13: Composição Sinapi | C13: 94296 | D13: TOPOGRAFO COM ENCARGOS COMPLEMENTARES | E13: MES | F13: 20 | G13: =VLOOKUP(C13,'CPU (sem des)'!B:I,8,FALSE) -> 4270.96 | H13: =VLOOKUP(C13,'CPU (des)'!B:I,8,FALSE) -> 3719.86 | I13: 85419.2 | J13: 74397.2
B14: Composição Sinapi | C14: 93564 | D14: APONTADOR OU APROPRIADOR COM ENCARGOS COMPLEMENTARES | E14: MES | F14: 24 | G14: =VLOOKUP(C14,'CPU (sem des)'!B:I,8,FALSE) -> 3251.27 | H14: =VLOOKUP(C14,'CPU (des)'!B:I,8,FALSE) -> 2845.09 | I14: 78030.48 | J14: 68282.16
B15: Composição Própria | C15: 1.3 | D15: VEÍCULO LEVE | E15: MES | F15: 12 | G15: ='CPU Própria (sem des)'!Q44 -> 3333.54 | H15: ='CPU Própria (des)'!P44 -> 3333.54 | I15: 40002.48 | J15: 40002.48
I17: =SUM(I6:I15) -> 2028788.36 | J17: =SUM(J6:J15) -> 1768930.54

Sheet BDI
A1: SEM DESONERAÇÃO
A3: MEMÓRIA DE CALCULO DO BDI DE SERVIÇOS
A5: ITEM | B5: DISCRIMINAÇÃO | C5: PERC. (%)
A7: 1.00 | B7: Despesas Indiretas
A8: A1 | B8: Seguro e Garantia | C8: 0.008
A9: A2 | B9: Riscos e Imprevistos | C9: 0.014
A10: A3 | B10: Despesas Financeiras | C10: 0.0105
A11: A4 | B11: Administração Central | C11: 0.0353
A12: Total do Grupo A = | C12: =SUM(C8:C11) -> 0.0678
A13: 2.00 | B13: Benefício
A14: B-1 | B14: LUCRO | C14: 0.079
A15: Total do Grupo B = | C15: =C14 -> 0.079
A16: 3.00 | B16: Impostos
A17: C-1 | B17: PIS / PASEP | C17: 0.0065
A18: C-2 | B18: COFINS | C18: 0.0135
A19: C-3 | B19: ISS | C19: 0.05
A20: Total do Grupo C = | C20: =SUM(C17:C19) -> 0.07
A21: Fórmula Para Cálculo do B.D.I
A22: BDI =(((1+A4+A1+A2)*(1+A3)*(1+B))/(1-C))-1
A24: Bonificação Sobre Despesas indiretas (B.D.I) = | C24: =(((1+C11+C8+C9)*(1+C10)*(1+C15))/(1-C20))-1 -> 0.2395756778
A28: MEMÓRIA DE CALCULO DO BDI DE FORNECIMENTO
A30: ITEM | B30: DISCRIMINAÇÃO | C30: PERC. (%)
A33: 1.00 | B33: Despesas Indiretas
A34: A1 | B34: Seguro e Garantia | C34: 0.008
A35: A2 | B35: Riscos e Imprevistos | C35: 0.0115
A36: A3 | B36: Despesas Financeiras | C36: 0.0105
A37: A4 | B37: Administração Central | C37: 0.022
A38: Total do Grupo A = | C38: =SUM(C34:C37) -> 0.052
A39: 2.00 | B39: Benefício
A40: B1 | B40: LUCRO | C40: 0.05
A41: Total do Grupo B = | C41: =C40 -> 0.05
A42: 3.00 | B42: Impostos
A43: C1 | B43: PIS / PASEP | C43: 0.0065
A44: C2 | B44: COFINS | C44: 0.03
A45: C3 | B45: ISS | C45: 0
A46: Total do Grupo C = | C46: =SUM(C43:C45) -> 0.0365
A47: Fórmula Para Cálculo do B.D.I
A48: BDI =(((1+A4+A1+A2)*(1+A3)*(1+B))/(1-C))-1
A50: Bonificação Sobre Despesas indiretas (B.D.I) = | C50: =(((1+C37+C34+C35)*(1+C36)*(1+C41))/(1-C46))-1 -> 0.146920122
A53: COM DESONERAÇÃO
A55: MEMÓRIA DE CALCULO DO BDI DE SERVIÇOS
A57: ITEM | B57: DISCRIMINAÇÃO | C57: PERC. (%)
A59: 1.00 | B59: Despesas Indiretas
A60: A1 | B60: Seguro e Garantia | C60: 0.008
A61: A2 | B61: Riscos e Imprevistos | C61: 0.014
A62: A3 | B62: Despesas Financeiras | C62: 0.0105
A63: A4 | B63: Administração Central | C63: 0.0353
A64: Total do Grupo A = | C64: =SUM(C60:C63) -> 0.0678
A65: 2.00 | B65: Benefício
A66: B-1 | B66: LUCRO | C66: 0.079
A67: Total do Grupo B = | C67: =SUM(C66) -> 0.079
A68: 3.00 | B68: Impostos
A69: C-1 | B69: PIS / PASEP | C69: 0.0065
A70: C-2 | B70: COFINS | C70: 0.0135
A71: C-3 | B71: ISS | C71: 0.05
A72: C-4 | B72: CONTRIBUIÇÂO INSS (DESONERAÇÂO) | C72: 0.045
A73: Total do Grupo C = | C73: =SUM(C69:C72) -> 0.115
A74: Fórmula Para Cálculo do B.D.I
A75: BDI =(((1+A4+A1+A2)*(1+A3)*(1+B))/(1-C))-1
A77: Bonificação Sobre Despesas indiretas (B.D.I) = | C77: =(((1+C63+C60+C61)*(1+C62)*(1+C67))/(1-C73))-1 -> 0.3026049495
A80: MEMÓRIA DE CALCULO DO BDI DE FORNECIMENTO
A82: ITEM | B82: DISCRIMINAÇÃO | C82: PERC. (%)
A85: 1.00 | B85: Despesas Indiretas
A86: A1 | B86: Seguro e Garantia | C86: 0.008
A87: A2 | B87: Riscos e Imprevistos | C87: 0.0115
A88: A3 | B88: Despesas Financeiras | C88: 0.0105
A89: A4 | B89: Administração Central | C89: 0.022
A90: Total do Grupo A = | C90: =SUM(C86:C89) -> 0.052
A91: 2.00 | B91: Benefício
A92: B1 | B92: LUCRO | C92: 0.05
A93: Total do Grupo B = | C93: =SUM(C92) -> 0.05
A94: 3.00 | B94: Impostos
A95: C1 | B95: PIS / PASEP | C95: 0.0065
A96: C2 | B96: COFINS | C96: 0.03
A97: C3 | B97: ISS | C97: 0
A98: C-4 | B98: CONTRIBUIÇÂO INSS (DESONERAÇÂO) | C98: 0.045
A99: Total do Grupo C = | C99: =SUM(C95:C98) -> 0.0815
A100: Fórmula Para Cálculo do B.D.I
A101: BDI =(((1+A4+A1+A2)*(1+A3)*(1+B))/(1-C))-1
A103: Bonificação Sobre Despesas indiretas (B.D.I) = | C103: =(((1+C89+C86+C87)*(1+C88)*(1+C93))/(1-C99))-1 -> 0.2031110915

Sheet Encargos Sociais
A1: SEM DESONERAÇÃO
A3: DETALHAMENTO DOS ENCARGOS SOCIAIS
A5: Encargos Sociais - Amapá | E5: Vigência a partir de 12/2022 - SINAPI
A6: ENCARGOS SOCIAIS SOBRE MÃO DE OBRA
A8: DISCRIMINAÇÃO | E8: SEM DESONERAÇÃO
E9: HORISTA % | F9: MENSALISTA %
A10: A | B10: ENCARGOS SOCIAIS BÁSICOS | E10: =SUM(E11:E19) -> 0.368 | F10: =SUM(F11:F19) -> 0.368
A11: A1 | B11: INSS | E11: 0.2 | F11: 0.2
A12: A2 | B12: SESI | E12: 0.015 | F12: 0.015
A13: A3 | B13: SENAI | E13: 0.01 | F13: 0.01
A14: A4 | B14: INCRA | E14: 0.002 | F14: 0.002
A15: A5 | B15: SEBRAE | E15: 0.006 | F15: 0.006
A16: A6 | B16: Saário Educação | E16: 0.025 | F16: 0.025
A17: A7 | B17: Seguro Contra Acidentes de Trabalho | E17: 0.03 | F17: 0.03
A18: A8 | B18: FGTS | E18: 0.08 | F18: 0.08
A19: A9 | B19: SECONCI | E19: 0 | F19: 0
A20: B | B20: ENCARGOS SOCIAIS QUE RECEBEM INCIDÊNCIA DE "A" | E20: =SUM(E21:E30) -> 0.5081 | F20: =SUM(F21:F30) -> 0.1921
A21: B1 | B21: Repouso Semanal Remunerado | E21: 0.1812 | F21: Não incide
A22: B2 | B22: Feriados | E22: 0.0483 | F22: Não incide
A23: B3 | B23: Axílio - Enfermidade | E23: 0.0089 | F23: 0.0066
A24: B4 | B24: 13º Salário | E24: 0.112 | F24: 0.0833
A25: B5 | B25: Licença Paternidade | E25: 0.0007 | F25: 0.0005
A26: B6 | B26: Faltas Justificadas | E26: 0.0075 | F26: 0.0056
A27: B7 | B27: Dias de chuva | E27: 0.0203 | F27: Não incide
A28: B8 | B28: Auxílio Acidente de Trabalho | E28: 0.0011 | F28: 0.0008
A29: B9 | B29: Férias Gozadas | E29: 0.1277 | F29: 0.095
A30: B10 | B30: Salário Maternidade | E30: 0.0004 | F30: 0.0003
A31: C | B31: ENCARGOS SOCIAIS QUE NÃO RECEBEM INCIDÊNCIA DE "A" | E31: =SUM(E32:E36) -> 0.0819 | F31: =SUM(F32:F36) -> 0.0609
A32: C1 | B32: Aviso Prévio Indenizado | E32: 0.0406 | F32: 0.0302
A33: C2 | B33: Aviso Prévio Trabalhado | E33: 0.001 | F33: 0.0007
A34: C3 | B34: Férias Indenizadas | E34: 0.0162 | F34: 0.0121
A35: C4 | B35: Depósito Rescisão Sem Justa Causa | E35: 0.0207 | F35: 0.0154
A36: C5 | B36: Indenização Adicional | E36: 0.0034 | F36: 0.0025
A37: D | B37: REINCIDÊNCIAS | E37: =SUM(E38:E39) -> 0.1906 | F37: =SUM(F38:F39) -> 0.0734
A38: D1 | B38: Reincidência de "A" sobre "B" | E38: 0.187 | F38: 0.0707
A39: D2 | B39: Reincidência de "A" sobre Aviso Prévio Trabalhado e reincidência do FGTS sobre Aviso Prévio Indenizado | E39: 0.0036 | F39: 0.0027
B40: ENCARGOS SOCIAIS | E40: =SUM(E37,E31,E20,E10) -> 1.1486 | F40: =SUM(F37,F31,F20,F10) -> 0.6944
A42: COM DESONERAÇÃO
A44: DETALHAMENTO DOS ENCARGOS SOCIAIS
A46: Encargos Sociais - Amapá | E46: Vigência a partir de 12/2022 - SINAPI
A47: ENCARGOS SOCIAIS SOBRE MÃO DE OBRA
A49: DISCRIMINAÇÃO | E49: COM DESONERAÇÃO
E50: HORISTA % | F50: MENSALISTA %
A51: A | B51: ENCARGOS SOCIAIS BÁSICOS | E51: =SUM(E52:E60) -> 0.168 | F51: =SUM(F52:F60) -> 0.168
A52: A1 | B52: INSS | E52: 0 | F52: 0
A53: A2 | B53: SESI | E53: 0.015 | F53: 0.015
A54: A3 | B54: SENAI | E54: 0.01 | F54: 0.01
A55: A4 | B55: INCRA | E55: 0.002 | F55: 0.002
A56: A5 | B56: SEBRAE | E56: 0.006 | F56: 0.006
A57: A6 | B57: Saário Educação | E57: 0.025 | F57: 0.025
A58: A7 | B58: Seguro Contra Acidentes de Trabalho | E58: 0.03 | F58: 0.03
A59: A8 | B59: FGTS | E59: 0.08 | F59: 0.08
A60: A9 | B60: SECONCI | E60: 0 | F60: 0
A61: B | B61: ENCARGOS SOCIAIS QUE RECEBEM INCIDÊNCIA DE "A" | E61: =SUM(E62:E71) -> 0.5081 | F61: =SUM(F62:F71) -> 0.1921
A62: B1 | B62: Repouso Semanal Remunerado | E62: 0.1812 | F62: Não incide
A63: B2 | B63: Feriados | E63: 0.0483 | F63: Não incide
A64: B3 | B64: Axílio - Enfermidade | E64: 0.0089 | F64: 0.0066
A65: B4 | B65: 13º Salário | E65: 0.112 | F65: 0.0833
A66: B5 | B66: Licença Paternidade | E66: 0.0007 | F66: 0.0005
A67: B6 | B67: Faltas Justificadas | E67: 0.0075 | F67: 0.0056
A68: B7 | B68: Dias de chuva | E68: 0.0203 | F68: Não incide
A69: B8 | B69: Auxílio Acidente de Trabalho | E69: 0.0011 | F69: 0.0008
A70: B9 | B70: Férias Gozadas | E70: 0.1277 | F70: 0.095
A71: B10 | B71: Salário Maternidade | E71: 0.0004 | F71: 0.0003
A72: C | B72: ENCARGOS SOCIAIS QUE NÃO RECEBEM INCIDÊNCIA DE "A" | E72: =SUM(E73:E77) -> 0.0819 | F72: =SUM(F73:F77) -> 0.0609
A73: C1 | B73: Aviso Prévio Indenizado | E73: 0.0406 | F73: 0.0302
A74: C2 | B74: Aviso Prévio Trabalhado | E74: 0.001 | F74: 0.0007
A75: C3 | B75: Férias Indenizadas | E75: 0.0162 | F75: 0.0121
A76: C4 | B76: Depósito Rescisão Sem Justa Causa | E76: 0.0207 | F76: 0.0154
A77: C5 | B77: Indenização Adicional | E77: 0.0034 | F77: 0.0025
A78: D | B78: REINCIDÊNCIAS | E78: =SUM(E79:E80) -> 0.0888 | F78: =SUM(F79:F80) -> 0.0348
A79: D1 | B79: Reincidência de "A" sobre "B" | E79: 0.0854 | F79: 0.0323
A80: D2 | B80: Reincidência de "A" sobre Aviso Prévio Trabalhado e reincidência do FGTS sobre Aviso Prévio Indenizado | E80: 0.0034 | F80: 0.0025
B81: ENCARGOS SOCIAIS | E81: =SUM(E78,E72,E61,E51) -> 0.8468 | F81: =SUM(F78,F72,F61,F51) -> 0.4558

Sheet Insumos SINAPI (des)
A1: PRECOS DE INSUMOS
A3: MES DE COLETA: 08/2023
A4: LOCALIDADE: 0320 - MACAPA
A5: ENCARGOS SOCIAIS (%) HORISTA 84,68 MENSALISTA 45,58 | E5: 1
A7: CODIGO | B7: DESCRICAO DO INSUMO | C7: UNIDADE | D7: ORIGEM DO PRECO | E7: PRECO MEDIANO R$
A8: 38605 | B8: ABERTURA PARA ENCAIXE DE CUBA OU LAVATORIO EM BANCADA DE MARMORE/ GRANITO OU OUTRO TIPO DE PEDRA NATURAL | C8: UN | D8: CR | E8: 170.59
A9: 11270 | B9: ABRACADEIRA DE LATAO PARA FIXACAO DE CABO PARA-RAIO, DIMENSOES 32 X 24 X 24 MM | C9: UN | D9: CR | E9: 2.5
A10: 412 | B10: ABRACADEIRA DE NYLON PARA AMARRACAO DE CABOS, COMPRIMENTO DE *230* X *7,6* MM | C10: UN | D10: CR | E10: 1.28
A11: 414 | B11: ABRACADEIRA DE NYLON PARA AMARRACAO DE CABOS, COMPRIMENTO DE 100 X 2,5 MM | C11: UN | D11: CR | E11: 0.08
A12: 410 | B12: ABRACADEIRA DE NYLON PARA AMARRACAO DE CABOS, COMPRIMENTO DE 150 X *3,6* MM | C12: UN | D12: CR | E12: 0.19
A13: 411 | B13: ABRACADEIRA DE NYLON PARA AMARRACAO DE CABOS, COMPRIMENTO DE 200 X *4,6* MM | C13: UN | D13: C | E13: 0.25
A14: 408 | B14: ABRACADEIRA DE NYLON PARA AMARRACAO DE CABOS, COMPRIMENTO DE 390 X *4,6* MM | C14: UN | D14: CR | E14: 1.24
A15: 39131 | B15: ABRACADEIRA EM ACO PARA AMARRACAO DE ELETRODUTOS, TIPO D, COM 1 1/2" E CUNHA DE FIXACAO | C15: UN | D15: CR | E15: 5.49
A16: 394 | B16: ABRACADEIRA EM ACO PARA AMARRACAO DE ELETRODUTOS, TIPO D, COM 1 1/2" E PARAFUSO DE FIXACAO | C16: UN | D16: CR | E16: 5.56
A17: 39130 | B17: ABRACADEIRA EM ACO PARA AMARRACAO DE ELETRODUTOS, TIPO D, COM 1 1/4" E CUNHA DE FIXACAO | C17: UN | D17: CR | E17: 5.01
A18: 395 | B18: ABRACADEIRA EM ACO PARA AMARRACAO DE ELETRODUTOS, TIPO D, COM 1 1/4" E PARAFUSO DE FIXACAO | C18: UN | D18: CR | E18: 5.36
A19: 39127 | B19: ABRACADEIRA EM ACO PARA AMARRACAO DE ELETRODUTOS, TIPO D, COM 1/2" E CUNHA DE FIXACAO | C19: UN | D19: CR | E19: 2.64
A20: 392 | B20: ABRACADEIRA EM ACO PARA AMARRACAO DE ELETRODUTOS, TIPO D, COM 1/2" E PARAFUSO DE FIXACAO | C20: UN | D20: CR | E20: 2.71
A21: 39129 | B21: ABRACADEIRA EM ACO PARA AMARRACAO DE ELETRODUTOS, TIPO D, COM 1" E CUNHA DE FIXACAO | C21: UN | D21: CR | E21: 3.09
A22: 393 | B22: ABRACADEIRA EM ACO PARA AMARRACAO DE ELETRODUTOS, TIPO D, COM 1" E PARAFUSO DE FIXACAO | C22: UN | D22: C | E22: 3.23
A23: 39133 | B23: ABRACADEIRA EM ACO PARA AMARRACAO DE ELETRODUTOS, TIPO D, COM 2 1/2" E CUNHA DE FIXACAO | C23: UN | D23: CR | E23: 7.21
A24: 397 | B24: ABRACADEIRA EM ACO PARA AMARRACAO DE ELETRODUTOS, TIPO D, COM 2 1/2" E PARAFUSO DE FIXACAO | C24: UN | D24: CR | E24: 7.97
A25: 39132 | B25: ABRACADEIRA EM ACO PARA AMARRACAO DE ELETRODUTOS, TIPO D, COM 2" E CUNHA DE FIXACAO | C25: UN | D25: CR | E25: 5.77
A26: 396 | B26: ABRACADEIRA EM ACO PARA AMARRACAO DE ELETRODUTOS, TIPO D, COM 2" E PARAFUSO DE FIXACAO | C26: UN | D26: CR | E26: 6.18
A27: 39135 | B27: ABRACADEIRA EM ACO PARA AMARRACAO DE ELETRODUTOS, TIPO D, COM 3 1/2" E CUNHA DE FIXACAO | C27: UN | D27: CR | E27: 11.54
A28: 39128 | B28: ABRACADEIRA EM ACO PARA AMARRACAO DE ELETRODUTOS, TIPO D, COM 3/4" E CUNHA DE FIXACAO | C28: UN | D28: CR | E28: 2.88
A29: 400 | B29: ABRACADEIRA EM ACO PARA AMARRACAO DE ELETRODUTOS, TIPO D, COM 3/4" E PARAFUSO DE FIXACAO | C29: UN | D29: CR | E29: 2.81
A30: 39125 | B30: ABRACADEIRA EM ACO PARA AMARRACAO DE ELETRODUTOS, TIPO D, COM 3/8" E PARAFUSO DE FIXACAO | C30: UN | D30: CR | E30: 2.88
A31: 39134 | B31: ABRACADEIRA EM ACO PARA AMARRACAO DE ELETRODUTOS, TIPO D, COM 3" E CUNHA DE FIXACAO | C31: UN | D31: CR | E31: 9.62
A32: 398 | B32: ABRACADEIRA EM ACO PARA AMARRACAO DE ELETRODUTOS, TIPO D, COM 3" E PARAFUSO DE FIXACAO | C32: UN | D32: CR | E32: 8.86
A33: 39126 | B33: ABRACADEIRA EM ACO PARA AMARRACAO DE ELETRODUTOS, TIPO D, COM 4" E CUNHA DE FIXACAO | C33: UN | D33: CR | E33: 12.98
A34: 399 | B34: ABRACADEIRA EM ACO PARA AMARRACAO DE ELETRODUTOS, TIPO D, COM 4" E PARAFUSO DE FIXACAO | C34: UN | D34: CR | E34: 11.44
A35: 39158 | B35: ABRACADEIRA EM ACO PARA AMARRACAO DE ELETRODUTOS, TIPO ECONOMICA (GOTA), COM 8" | C35: UN | D35: CR | E35: 30.71
A36: 39141 | B36: ABRACADEIRA EM ACO PARA AMARRACAO DE ELETRODUTOS, TIPO U SIMPLES, COM 1 1/2" | C36: UN | D36: CR | E36: 2.23
A37: 39140 | B37: ABRACADEIRA EM ACO PARA AMARRACAO DE ELETRODUTOS, TIPO U SIMPLES, COM 1 1/4" | C37: UN | D37: CR | E37: 2.02
A38: 39137 | B38: ABRACADEIRA EM ACO PARA AMARRACAO DE ELETRODUTOS, TIPO U SIMPLES, COM 1/2" | C38: UN | D38: CR | E38: 1.16
A39: 39139 | B39: ABRACADEIRA EM ACO PARA AMARRACAO DE ELETRODUTOS, TIPO U SIMPLES, COM 1" | C39: UN | D39: CR | E39: 1.68
A40: 39143 | B40: ABRACADEIRA EM ACO PARA AMARRACAO DE ELETRODUTOS, TIPO U SIMPLES, COM 2 1/2" | C40: UN | D40: CR | E40: 4.6
A41: 39142 | B41: ABRACADEIRA EM ACO PARA AMARRACAO DE ELETRODUTOS, TIPO U SIMPLES, COM 2" | C41: UN | D41: CR | E41: 3.29
A42: 39138 | B42: ABRACADEIRA EM ACO PARA AMARRACAO DE ELETRODUTOS, TIPO U SIMPLES, COM 3/4" | C42: UN | D42: CR | E42: 1.23
A43: 39136 | B43: ABRACADEIRA EM ACO PARA AMARRACAO DE ELETRODUTOS, TIPO U SIMPLES, COM 3/8" | C43: UN | D43: CR | E43: 0.82
A44: 39144 | B44: ABRACADEIRA EM ACO PARA AMARRACAO DE ELETRODUTOS, TIPO U SIMPLES, COM 3" | C44: UN | D44: CR | E44: 5.36
A45: 39145 | B45: ABRACADEIRA EM ACO PARA AMARRACAO DE ELETRODUTOS, TIPO U SIMPLES, COM 4" | C45: UN | D45: CR | E45: 8.83
A46: 12615 | B46: ABRACADEIRA PVC, PARA CALHA PLUVIAL, DIAMETRO ENTRE *80 E 100* MM, PARA DRENAGEM PLUVIAL PREDIAL | C46: UN | D46: CR | E46: 13.29
A47: 11927 | B47: ABRACADEIRA, GALVANIZADA/ZINCADA, ROSCA SEM FIM, PARAFUSO INOX, LARGURA FITA *12,6 A *14 MM, D = 2" A 2 1/2" | C47: UN | D47: CR | E47: 7.48
A48: 11928 | B48: ABRACADEIRA, GALVANIZADA/ZINCADA, ROSCA SEM FIM, PARAFUSO INOX, LARGURA FITA *12,6 A *14 MM, D = 3" A 3 3/4" | C48: UN | D48: CR | E48: 8.57
A49: 11929 | B49: ABRACADEIRA, GALVANIZADA/ZINCADA, ROSCA SEM FIM, PARAFUSO INOX, LARGURA FITA *12,6 A *14 MM, D = 4" A 4 3/4" | C49: UN | D49: CR | E49: 13.26
A50: 36801 | B50: ACABAMENTO DE METAL CROMADO PARA REGISTRO PEQUENO, DE PAREDE, 1/2 " OU 3/4 " | C50: UN | D50: CR | E50: 53.91
A51: 36246 | B51: ACABAMENTO SIMPLES/CONVENCIONAL PARA FORRO PVC, TIPO "U" OU "C", COR BRANCA, COMPRIMENTO 6 M | C51: M | D51: CR | E51: 3.82
A52: 37600 | B52: ACESSORIO DE LIGACAO NAO ELETRICO PARA CARGAS EXPLOSIVAS, TUBO DE 6 M | C52: UN | D52: AS | E52: 115.69
A53: 37599 | B53: ACESSORIO INICIADOR NAO ELETRICO, TUBO DE 6 M, TEMPO DE RETARDO DE *160* MS | C53: UN | D53: AS | E53: 107.68
A54: 1 | B54: ACETILENO (RECARGA DE GAS ACETILENO PARA CILINDRO DE CONJUNTO OXICORTE GRANDE) NAO INCLUI TROCA/MANUTENCAO DO CILINDRO | C54: KG | D54: AS | E54: 78.5
A55: 3 | B55: ACIDO CLORIDRICO / ACIDO MURIATICO, DILUICAO 10% A 12% PARA USO EM LIMPEZA | C55: L | D55: CR | E55: 19.48
A56: 43054 | B56: ACO CA-25, 10,0 MM, OU 12,5 MM, OU 16,0 MM, OU 20,0 MM, OU 25,0 MM, VERGALHAO | C56: KG | D56: CR | E56: 11.55
A57: 42402 | B57: ACO CA-25, 16,0 MM, BARRA DE TRANSFERENCIA | C57: KG | D57: CR | E57: 11.04
A58: 42403 | B58: ACO CA-25, 20,0 MM, BARRA DE TRANSFERENCIA | C58: KG | D58: CR | E58: 14.16
A59: 42404 | B59: ACO CA-25, 25,0 MM, BARRA DE TRANSFERENCIA | C59: KG | D59: CR | E59: 14.08
A60: 42405 | B60: ACO CA-25, 32,0 MM, BARRA DE TRANSFERENCIA | C60: KG | D60: CR | E60: 15
A61: 34341 | B61: ACO CA-25, 32,0 MM, VERGALHAO | C61: KG | D61: CR | E61: 13.02
A62: 43053 | B62: ACO CA-25, 6,3 MM OU 8,0 MM, VERGALHAO | C62: KG | D62: CR | E62: 10.31
A63: 43058 | B63: ACO CA-50, 10,0 MM, OU 12,5 MM, OU 16,0 MM, OU 20,0 MM, DOBRADO E CORTADO | C63: KG | D63: CR | E63: 10.69
A64: 34 | B64: ACO CA-50, 10,0 MM, VERGALHAO | C64: KG | D64: CR | E64: 10.75
A65: 43055 | B65: ACO CA-50, 12,5 MM OU 16,0 MM, VERGALHAO | C65: KG | D65: C | E65: 9.31
A66: 43056 | B66: ACO CA-50, 20,0 MM OU 25,0 MM, VERGALHAO | C66: KG | D66: CR | E66: 10.73
A67: 43057 | B67: ACO CA-50, 32,0 MM, VERGALHAO | C67: KG | D67: CR | E67: 11.8
A68: 34449 | B68: ACO CA-50, 6,3 MM, DOBRADO E CORTADO | C68: KG | D68: CR | E68: 12.61
A69: 32 | B69: ACO CA-50, 6,3 MM, VERGALHAO | C69: KG | D69: CR | E69: 11.34
A70: 33 | B70: ACO CA-50, 8,0 MM, VERGALHAO | C70: KG | D70: CR | E70: 11.4
A71: 43061 | B71: ACO CA-60, 4,2 MM OU 5,0 MM, DOBRADO E CORTADO | C71: KG | D71: CR | E71: 10.66
A72: 43059 | B72: ACO CA-60, 4,2 MM, OU 5,0 MM, OU 6,0 MM, OU 7,0 MM, VERGALHAO | C72: KG | D72: CR | E72: 10.17
A73: 43062 | B73: ACO CA-60, 6,0 MM OU 7,0 MM, DOBRADO E CORTADO | C73: KG | D73: CR | E73: 11.27
A74: 43060 | B74: ACO CA-60, 8,0 MM OU 9,5 MM, VERGALHAO | C74: KG | D74: CR | E74: 8.86
A75: 40410 | B75: ACOPLAMENTO RIGIDO EM FERRO FUNDIDO PARA SISTEMA DE TUBULACAO RANHURADA, DN 50 MM (2") | C75: UN | D75: AS | E75: 23.71
A76: 40411 | B76: ACOPLAMENTO RIGIDO EM FERRO FUNDIDO PARA SISTEMA DE TUBULACAO RANHURADA, DN 65 MM (2 1/2") | C76: UN | D76: AS | E76: 25.73
A77: 40412 | B77: ACOPLAMENTO RIGIDO EM FERRO FUNDIDO PARA SISTEMA DE TUBULACAO RANHURADA, DN 80 MM (3") | C77: UN | D77: AS | E77: 28.88
A78: 44254 | B78: ADAPTADOR CPVC, ROSCAVEL, COM FLANGES E ANEL DE VEDACAO, 15 MM, CAIXA D'AGUA PARA AGUA QUENTE | C78: UN | D78: AS | E78: 23.27
A79: 44255 | B79: ADAPTADOR CPVC, ROSCAVEL, COM FLANGES E ANEL DE VEDACAO, 22 MM, CAIXA D'AGUA PARA AGUA QUENTE | C79: UN | D79: AS | E79: 25.79
A80: 44256 | B80: ADAPTADOR CPVC, ROSCAVEL, COM FLANGES E ANEL DE VEDACAO, 28 MM, CAIXA D'AGUA PARA AGUA QUENTE | C80: UN | D80: AS | E80: 29.13
A81: 44257 | B81: ADAPTADOR CPVC, ROSCAVEL, COM FLANGES E ANEL DE VEDACAO, 35 MM, CAIXA D'AGUA PARA AGUA QUENTE | C81: UN | D81: AS | E81: 46.09
A82: 44258 | B82: ADAPTADOR CPVC, ROSCAVEL, COM FLANGES E ANEL DE VEDACAO, 42 MM, CAIXA D'AGUA PARA AGUA QUENTE | C82: UN | D82: AS | E82: 52.67
A83: 44259 | B83: ADAPTADOR CPVC, ROSCAVEL, COM FLANGES E ANEL DE VEDACAO, 54 MM, CAIXA D'AGUA PARA AGUA QUENTE | C83: UN | D83: AS | E83: 72.3
A84: 37997 | B84: ADAPTADOR CPVC, SOLDAVEL, 15 MM, PARA AGUA QUENTE | C84: UN | D84: AS | E84: 13.87
A85: 37998 | B85: ADAPTADOR CPVC, SOLDAVEL, 22 MM, PARA AGUA QUENTE | C85: UN | D85: AS | E85: 18.56
A86: 55 | B86: ADAPTADOR DE COMPRESSAO EM POLIPROPILENO (PP), PARA TUBO EM PEAD, 20 MM X 1/2", PARA LIGACAO PREDIAL DE AGUA (NTS 179) | C86: UN | D86: AS | E86: 4
A87: 61 | B87: ADAPTADOR DE COMPRESSAO EM POLIPROPILENO (PP), PARA TUBO EM PEAD, 20 MM X 3/4", PARA LIGACAO PREDIAL DE AGUA (NTS 179) | C87: UN | D87: AS | E87: 3.78
A88: 62 | B88: ADAPTADOR DE COMPRESSAO EM POLIPROPILENO (PP), PARA TUBO EM PEAD, 32 MM X 1", PARA LIGACAO PREDIAL DE AGUA (NTS 179) | C88: UN | D88: AS | E88: 7.84
A89: 10899 | B89: ADAPTADOR EM LATAO, ENGATE RAPIDO 2 1/2" X ROSCA INTERNA 5 FIOS 2 1/2", PARA INSTALACAO PREDIAL DE COMBATE A INCENDIO | C89: UN | D89: AS | E89: 135.19
A90: 10900 | B90: ADAPTADOR EM LATAO, ENGATE RAPIDO1 1/2" X ROSCA INTERNA 5 FIOS 2 1/2", PARA INSTALACAO PREDIAL DE COMBATE A INCENDIO | C90: UN | D90: AS | E90: 105.8
A91: 103 | B91: ADAPTADOR PVC SOLDAVEL CURTO COM BOLSA E ROSCA, 110 MM X 4", PARA AGUA FRIA | C91: UN | D91: CR | E91: 45.1
A92: 107 | B92: ADAPTADOR PVC SOLDAVEL CURTO COM BOLSA E ROSCA, 20 MM X 1/2", PARA AGUA FRIA | C92: UN | D92: CR | E92: 0.85
A93: 65 | B93: ADAPTADOR PVC SOLDAVEL CURTO COM BOLSA E ROSCA, 25 MM X 3/4", PARA AGUA FRIA | C93: UN | D93: CR | E93: 0.93
A94: 108 | B94: ADAPTADOR PVC SOLDAVEL CURTO COM BOLSA E ROSCA, 32 MM X 1", PARA AGUA FRIA | C94: UN | D94: CR | E94: 1.87
A95: 110 | B95: ADAPTADOR PVC SOLDAVEL CURTO COM BOLSA E ROSCA, 40 MM X 1 1/2", PARA AGUA FRIA | C95: UN | D95: CR | E95: 6.49
A96: 109 | B96: ADAPTADOR PVC SOLDAVEL CURTO COM BOLSA E ROSCA, 40 MM X 1 1/4", PARA AGUA FRIA | C96: UN | D96: CR | E96: 3.86
A97: 111 | B97: ADAPTADOR PVC SOLDAVEL CURTO COM BOLSA E ROSCA, 50 MM X 1 1/4", PARA AGUA FRIA | C97: UN | D97: CR | E97: 8.78
A98: 112 | B98: ADAPTADOR PVC SOLDAVEL CURTO COM BOLSA E ROSCA, 50 MM X1 1/2", PARA AGUA FRIA | C98: UN | D98: CR | E98: 4.65
A99: 113 | B99: ADAPTADOR PVC SOLDAVEL CURTO COM BOLSA E ROSCA, 60 MM X 2", PARA AGUA FRIA | C99: UN | D99: CR | E99: 11.65
A100: 104 | B100: ADAPTADOR PVC SOLDAVEL CURTO COM BOLSA E ROSCA, 75 MM X 2 1/2", PARA AGUA FRIA | C100: UN | D100: CR | E100: 20.27
A101: 102 | B101: ADAPTADOR PVC SOLDAVEL CURTO COM BOLSA E ROSCA, 85 MM X 3", PARA AGUA FRIA | C101: UN | D101: CR | E101: 27.94
A102: 95 | B102: ADAPTADOR PVC SOLDAVEL, COM FLANGE E ANEL DE VEDACAO, 20 MM X 1/2", PARA CAIXA D'AGUA | C102: UN | D102: CR | E102: 11.81
A103: 96 | B103: ADAPTADOR PVC SOLDAVEL, COM FLANGE E ANEL DE VEDACAO, 25 MM X 3/4", PARA CAIXA D'AGUA | C103: UN | D103: CR | E103: 12.84
A104: 97 | B104: ADAPTADOR PVC SOLDAVEL, COM FLANGE E ANEL DE VEDACAO, 32 MM X 1", PARA CAIXA D'AGUA | C104: UN | D104: CR | E104: 19.32
A105: 98 | B105: ADAPTADOR PVC SOLDAVEL, COM FLANGE E ANEL DE VEDACAO, 40 MM X 1 1/4", PARA CAIXA D'AGUA | C105: UN | D105: CR | E105: 28.93
A106: 99 | B106: ADAPTADOR PVC SOLDAVEL, COM FLANGE E ANEL DE VEDACAO, 50 MM X 1 1/2", PARA CAIXA D'AGUA | C106: UN | D106: CR | E106: 27.34
A107: 100 | B107: ADAPTADOR PVC SOLDAVEL, COM FLANGES E ANEL DE VEDACAO, 60 MM X 2", PARA CAIXA D' AGUA | C107: UN | D107: CR | E107: 47.77
A108: 75 | B108: ADAPTADOR PVC SOLDAVEL, COM FLANGES LIVRES, 110 MM X 4", PARA CAIXA D' AGUA | C108: UN | D108: CR | E108: 278.51
A109: 83 | B109: ADAPTADOR PVC SOLDAVEL, COM FLANGES LIVRES, 75 MM X 2 1/2", PARA CAIXA D' AGUA | C109: UN | D109: CR | E109: 222.66
A110: 74 | B110: ADAPTADOR PVC SOLDAVEL, COM FLANGES LIVRES, 85 MM X 3", PARA CAIXA D' AGUA | C110: UN | D110: CR | E110: 318.34
A111: 106 | B111: ADAPTADOR PVC SOLDAVEL, LONGO, COM FLANGE LIVRE, 110 MM X 4", PARA CAIXA D' AGUA | C111: UN | D111: CR | E111: 402.55
A112: 88 | B112: ADAPTADOR PVC SOLDAVEL, LONGO, COM FLANGE LIVRE, 32 MM X 1", PARA CAIXA D' AGUA | C112: UN | D112: CR | E112: 11.31
A113: 82 | B113: ADAPTADOR PVC SOLDAVEL, LONGO, COM FLANGE LIVRE, 75 MM X 2 1/2", PARA CAIXA D' AGUA | C113: UN | D113: CR | E113: 211.84
A114: 105 | B114: ADAPTADOR PVC SOLDAVEL, LONGO, COM FLANGE LIVRE, 85 MM X 3", PARA CAIXA D' AGUA | C114: UN | D114: CR | E114: 300.18
A115: 60 | B115: ADAPTADOR PVC, COM REGISTRO, PARA PEAD, 20 MM X 3/4", PARA LIGACAO PREDIAL DE AGUA | C115: UN | D115: AS | E115: 5.19
A116: 72 | B116: ADAPTADOR PVC, ROSCAVEL, COM FLANGES E ANEL DE VEDACAO, 1 1/2", PARA CAIXA D'AGUA | C116: UN | D116: CR | E116: 52.44
A117: 67 | B117: ADAPTADOR PVC, ROSCAVEL, COM FLANGES E ANEL DE VEDACAO, 1/2", PARA CAIXA D' AGUA | C117: UN | D117: CR | E117: 16.95
A118: 71 | B118: ADAPTADOR PVC, ROSCAVEL, COM FLANGES E ANEL DE VEDACAO, 1", PARA CAIXA D' AGUA | C118: UN | D118: CR | E118: 32.38
A119: 73 | B119: ADAPTADOR PVC, ROSCAVEL, COM FLANGES E ANEL DE VEDACAO, 3/4", PARA CAIXA D' AGUA | C119: UN | D119: CR | E119: 16.22
A120: 46 | B120: ADAPTADOR, PVC PBA, BOLSA/ROSCA, JE, DN 75 / DE 85 MM | C120: UN | D120: AS | E120: 38.06
A121: 47 | B121: ADAPTADOR, PVC PBA, BOLSA/ROSCA, JE, DN 100 / DE 110 MM | C121: UN | D121: AS | E121: 65.07
A122: 48 | B122: ADAPTADOR, PVC PBA, BOLSA/ROSCA, JE, DN 50 / DE 60 MM | C122: UN | D122: AS | E122: 16.97
A123: 52 | B123: ADAPTADOR, PVC PBA, PONTA/ROSCA, JE, DN 50 / DE 60 MM | C123: UN | D123: AS | E123: 12.89
A124: 43 | B124: ADAPTADOR, PVC PBA, PONTA/ROSCA, JE, DN 75 / DE 85 MM | C124: UN | D124: AS | E124: 43.52
A125: 39719 | B125: ADESIVO / COLA DE CONTATO LIQUIDO, A BASE DE RESINAS, PARA COLAGEM DE ESPUMA PARA ISOLAMENTO TERMICO FLEXIVEL | C125: L | D125: CR | E125: 157.32
A126: 3410 | B126: ADESIVO / COLA PARA EPS (ISOPOR) E OUTROS MATERIAIS | C126: KG | D126: CR | E126: 35.39
A127: 4791 | B127: ADESIVO ACRILICO DE BASE AQUOSA / COLA DE CONTATO | C127: KG | D127: CR | E127: 25.29
A128: 157 | B128: ADESIVO ESTRUTURAL A BASE DE RESINA EPOXI PARA INJECAO EM TRINCAS, BICOMPONENTE, BAIXA VISCOSIDADE | C128: KG | D128: CR | E128: 278.51
A129: 156 | B129: ADESIVO ESTRUTURAL A BASE DE RESINA EPOXI, BICOMPONENTE, FLUIDO | C129: KG | D129: CR | E129: 99.17
A130: 131 | B130: ADESIVO ESTRUTURAL A BASE DE RESINA EPOXI, BICOMPONENTE, PASTOSO (TIXOTROPICO) | C130: KG | D130: CR | E130: 84.81
A131: 21114 | B131: ADESIVO PARA TUBOS CPVC, *75* G | C131: UN | D131: CR | E131: 31.01
A132: 119 | B132: ADESIVO PLASTICO PARA PVC, BISNAGA COM 75 GR | C132: UN | D132: C | E132: 7.86
A133: 122 | B133: ADESIVO PLASTICO PARA PVC, FRASCO COM *850* GR | C133: UN | D133: CR | E133: 60.47
A134: 20080 | B134: ADESIVO PLASTICO PARA PVC, FRASCO COM 175 GR | C134: UN | D134: CR | E134: 19.74
A135: 124 | B135: ADITIVO ACELERADOR DE PEGA E ENDURECIMENTO PARA ARGAMASSAS E CONCRETOS, LIQUIDO E ISENTO DE CLORETOS | C135: L | D135: CR | E135: 32.7
A136: 7334 | B136: ADITIVO ADESIVO LIQUIDO PARA ARGAMASSAS DE REVESTIMENTOS CIMENTICIOS | C136: L | D136: CR | E136: 33.07
A137: 123 | B137: ADITIVO IMPERMEABILIZANTE DE PEGA NORMAL PARA ARGAMASSAS E CONCRETOS SEM ARMACAO, LIQUIDO E ISENTO DE CLORETOS | C137: L | D137: C | E137: 13.38
A138: 127 | B138: ADITIVO IMPERMEABILIZANTE DE PEGA ULTRARRAPIDA, LIQUIDO E ISENTO DE CLORETOS | C138: L | D138: CR | E138: 31.94
A139: 41373 | B139: ADITIVO LIQUIDO IMPERMEABILIZANTE CRISTALIZANTE | C139: L | D139: CR | E139: 44.51
A140: 133 | B140: ADITIVO LIQUIDO INCORPORADOR DE AR PARA CONCRETO E ARGAMASSA, LIQUIDO E ISENTO DE CLORETOS | C140: L | D140: CR | E140: 13.27
A141: 43617 | B141: ADITIVO PLASTIFICANTE E ESTABILIZADOR PARA ARGAMASSAS DE ASSENTAMENTO E REBOCO, LIQUIDO E ISENTO DE CLORETOS | C141: L | D141: CR | E141: 14.82
A142: 132 | B142: ADITIVO PLASTIFICANTE RETARDADOR DE PEGA E REDUTOR DE AGUA PARA CONCRETO, LIQUIDO E ISENTO DE CLORETOS | C142: L | D142: CR | E142: 13.75
A143: 43618 | B143: ADITIVO SUPERPLASTIFICANTE DE PEGA NORMAL PARA CONCRETO, LIQUIDO E ISENTO DE CLORETOS | C143: KG | D143: CR | E143: 34.63
A144: 37476 | B144: ADUELA/ GALERIA PRE-MOLDADA DE CONCRETO ARMADO, SECAO QUADRADA INTERNA DE 1,50 X 1,50 M (L X A), MISULA DE 20 X 20 CM, C = 1,00 M, ESPESSURA MIN = 15 CM, TB-45 E FCK DO CONCRETO = 30 MPA | C144: UN | D144: AS | E144: 3576.14
A145: 37478 | B145: ADUELA/ GALERIA PRE-MOLDADA DE CONCRETO ARMADO, SECAO RETANGULAR INTERNA DE 2,00 X 2,00 M (L X A), MISULA DE 20 X 20 CM, C = 1,00 M, ESPESSURA MIN = 15 CM, TB-45 E FCK DO CONCRETO = 30 MPA | C145: UN | D145: AS | E145: 4479.21
A146: 37477 | B146: ADUELA/ GALERIA PRE-MOLDADA DE CONCRETO ARMADO, SECAO RETANGULAR INTERNA DE 2,50 X 2,50 M (L X A), MISULA DE 20 X 20 CM, C = 1,00 M, ESPESSURA MIN = 15 CM, TB-45 E FCK DO CONCRETO = 30 MPA | C146: UN | D146: AS | E146: 6068.61
A147: 37479 | B147: ADUELA/ GALERIA PRE-MOLDADA DE CONCRETO ARMADO, SECAO RETANGULAR INTERNA DE 3,00 X 3,00 M (L X A), MISULA DE 20 X 20 CM, C = 1.00 M, ESPESSURA MIN = 20 CM, TB-45 E FCK DO CONCRETO = 30 MPA | C147: UN | D147: AS | E147: 7197.44
A148: 4319 | B148: AFASTADOR PARA TELHA DE FIBROCIMENTO CANALETE 90 OU KALHETAO | C148: UN | D148: AS | E148: 1.92
A149: 42409 | B149: AGENTE DE CURA, PROTETOR DA EVAPORACAO DA AGUA DE HIDRATACAO DO CONCRETO | C149: KG | D149: CR | E149: 21.8
A150: 40553 | B150: AGREGADO RECICLADO, TIPO RACHAO RECICLADO CINZA, CLASSE A | C150: M3 | D150: AS | E150: 56.25
A151: 6114 | B151: AJUDANTE DE ARMADOR (HORISTA) | C151: H | D151: CR | E151: 11.56
A152: 40912 | B152: AJUDANTE DE ARMADOR (MENSALISTA) | C152: MES | D152: CR | E152: 2007.03
A153: 247 | B153: AJUDANTE DE ELETRICISTA (HORISTA) | C153: H | D153: CR | E153: 16.17
A154: 40919 | B154: AJUDANTE DE ELETRICISTA (MENSALISTA) | C154: MES | D154: CR | E154: 2806.11
A155: 40984 | B155: AJUDANTE DE ESTRUTURAS METALICAS (MENSALISTA) | C155: MES | D155: CR | E155: 1853.01
A156: 44499 | B156: AJUDANTE DE ESTRUTURAS METALICAS HORISTA | C156: H | D156: CR | E156: 10.67
A157: 248 | B157: AJUDANTE DE OPERACAO EM GERAL (HORISTA) | C157: H | D157: CR | E157: 11.56
A158: 41086 | B158: AJUDANTE DE OPERACAO EM GERAL (MENSALISTA) | C158: MES | D158: CR | E158: 2007.03
A159: 34466 | B159: AJUDANTE DE PINTOR (HORISTA) | C159: H | D159: CR | E159: 13.18
A160: 41083 | B160: AJUDANTE DE PINTOR (MENSALISTA) | C160: MES | D160: CR | E160: 2287.67
A161: 252 | B161: AJUDANTE DE SERRALHEIRO (HORISTA) | C161: H | D161: CR | E161: 13.18
A162: 40909 | B162: AJUDANTE DE SERRALHEIRO (MENSALISTA) | C162: MES | D162: CR | E162: 2287.67
A163: 242 | B163: AJUDANTE ESPECIALIZADO (HORISTA) | C163: H | D163: CR | E163: 11.72
A164: 41085 | B164: AJUDANTE ESPECIALIZADO (MENSALISTA) | C164: MES | D164: CR | E164: 2036.85
A165: 427 | B165: ALCA PREFORMADA DE CONTRA POSTE, EM ACO GALVANIZADO, PARA CABO 3/16", COMPRIMENTO *860* MM | C165: UN | D165: AS | E165: 6.31
A166: 417 | B166: ALCA PREFORMADA DE DISTRIBUICAO, EM ACO GALVANIZADO, PARA CABO DE ALUMINIO DIAMETRO 16 A 25 MM | C166: UN | D166: AS | E166: 2.97
A167: 11273 | B167: ALCA PREFORMADA DE DISTRIBUICAO, EM ACO GALVANIZADO, PARA CONDUTORES DE ALUMINIO AWG 1/0 (CAA 6/1 OU CA 7 FIOS) | C167: UN | D167: AS | E167: 9.22
A168: 11272 | B168: ALCA PREFORMADA DE DISTRIBUICAO, EM ACO GALVANIZADO, PARA CONDUTORES DE ALUMINIO AWG 2 (CAA 6/1 OU CA 7 FIOS) | C168: UN | D168: AS | E168: 5.57
A169: 11275 | B169: ALCA PREFORMADA DE SERVICO, EM ACO GALVANIZADO, PARA CONDUTORES DE ALUMINIO AWG 4 (CAA 6/1) | C169: UN | D169: AS | E169: 2.23
A170: 11274 | B170: ALCA PREFORMADA DE SERVICO, EM ACO GALVANIZADO, PARA CONDUTORES DE ALUMINIO AWG 6 (CAA 6/1) | C170: UN | D170: AS | E170: 1.7
A171: 38470 | B171: ALICATE DE CORTE DIAGONAL 6 " COM ISOLAMENTO | C171: UN | D171: C | E171: 33.75
A172: 38547 | B172: ALICATE DE CRIMPAR RJ11, RJ12 E RJ45 | C172: UN | D172: CR | E172: 92.1
A173: 38469 | B173: ALICATE DE PRESSAO PARA SOLDA DE CHAPA 18 " | C173: UN | D173: CR | E173: 99.03
A174: 38467 | B174: ALICATE DE PRESSAO 11 " PARA SOLDA, TIPO C | C174: UN | D174: CR | E174: 55.72
A175: 38468 | B175: ALICATE DE PRESSAO 11 " PARA SOLDA, TIPO U | C175: UN | D175: CR | E175: 61.31
A176: 38471 | B176: ALICATE PARA ANEIS DE PISTAO, CAPACIDADE 50 A 100 MM | C176: UN | D176: CR | E176: 79.62
A177: 37370 | B177: ALIMENTACAO - HORISTA (COLETADO CAIXA - ENCARGOS COMPLEMENTARES) | C177: H | D177: C | E177: 0.01
A178: 40862 | B178: ALIMENTACAO - MENSALISTA (COLETADO CAIXA - ENCARGOS COMPLEMENTARES) | C178: MES | D178: C | E178: 0.01
A179: 10658 | B179: ALISADORA DE CONCRETO COM MOTOR A GASOLINA DE 5,5 HP, PESO COM MOTOR DE 78 KG, 4 PAS | C179: UN | D179: AS | E179: 7199
A180: 253 | B180: ALMOXARIFE (HORISTA) | C180: H | D180: C | E180: 16.6
A181: 40809 | B181: ALMOXARIFE (MENSALISTA) | C181: MES | D181: CR | E181: 2879.28
A182: 42428 | B182: ALONGADOR COM TRES ALTURAS, EM TUBO DE ACO CARBONO, PINTURA NO PROCESSO ELETROSTATICO - EQUIPAMENTO DE GINASTICA PARA ACADEMIA AO AR LIVRE / ACADEMIA DA TERCEIRA IDADE - ATI | C182: UN | D182: AS | E182: 2271
A183: 301 | B183: ANEL BORRACHA PARA TUBO ESGOTO PREDIAL, DN 100 MM (NBR 5688) | C183: UN | D183: C | E183: 4.85
A184: 296 | B184: ANEL BORRACHA PARA TUBO ESGOTO PREDIAL, DN 50 MM (NBR 5688) | C184: UN | D184: CR | E184: 2.74
A185: 297 | B185: ANEL BORRACHA PARA TUBO ESGOTO PREDIAL, DN 75 MM (NBR 5688) | C185: UN | D185: CR | E185: 4.03
A186: 299 | B186: ANEL BORRACHA, DN 100 MM, PARA TUBO SERIE REFORCADA ESGOTO PREDIAL | C186: UN | D186: CR | E186: 5.69
A187: 300 | B187: ANEL BORRACHA, DN 150 MM, PARA TUBO SERIE REFORCADA ESGOTO PREDIAL | C187: UN | D187: CR | E187: 19.69
A188: 20085 | B188: ANEL BORRACHA, DN 50 MM, PARA TUBO SERIE REFORCADA ESGOTO PREDIAL | C188: UN | D188: CR | E188: 3.6
A189: 298 | B189: ANEL BORRACHA, DN 75 MM, PARA TUBO SERIE REFORCADA ESGOTO PREDIAL | C189: UN | D189: CR | E189: 4.37
A190: 311 | B190: ANEL BORRACHA, PARA TUBO PVC DEFOFO, DN 100 MM (NBR 7665) | C190: UN | D190: CR | E190: 16.24
A191: 318 | B191: ANEL BORRACHA, PARA TUBO PVC DEFOFO, DN 150 MM (NBR 7665) | C191: UN | D191: CR | E191: 32.7
A192: 319 | B192: ANEL BORRACHA, PARA TUBO PVC DEFOFO, DN 200 MM (NBR 7665) | C192: UN | D192: CR | E192: 51.27
A193: 303 | B193: ANEL BORRACHA, PARA TUBO PVC, REDE COLETOR ESGOTO, DN 100 MM (NBR 7362) | C193: UN | D193: CR | E193: 5.37
A194: 305 | B194: ANEL BORRACHA, PARA TUBO PVC, REDE COLETOR ESGOTO, DN 150 MM (NBR 7362) | C194: UN | D194: CR | E194: 16.9
A195: 306 | B195: ANEL BORRACHA, PARA TUBO PVC, REDE COLETOR ESGOTO, DN 200 MM (NBR 7362) | C195: UN | D195: CR | E195: 25.63
A196: 307 | B196: ANEL BORRACHA, PARA TUBO PVC, REDE COLETOR ESGOTO, DN 250 MM (NBR 7362) | C196: UN | D196: CR | E196: 64.76
A197: 309 | B197: ANEL BORRACHA, PARA TUBO PVC, REDE COLETOR ESGOTO, DN 350 MM (NBR 7362) | C197: UN | D197: CR | E197: 106.09
A198: 310 | B198: ANEL BORRACHA, PARA TUBO PVC, REDE COLETOR ESGOTO, DN 400 MM (NBR 7362) | C198: UN | D198: CR | E198: 147.03
A199: 328 | B199: ANEL BORRACHA, PARA TUBO/CONEXAO PVC PBA, DN 100 MM, PARA REDE AGUA | C199: UN | D199: CR | E199: 12.85
A200: 325 | B200: ANEL BORRACHA, PARA TUBO/CONEXAO PVC PBA, DN 50 MM, PARA REDE AGUA | C200: UN | D200: CR | E200: 3.79
A201: 20326 | B201: ANEL BORRACHA, PARA TUBO/CONEXAO PVC PBA, DN 60 MM, PARA REDE AGUA | C201: UN | D201: CR | E201: 6.94
A202: 329 | B202: ANEL BORRACHA, PARA TUBO/CONEXAO PVC PBA, DN 75 MM, PARA REDE AGUA | C202: UN | D202: CR | E202: 10.75
... 4743 more rows

Sheet CPU (des)
A1: 1 | D1: Composições Analíticas com Preço Unitário | E1: Bancos | G1: B.D.I. | I1: Encargos Sociais
D2: Orla de Santana | E2: SINAPI - 08/2023 - Amapá SICRO3 - 04/2023 - Amapá ORSE - 06/2023 - Sergipe | G2: 0,0% | I2: Desonerado: Horista: 83,16% Mensalista: 45,11%
D3: Composições Analíticas com Preço Unitário
D4: Composições Principais
A5: 1 | B5: Código | C5: Banco | D5: Descrição | E5: Tipo | G5: Und | H5: Quant. | I5: Valor Unit | J5: Total
A6: Composição | B6: 100575 | C6: SINAPI | D6: REGULARIZAÇÃO DE SUPERFÍCIES COM MOTONIVELADORA. AF_11/2019 | E6: PAVI - PAVIMENTAÇÃO | G6: m² | H6: 1 | I6: 0.12 | J6: 0.12
A7: Composição Auxiliar | B7: 5932 | C7: SINAPI | D7: MOTONIVELADORA POTÊNCIA BÁSICA LÍQUIDA (PRIMEIRA MARCHA) 125 HP, PESO BRUTO 13032 KG, LARGURA DA LÂMINA DE 3,7 M - CHP DIURNO. AF_06/2014 | E7: CHOR - CUSTOS HORÁRIOS DE MÁQUINAS E EQUIPAMENTOS | G7: CHP | H7: 0.0001 | I7: 261.61 | J7: 0.02
A8: Composição Auxiliar | B8: 5934 | C8: SINAPI | D8: MOTONIVELADORA POTÊNCIA BÁSICA LÍQUIDA (PRIMEIRA MARCHA) 125 HP, PESO BRUTO 13032 KG, LARGURA DA LÂMINA DE 3,7 M - CHI DIURNO. AF_06/2014 | E8: CHOR - CUSTOS HORÁRIOS DE MÁQUINAS E EQUIPAMENTOS | G8: CHI | H8: 0.001 | I8: 96.42 | J8: 0.09
A9: Composição Auxiliar | B9: 88316 | C9: SINAPI | D9: SERVENTE COM ENCARGOS COMPLEMENTARES | E9: SEDI - SERVIÇOS DIVERSOS | G9: H | H9: 0.001 | I9: 15.35 | J9: 0.01
B10: 0 | E10: MO sem LS => | F10: 0.01091941472 | G10: LS => | H10: 0.01 | I10: MO com LS => | J10: 0.02
B11: 0 | E11: Valor do BDI => | F11: 0 | H11: Valor com BDI => | J11: 0.12
B12: 0
A13: 2 | B13: Código | C13: Banco | D13: Descrição | E13: Tipo | G13: Und | H13: Quant. | I13: Valor Unit | J13: Total
A14: Composição | B14: 3212 | C14: ORSE | D14: Colchão de areia | E14: Conversão InfoWOrca | G14: m³ | H14: 1 | I14: 132.9 | J14: 132.9
A15: Composição Auxiliar | B15: 10549 | C15: ORSE | D15: Encargos Complementares - Servente | E15: Provisórios | G15: h | H15: 1 | I15: 3.74 | J15: 3.74
A16: Insumo | B16: 366 | C16: SINAPI | D16: AREIA FINA - POSTO JAZIDA/FORNECEDOR (RETIRADO NA JAZIDA, SEM TRANSPORTE) | E16: Material | G16: m³ | H16: 1.12 | I16: 105 | J16: 117.6
A17: Insumo | B17: 6111 | C17: SINAPI | D17: SERVENTE DE OBRAS | E17: Mão de Obra | G17: H | H17: 1 | I17: 11.56 | J17: 11.56
B18: 0 | E18: MO sem LS => | F18: 6.3114217 | G18: LS => | H18: 5.25 | I18: MO com LS => | J18: 11.56
B19: 0 | E19: Valor do BDI => | F19: 0 | H19: Valor com BDI => | J19: 132.9
B20: 0
A21: 3 | B21: Código | C21: Banco | D21: Descrição | E21: Tipo | G21: Und | H21: Quant. | I21: Valor Unit | J21: Total
A22: Composição | B22: 92397 | C22: SINAPI | D22: EXECUÇÃO DE PAVIMENTO EM PISO INTERTRAVADO, COM BLOCO RETANGULAR COR NATURAL DE 20 X 10 CM, ESPESSURA 6 CM. AF_10/2022 | E22: PAVI - PAVIMENTAÇÃO | G22: m² | H22: 1 | I22: 75.16 | J22: 75.16
A23: Composição Auxiliar | B23: 88260 | C23: SINAPI | D23: CALCETEIRO COM ENCARGOS COMPLEMENTARES | E23: SEDI - SERVIÇOS DIVERSOS | G23: H | H23: 0.2015 | I23: 18.92 | J23: 3.81
A24: Composição Auxiliar | B24: 88316 | C24: SINAPI | D24: SERVENTE COM ENCARGOS COMPLEMENTARES | E24: SEDI - SERVIÇOS DIVERSOS | G24: H | H24: 0.2015 | I24: 15.35 | J24: 3.09
A25: Composição Auxiliar | B25: 91277 | C25: SINAPI | D25: PLACA VIBRATÓRIA REVERSÍVEL COM MOTOR 4 TEMPOS A GASOLINA, FORÇA CENTRÍFUGA DE 25 KN (2500 KGF), POTÊNCIA 5,5 CV - CHP DIURNO. AF_08/2015 | E25: CHOR - CUSTOS HORÁRIOS DE MÁQUINAS E EQUIPAMENTOS | G25: CHP | H25: 0.0041 | I25: 8.99 | J25: 0.03
A26: Composição Auxiliar | B26: 91278 | C26: SINAPI | D26: PLACA VIBRATÓRIA REVERSÍVEL COM MOTOR 4 TEMPOS A GASOLINA, FORÇA CENTRÍFUGA DE 25 KN (2500 KGF), POTÊNCIA 5,5 CV - CHI DIURNO. AF_08/2015 | E26: CHOR - CUSTOS HORÁRIOS DE MÁQUINAS E EQUIPAMENTOS | G26: CHI | H26: 0.0967 | I26: 0.59 | J26: 0.05
A27: Composição Auxiliar | B27: 91283 | C27: SINAPI | D27: CORTADORA DE PISO COM MOTOR 4 TEMPOS A GASOLINA, POTÊNCIA DE 13 HP, COM DISCO DE CORTE DIAMANTADO SEGMENTADO PARA CONCRETO, DIÂMETRO DE 350 MM, FURO DE 1" (14 X 1") - CHP DIURNO. AF_08/2015 | E27: CHOR - CUSTOS HORÁRIOS DE MÁQUINAS E EQUIPAMENTOS | G27: CHP | H27: 0.0038 | I27: 9.96 | J27: 0.03
A28: Composição Auxiliar | B28: 91285 | C28: SINAPI | D28: CORTADORA DE PISO COM MOTOR 4 TEMPOS A GASOLINA, POTÊNCIA DE 13 HP, COM DISCO DE CORTE DIAMANTADO SEGMENTADO PARA CONCRETO, DIÂMETRO DE 350 MM, FURO DE 1" (14 X 1") - CHI DIURNO. AF_08/2015 | E28: CHOR - CUSTOS HORÁRIOS DE MÁQUINAS E EQUIPAMENTOS | G28: CHI | H28: 0.097 | I28: 1.04 | J28: 0.1
A29: Insumo | B29: 370 | C29: SINAPI | D29: AREIA MEDIA - POSTO JAZIDA/FORNECEDOR (RETIRADO NA JAZIDA, SEM TRANSPORTE) | E29: Material | G29: m³ | H29: 0.0568 | I29: 105 | J29: 5.96
A30: Insumo | B30: 4741 | C30: SINAPI | D30: PO DE PEDRA (POSTO PEDREIRA/FORNECEDOR, SEM FRETE) | E30: Material | G30: m³ | H30: 0.0098 | I30: 253.71 | J30: 2.48
A31: Insumo | B31: 36155 | C31: SINAPI | D31: BLOQUETE/PISO INTERTRAVADO DE CONCRETO - MODELO ONDA/16 FACES/RETANGULAR/TIJOLINHO/PAVER/HOLANDES/PARALELEPIPEDO, 20 CM X 10 CM, E = 6 CM, RESISTENCIA DE 35 MPA (NBR 9781), COR NATURAL | E31: Material | G31: m² | H31: 1.0041 | I31: 59.37 | J31: 59.61
B32: 0 | E32: MO sem LS => | F32: 2.964621096 | G32: LS => | H32: 2.47 | I32: MO com LS => | J32: 5.43
B33: 0 | E33: Valor do BDI => | F33: 0 | H33: Valor com BDI => | J33: 75.16
B34: 0
A35: 4 | B35: Código | C35: Banco | D35: Descrição | E35: Tipo | G35: Und | H35: Quant. | I35: Valor Unit | J35: Total
A36: Composição | B36: 96398 | C36: SINAPI | D36: EXECUÇÃO E COMPACTAÇÃO DE BASE E OU SUB BASE PARA PAVIMENTAÇÃO DE CONCRETO COMPACTADO COM ROLO - EXCLUSIVE CARGA E TRANSPORTE. AF_11/2019 | E36: PAVI - PAVIMENTAÇÃO | G36: m³ | H36: 1 | I36: 619.37 | J36: 619.37
A37: Composição Auxiliar | B37: 5684 | C37: SINAPI | D37: ROLO COMPACTADOR VIBRATÓRIO DE UM CILINDRO AÇO LISO, POTÊNCIA 80 HP, PESO OPERACIONAL MÁXIMO 8,1 T, IMPACTO DINÂMICO 16,15 / 9,5 T, LARGURA DE TRABALHO 1,68 M - CHP DIURNO. AF_06/2014 | E37: CHOR - CUSTOS HORÁRIOS DE MÁQUINAS E EQUIPAMENTOS | G37: CHP | H37: 0.009 | I37: 146.39 | J37: 1.31
A38: Composição Auxiliar | B38: 5685 | C38: SINAPI | D38: ROLO COMPACTADOR VIBRATÓRIO DE UM CILINDRO AÇO LISO, POTÊNCIA 80 HP, PESO OPERACIONAL MÁXIMO 8,1 T, IMPACTO DINÂMICO 16,15 / 9,5 T, LARGURA DE TRABALHO 1,68 M - CHI DIURNO. AF_06/2014 | E38: CHOR - CUSTOS HORÁRIOS DE MÁQUINAS E EQUIPAMENTOS | G38: CHI | H38: 0.021 | I38: 54.99 | J38: 1.15
A39: Composição Auxiliar | B39: 5901 | C39: SINAPI | D39: CAMINHÃO PIPA 10.000 L TRUCADO, PESO BRUTO TOTAL 23.000 KG, CARGA ÚTIL MÁXIMA 15.935 KG, DISTÂNCIA ENTRE EIXOS 4,8 M, POTÊNCIA 230 CV, INCLUSIVE TANQUE DE AÇO PARA TRANSPORTE DE ÁGUA - CHP DIURNO. AF_06/2014 | E39: CHOR - CUSTOS HORÁRIOS DE MÁQUINAS E EQUIPAMENTOS | G39: CHP | H39: 0.002 | I39: 294.31 | J39: 0.58
A40: Composição Auxiliar | B40: 5903 | C40: SINAPI | D40: CAMINHÃO PIPA 10.000 L TRUCADO, PESO BRUTO TOTAL 23.000 KG, CARGA ÚTIL MÁXIMA 15.935 KG, DISTÂNCIA ENTRE EIXOS 4,8 M, POTÊNCIA 230 CV, INCLUSIVE TANQUE DE AÇO PARA TRANSPORTE DE ÁGUA - CHI DIURNO. AF_06/2014 | E40: CHOR - CUSTOS HORÁRIOS DE MÁQUINAS E EQUIPAMENTOS | G40: CHI | H40: 0.028 | I40: 65.6 | J40: 1.83
A41: Composição Auxiliar | B41: 5932 | C41: SINAPI | D41: MOTONIVELADORA POTÊNCIA BÁSICA LÍQUIDA (PRIMEIRA MARCHA) 125 HP, PESO BRUTO 13032 KG, LARGURA DA LÂMINA DE 3,7 M - CHP DIURNO. AF_06/2014 | E41: CHOR - CUSTOS HORÁRIOS DE MÁQUINAS E EQUIPAMENTOS | G41: CHP | H41: 0.008 | I41: 261.61 | J41: 2.09
A42: Composição Auxiliar | B42: 5934 | C42: SINAPI | D42: MOTONIVELADORA POTÊNCIA BÁSICA LÍQUIDA (PRIMEIRA MARCHA) 125 HP, PESO BRUTO 13032 KG, LARGURA DA LÂMINA DE 3,7 M - CHI DIURNO. AF_06/2014 | E42: CHOR - CUSTOS HORÁRIOS DE MÁQUINAS E EQUIPAMENTOS | G42: CHI | H42: 0.022 | I42: 96.42 | J42: 2.12
A43: Composição Auxiliar | B43: 88316 | C43: SINAPI | D43: SERVENTE COM ENCARGOS COMPLEMENTARES | E43: SEDI - SERVIÇOS DIVERSOS | G43: H | H43: 0.03 | I43: 15.35 | J43: 0.46
A44: Composição Auxiliar | B44: 96395 | C44: SINAPI | D44: USINAGEM DE CONCRETO PARA COMPACTAÇÃO COM ROLO. AF_03/2020 | E44: PAVI - PAVIMENTAÇÃO | G44: m³ | H44: 1 | I44: 606.91 | J44: 606.91
A45: Composição Auxiliar | B45: 96463 | C45: SINAPI | D45: ROLO COMPACTADOR DE PNEUS, ESTATICO, PRESSAO VARIAVEL, POTENCIA 110 HP, PESO SEM/COM LASTRO 10,8/27 T, LARGURA DE ROLAGEM 2,30 M - CHP DIURNO. AF_06/2017 | E45: CHOR - CUSTOS HORÁRIOS DE MÁQUINAS E EQUIPAMENTOS | G45: CHP | H45: 0.004 | I45: 204.74 | J45: 0.81
A46: Composição Auxiliar | B46: 96464 | C46: SINAPI | D46: ROLO COMPACTADOR DE PNEUS, ESTATICO, PRESSAO VARIAVEL, POTENCIA 110 HP, PESO SEM/COM LASTRO 10,8/27 T, LARGURA DE ROLAGEM 2,30 M - CHI DIURNO. AF_06/2017 | E46: CHOR - CUSTOS HORÁRIOS DE MÁQUINAS E EQUIPAMENTOS | G46: CHI | H46: 0.026 | I46: 81.29 | J46: 2.11
B47: 0 | E47: MO sem LS => | F47: 2.145664992 | G47: LS => | H47: 1.78 | I47: MO com LS => | J47: 3.93
B48: 0 | E48: Valor do BDI => | F48: 0 | H48: Valor com BDI => | J48: 619.37
B49: 0
A50: 5 | B50: Código | C50: Banco | D50: Descrição | E50: Tipo | G50: Und | H50: Quant. | I50: Valor Unit | J50: Total
A51: Composição | B51: 95995 | C51: SINAPI | D51: EXECUÇÃO DE PAVIMENTO COM APLICAÇÃO DE CONCRETO ASFÁLTICO, CAMADA DE ROLAMENTO - EXCLUSIVE CARGA E TRANSPORTE. AF_11/2019 | E51: PAVI - PAVIMENTAÇÃO | G51: m³ | H51: 1 | I51: 1414.08 | J51: 1414.08
A52: Composição Auxiliar | B52: 5835 | C52: SINAPI | D52: VIBROACABADORA DE ASFALTO SOBRE ESTEIRAS, LARGURA DE PAVIMENTAÇÃO 1,90 M A 5,30 M, POTÊNCIA 105 HP CAPACIDADE 450 T/H - CHP DIURNO. AF_11/2014 | E52: CHOR - CUSTOS HORÁRIOS DE MÁQUINAS E EQUIPAMENTOS | G52: CHP | H52: 0.0464 | I52: 379.58 | J52: 17.61
A53: Composição Auxiliar | B53: 5837 | C53: SINAPI | D53: VIBROACABADORA DE ASFALTO SOBRE ESTEIRAS, LARGURA DE PAVIMENTAÇÃO 1,90 M A 5,30 M, POTÊNCIA 105 HP CAPACIDADE 450 T/H - CHI DIURNO. AF_11/2014 | E53: CHOR - CUSTOS HORÁRIOS DE MÁQUINAS E EQUIPAMENTOS | G53: CHI | H53: 0.0949 | I53: 146.46 | J53: 13.89
A54: Composição Auxiliar | B54: 88314 | C54: SINAPI | D54: RASTELEIRO COM ENCARGOS COMPLEMENTARES | E54: SEDI - SERVIÇOS DIVERSOS | G54: H | H54: 1.1301 | I54: 13.32 | J54: 15.05
A55: Composição Auxiliar | B55: 91386 | C55: SINAPI | D55: CAMINHÃO BASCULANTE 10 M3, TRUCADO CABINE SIMPLES, PESO BRUTO TOTAL 23.000 KG, CARGA ÚTIL MÁXIMA 15.935 KG, DISTÂNCIA ENTRE EIXOS 4,80 M, POTÊNCIA 230 CV INCLUSIVE CAÇAMBA METÁLICA - CHP DIURNO. AF_06/2014 | E55: CHOR - CUSTOS HORÁRIOS DE MÁQUINAS E EQUIPAMENTOS | G55: CHP | H55: 0.0464 | I55: 248.99 | J55: 11.55
A56: Composição Auxiliar | B56: 95631 | C56: SINAPI | D56: ROLO COMPACTADOR VIBRATORIO TANDEM, ACO LISO, POTENCIA 125 HP, PESO SEM/COM LASTRO 10,20/11,65 T, LARGURA DE TRABALHO 1,73 M - CHP DIURNO. AF_11/2016 | E56: CHOR - CUSTOS HORÁRIOS DE MÁQUINAS E EQUIPAMENTOS | G56: CHP | H56: 0.0805 | I56: 214.97 | J56: 17.3
A57: Composição Auxiliar | B57: 95632 | C57: SINAPI | D57: ROLO COMPACTADOR VIBRATORIO TANDEM, ACO LISO, POTENCIA 125 HP, PESO SEM/COM LASTRO 10,20/11,65 T, LARGURA DE TRABALHO 1,73 M - CHI DIURNO. AF_11/2016 | E57: CHOR - CUSTOS HORÁRIOS DE MÁQUINAS E EQUIPAMENTOS | G57: CHI | H57: 0.0607 | I57: 74.78 | J57: 4.53
A58: Composição Auxiliar | B58: 96155 | C58: SINAPI | D58: TRATOR DE PNEUS COM POTÊNCIA DE 85 CV, TRAÇÃO 4X4, COM VASSOURA MECÂNICA ACOPLADA - CHI DIURNO. AF_02/2017 | E58: CHOR - CUSTOS HORÁRIOS DE MÁQUINAS E EQUIPAMENTOS | G58: CHI | H58: 0.1071 | I58: 38.72 | J58: 4.14
A59: Composição Auxiliar | B59: 96157 | C59: SINAPI | D59: TRATOR DE PNEUS COM POTÊNCIA DE 85 CV, TRAÇÃO 4X4, COM VASSOURA MECÂNICA ACOPLADA - CHP DIURNO. AF_03/2017 | E59: CHOR - CUSTOS HORÁRIOS DE MÁQUINAS E EQUIPAMENTOS | G59: CHP | H59: 0.0341 | I59: 119.58 | J59: 4.07
A60: Composição Auxiliar | B60: 96463 | C60: SINAPI | D60: ROLO COMPACTADOR DE PNEUS, ESTATICO, PRESSAO VARIAVEL, POTENCIA 110 HP, PESO SEM/COM LASTRO 10,8/27 T, LARGURA DE ROLAGEM 2,30 M - CHP DIURNO. AF_06/2017 | E60: CHOR - CUSTOS HORÁRIOS DE MÁQUINAS E EQUIPAMENTOS | G60: CHP | H60: 0.0419 | I60: 204.74 | J60: 8.57
A61: Composição Auxiliar | B61: 96464 | C61: SINAPI | D61: ROLO COMPACTADOR DE PNEUS, ESTATICO, PRESSAO VARIAVEL, POTENCIA 110 HP, PESO SEM/COM LASTRO 10,8/27 T, LARGURA DE ROLAGEM 2,30 M - CHI DIURNO. AF_06/2017 | E61: CHOR - CUSTOS HORÁRIOS DE MÁQUINAS E EQUIPAMENTOS | G61: CHI | H61: 0.099 | I61: 81.29 | J61: 8.04
A62: Insumo | B62: 1518 | C62: SINAPI | D62: CONCRETO BETUMINOSO USINADO A QUENTE (CBUQ) PARA PAVIMENTACAO ASFALTICA, PADRAO DNIT, FAIXA C, COM CAP 50/70 - AQUISICAO POSTO USINA | E62: Material | G62: T | H62: 2.5548 | I62: 512.5 | J62: 1309.33
B63: 0 | E63: MO sem LS => | F63: 11.29613453 | G63: LS => | H63: 9.39 | I63: MO com LS => | J63: 20.69
B64: 0 | E64: Valor do BDI => | F64: 0 | H64: Valor com BDI => | J64: 1414.08
B65: 0
A66: 6 | B66: Código | C66: Banco | D66: Descrição | E66: Tipo | G66: Und | H66: Quant. | I66: Valor Unit | J66: Total
A67: Composição | B67: 94266 | C67: SINAPI | D67: GUIA (MEIO-FIO) CONCRETO, MOLDADA IN LOCO EM TRECHO CURVO COM EXTRUSORA, 15 CM BASE X 30 CM ALTURA. AF_06/2016 | E67: DROP - DRENAGEM/OBRAS DE CONTENÇÃO / POÇOS DE VISITA E CAIXAS | G67: M | H67: 1 | I67: 52.67 | J67: 52.67
A68: Composição Auxiliar | B68: 88243 | C68: SINAPI | D68: AJUDANTE ESPECIALIZADO COM ENCARGOS COMPLEMENTARES | E68: SEDI - SERVIÇOS DIVERSOS | G68: H | H68: 0.142 | I68: 15.4 | J68: 2.18
A69: Composição Auxiliar | B69: 88309 | C69: SINAPI | D69: PEDREIRO COM ENCARGOS COMPLEMENTARES | E69: SEDI - SERVIÇOS DIVERSOS | G69: H | H69: 0.276 | I69: 20.67 | J69: 5.7
A70: Composição Auxiliar | B70: 88316 | C70: SINAPI | D70: SERVENTE COM ENCARGOS COMPLEMENTARES | E70: SEDI - SERVIÇOS DIVERSOS | G70: H | H70: 0.552 | I70: 15.35 | J70: 8.47
A71: Composição Auxiliar | B71: 88631 | C71: SINAPI | D71: ARGAMASSA TRAÇO 1:4 (EM VOLUME DE CIMENTO E AREIA MÉDIA ÚMIDA), PREPARO MANUAL. AF_08/2019 | E71: SEDI - SERVIÇOS DIVERSOS | G71: m³ | H71: 0.002 | I71: 637.54 | J71: 1.27
A72: Composição Auxiliar | B72: 92960 | C72: SINAPI | D72: MÁQUINA EXTRUSORA DE CONCRETO PARA GUIAS E SARJETAS, MOTOR A DIESEL, POTÊNCIA 14 CV - CHP DIURNO. AF_12/2015 | E72: CHOR - CUSTOS HORÁRIOS DE MÁQUINAS E EQUIPAMENTOS | G72: CHP | H72: 0.024 | I72: 18.61 | J72: 0.44
A73: Composição Auxiliar | B73: 92961 | C73: SINAPI | D73: MÁQUINA EXTRUSORA DE CONCRETO PARA GUIAS E SARJETAS, MOTOR A DIESEL, POTÊNCIA 14 CV - CHI DIURNO. AF_12/2015 | E73: CHOR - CUSTOS HORÁRIOS DE MÁQUINAS E EQUIPAMENTOS | G73: CHI | H73: 0.118 | I73: 5.38 | J73: 0.63
A74: Insumo | B74: 370 | C74: SINAPI | D74: AREIA MEDIA - POSTO JAZIDA/FORNECEDOR (RETIRADO NA JAZIDA, SEM TRANSPORTE) | E74: Material | G74: m³ | H74: 0.007 | I74: 105 | J74: 0.73
A75: Insumo | B75: 34492 | C75: SINAPI | D75: CONCRETO USINADO BOMBEAVEL, CLASSE DE RESISTENCIA C20, COM BRITA 0 E 1, SLUMP = 100 +/- 20 MM, EXCLUI SERVICO DE BOMBEAMENTO (NBR 8953) | E75: Material | G75: m³ | H75: 0.05 | I75: 665 | J75: 33.25
B76: 0 | E76: MO sem LS => | F76: 7.130377812 | G76: LS => | H76: 5.93 | I76: MO com LS => | J76: 13.06
B77: 0 | E77: Valor do BDI => | F77: 0 | H77: Valor com BDI => | J77: 52.67
B78: 0
A79: 7 | B79: Código | C79: Banco | D79: Descrição | E79: Tipo | G79: Und | H79: Quant. | I79: Valor Unit | J79: Total
A80: Composição | B80: 102498 | C80: SINAPI | D80: PINTURA DE MEIO-FIO COM TINTA BRANCA A BASE DE CAL (CAIAÇÃO). AF_05/2021 | E80: PINT - PINTURAS | G80: M | H80: 1 | I80: 1.23 | J80: 1.23
A81: Composição Auxiliar | B81: 88310 | C81: SINAPI | D81: PINTOR COM ENCARGOS COMPLEMENTARES | E81: SEDI - SERVIÇOS DIVERSOS | G81: H | H81: 0.037 | I81: 21.91 | J81: 0.81
A82: Composição Auxiliar | B82: 88316 | C82: SINAPI | D82: SERVENTE COM ENCARGOS COMPLEMENTARES | E82: SEDI - SERVIÇOS DIVERSOS | G82: H | H82: 0.016 | I82: 15.35 | J82: 0.24
A83: Insumo | B83: 11161 | C83: SINAPI | D83: CAL HIDRATADA PARA PINTURA | E83: Material | G83: KG | H83: 0.106 | I83: 1.78 | J83: 0.18
B84: 0 | E84: MO sem LS => | F84: 0.4367765888 | G84: LS => | H84: 0.36 | I84: MO com LS => | J84: 0.8
B85: 0 | E85: Valor do BDI => | F85: 0 | H85: Valor com BDI => | J85: 1.23
B86: 0
A87: 8 | B87: Código | C87: Banco | D87: Descrição | E87: Tipo | G87: Und | H87: Quant. | I87: Valor Unit | J87: Total
A88: Composição | B88: 102500 | C88: SINAPI | D88: PINTURA DE DEMARCAÇÃO DE VAGA COM TINTA ACRÍLICA, E = 10 CM, APLICAÇÃO MANUAL. AF_05/2021 | E88: PINT - PINTURAS | G88: M | H88: 1 | I88: 3.21 | J88: 3.21
A89: Composição Auxiliar | B89: 88310 | C89: SINAPI | D89: PINTOR COM ENCARGOS COMPLEMENTARES | E89: SEDI - SERVIÇOS DIVERSOS | G89: H | H89: 0.083 | I89: 21.91 | J89: 1.81
A90: Composição Auxiliar | B90: 88316 | C90: SINAPI | D90: SERVENTE COM ENCARGOS COMPLEMENTARES | E90: SEDI - SERVIÇOS DIVERSOS | G90: H | H90: 0.035 | I90: 15.35 | J90: 0.53
A91: Insumo | B91: 7348 | C91: SINAPI | D91: TINTA ACRILICA PREMIUM PARA PISO | E91: Material | G91: L | H91: 0.043 | I91: 11.79 | J91: 0.5
A92: Insumo | B92: 12815 | C92: SINAPI | D92: FITA CREPE ROLO DE 25 MM X 50 M | E92: Material | G92: UN | H92: 0.04 | I92: 9.36 | J92: 0.37
B93: 0 | E93: MO sem LS => | F93: 0.9827473247 | G93: LS => | H93: 0.82 | I93: MO com LS => | J93: 1.8
B94: 0 | E94: Valor do BDI => | F94: 0 | H94: Valor com BDI => | J94: 3.21
B95: 0
A96: 9 | B96: Código | C96: Banco | D96: Descrição | E96: Tipo | G96: Und | H96: Quant. | I96: Valor Unit | J96: Total
A97: Composição | B97: 101094 | C97: SINAPI | D97: PISO PODOTÁTIL DE ALERTA OU DIRECIONAL, DE BORRACHA, ASSENTADO SOBRE ARGAMASSA. AF_05/2020 | E97: PISO - PISOS | G97: M | H97: 1 | I97: 189.1 | J97: 189.1
A98: Composição Auxiliar | B98: 88309 | C98: SINAPI | D98: PEDREIRO COM ENCARGOS COMPLEMENTARES | E98: SEDI - SERVIÇOS DIVERSOS | G98: H | H98: 0.437 | I98: 20.67 | J98: 9.03
A99: Composição Auxiliar | B99: 88316 | C99: SINAPI | D99: SERVENTE COM ENCARGOS COMPLEMENTARES | E99: SEDI - SERVIÇOS DIVERSOS | G99: H | H99: 0.218 | I99: 15.35 | J99: 3.34
A100: Insumo | B100: 1379 | C100: SINAPI | D100: CIMENTO PORTLAND COMPOSTO CP II-32 | E100: Material | G100: KG | H100: 0.24 | I100: 1 | J100: 0.24
A101: Insumo | B101: 37595 | C101: SINAPI | D101: ARGAMASSA COLANTE TIPO AC III | E101: Material | G101: KG | H101: 1.215 | I101: 3.07 | J101: 3.73
A102: Insumo | B102: 38186 | C102: SINAPI | D102: PISO TATIL DE ALERTA OU DIRECIONAL, DE BORRACHA, COLORIDO, 25 X 25 CM, E = 12 MM, PARA ARGAMASSA | E102: Material | G102: m² | H102: 0.25 | I102: 691.05 | J102: 172.76
B103: 0 | E103: MO sem LS => | F103: 5.448787945 | G103: LS => | H103: 4.53 | I103: MO com LS => | J103: 9.98
B104: 0 | E104: Valor do BDI => | F104: 0 | H104: Valor com BDI => | J104: 189.1
B105: 0
A106: 10 | B106: Código | C106: Banco | D106: Descrição | E106: Tipo | G106: Und | H106: Quant. | I106: Valor Unit | J106: Total
A107: Composição | B107: 92398 | C107: SINAPI | D107: EXECUÇÃO DE PAVIMENTO EM PISO INTERTRAVADO, COM BLOCO RETANGULAR COR NATURAL DE 20 X 10 CM, ESPESSURA 8 CM. AF_10/2022 | E107: PAVI - PAVIMENTAÇÃO | G107: m² | H107: 1 | I107: 93.02 | J107: 93.02
A108: Composição Auxiliar | B108: 88260 | C108: SINAPI | D108: CALCETEIRO COM ENCARGOS COMPLEMENTARES | E108: SEDI - SERVIÇOS DIVERSOS | G108: H | H108: 0.2632 | I108: 18.92 | J108: 4.97
A109: Composição Auxiliar | B109: 88316 | C109: SINAPI | D109: SERVENTE COM ENCARGOS COMPLEMENTARES | E109: SEDI - SERVIÇOS DIVERSOS | G109: H | H109: 0.2632 | I109: 15.35 | J109: 4.04
A110: Composição Auxiliar | B110: 91277 | C110: SINAPI | D110: PLACA VIBRATÓRIA REVERSÍVEL COM MOTOR 4 TEMPOS A GASOLINA, FORÇA CENTRÍFUGA DE 25 KN (2500 KGF), POTÊNCIA 5,5 CV - CHP DIURNO. AF_08/2015 | E110: CHOR - CUSTOS HORÁRIOS DE MÁQUINAS E EQUIPAMENTOS | G110: CHP | H110: 0.0055 | I110: 8.99 | J110: 0.04
A111: Composição Auxiliar | B111: 91278 | C111: SINAPI | D111: PLACA VIBRATÓRIA REVERSÍVEL COM MOTOR 4 TEMPOS A GASOLINA, FORÇA CENTRÍFUGA DE 25 KN (2500 KGF), POTÊNCIA 5,5 CV - CHI DIURNO. AF_08/2015 | E111: CHOR - CUSTOS HORÁRIOS DE MÁQUINAS E EQUIPAMENTOS | G111: CHI | H111: 0.1261 | I111: 0.59 | J111: 0.07
A112: Composição Auxiliar | B112: 91283 | C112: SINAPI | D112: CORTADORA DE PISO COM MOTOR 4 TEMPOS A GASOLINA, POTÊNCIA DE 13 HP, COM DISCO DE CORTE DIAMANTADO SEGMENTADO PARA CONCRETO, DIÂMETRO DE 350 MM, FURO DE 1" (14 X 1") - CHP DIURNO. AF_08/2015 | E112: CHOR - CUSTOS HORÁRIOS DE MÁQUINAS E EQUIPAMENTOS | G112: CHP | H112: 0.0038 | I112: 9.96 | J112: 0.03
A113: Composição Auxiliar | B113: 91285 | C113: SINAPI | D113: CORTADORA DE PISO COM MOTOR 4 TEMPOS A GASOLINA, POTÊNCIA DE 13 HP, COM DISCO DE CORTE DIAMANTADO SEGMENTADO PARA CONCRETO, DIÂMETRO DE 350 MM, FURO DE 1" (14 X 1") - CHI DIURNO. AF_08/2015 | E113: CHOR - CUSTOS HORÁRIOS DE MÁQUINAS E EQUIPAMENTOS | G113: CHI | H113: 0.1278 | I113: 1.04 | J113: 0.13
A114: Insumo | B114: 370 | C114: SINAPI | D114: AREIA MEDIA - POSTO JAZIDA/FORNECEDOR (RETIRADO NA JAZIDA, SEM TRANSPORTE) | E114: Material | G114: m³ | H114: 0.0568 | I114: 105 | J114: 5.96
A115: Insumo | B115: 4741 | C115: SINAPI | D115: PO DE PEDRA (POSTO PEDREIRA/FORNECEDOR, SEM FRETE) | E115: Material | G115: m³ | H115: 0.0098 | I115: 253.71 | J115: 2.48
A116: Insumo | B116: 36170 | C116: SINAPI | D116: BLOQUETE/PISO INTERTRAVADO DE CONCRETO - MODELO ONDA/16 FACES/RETANGULAR/TIJOLINHO/PAVER/HOLANDES/PARALELEPIPEDO, *22 CM X 11* CM, E = 8 CM, RESISTENCIA DE 35 MPA (NBR 9781), COR NATURAL | E116: Material | G116: m² | H116: 1.0041 | I116: 75 | J116: 75.3
B117: 0 | E117: MO sem LS => | F117: 3.876392225 | G117: LS => | H117: 3.22 | I117: MO com LS => | J117: 7.1
B118: 0 | E118: Valor do BDI => | F118: 0 | H118: Valor com BDI => | J118: 93.02
B119: 0
A120: 11 | B120: Código | C120: Banco | D120: Descrição | E120: Tipo | G120: Und | H120: Quant. | I120: Valor Unit | J120: Total
A121: Composição | B121: 103310 | C121: SINAPI | D121: INSTALAÇÃO DE LIXEIRA METÁLICA DUPLA, CAPACIDADE DE 60 L, EM TUBO DE AÇO CARBONO E CESTOS EM CHAPA DE AÇO COM PINTURA ELETROSTÁTICA, SOBRE SOLO. AF_11/2021 | E121: URBA - URBANIZAÇÃO | G121: UN | H121: 1 | I121: 1285.06 | J121: 1285.06
A122: Composição Auxiliar | B122: 102486 | C122: SINAPI | D122: CONCRETO FCK = 15MPA, TRAÇO 1:3,4:3,4 (EM MASSA SECA DE CIMENTO/ AREIA MÉDIA/ SEIXO ROLADO) - PREPARO MANUAL. AF_05/2021 | E122: FUES - FUNDAÇÕES E ESTRUTURAS | G122: m³ | H122: 0.0222 | I122: 991.67 | J122: 22.01
A123: Composição Auxiliar | B123: 88309 | C123: SINAPI | D123: PEDREIRO COM ENCARGOS COMPLEMENTARES | E123: SEDI - SERVIÇOS DIVERSOS | G123: H | H123: 0.8681 | I123: 20.67 | J123: 17.94
A124: Composição Auxiliar | B124: 88316 | C124: SINAPI | D124: SERVENTE COM ENCARGOS COMPLEMENTARES | E124: SEDI - SERVIÇOS DIVERSOS | G124: H | H124: 0.5787 | I124: 15.35 | J124: 8.88
A125: Insumo | B125: 4721 | C125: SINAPI | D125: PEDRA BRITADA N. 1 (9,5 a 19 MM) POSTO PEDREIRA/FORNECEDOR, SEM FRETE | E125: Material | G125: m³ | H125: 0.0012 | I125: 268.59 | J125: 0.32
A126: Insumo | B126: 42440 | C126: SINAPI | D126: LIXEIRA DUPLA, COM CAPACIDADE VOLUMETRICA DE 60L*, FABRICADA EM TUBO DE ACO CARBONO, CESTOS EM CHAPA DE ACO E PINTURA NO PROCESSO ELETROSTATICO - PARA ACADEMIA AO AR LIVRE / ACADEMIA DA TERCEIRA IDADE - ATI | E126: Material | G126: UN | H126: 1 | I126: 1235.91 | J126: 1235.91
B127: 0 | E127: MO sem LS => | F127: 12.65560166 | G127: LS => | H127: 10.52 | I127: MO com LS => | J127: 23.18
B128: 0 | E128: Valor do BDI => | F128: 0 | H128: Valor com BDI => | J128: 1285.06
B129: 0
A130: 12 | B130: Código | C130: Banco | D130: Descrição | E130: Tipo | G130: Und | H130: Quant. | I130: Valor Unit | J130: Total
A131: Composição | B131: 92435 | C131: SINAPI | D131: MONTAGEM E DESMONTAGEM DE FÔRMA DE PILARES RETANGULARES E ESTRUTURAS SIMILARES, PÉ-DIREITO SIMPLES, EM CHAPA DE MADEIRA COMPENSADA PLASTIFICADA, 12 UTILIZAÇÕES. AF_09/2020 | E131: FUES - FUNDAÇÕES E ESTRUTURAS | G131: m² | H131: 1 | I131: 55.21 | J131: 55.21
A132: Composição Auxiliar | B132: 88239 | C132: SINAPI | D132: AJUDANTE DE CARPINTEIRO COM ENCARGOS COMPLEMENTARES | E132: SEDI - SERVIÇOS DIVERSOS | G132: H | H132: 0.117 | I132: 16.91 | J132: 1.97
A133: Composição Auxiliar | B133: 88262 | C133: SINAPI | D133: CARPINTEIRO DE FORMAS COM ENCARGOS COMPLEMENTARES | E133: SEDI - SERVIÇOS DIVERSOS | G133: H | H133: 0.638 | I133: 20.33 | J133: 12.97
A134: Composição Auxiliar | B134: 92264 | C134: SINAPI | D134: FABRICAÇÃO DE FÔRMA PARA PILARES E ESTRUTURAS SIMILARES, EM CHAPA DE MADEIRA COMPENSADA PLASTIFICADA, E = 18 MM. AF_09/2020 | E134: FUES - FUNDAÇÕES E ESTRUTURAS | G134: m² | H134: 0.094 | I134: 228.48 | J134: 21.47
A135: Insumo | B135: 2692 | C135: SINAPI | D135: DESMOLDANTE PROTETOR PARA FORMAS DE MADEIRA, DE BASE OLEOSA EMULSIONADA EM AGUA | E135: Material | G135: L | H135: 0.004 | I135: 12.86 | J135: 0.05
A136: Insumo | B136: 40271 | C136: SINAPI | D136: LOCACAO DE APRUMADOR METALICO DE PILAR, COM ALTURA E ANGULO REGULAVEIS, EXTENSAO DE *1,50* A *2,80* M | E136: Equipamento | G136: UNXMES | H136: 0.196 | I136: 20.13 | J136: 3.94
A137: Insumo | B137: 40275 | C137: SINAPI | D137: LOCACAO DE VIGA SANDUICHE METALICA VAZADA PARA TRAVAMENTO DE PILARES, ALTURA DE *8* CM, LARGURA DE *6* CM E EXTENSAO DE 2 M | E137: Equipamento | G137: UNXMES | H137: 0.393 | I137: 21.04 | J137: 8.26
A138: Insumo | B138: 40287 | C138: SINAPI | D138: LOCACAO DE BARRA DE ANCORAGEM DE 0,80 A 1,20 M DE EXTENSAO, COM ROSCA DE 5/8", INCLUINDO PORCA E FLANGE | E138: Equipamento | G138: MES | H138: 0.785 | I138: 7.75 | J138: 6.08
A139: Insumo | B139: 40304 | C139: SINAPI | D139: PREGO DE ACO POLIDO COM CABECA DUPLA 17 X 27 (2 1/2 X 11) | E139: Material | G139: KG | H139: 0.019 | I139: 24.83 | J139: 0.47
B140: 0 | E140: MO sem LS => | F140: 8.124044551 | G140: LS => | H140: 6.76 | I140: MO com LS => | J140: 14.88
B141: 0 | E141: Valor do BDI => | F141: 0 | H141: Valor com BDI => | J141: 55.21
B142: 0
A143: 13 | B143: Código | C143: Banco | D143: Descrição | E143: Tipo | G143: Und | H143: Quant. | I143: Valor Unit | J143: Total
A144: Composição | B144: 92761 | C144: SINAPI | D144: ARMAÇÃO DE PILAR OU VIGA DE ESTRUTURA CONVENCIONAL DE CONCRETO ARMADO UTILIZANDO AÇO CA-50 DE 8,0 MM - MONTAGEM. AF_06/2022 | E144: FUES - FUNDAÇÕES E ESTRUTURAS | G144: KG | H144: 1 | I144: 15.09 | J144: 15.09
A145: Composição Auxiliar | B145: 88238 | C145: SINAPI | D145: AJUDANTE DE ARMADOR COM ENCARGOS COMPLEMENTARES | E145: SEDI - SERVIÇOS DIVERSOS | G145: H | H145: 0.0092 | I145: 15.4 | J145: 0.14
A146: Composição Auxiliar | B146: 88245 | C146: SINAPI | D146: ARMADOR COM ENCARGOS COMPLEMENTARES | E146: SEDI - SERVIÇOS DIVERSOS | G146: H | H146: 0.0561 | I146: 20.51 | J146: 1.15
A147: Composição Auxiliar | B147: 92802 | C147: SINAPI | D147: CORTE E DOBRA DE AÇO CA-50, DIÂMETRO DE 8,0 MM. AF_06/2022 | E147: FUES - FUNDAÇÕES E ESTRUTURAS | G147: KG | H147: 1 | I147: 13.02 | J147: 13.02
A148: Insumo | B148: 39017 | C148: SINAPI | D148: ESPACADOR / DISTANCIADOR CIRCULAR COM ENTRADA LATERAL, EM PLASTICO, PARA VERGALHAO *4,2 A 12,5* MM, COBRIMENTO 20 MM | E148: Material | G148: UN | H148: 0.743 | I148: 0.22 | J148: 0.16
A149: Insumo | B149: 43132 | C149: SINAPI | D149: ARAME RECOZIDO 16 BWG, D = 1,65 MM (0,016 KG/M) OU 18 BWG, D = 1,25 MM (0,01 KG/M) | E149: Material | G149: KG | H149: 0.025 | I149: 25 | J149: 0.62
B150: 0 | E150: MO sem LS => | F150: 0.7316007862 | G150: LS => | H150: 0.61 | I150: MO com LS => | J150: 1.34
B151: 0 | E151: Valor do BDI => | F151: 0 | H151: Valor com BDI => | J151: 15.09
B152: 0
A153: 14 | B153: Código | C153: Banco | D153: Descrição | E153: Tipo | G153: Und | H153: Quant. | I153: Valor Unit | J153: Total
A154: Composição | B154: 103685 | C154: SINAPI | D154: CONCRETAGEM DE MURETAS, FCK=25 MPA, COM USO DE BOMBA - LANÇAMENTO, ADENSAMENTO E ACABAMENTO. AF_02/2022_PS | E154: FUES - FUNDAÇÕES E ESTRUTURAS | G154: m³ | H154: 1 | I154: 851.35 | J154: 851.35
A155: Composição Auxiliar | B155: 88262 | C155: SINAPI | D155: CARPINTEIRO DE FORMAS COM ENCARGOS COMPLEMENTARES | E155: SEDI - SERVIÇOS DIVERSOS | G155: H | H155: 0.199 | I155: 20.33 | J155: 4.04
A156: Composição Auxiliar | B156: 88309 | C156: SINAPI | D156: PEDREIRO COM ENCARGOS COMPLEMENTARES | E156: SEDI - SERVIÇOS DIVERSOS | G156: H | H156: 0.795 | I156: 20.67 | J156: 16.43
A157: Composição Auxiliar | B157: 88316 | C157: SINAPI | D157: SERVENTE COM ENCARGOS COMPLEMENTARES | E157: SEDI - SERVIÇOS DIVERSOS | G157: H | H157: 0.894 | I157: 15.35 | J157: 13.72
A158: Composição Auxiliar | B158: 90586 | C158: SINAPI | D158: VIBRADOR DE IMERSÃO, DIÂMETRO DE PONTEIRA 45MM, MOTOR ELÉTRICO TRIFÁSICO POTÊNCIA DE 2 CV - CHP DIURNO. AF_06/2015 | E158: CHOR - CUSTOS HORÁRIOS DE MÁQUINAS E EQUIPAMENTOS | G158: CHP | H158: 0.079 | I158: 1.29 | J158: 0.1
A159: Composição Auxiliar | B159: 90587 | C159: SINAPI | D159: VIBRADOR DE IMERSÃO, DIÂMETRO DE PONTEIRA 45MM, MOTOR ELÉTRICO TRIFÁSICO POTÊNCIA DE 2 CV - CHI DIURNO. AF_06/2015 | E159: CHOR - CUSTOS HORÁRIOS DE MÁQUINAS E EQUIPAMENTOS | G159: CHI | H159: 0.12 | I159: 0.49 | J159: 0.05
A160: Insumo | B160: 1527 | C160: SINAPI | D160: CONCRETO USINADO BOMBEAVEL, CLASSE DE RESISTENCIA C25, BRITA 0 E 1, SLUMP = 100 +/- 20 MM, COM BOMBEAMENTO (DISPONIBILIZACAO DE BOMBA), SEM O LANCAMENTO (NBR 8953) | E160: Material | G160: m³ | H160: 1.103 | I160: 740.72 | J160: 817.01
B161: 0 | E161: MO sem LS => | F161: 14.94321904 | G161: LS => | H161: 12.43 | I161: MO com LS => | J161: 27.37
B162: 0 | E162: Valor do BDI => | F162: 0 | H162: Valor com BDI => | J162: 851.35
B163: 0
A164: 15 | B164: Código | C164: Banco | D164: Descrição | E164: Tipo | G164: Und | H164: Quant. | I164: Valor Unit | J164: Total
A165: Composição | B165: 103314 | C165: SINAPI | D165: INSTALAÇÃO DE PERGOLADO DE MADEIRA, EM MAÇARANDUBA, ANGELIM OU EQUIVALENTE DA REGIÃO, FIXADO COM CONCRETO SOBRE PISO DE CONCRETO EXISTENTE. AF_11/2021 | E165: URBA - URBANIZAÇÃO | G165: m² | H165: 1 | I165: 170.35 | J165: 170.35
A166: Composição Auxiliar | B166: 102486 | C166: SINAPI | D166: CONCRETO FCK = 15MPA, TRAÇO 1:3,4:3,4 (EM MASSA SECA DE CIMENTO/ AREIA MÉDIA/ SEIXO ROLADO) - PREPARO MANUAL. AF_05/2021 | E166: FUES - FUNDAÇÕES E ESTRUTURAS | G166: m³ | H166: 0.0208 | I166: 991.67 | J166: 20.62
A167: Composição Auxiliar | B167: 5795 | C167: SINAPI | D167: MARTELETE OU ROMPEDOR PNEUMÁTICO MANUAL, 28 KG, COM SILENCIADOR - CHP DIURNO. AF_07/2016 | E167: CHOR - CUSTOS HORÁRIOS DE MÁQUINAS E EQUIPAMENTOS | G167: CHP | H167: 0.0177 | I167: 18.13 | J167: 0.32
A168: Composição Auxiliar | B168: 5952 | C168: SINAPI | D168: MARTELETE OU ROMPEDOR PNEUMÁTICO MANUAL, 28 KG, COM SILENCIADOR - CHI DIURNO. AF_07/2016 | E168: CHOR - CUSTOS HORÁRIOS DE MÁQUINAS E EQUIPAMENTOS | G168: CHI | H168: 0.0597 | I168: 16.43 | J168: 0.98
A169: Composição Auxiliar | B169: 87298 | C169: SINAPI | D169: ARGAMASSA TRAÇO 1:3 (EM VOLUME DE CIMENTO E AREIA MÉDIA ÚMIDA) PARA CONTRAPISO, PREPARO MECÂNICO COM BETONEIRA 400 L. AF_08/2019 | E169: SEDI - SERVIÇOS DIVERSOS | G169: m³ | H169: 0.0012 | I169: 774.39 | J169: 0.92
A170: Composição Auxiliar | B170: 88239 | C170: SINAPI | D170: AJUDANTE DE CARPINTEIRO COM ENCARGOS COMPLEMENTARES | E170: SEDI - SERVIÇOS DIVERSOS | G170: H | H170: 0.5342 | I170: 16.91 | J170: 9.03
A171: Composição Auxiliar | B171: 88262 | C171: SINAPI | D171: CARPINTEIRO DE FORMAS COM ENCARGOS COMPLEMENTARES | E171: SEDI - SERVIÇOS DIVERSOS | G171: H | H171: 0.5342 | I171: 20.33 | J171: 10.86
A172: Insumo | B172: 4721 | C172: SINAPI | D172: PEDRA BRITADA N. 1 (9,5 a 19 MM) POSTO PEDREIRA/FORNECEDOR, SEM FRETE | E172: Material | G172: m³ | H172: 0.0023 | I172: 268.59 | J172: 0.61
A173: Insumo | B173: 20204 | C173: SINAPI | D173: PRANCHAO APARELHADO *7,5 X 23* CM, EM MACARANDUBA/MASSARANDUBA, ANGELIM OU EQUIVALENTE DA REGIAO | E173: Material | G173: M | H173: 0.6465 | I173: 46.75 | J173: 30.22
A174: Insumo | B174: 20211 | C174: SINAPI | D174: VIGA APARELHADA *6 X 16* CM, EM MACARANDUBA/MASSARANDUBA, ANGELIM OU EQUIVALENTE DA REGIAO | E174: Material | G174: M | H174: 2.7273 | I174: 19.57 | J174: 53.37
A175: Insumo | B175: 35275 | C175: SINAPI | D175: PILAR QUADRADO NAO APARELHADO *15 X 15* CM, EM MACARANDUBA/MASSARANDUBA, ANGELIM OU EQUIVALENTE DA REGIAO - BRUTA | E175: Material | G175: M | H175: 0.6926 | I175: 61.8 | J175: 42.8
A176: Insumo | B176: 39027 | C176: SINAPI | D176: PREGO DE ACO POLIDO COM CABECA 19 X 36 (3 1/4 X 9) | E176: Material | G176: KG | H176: 0.0312 | I176: 20.1 | J176: 0.62
B177: 0 | E177: MO sem LS => | F177: 10.17689452 | G177: LS => | H177: 8.46 | I177: MO com LS => | J177: 18.64
B178: 0 | E178: Valor do BDI => | F178: 0 | H178: Valor com BDI => | J178: 170.35
B179: 0
A180: 16 | B180: Código | C180: Banco | D180: Descrição | E180: Tipo | G180: Und | H180: Quant. | I180: Valor Unit | J180: Total
A181: Composição | B181: 103946 | C181: SINAPI | D181: PLANTIO DE GRAMA ESMERALDA OU SÃO CARLOS OU CURITIBANA, EM PLACAS. AF_05/2022 | E181: URBA - URBANIZAÇÃO | G181: m² | H181: 1 | I181: 18.49 | J181: 18.49
A182: Composição Auxiliar | B182: 88316 | C182: SINAPI | D182: SERVENTE COM ENCARGOS COMPLEMENTARES | E182: SEDI - SERVIÇOS DIVERSOS | G182: H | H182: 0.1564 | I182: 15.35 | J182: 2.4
A183: Composição Auxiliar | B183: 88441 | C183: SINAPI | D183: JARDINEIRO COM ENCARGOS COMPLEMENTARES | E183: SEDI - SERVIÇOS DIVERSOS | G183: H | H183: 0.0391 | I183: 15.25 | J183: 0.59
A184: Insumo | B184: 3322 | C184: SINAPI | D184: GRAMA ESMERALDA OU SAO CARLOS OU CURITIBANA, EM PLACAS, SEM PLANTIO | E184: Material | G184: m² | H184: 1 | I184: 15.5 | J184: 15.5
B185: 0 | E185: MO sem LS => | F185: 1.250272985 | G185: LS => | H185: 1.04 | I185: MO com LS => | J185: 2.29
B186: 0 | E186: Valor do BDI => | F186: 0 | H186: Valor com BDI => | J186: 18.49
B187: 0
A188: 16 | B188: Código | C188: Banco | D188: Descrição | E188: Tipo | G188: Und | H188: Quant. | I188: Valor Unit | J188: Total
A189: Composição | B189: 98511 | C189: SINAPI | D189: PLANTIO DE ÁRVORE ORNAMENTAL COM ALTURA DE MUDA MAIOR QUE 2,00 M E MENOR OU IGUAL A 4,00 M. AF_05/2018 | E189: URBA - URBANIZAÇÃO | G189: UN | H189: 1 | I189: 124.74 | J189: 124.74
A190: Composição Auxiliar | B190: 88316 | C190: SINAPI | D190: SERVENTE COM ENCARGOS COMPLEMENTARES | E190: SEDI - SERVIÇOS DIVERSOS | G190: H | H190: 1.0401 | I190: 15.35 | J190: 15.96
A191: Composição Auxiliar | B191: 88441 | C191: SINAPI | D191: JARDINEIRO COM ENCARGOS COMPLEMENTARES | E191: SEDI - SERVIÇOS DIVERSOS | G191: H | H191: 0.26 | I191: 15.25 | J191: 3.96
A192: Insumo | B192: 359 | C192: SINAPI | D192: MUDA DE ARVORE ORNAMENTAL, OITI/AROEIRA SALSA/ANGICO/IPE/JACARANDA OU EQUIVALENTE DA REGIAO, H= *2* M | E192: Material | G192: UN | H192: 1 | I192: 104.82 | J192: 104.82
B193: 0 | E193: MO sem LS => | F193: 8.342432846 | G193: LS => | H193: 6.94 | I193: MO com LS => | J193: 15.28
B194: 0 | E194: Valor do BDI => | F194: 0 | H194: Valor com BDI => | J194: 124.74
B195: 0
A196: 17 | B196: Código | C196: Banco | D196: Descrição | E196: Tipo | G196: Und | H196: Quant. | I196: Valor Unit | J196: Total
A197: Composição | B197: 98510 | C197: SINAPI | D197: PLANTIO DE ÁRVORE ORNAMENTAL COM ALTURA DE MUDA MENOR OU IGUAL A 2,00 M. AF_05/2018 | E197: URBA - URBANIZAÇÃO | G197: UN | H197: 1 | I197: 64.96 | J197: 64.96
A198: Composição Auxiliar | B198: 88316 | C198: SINAPI | D198: SERVENTE COM ENCARGOS COMPLEMENTARES | E198: SEDI - SERVIÇOS DIVERSOS | G198: H | H198: 0.7272 | I198: 15.35 | J198: 11.16
A199: Composição Auxiliar | B199: 88441 | C199: SINAPI | D199: JARDINEIRO COM ENCARGOS COMPLEMENTARES | E199: SEDI - SERVIÇOS DIVERSOS | G199: H | H199: 0.1818 | I199: 15.25 | J199: 2.77
A200: Insumo | B200: 358 | C200: SINAPI | D200: MUDA DE ARVORE ORNAMENTAL, OITI/AROEIRA SALSA/ANGICO/IPE/JACARANDA OU EQUIVALENTE DA REGIAO, H= *1* M | E200: Material | G200: UN | H200: 1 | I200: 51.03 | J200: 51.03
... 4300 more rows

Sheet CPU Própria (des)
A1: COMPOSIÇÕES PRÓPRIAS - OBRA "A" - MOBILIZAÇÃO E DESMOBILIZAÇÃO PARA CANTEIRO DE OBRAS
A2: ITEM | B2: EQUIPAMENTO TRANSPORTADO | C2: UNIDADE | D2: ORIGEM | E2: DESTINO | F2: QUANT. | G2: PESO TONELA DA | H2: PREÇO | I2: (R$) | J2: PREÇO TOTAL R$
A3: 1 | B3: EQUIPAMENTOS DE GRANDE PORTE
A4: 1.6 | B4: CAMINHÃO CARROCERIA COM GUINDAUTO 45 T | C4: CHP | D4: Raio 50 km | E4: Canteiro | F4: 8 | G4: - | H4: R$ | I4: 242.75 | J4: =I4*F4 -> 1942 | M4: Composição de Preços de Locação de Veículos
A5: SUB TOTAL 1 | J5: =SUM(J4) -> 1942 | M5: CONTRATAÇÃO DE EMPRESA PARA PRESTAÇÃO DE SERVIÇOS DE LOCAÇÃO DE VEÍCULOS TIPO CAMINHONETE PICK-UP 4X4, PARA USO NA EXECUÇÃO, ACOMPANHAMENTO E FISCALIZAÇÃO DE PROJETOS, SERVIÇOS, OBRAS E CONTRATOS, SOB GESTÃO DO CENTRO DE CONTROLE E OPERAÇÃO DO PISF – AD/GOI/CCO, EM SALGUEIRO-PE.
A6: 3 | B6: VEÍCULOS DE PRODUÇÃO | M6: CODEVASF
A7: 3.2 | B7: CAMINHÃO CARROCERIA 15 T | C7: CHP | D7: Raio 50 km | E7: Canteiro | F7: 8 | G7: - | H7: R$ | I7: 200 | J7: =I7*F7 -> 1600
A8: SUB TOTAL 3 | J8: =SUM(J7) -> 1600 | M8: Veículo Gol 1.0 Flex 12V 5p
A9: 4 | B9: TRABALHO MANUAL CARGA DESCARA | O9: Mensal (R$): | P9: 3749.57
A10: 4.1 | B10: SERVENTE | C10: H | D10: - | E10: Canteiro | F10: 50 | H10: R$ | I10: 12.29 | J10: =F10*I10 -> 614.5 | O10: Diária (R$): | P10: 170.44
A11: SUB TOTAL 4 | J11: =SUM(J10) -> 614.5 | M11: A | O11: Depreciação mensal do equipamento
M12: A1 | O12: Preço de Aquisição | P12: 73429
A13: TOTAL MOBILIZAÇÃO, DESMOBLIZAÇÃO | J13: =J11+J8+J5 -> 4156.5 | M13: A2 | O13: Tempo previsto de vida útil (meses) | P13: 36
M14: A3 | O14: Previsão de recup. Na venda do bem usado | P14: 0.4
M15: A4 | O15: Custo mensal [A1-(A3xA1)]/A2 | P15: 1223.82
A16: COMPOSIÇÕES PRÓPRIAS - OBRA "A" - MOBILIZAÇÃO E DESMOBILIZAÇÃO - ESTACA HÉLICE CONTÍNUA | M16: B | O16: Juros pelo Capital empregado
A17: ITEM | B17: EQUIPAMENTO TRANSPORTADO | C17: UNIDADE | D17: ORIGEM | E17: DESTINO | F17: QUANT. | G17: PESO TONELA DA | H17: PREÇO | I17: (R$) | J17: PREÇO TOTAL R$ | M17: B1 | O17: Taxa mensal de Juros * | P17: 0.010794
A18: 1 | B18: EQUIPAMENTOS DE GRANDE PORTE | M18: B2 | O18: Juros s/depreciação/aluguel (B1xA4) | P18: 13.21
A19: 1.6 | B19: CAMINHÃO CARROCERIA COM GUINDAUTO 45 T | C19: CHP | D19: Raio 50 km | E19: Canteiro | F19: 2 | G19: - | H19: R$ | I19: 242.75 | J19: =I19*F19 -> 485.5 | M19: C | O19: Conservação e manutenção ** | P19: 0.75
A20: SUB TOTAL 1 | J20: =SUM(J19) -> 485.5 | M20: C1 | O20: Taxa de gastos s/a deprec. Inc. seguros (%) | P20: 0.75
A21: 3 | B21: VEÍCULOS DE PRODUÇÃO | M21: C2 | O21: Incidência mensal (C1xA4) | P21: 917.87
A22: 3.2 | B22: CAMINHÃO CARROCERIA 15 T | C22: CHP | D22: Raio 50 km | E22: Canteiro | F22: 2 | G22: - | H22: R$ | I22: 200 | J22: =I22*F22 -> 400 | M22: D | O22: Combustível
A23: SUB TOTAL 3 | J23: =SUM(J22) -> 400 | M23: D1 | O23: Média mensal de quilômetro por veículo | P23: 3000
A24: 4 | B24: TRABALHO MANUAL CARGA DESCARA | M24: D2 | O24: Preço do litro de combustível | P24: 4.79
A25: 4.1 | B25: SERVENTE | C25: H | D25: - | E25: Canteiro | F25: 50 | H25: R$ | I25: 12.29 | J25: =F25*I25 -> 614.5 | M25: D3 | O25: Quilômetros rodados com um litro combustivel*** | P25: 13.7
A26: SUB TOTAL 4 | J26: =SUM(J25) -> 614.5 | M26: D4 | O26: Combustivel (D1/D3)*D2 | P26: 1048.91
M27: E | O27: Lubrificantes
A28: TOTAL MOBILIZAÇÃO, DESMOBLIZAÇÃO | J28: =J26+J23+J20 -> 1500 | M28: E1 | O28: Quilometragem do Contrato (D1*12) | P28: 36000
M29: E2 | O29: Franquia por troca de óleo (km) | P29: 10000
M30: E3 | O30: Preço do litro de óleo | P30: 38.75
M31: E4 | O31: Quantidade de litros de óleo por troca | P31: 3.5
M32: E5 | O32: Quantidade de dias do Contrato | P32: 365
M33: E6 | O33: Lubrificantes E = (E1*E3*E4*30)/E2*E5 | P33: 40.13
M34: F | O34: Pneus
M35: F1 | O35: Quilometragem do Contrato | P35: 36000
M36: F2 | O36: Vida do Pneu em quilômetros | P36: 45000
M37: F3 | O37: Quantidade de pneus | P37: 4
M38: F4 | O38: Preço do Pneu | P38: 340.65
M39: F5 | O39: Quantidade de dias do contrato | P39: 365
M40: F6 | O40: Pneus = (F1*F3*F4*30)/(F2*F5) | P40: 89.6
M41: G | O41: Motorista
M42: G1 | O42: Salário com encargos sociais | P42: Não se aplica
M43: H | O43: Custo Mensal
O44: Sem Motorista (A4+B2+C2+D4+E6+F6) | P44: =P40+P33+P26+P21+P18+P15 -> 3333.54
O45: Com Motorista | P45: Não se aplica
M46: I | O46: Custo Direto p/ km Rodado
O47: Sem Motorista | P47: 1.11
O48: Com Motorista | P48: Não se aplica

Sheet Insumos ORSE (des)
A1: 1 | D1: Obra | E1: Bancos | G1: B.D.I. | I1: Encargos Sociais
D2: Orla Santana (2) | E2: ORSE - 06/2023 - Sergipe | G2: 0,0% | I2: Desonerado: Horista: 83,16% Mensalista: 45,11%
A3: Orçamento Sintético
A4: Item | B4: Código | C4: Banco | D4: Descrição | E4: Und | F4: Quant. | G4: Valor Unit
A5: 1 | B5: 13008 | C5: ORSE | D5: Guarda-corpo tubo ferro galvanizado, alt=0,70m, com barras verticais de 1.1/2" a cada 2,0m e barras horizontais inferior, intermediária e superior de 1.1/2" m | E5: m | F5: 1 | G5: 171.94
A6: 2 | B6: 3705 | C6: ORSE | D6: Disjuntor tripolar 175 A, padrão DIN ( linha branca ), corrente de interrupção 22KA, ref.: Siemens QLH3 ou similar. un | E6: un | F6: 1 | G6: 380
A7: 3 | B7: 4105 | C7: ORSE | D7: Flange 100 x 100mm para eletrocalha metálica (ref. Mopa ou similar) un | E7: un | F7: 1 | G7: 12.5
A8: 4 | B8: 4419 | C8: ORSE | D8: Arruela lisa de 5/16" un | E8: un | F8: 1 | G8: 0.1
A9: 4 | B9: 8347 | C9: ORSE | D9: Arruela lisa zincada ø 1/4" un | E9: un | F9: 1 | G9: 0.05
A10: 5 | B10: 11348 | C10: ORSE | D10: Abraçadeira tipo U, d=1", p/ eletrodutos un | E10: un | F10: 1 | G10: 0.7
A11: 5 | B11: 295 | C11: ORSE | D11: Abraçadeira tipo U, d=26mm (3/4") c/ fixações, p/ tubo galvanizado un | E11: un | F11: 1 | G11: 0.55
A12: 6 | B12: 857 | C12: ORSE | D12: Eletrocalha metálica perfurada 50 x 50 x 3000 mm (ref. valemam ou similar) Eletrocalha metálica perfurada 50 x 50 x 300 mm (ref. valemam ou similar) un | E12: un | F12: 1 | G12: 48
A13: 7 | B13: 12668 | C13: ORSE | D13: Cruzeta 100 x 100 mm para eletrocalha perfurada metálica (ref.: mopa ou similar) un | E13: un | F13: 1 | G13: 82.17
A14: 8 | B14: 3633 | C14: ORSE | D14: Eletrocalha metálica perfurada 100 x 100 x 3000mm, peso, 2,20Kg/m, (ref.: mopa ou similar) un | E14: un | F14: 1 | G14: 89.9
A15: 9 | B15: 4105 | C15: ORSE | D15: Flange 100 x 100mm para eletrocalha metálica (ref. Mopa ou similar) un | E15: un | F15: 1 | G15: 12.5
A16: 10 | B16: 462 | C16: ORSE | D16: Caixa d'agua fibra vidro 3.000 litros - Fortlev-Torres (ou similar) un | E16: un | F16: 1 | G16: 1175.9
A17: 11 | B17: 13369 | C17: ORSE | D17: Caixa metálica com tomada 10A 250V para perfilado e fixação un | E17: un | F17: 1 | G17: 5.9
A18: 12 | B18: 13318 | C18: ORSE | D18: Suporte vertical 150 x 150 mm para fixação de eletrocalha metálica (ref.: mopa ou similar) un | E18: un | F18: 1 | G18: 16.13
A19: 13 | B19: 13318 | C19: ORSE | D19: Suporte vertical 150 x 150 mm para fixação de eletrocalha metálica (ref.: mopa ou similar) un | E19: un | F19: 1 | G19: 16.13
A20: 14 | B20: 13389 | C20: ORSE | D20: Tampa de encaixe 75mm para Tê de descida lateral, zincada, para eletrocalha metálica (ref.: mopa ou similar) un | E20: un | F20: 1 | G20: 11.27
A21: 15 | B21: 13435 | C21: ORSE | D21: Bloco de concreto, estrutural dim. 14 x 19 x 39 cm, fck 10 mpa un | E21: un | F21: 1 | G21: 4.25
A22: 16 | B22: 9221 | C22: ORSE | D22: Motobomba centrífuga, marca schneider ou similar, modelo BC-21 R2, motor 5 cv, trifásico 220V, sucção 2 1/2", recalque 2", hm = 8 a 20m, q = 27,6 a 78,9m3/h un | E22: un | F22: 1 | G22: 5003.68
A23: 17 | B23: 5466 | C23: ORSE | D23: Flange cego, em fofo, pn 10 / 16 / 25, d= 80mm un | E23: un | F23: 1 | G23: 173.37
A24: 18 | B24: 994 | C24: ORSE | D24: Flange ferro galvanizado d=6" un | E24: un | F24: 1 | G24: 361.24
A25: 19 | B25: 4749 | C25: ORSE | D25: Junta de desmontagem travada axialamente JTDA pn 10, d = 500 un | E25: un | F25: 1 | G25: 6208.93
A26: 20 | B26: 6468 | C26: ORSE | D26: Redução Excêntrica em PVC para coletor Esgotos, DN 150 x 100mm un | E26: un | F26: 1 | G26: 385.03
A27: 21 | B27: 2495 | C27: ORSE | D27: Talha manual 5,0 t, elev.= 5,0 m ("koch" ou equivalente) h | E27: dia | F27: 1 | G27: 31.04
A28: 22 | B28: 2069 | C28: ORSE | D28: Tampa de ferro fundido quadrada (600x600mm), carga max. 2000kg p/cx.inspeção un | E28: un | F28: 1 | G28: 1448.93
A29: 23 | B29: 6462 | C29: ORSE | D29: Tê 90º Vinilfort para coletor Esgotos, Junta Elástica Integrada, DN 150 x 150mm un | E29: un | F29: 1 | G29: 391.97
A30: 24 | B30: 5759 | C30: ORSE | D30: Toco em fofo c/ flanges pn 10 / 16 / 25, comp. = 0,25m, d= 80mm un | E30: un | F30: 1 | G30: 438.63
A31: 25 | B31: 4691 | C31: ORSE | D31: Tubo pead flexivel corrugado perfurado d=2 1/2" (Kananet ou similar) m | E31: m | F31: 1 | G31: 7.44
A32: 26 | B32: 2321 | C32: ORSE | D32: Tubo pead flexivel corrugado perfurado d = 4" (Kanadreno ou similar) m | E32: m | F32: 1 | G32: 11.93
A33: 27 | B33: 11638 | C33: ORSE | D33: Válvula de bóia em ferro fundido, Ø=80mm un | E33: un | F33: 1 | G33: 1256.79
A34: 28 | B34: 13435 | C34: ORSE | D34: Bloco de concreto, estrutural dim. 14 x 19 x 39 cm, fck 10 mpa un | E34: un | F34: 1 | G34: 4.25
A35: 29 | B35: 4749 | C35: ORSE | D35: Junta de desmontagem travada axialamente JTDA pn 10, d = 500 un | E35: un | F35: 1 | G35: 6208.93
A36: 30 | B36: 2495 | C36: ORSE | D36: Talha manual 5,0 t, elev.= 5,0 m ("koch" ou equivalente) h | E36: dia | F36: 1 | G36: 31.04
A37: 31 | B37: 5666 | C37: ORSE | D37: Tê 90º pvc, je, bbb, PBA, d= 75mm un | E37: un | F37: 1 | G37: 52.81

Sheet Insumo SINAPI (sem des.)
A1: PRECOS DE INSUMOS
A3: MES DE COLETA: 08/2023
A4: LOCALIDADE: 0320 - MACAPA
A5: ENCARGOS SOCIAIS (%) HORISTA 114,86 MENSALISTA 69,44 | E5: 1
A7: CODIGO | B7: DESCRICAO DO INSUMO | C7: UNIDADE | D7: ORIGEM DO PRECO | E7: PRECO MEDIANO R$
A8: 38605 | B8: ABERTURA PARA ENCAIXE DE CUBA OU LAVATORIO EM BANCADA DE MARMORE/ GRANITO OU OUTRO TIPO DE PEDRA NATURAL | C8: UN | D8: CR | E8: 170.59
A9: 11270 | B9: ABRACADEIRA DE LATAO PARA FIXACAO DE CABO PARA-RAIO, DIMENSOES 32 X 24 X 24 MM | C9: UN | D9: CR | E9: 2.5
A10: 412 | B10: ABRACADEIRA DE NYLON PARA AMARRACAO DE CABOS, COMPRIMENTO DE *230* X *7,6* MM | C10: UN | D10: CR | E10: 1.28
A11: 414 | B11: ABRACADEIRA DE NYLON PARA AMARRACAO DE CABOS, COMPRIMENTO DE 100 X 2,5 MM | C11: UN | D11: CR | E11: 0.08
A12: 410 | B12: ABRACADEIRA DE NYLON PARA AMARRACAO DE CABOS, COMPRIMENTO DE 150 X *3,6* MM | C12: UN | D12: CR | E12: 0.19
A13: 411 | B13: ABRACADEIRA DE NYLON PARA AMARRACAO DE CABOS, COMPRIMENTO DE 200 X *4,6* MM | C13: UN | D13: C | E13: 0.25
A14: 408 | B14: ABRACADEIRA DE NYLON PARA AMARRACAO DE CABOS, COMPRIMENTO DE 390 X *4,6* MM | C14: UN | D14: CR | E14: 1.24
A15: 39131 | B15: ABRACADEIRA EM ACO PARA AMARRACAO DE ELETRODUTOS, TIPO D, COM 1 1/2" E CUNHA DE FIXACAO | C15: UN | D15: CR | E15: 5.49
A16: 394 | B16: ABRACADEIRA EM ACO PARA AMARRACAO DE ELETRODUTOS, TIPO D, COM 1 1/2" E PARAFUSO DE FIXACAO | C16: UN | D16: CR | E16: 5.56
A17: 39130 | B17: ABRACADEIRA EM ACO PARA AMARRACAO DE ELETRODUTOS, TIPO D, COM 1 1/4" E CUNHA DE FIXACAO | C17: UN | D17: CR | E17: 5.01
A18: 395 | B18: ABRACADEIRA EM ACO PARA AMARRACAO DE ELETRODUTOS, TIPO D, COM 1 1/4" E PARAFUSO DE FIXACAO | C18: UN | D18: CR | E18: 5.36
A19: 39127 | B19: ABRACADEIRA EM ACO PARA AMARRACAO DE ELETRODUTOS, TIPO D, COM 1/2" E CUNHA DE FIXACAO | C19: UN | D19: CR | E19: 2.64
A20: 392 | B20: ABRACADEIRA EM ACO PARA AMARRACAO DE ELETRODUTOS, TIPO D, COM 1/2" E PARAFUSO DE FIXACAO | C20: UN | D20: CR | E20: 2.71
A21: 39129 | B21: ABRACADEIRA EM ACO PARA AMARRACAO DE ELETRODUTOS, TIPO D, COM 1" E CUNHA DE FIXACAO | C21: UN | D21: CR | E21: 3.09
A22: 393 | B22: ABRACADEIRA EM ACO PARA AMARRACAO DE ELETRODUTOS, TIPO D, COM 1" E PARAFUSO DE FIXACAO | C22: UN | D22: C | E22: 3.23
A23: 39133 | B23: ABRACADEIRA EM ACO PARA AMARRACAO DE ELETRODUTOS, TIPO D, COM 2 1/2" E CUNHA DE FIXACAO | C23: UN | D23: CR | E23: 7.21
A24: 397 | B24: ABRACADEIRA EM ACO PARA AMARRACAO DE ELETRODUTOS, TIPO D, COM 2 1/2" E PARAFUSO DE FIXACAO | C24: UN | D24: CR | E24: 7.97
A25: 39132 | B25: ABRACADEIRA EM ACO PARA AMARRACAO DE ELETRODUTOS, TIPO D, COM 2" E CUNHA DE FIXACAO | C25: UN | D25: CR | E25: 5.77
A26: 396 | B26: ABRACADEIRA EM ACO PARA AMARRACAO DE ELETRODUTOS, TIPO D, COM 2" E PARAFUSO DE FIXACAO | C26: UN | D26: CR | E26: 6.18
A27: 39135 | B27: ABRACADEIRA EM ACO PARA AMARRACAO DE ELETRODUTOS, TIPO D, COM 3 1/2" E CUNHA DE FIXACAO | C27: UN | D27: CR | E27: 11.54
A28: 39128 | B28: ABRACADEIRA EM ACO PARA AMARRACAO DE ELETRODUTOS, TIPO D, COM 3/4" E CUNHA DE FIXACAO | C28: UN | D28: CR | E28: 2.88
A29: 400 | B29: ABRACADEIRA EM ACO PARA AMARRACAO DE ELETRODUTOS, TIPO D, COM 3/4" E PARAFUSO DE FIXACAO | C29: UN | D29: CR | E29: 2.81
A30: 39125 | B30: ABRACADEIRA EM ACO PARA AMARRACAO DE ELETRODUTOS, TIPO D, COM 3/8" E PARAFUSO DE FIXACAO | C30: UN | D30: CR | E30: 2.88
A31: 39134 | B31: ABRACADEIRA EM ACO PARA AMARRACAO DE ELETRODUTOS, TIPO D, COM 3" E CUNHA DE FIXACAO | C31: UN | D31: CR | E31: 9.62
A32: 398 | B32: ABRACADEIRA EM ACO PARA AMARRACAO DE ELETRODUTOS, TIPO D, COM 3" E PARAFUSO DE FIXACAO | C32: UN | D32: CR | E32: 8.86
A33: 39126 | B33: ABRACADEIRA EM ACO PARA AMARRACAO DE ELETRODUTOS, TIPO D, COM 4" E CUNHA DE FIXACAO | C33: UN | D33: CR | E33: 12.98
A34: 399 | B34: ABRACADEIRA EM ACO PARA AMARRACAO DE ELETRODUTOS, TIPO D, COM 4" E PARAFUSO DE FIXACAO | C34: UN | D34: CR | E34: 11.44
A35: 39158 | B35: ABRACADEIRA EM ACO PARA AMARRACAO DE ELETRODUTOS, TIPO ECONOMICA (GOTA), COM 8" | C35: UN | D35: CR | E35: 30.71
A36: 39141 | B36: ABRACADEIRA EM ACO PARA AMARRACAO DE ELETRODUTOS, TIPO U SIMPLES, COM 1 1/2" | C36: UN | D36: CR | E36: 2.23
A37: 39140 | B37: ABRACADEIRA EM ACO PARA AMARRACAO DE ELETRODUTOS, TIPO U SIMPLES, COM 1 1/4" | C37: UN | D37: CR | E37: 2.02
A38: 39137 | B38: ABRACADEIRA EM ACO PARA AMARRACAO DE ELETRODUTOS, TIPO U SIMPLES, COM 1/2" | C38: UN | D38: CR | E38: 1.16
A39: 39139 | B39: ABRACADEIRA EM ACO PARA AMARRACAO DE ELETRODUTOS, TIPO U SIMPLES, COM 1" | C39: UN | D39: CR | E39: 1.68
A40: 39143 | B40: ABRACADEIRA EM ACO PARA AMARRACAO DE ELETRODUTOS, TIPO U SIMPLES, COM 2 1/2" | C40: UN | D40: CR | E40: 4.6
A41: 39142 | B41: ABRACADEIRA EM ACO PARA AMARRACAO DE ELETRODUTOS, TIPO U SIMPLES, COM 2" | C41: UN | D41: CR | E41: 3.29
A42: 39138 | B42: ABRACADEIRA EM ACO PARA AMARRACAO DE ELETRODUTOS, TIPO U SIMPLES, COM 3/4" | C42: UN | D42: CR | E42: 1.23
A43: 39136 | B43: ABRACADEIRA EM ACO PARA AMARRACAO DE ELETRODUTOS, TIPO U SIMPLES, COM 3/8" | C43: UN | D43: CR | E43: 0.82
A44: 39144 | B44: ABRACADEIRA EM ACO PARA AMARRACAO DE ELETRODUTOS, TIPO U SIMPLES, COM 3" | C44: UN | D44: CR | E44: 5.36
A45: 39145 | B45: ABRACADEIRA EM ACO PARA AMARRACAO DE ELETRODUTOS, TIPO U SIMPLES, COM 4" | C45: UN | D45: CR | E45: 8.83
A46: 12615 | B46: ABRACADEIRA PVC, PARA CALHA PLUVIAL, DIAMETRO ENTRE *80 E 100* MM, PARA DRENAGEM PLUVIAL PREDIAL | C46: UN | D46: CR | E46: 13.29
A47: 11927 | B47: ABRACADEIRA, GALVANIZADA/ZINCADA, ROSCA SEM FIM, PARAFUSO INOX, LARGURA FITA *12,6 A *14 MM, D = 2" A 2 1/2" | C47: UN | D47: CR | E47: 7.48
A48: 11928 | B48: ABRACADEIRA, GALVANIZADA/ZINCADA, ROSCA SEM FIM, PARAFUSO INOX, LARGURA FITA *12,6 A *14 MM, D = 3" A 3 3/4" | C48: UN | D48: CR | E48: 8.57
A49: 11929 | B49: ABRACADEIRA, GALVANIZADA/ZINCADA, ROSCA SEM FIM, PARAFUSO INOX, LARGURA FITA *12,6 A *14 MM, D = 4" A 4 3/4" | C49: UN | D49: CR | E49: 13.26
A50: 36801 | B50: ACABAMENTO DE METAL CROMADO PARA REGISTRO PEQUENO, DE PAREDE, 1/2 " OU 3/4 " | C50: UN | D50: CR | E50: 53.91
A51: 36246 | B51: ACABAMENTO SIMPLES/CONVENCIONAL PARA FORRO PVC, TIPO "U" OU "C", COR BRANCA, COMPRIMENTO 6 M | C51: M | D51: CR | E51: 3.82
A52: 37600 | B52: ACESSORIO DE LIGACAO NAO ELETRICO PARA CARGAS EXPLOSIVAS, TUBO DE 6 M | C52: UN | D52: AS | E52: 115.69
A53: 37599 | B53: ACESSORIO INICIADOR NAO ELETRICO, TUBO DE 6 M, TEMPO DE RETARDO DE *160* MS | C53: UN | D53: AS | E53: 107.68
A54: 1 | B54: ACETILENO (RECARGA DE GAS ACETILENO PARA CILINDRO DE CONJUNTO OXICORTE GRANDE) NAO INCLUI TROCA/MANUTENCAO DO CILINDRO | C54: KG | D54: AS | E54: 78.5
A55: 3 | B55: ACIDO CLORIDRICO / ACIDO MURIATICO, DILUICAO 10% A 12% PARA USO EM LIMPEZA | C55: L | D55: CR | E55: 19.48
A56: 43054 | B56: ACO CA-25, 10,0 MM, OU 12,5 MM, OU 16,0 MM, OU 20,0 MM, OU 25,0 MM, VERGALHAO | C56: KG | D56: CR | E56: 11.55
A57: 42402 | B57: ACO CA-25, 16,0 MM, BARRA DE TRANSFERENCIA | C57: KG | D57: CR | E57: 11.04
A58: 42403 | B58: ACO CA-25, 20,0 MM, BARRA DE TRANSFERENCIA | C58: KG | D58: CR | E58: 14.16
A59: 42404 | B59: ACO CA-25, 25,0 MM, BARRA DE TRANSFERENCIA | C59: KG | D59: CR | E59: 14.08
A60: 42405 | B60: ACO CA-25, 32,0 MM, BARRA DE TRANSFERENCIA | C60: KG | D60: CR | E60: 15
A61: 34341 | B61: ACO CA-25, 32,0 MM, VERGALHAO | C61: KG | D61: CR | E61: 13.02
A62: 43053 | B62: ACO CA-25, 6,3 MM OU 8,0 MM, VERGALHAO | C62: KG | D62: CR | E62: 10.31
A63: 43058 | B63: ACO CA-50, 10,0 MM, OU 12,5 MM, OU 16,0 MM, OU 20,0 MM, DOBRADO E CORTADO | C63: KG | D63: CR | E63: 10.69
A64: 34 | B64: ACO CA-50, 10,0 MM, VERGALHAO | C64: KG | D64: CR | E64: 10.75
A65: 43055 | B65: ACO CA-50, 12,5 MM OU 16,0 MM, VERGALHAO | C65: KG | D65: C | E65: 9.31
A66: 43056 | B66: ACO CA-50, 20,0 MM OU 25,0 MM, VERGALHAO | C66: KG | D66: CR | E66: 10.73
A67: 43057 | B67: ACO CA-50, 32,0 MM, VERGALHAO | C67: KG | D67: CR | E67: 11.8
A68: 34449 | B68: ACO CA-50, 6,3 MM, DOBRADO E CORTADO | C68: KG | D68: CR | E68: 12.61
A69: 32 | B69: ACO CA-50, 6,3 MM, VERGALHAO | C69: KG | D69: CR | E69: 11.34
A70: 33 | B70: ACO CA-50, 8,0 MM, VERGALHAO | C70: KG | D70: CR | E70: 11.4
A71: 43061 | B71: ACO CA-60, 4,2 MM OU 5,0 MM, DOBRADO E CORTADO | C71: KG | D71: CR | E71: 10.66
A72: 43059 | B72: ACO CA-60, 4,2 MM, OU 5,0 MM, OU 6,0 MM, OU 7,0 MM, VERGALHAO | C72: KG | D72: CR | E72: 10.17
A73: 43062 | B73: ACO CA-60, 6,0 MM OU 7,0 MM, DOBRADO E CORTADO | C73: KG | D73: CR | E73: 11.27
A74: 43060 | B74: ACO CA-60, 8,0 MM OU 9,5 MM, VERGALHAO | C74: KG | D74: CR | E74: 8.86
A75: 40410 | B75: ACOPLAMENTO RIGIDO EM FERRO FUNDIDO PARA SISTEMA DE TUBULACAO RANHURADA, DN 50 MM (2") | C75: UN | D75: AS | E75: 23.71
A76: 40411 | B76: ACOPLAMENTO RIGIDO EM FERRO FUNDIDO PARA SISTEMA DE TUBULACAO RANHURADA, DN 65 MM (2 1/2") | C76: UN | D76: AS | E76: 25.73
A77: 40412 | B77: ACOPLAMENTO RIGIDO EM FERRO FUNDIDO PARA SISTEMA DE TUBULACAO RANHURADA, DN 80 MM (3") | C77: UN | D77: AS | E77: 28.88
A78: 44254 | B78: ADAPTADOR CPVC, ROSCAVEL, COM FLANGES E ANEL DE VEDACAO, 15 MM, CAIXA D'AGUA PARA AGUA QUENTE | C78: UN | D78: AS | E78: 23.27
A79: 44255 | B79: ADAPTADOR CPVC, ROSCAVEL, COM FLANGES E ANEL DE VEDACAO, 22 MM, CAIXA D'AGUA PARA AGUA QUENTE | C79: UN | D79: AS | E79: 25.79
A80: 44256 | B80: ADAPTADOR CPVC, ROSCAVEL, COM FLANGES E ANEL DE VEDACAO, 28 MM, CAIXA D'AGUA PARA AGUA QUENTE | C80: UN | D80: AS | E80: 29.13
A81: 44257 | B81: ADAPTADOR CPVC, ROSCAVEL, COM FLANGES E ANEL DE VEDACAO, 35 MM, CAIXA D'AGUA PARA AGUA QUENTE | C81: UN | D81: AS | E81: 46.09
A82: 44258 | B82: ADAPTADOR CPVC, ROSCAVEL, COM FLANGES E ANEL DE VEDACAO, 42 MM, CAIXA D'AGUA PARA AGUA QUENTE | C82: UN | D82: AS | E82: 52.67
A83: 44259 | B83: ADAPTADOR CPVC, ROSCAVEL, COM FLANGES E ANEL DE VEDACAO, 54 MM, CAIXA D'AGUA PARA AGUA QUENTE | C83: UN | D83: AS | E83: 72.3
A84: 37997 | B84: ADAPTADOR CPVC, SOLDAVEL, 15 MM, PARA AGUA QUENTE | C84: UN | D84: AS | E84: 13.87
A85: 37998 | B85: ADAPTADOR CPVC, SOLDAVEL, 22 MM, PARA AGUA QUENTE | C85: UN | D85: AS | E85: 18.56
A86: 55 | B86: ADAPTADOR DE COMPRESSAO EM POLIPROPILENO (PP), PARA TUBO EM PEAD, 20 MM X 1/2", PARA LIGACAO PREDIAL DE AGUA (NTS 179) | C86: UN | D86: AS | E86: 4
A87: 61 | B87: ADAPTADOR DE COMPRESSAO EM POLIPROPILENO (PP), PARA TUBO EM PEAD, 20 MM X 3/4", PARA LIGACAO PREDIAL DE AGUA (NTS 179) | C87: UN | D87: AS | E87: 3.78
A88: 62 | B88: ADAPTADOR DE COMPRESSAO EM POLIPROPILENO (PP), PARA TUBO EM PEAD, 32 MM X 1", PARA LIGACAO PREDIAL DE AGUA (NTS 179) | C88: UN | D88: AS | E88: 7.84
A89: 10899 | B89: ADAPTADOR EM LATAO, ENGATE RAPIDO 2 1/2" X ROSCA INTERNA 5 FIOS 2 1/2", PARA INSTALACAO PREDIAL DE COMBATE A INCENDIO | C89: UN | D89: AS | E89: 135.19
A90: 10900 | B90: ADAPTADOR EM LATAO, ENGATE RAPIDO1 1/2" X ROSCA INTERNA 5 FIOS 2 1/2", PARA INSTALACAO PREDIAL DE COMBATE A INCENDIO | C90: UN | D90: AS | E90: 105.8
A91: 103 | B91: ADAPTADOR PVC SOLDAVEL CURTO COM BOLSA E ROSCA, 110 MM X 4", PARA AGUA FRIA | C91: UN | D91: CR | E91: 45.1
A92: 107 | B92: ADAPTADOR PVC SOLDAVEL CURTO COM BOLSA E ROSCA, 20 MM X 1/2", PARA AGUA FRIA | C92: UN | D92: CR | E92: 0.85
A93: 65 | B93: ADAPTADOR PVC SOLDAVEL CURTO COM BOLSA E ROSCA, 25 MM X 3/4", PARA AGUA FRIA | C93: UN | D93: CR | E93: 0.93
A94: 108 | B94: ADAPTADOR PVC SOLDAVEL CURTO COM BOLSA E ROSCA, 32 MM X 1", PARA AGUA FRIA | C94: UN | D94: CR | E94: 1.87
A95: 110 | B95: ADAPTADOR PVC SOLDAVEL CURTO COM BOLSA E ROSCA, 40 MM X 1 1/2", PARA AGUA FRIA | C95: UN | D95: CR | E95: 6.49
A96: 109 | B96: ADAPTADOR PVC SOLDAVEL CURTO COM BOLSA E ROSCA, 40 MM X 1 1/4", PARA AGUA FRIA | C96: UN | D96: CR | E96: 3.86
A97: 111 | B97: ADAPTADOR PVC SOLDAVEL CURTO COM BOLSA E ROSCA, 50 MM X 1 1/4", PARA AGUA FRIA | C97: UN | D97: CR | E97: 8.78
A98: 112 | B98: ADAPTADOR PVC SOLDAVEL CURTO COM BOLSA E ROSCA, 50 MM X1 1/2", PARA AGUA FRIA | C98: UN | D98: CR | E98: 4.65
A99: 113 | B99: ADAPTADOR PVC SOLDAVEL CURTO COM BOLSA E ROSCA, 60 MM X 2", PARA AGUA FRIA | C99: UN | D99: CR | E99: 11.65
A100: 104 | B100: ADAPTADOR PVC SOLDAVEL CURTO COM BOLSA E ROSCA, 75 MM X 2 1/2", PARA AGUA FRIA | C100: UN | D100: CR | E100: 20.27
A101: 102 | B101: ADAPTADOR PVC SOLDAVEL CURTO COM BOLSA E ROSCA, 85 MM X 3", PARA AGUA FRIA | C101: UN | D101: CR | E101: 27.94
A102: 95 | B102: ADAPTADOR PVC SOLDAVEL, COM FLANGE E ANEL DE VEDACAO, 20 MM X 1/2", PARA CAIXA D'AGUA | C102: UN | D102: CR | E102: 11.81
A103: 96 | B103: ADAPTADOR PVC SOLDAVEL, COM FLANGE E ANEL DE VEDACAO, 25 MM X 3/4", PARA CAIXA D'AGUA | C103: UN | D103: CR | E103: 12.84
A104: 97 | B104: ADAPTADOR PVC SOLDAVEL, COM FLANGE E ANEL DE VEDACAO, 32 MM X 1", PARA CAIXA D'AGUA | C104: UN | D104: CR | E104: 19.32
A105: 98 | B105: ADAPTADOR PVC SOLDAVEL, COM FLANGE E ANEL DE VEDACAO, 40 MM X 1 1/4", PARA CAIXA D'AGUA | C105: UN | D105: CR | E105: 28.93
A106: 99 | B106: ADAPTADOR PVC SOLDAVEL, COM FLANGE E ANEL DE VEDACAO, 50 MM X 1 1/2", PARA CAIXA D'AGUA | C106: UN | D106: CR | E106: 27.34
A107: 100 | B107: ADAPTADOR PVC SOLDAVEL, COM FLANGES E ANEL DE VEDACAO, 60 MM X 2", PARA CAIXA D' AGUA | C107: UN | D107: CR | E107: 47.77
A108: 75 | B108: ADAPTADOR PVC SOLDAVEL, COM FLANGES LIVRES, 110 MM X 4", PARA CAIXA D' AGUA | C108: UN | D108: CR | E108: 278.51
A109: 83 | B109: ADAPTADOR PVC SOLDAVEL, COM FLANGES LIVRES, 75 MM X 2 1/2", PARA CAIXA D' AGUA | C109: UN | D109: CR | E109: 222.66
A110: 74 | B110: ADAPTADOR PVC SOLDAVEL, COM FLANGES LIVRES, 85 MM X 3", PARA CAIXA D' AGUA | C110: UN | D110: CR | E110: 318.34
A111: 106 | B111: ADAPTADOR PVC SOLDAVEL, LONGO, COM FLANGE LIVRE, 110 MM X 4", PARA CAIXA D' AGUA | C111: UN | D111: CR | E111: 402.55
A112: 88 | B112: ADAPTADOR PVC SOLDAVEL, LONGO, COM FLANGE LIVRE, 32 MM X 1", PARA CAIXA D' AGUA | C112: UN | D112: CR | E112: 11.31
A113: 82 | B113: ADAPTADOR PVC SOLDAVEL, LONGO, COM FLANGE LIVRE, 75 MM X 2 1/2", PARA CAIXA D' AGUA | C113: UN | D113: CR | E113: 211.84
A114: 105 | B114: ADAPTADOR PVC SOLDAVEL, LONGO, COM FLANGE LIVRE, 85 MM X 3", PARA CAIXA D' AGUA | C114: UN | D114: CR | E114: 300.18
A115: 60 | B115: ADAPTADOR PVC, COM REGISTRO, PARA PEAD, 20 MM X 3/4", PARA LIGACAO PREDIAL DE AGUA | C115: UN | D115: AS | E115: 5.19
A116: 72 | B116: ADAPTADOR PVC, ROSCAVEL, COM FLANGES E ANEL DE VEDACAO, 1 1/2", PARA CAIXA D'AGUA | C116: UN | D116: CR | E116: 52.44
A117: 67 | B117: ADAPTADOR PVC, ROSCAVEL, COM FLANGES E ANEL DE VEDACAO, 1/2", PARA CAIXA D' AGUA | C117: UN | D117: CR | E117: 16.95
A118: 71 | B118: ADAPTADOR PVC, ROSCAVEL, COM FLANGES E ANEL DE VEDACAO, 1", PARA CAIXA D' AGUA | C118: UN | D118: CR | E118: 32.38
A119: 73 | B119: ADAPTADOR PVC, ROSCAVEL, COM FLANGES E ANEL DE VEDACAO, 3/4", PARA CAIXA D' AGUA | C119: UN | D119: CR | E119: 16.22
A120: 46 | B120: ADAPTADOR, PVC PBA, BOLSA/ROSCA, JE, DN 75 / DE 85 MM | C120: UN | D120: AS | E120: 38.06
A121: 47 | B121: ADAPTADOR, PVC PBA, BOLSA/ROSCA, JE, DN 100 / DE 110 MM | C121: UN | D121: AS | E121: 65.07
A122: 48 | B122: ADAPTADOR, PVC PBA, BOLSA/ROSCA, JE, DN 50 / DE 60 MM | C122: UN | D122: AS | E122: 16.97
A123: 52 | B123: ADAPTADOR, PVC PBA, PONTA/ROSCA, JE, DN 50 / DE 60 MM | C123: UN | D123: AS | E123: 12.89
A124: 43 | B124: ADAPTADOR, PVC PBA, PONTA/ROSCA, JE, DN 75 / DE 85 MM | C124: UN | D124: AS | E124: 43.52
A125: 39719 | B125: ADESIVO / COLA DE CONTATO LIQUIDO, A BASE DE RESINAS, PARA COLAGEM DE ESPUMA PARA ISOLAMENTO TERMICO FLEXIVEL | C125: L | D125: CR | E125: 157.32
A126: 3410 | B126: ADESIVO / COLA PARA EPS (ISOPOR) E OUTROS MATERIAIS | C126: KG | D126: CR | E126: 35.39
A127: 4791 | B127: ADESIVO ACRILICO DE BASE AQUOSA / COLA DE CONTATO | C127: KG | D127: CR | E127: 25.29
A128: 157 | B128: ADESIVO ESTRUTURAL A BASE DE RESINA EPOXI PARA INJECAO EM TRINCAS, BICOMPONENTE, BAIXA VISCOSIDADE | C128: KG | D128: CR | E128: 278.51
A129: 156 | B129: ADESIVO ESTRUTURAL A BASE DE RESINA EPOXI, BICOMPONENTE, FLUIDO | C129: KG | D129: CR | E129: 99.17
A130: 131 | B130: ADESIVO ESTRUTURAL A BASE DE RESINA EPOXI, BICOMPONENTE, PASTOSO (TIXOTROPICO) | C130: KG | D130: CR | E130: 84.81
A131: 21114 | B131: ADESIVO PARA TUBOS CPVC, *75* G | C131: UN | D131: CR | E131: 31.01
A132: 119 | B132: ADESIVO PLASTICO PARA PVC, BISNAGA COM 75 GR | C132: UN | D132: C | E132: 7.86
A133: 122 | B133: ADESIVO PLASTICO PARA PVC, FRASCO COM *850* GR | C133: UN | D133: CR | E133: 60.47
A134: 20080 | B134: ADESIVO PLASTICO PARA PVC, FRASCO COM 175 GR | C134: UN | D134: CR | E134: 19.74
A135: 124 | B135: ADITIVO ACELERADOR DE PEGA E ENDURECIMENTO PARA ARGAMASSAS E CONCRETOS, LIQUIDO E ISENTO DE CLORETOS | C135: L | D135: CR | E135: 32.7
A136: 7334 | B136: ADITIVO ADESIVO LIQUIDO PARA ARGAMASSAS DE REVESTIMENTOS CIMENTICIOS | C136: L | D136: CR | E136: 33.07
A137: 123 | B137: ADITIVO IMPERMEABILIZANTE DE PEGA NORMAL PARA ARGAMASSAS E CONCRETOS SEM ARMACAO, LIQUIDO E ISENTO DE CLORETOS | C137: L | D137: C | E137: 13.38
A138: 127 | B138: ADITIVO IMPERMEABILIZANTE DE PEGA ULTRARRAPIDA, LIQUIDO E ISENTO DE CLORETOS | C138: L | D138: CR | E138: 31.94
A139: 41373 | B139: ADITIVO LIQUIDO IMPERMEABILIZANTE CRISTALIZANTE | C139: L | D139: CR | E139: 44.51
A140: 133 | B140: ADITIVO LIQUIDO INCORPORADOR DE AR PARA CONCRETO E ARGAMASSA, LIQUIDO E ISENTO DE CLORETOS | C140: L | D140: CR | E140: 13.27
A141: 43617 | B141: ADITIVO PLASTIFICANTE E ESTABILIZADOR PARA ARGAMASSAS DE ASSENTAMENTO E REBOCO, LIQUIDO E ISENTO DE CLORETOS | C141: L | D141: CR | E141: 14.82
A142: 132 | B142: ADITIVO PLASTIFICANTE RETARDADOR DE PEGA E REDUTOR DE AGUA PARA CONCRETO, LIQUIDO E ISENTO DE CLORETOS | C142: L | D142: CR | E142: 13.75
A143: 43618 | B143: ADITIVO SUPERPLASTIFICANTE DE PEGA NORMAL PARA CONCRETO, LIQUIDO E ISENTO DE CLORETOS | C143: KG | D143: CR | E143: 34.63
A144: 37476 | B144: ADUELA/ GALERIA PRE-MOLDADA DE CONCRETO ARMADO, SECAO QUADRADA INTERNA DE 1,50 X 1,50 M (L X A), MISULA DE 20 X 20 CM, C = 1,00 M, ESPESSURA MIN = 15 CM, TB-45 E FCK DO CONCRETO = 30 MPA | C144: UN | D144: AS | E144: 3576.14
A145: 37478 | B145: ADUELA/ GALERIA PRE-MOLDADA DE CONCRETO ARMADO, SECAO RETANGULAR INTERNA DE 2,00 X 2,00 M (L X A), MISULA DE 20 X 20 CM, C = 1,00 M, ESPESSURA MIN = 15 CM, TB-45 E FCK DO CONCRETO = 30 MPA | C145: UN | D145: AS | E145: 4479.21
A146: 37477 | B146: ADUELA/ GALERIA PRE-MOLDADA DE CONCRETO ARMADO, SECAO RETANGULAR INTERNA DE 2,50 X 2,50 M (L X A), MISULA DE 20 X 20 CM, C = 1,00 M, ESPESSURA MIN = 15 CM, TB-45 E FCK DO CONCRETO = 30 MPA | C146: UN | D146: AS | E146: 6068.61
A147: 37479 | B147: ADUELA/ GALERIA PRE-MOLDADA DE CONCRETO ARMADO, SECAO RETANGULAR INTERNA DE 3,00 X 3,00 M (L X A), MISULA DE 20 X 20 CM, C = 1.00 M, ESPESSURA MIN = 20 CM, TB-45 E FCK DO CONCRETO = 30 MPA | C147: UN | D147: AS | E147: 7197.44
A148: 4319 | B148: AFASTADOR PARA TELHA DE FIBROCIMENTO CANALETE 90 OU KALHETAO | C148: UN | D148: AS | E148: 1.92
A149: 42409 | B149: AGENTE DE CURA, PROTETOR DA EVAPORACAO DA AGUA DE HIDRATACAO DO CONCRETO | C149: KG | D149: CR | E149: 21.8
A150: 40553 | B150: AGREGADO RECICLADO, TIPO RACHAO RECICLADO CINZA, CLASSE A | C150: M3 | D150: AS | E150: 56.25
A151: 6114 | B151: AJUDANTE DE ARMADOR (HORISTA) | C151: H | D151: CR | E151: 13.45
A152: 40912 | B152: AJUDANTE DE ARMADOR (MENSALISTA) | C152: MES | D152: CR | E152: 2335.98
A153: 247 | B153: AJUDANTE DE ELETRICISTA (HORISTA) | C153: H | D153: CR | E153: 18.82
A154: 40919 | B154: AJUDANTE DE ELETRICISTA (MENSALISTA) | C154: MES | D154: CR | E154: 3266.02
A155: 40984 | B155: AJUDANTE DE ESTRUTURAS METALICAS (MENSALISTA) | C155: MES | D155: CR | E155: 2156.71
A156: 44499 | B156: AJUDANTE DE ESTRUTURAS METALICAS HORISTA | C156: H | D156: CR | E156: 12.41
A157: 248 | B157: AJUDANTE DE OPERACAO EM GERAL (HORISTA) | C157: H | D157: CR | E157: 13.45
A158: 41086 | B158: AJUDANTE DE OPERACAO EM GERAL (MENSALISTA) | C158: MES | D158: CR | E158: 2335.98
A159: 34466 | B159: AJUDANTE DE PINTOR (HORISTA) | C159: H | D159: CR | E159: 15.34
A160: 41083 | B160: AJUDANTE DE PINTOR (MENSALISTA) | C160: MES | D160: CR | E160: 2662.61
A161: 252 | B161: AJUDANTE DE SERRALHEIRO (HORISTA) | C161: H | D161: CR | E161: 15.34
A162: 40909 | B162: AJUDANTE DE SERRALHEIRO (MENSALISTA) | C162: MES | D162: CR | E162: 2662.61
A163: 242 | B163: AJUDANTE ESPECIALIZADO (HORISTA) | C163: H | D163: CR | E163: 13.64
A164: 41085 | B164: AJUDANTE ESPECIALIZADO (MENSALISTA) | C164: MES | D164: CR | E164: 2370.68
A165: 427 | B165: ALCA PREFORMADA DE CONTRA POSTE, EM ACO GALVANIZADO, PARA CABO 3/16", COMPRIMENTO *860* MM | C165: UN | D165: AS | E165: 6.31
A166: 417 | B166: ALCA PREFORMADA DE DISTRIBUICAO, EM ACO GALVANIZADO, PARA CABO DE ALUMINIO DIAMETRO 16 A 25 MM | C166: UN | D166: AS | E166: 2.97
A167: 11273 | B167: ALCA PREFORMADA DE DISTRIBUICAO, EM ACO GALVANIZADO, PARA CONDUTORES DE ALUMINIO AWG 1/0 (CAA 6/1 OU CA 7 FIOS) | C167: UN | D167: AS | E167: 9.22
A168: 11272 | B168: ALCA PREFORMADA DE DISTRIBUICAO, EM ACO GALVANIZADO, PARA CONDUTORES DE ALUMINIO AWG 2 (CAA 6/1 OU CA 7 FIOS) | C168: UN | D168: AS | E168: 5.57
A169: 11275 | B169: ALCA PREFORMADA DE SERVICO, EM ACO GALVANIZADO, PARA CONDUTORES DE ALUMINIO AWG 4 (CAA 6/1) | C169: UN | D169: AS | E169: 2.23
A170: 11274 | B170: ALCA PREFORMADA DE SERVICO, EM ACO GALVANIZADO, PARA CONDUTORES DE ALUMINIO AWG 6 (CAA 6/1) | C170: UN | D170: AS | E170: 1.7
A171: 38470 | B171: ALICATE DE CORTE DIAGONAL 6 " COM ISOLAMENTO | C171: UN | D171: C | E171: 33.75
A172: 38547 | B172: ALICATE DE CRIMPAR RJ11, RJ12 E RJ45 | C172: UN | D172: CR | E172: 92.1
A173: 38469 | B173: ALICATE DE PRESSAO PARA SOLDA DE CHAPA 18 " | C173: UN | D173: CR | E173: 99.03
A174: 38467 | B174: ALICATE DE PRESSAO 11 " PARA SOLDA, TIPO C | C174: UN | D174: CR | E174: 55.72
A175: 38468 | B175: ALICATE DE PRESSAO 11 " PARA SOLDA, TIPO U | C175: UN | D175: CR | E175: 61.31
A176: 38471 | B176: ALICATE PARA ANEIS DE PISTAO, CAPACIDADE 50 A 100 MM | C176: UN | D176: CR | E176: 79.62
A177: 37370 | B177: ALIMENTACAO - HORISTA (COLETADO CAIXA - ENCARGOS COMPLEMENTARES) | C177: H | D177: C | E177: 0.01
A178: 40862 | B178: ALIMENTACAO - MENSALISTA (COLETADO CAIXA - ENCARGOS COMPLEMENTARES) | C178: MES | D178: C | E178: 0.01
A179: 10658 | B179: ALISADORA DE CONCRETO COM MOTOR A GASOLINA DE 5,5 HP, PESO COM MOTOR DE 78 KG, 4 PAS | C179: UN | D179: AS | E179: 7199
A180: 253 | B180: ALMOXARIFE (HORISTA) | C180: H | D180: C | E180: 19.31
A181: 40809 | B181: ALMOXARIFE (MENSALISTA) | C181: MES | D181: CR | E181: 3351.18
A182: 42428 | B182: ALONGADOR COM TRES ALTURAS, EM TUBO DE ACO CARBONO, PINTURA NO PROCESSO ELETROSTATICO - EQUIPAMENTO DE GINASTICA PARA ACADEMIA AO AR LIVRE / ACADEMIA DA TERCEIRA IDADE - ATI | C182: UN | D182: AS | E182: 2271
A183: 301 | B183: ANEL BORRACHA PARA TUBO ESGOTO PREDIAL, DN 100 MM (NBR 5688) | C183: UN | D183: C | E183: 4.85
A184: 296 | B184: ANEL BORRACHA PARA TUBO ESGOTO PREDIAL, DN 50 MM (NBR 5688) | C184: UN | D184: CR | E184: 2.74
A185: 297 | B185: ANEL BORRACHA PARA TUBO ESGOTO PREDIAL, DN 75 MM (NBR 5688) | C185: UN | D185: CR | E185: 4.03
A186: 299 | B186: ANEL BORRACHA, DN 100 MM, PARA TUBO SERIE REFORCADA ESGOTO PREDIAL | C186: UN | D186: CR | E186: 5.69
A187: 300 | B187: ANEL BORRACHA, DN 150 MM, PARA TUBO SERIE REFORCADA ESGOTO PREDIAL | C187: UN | D187: CR | E187: 19.69
A188: 20085 | B188: ANEL BORRACHA, DN 50 MM, PARA TUBO SERIE REFORCADA ESGOTO PREDIAL | C188: UN | D188: CR | E188: 3.6
A189: 298 | B189: ANEL BORRACHA, DN 75 MM, PARA TUBO SERIE REFORCADA ESGOTO PREDIAL | C189: UN | D189: CR | E189: 4.37
A190: 311 | B190: ANEL BORRACHA, PARA TUBO PVC DEFOFO, DN 100 MM (NBR 7665) | C190: UN | D190: CR | E190: 16.24
A191: 318 | B191: ANEL BORRACHA, PARA TUBO PVC DEFOFO, DN 150 MM (NBR 7665) | C191: UN | D191: CR | E191: 32.7
A192: 319 | B192: ANEL BORRACHA, PARA TUBO PVC DEFOFO, DN 200 MM (NBR 7665) | C192: UN | D192: CR | E192: 51.27
A193: 303 | B193: ANEL BORRACHA, PARA TUBO PVC, REDE COLETOR ESGOTO, DN 100 MM (NBR 7362) | C193: UN | D193: CR | E193: 5.37
A194: 305 | B194: ANEL BORRACHA, PARA TUBO PVC, REDE COLETOR ESGOTO, DN 150 MM (NBR 7362) | C194: UN | D194: CR | E194: 16.9
A195: 306 | B195: ANEL BORRACHA, PARA TUBO PVC, REDE COLETOR ESGOTO, DN 200 MM (NBR 7362) | C195: UN | D195: CR | E195: 25.63
A196: 307 | B196: ANEL BORRACHA, PARA TUBO PVC, REDE COLETOR ESGOTO, DN 250 MM (NBR 7362) | C196: UN | D196: CR | E196: 64.76
A197: 309 | B197: ANEL BORRACHA, PARA TUBO PVC, REDE COLETOR ESGOTO, DN 350 MM (NBR 7362) | C197: UN | D197: CR | E197: 106.09
A198: 310 | B198: ANEL BORRACHA, PARA TUBO PVC, REDE COLETOR ESGOTO, DN 400 MM (NBR 7362) | C198: UN | D198: CR | E198: 147.03
A199: 328 | B199: ANEL BORRACHA, PARA TUBO/CONEXAO PVC PBA, DN 100 MM, PARA REDE AGUA | C199: UN | D199: CR | E199: 12.85
A200: 325 | B200: ANEL BORRACHA, PARA TUBO/CONEXAO PVC PBA, DN 50 MM, PARA REDE AGUA | C200: UN | D200: CR | E200: 3.79
A201: 20326 | B201: ANEL BORRACHA, PARA TUBO/CONEXAO PVC PBA, DN 60 MM, PARA REDE AGUA | C201: UN | D201: CR | E201: 6.94
A202: 329 | B202: ANEL BORRACHA, PARA TUBO/CONEXAO PVC PBA, DN 75 MM, PARA REDE AGUA | C202: UN | D202: CR | E202: 10.75
... 4743 more rows

Sheet CPU (sem des)
A1: 1 | D1: Composições Analíticas com Preço Unitário | E1: Bancos | G1: B.D.I. | I1: Encargos Sociais
D2: Orla de Santana | E2: SINAPI - 08/2023 - Amapá SICRO3 - 04/2023 - Amapá ORSE - 06/2023 - Sergipe | G2: 0,0% | I2: Não Desonerado: Horista: 112,56% Mensalista: 68,47%
D3: Composições Analíticas com Preço Unitário
D4: Composições Principais
A5: 1 | B5: Código | C5: Banco | D5: Descrição | E5: Tipo | G5: Und | H5: Quant. | I5: Valor Unit | J5: Total
A6: Composição | B6: 100575 | C6: SINAPI | D6: REGULARIZAÇÃO DE SUPERFÍCIES COM MOTONIVELADORA. AF_11/2019 | E6: PAVI - PAVIMENTAÇÃO | G6: m² | H6: 1 | I6: 0.12 | J6: 0.12
A7: Composição Auxiliar | B7: 5932 | C7: SINAPI | D7: MOTONIVELADORA POTÊNCIA BÁSICA LÍQUIDA (PRIMEIRA MARCHA) 125 HP, PESO BRUTO 13032 KG, LARGURA DA LÂMINA DE 3,7 M - CHP DIURNO. AF_06/2014 | E7: CHOR - CUSTOS HORÁRIOS DE MÁQUINAS E EQUIPAMENTOS | G7: CHP | H7: 0.0001 | I7: 264.73 | J7: 0.02
A8: Composição Auxiliar | B8: 5934 | C8: SINAPI | D8: MOTONIVELADORA POTÊNCIA BÁSICA LÍQUIDA (PRIMEIRA MARCHA) 125 HP, PESO BRUTO 13032 KG, LARGURA DA LÂMINA DE 3,7 M - CHI DIURNO. AF_06/2014 | E8: CHOR - CUSTOS HORÁRIOS DE MÁQUINAS E EQUIPAMENTOS | G8: CHI | H8: 0.001 | I8: 99.54 | J8: 0.09
A9: Composição Auxiliar | B9: 88316 | C9: SINAPI | D9: SERVENTE COM ENCARGOS COMPLEMENTARES | E9: SEDI - SERVIÇOS DIVERSOS | G9: H | H9: 0.001 | I9: 17.28 | J9: 0.01
B10: 0 | E10: MO sem LS => | F10: 0.01411366202 | G10: LS => | H10: 0.02 | I10: MO com LS => | J10: 0.03
B11: 0 | E11: Valor do BDI => | F11: 0 | H11: Valor com BDI => | J11: 0.12
B12: 0
A13: 2 | B13: Código | C13: Banco | D13: Descrição | E13: Tipo | G13: Und | H13: Quant. | I13: Valor Unit | J13: Total
A14: Composição | B14: 3212 | C14: ORSE | D14: Colchão de areia | E14: Conversão InfoWOrca | G14: m³ | H14: 1 | I14: 134.79 | J14: 134.79
A15: Composição Auxiliar | B15: 10549 | C15: ORSE | D15: Encargos Complementares - Servente | E15: Provisórios | G15: h | H15: 1 | I15: 3.74 | J15: 3.74
A16: Insumo | B16: 366 | C16: SINAPI | D16: AREIA FINA - POSTO JAZIDA/FORNECEDOR (RETIRADO NA JAZIDA, SEM TRANSPORTE) | E16: Material | G16: m³ | H16: 1.12 | I16: 105 | J16: 117.6
A17: Insumo | B17: 6111 | C17: SINAPI | D17: SERVENTE DE OBRAS | E17: Mão de Obra | G17: H | H17: 1 | I17: 13.45 | J17: 13.45
B18: 0 | E18: MO sem LS => | F18: 6.3276251 | G18: LS => | H18: 7.12 | I18: MO com LS => | J18: 13.45
B19: 0 | E19: Valor do BDI => | F19: 0 | H19: Valor com BDI => | J19: 134.79
B20: 0
A21: 3 | B21: Código | C21: Banco | D21: Descrição | E21: Tipo | G21: Und | H21: Quant. | I21: Valor Unit | J21: Total
A22: Composição | B22: 92397 | C22: SINAPI | D22: EXECUÇÃO DE PAVIMENTO EM PISO INTERTRAVADO, COM BLOCO RETANGULAR COR NATURAL DE 20 X 10 CM, ESPESSURA 6 CM. AF_10/2022 | E22: PAVI - PAVIMENTAÇÃO | G22: m² | H22: 1 | I22: 76.05 | J22: 76.05
A23: Composição Auxiliar | B23: 88260 | C23: SINAPI | D23: CALCETEIRO COM ENCARGOS COMPLEMENTARES | E23: SEDI - SERVIÇOS DIVERSOS | G23: H | H23: 0.2015 | I23: 21.4 | J23: 4.31
A24: Composição Auxiliar | B24: 88316 | C24: SINAPI | D24: SERVENTE COM ENCARGOS COMPLEMENTARES | E24: SEDI - SERVIÇOS DIVERSOS | G24: H | H24: 0.2015 | I24: 17.28 | J24: 3.48
A25: Composição Auxiliar | B25: 91277 | C25: SINAPI | D25: PLACA VIBRATÓRIA REVERSÍVEL COM MOTOR 4 TEMPOS A GASOLINA, FORÇA CENTRÍFUGA DE 25 KN (2500 KGF), POTÊNCIA 5,5 CV - CHP DIURNO. AF_08/2015 | E25: CHOR - CUSTOS HORÁRIOS DE MÁQUINAS E EQUIPAMENTOS | G25: CHP | H25: 0.0041 | I25: 8.99 | J25: 0.03
A26: Composição Auxiliar | B26: 91278 | C26: SINAPI | D26: PLACA VIBRATÓRIA REVERSÍVEL COM MOTOR 4 TEMPOS A GASOLINA, FORÇA CENTRÍFUGA DE 25 KN (2500 KGF), POTÊNCIA 5,5 CV - CHI DIURNO. AF_08/2015 | E26: CHOR - CUSTOS HORÁRIOS DE MÁQUINAS E EQUIPAMENTOS | G26: CHI | H26: 0.0967 | I26: 0.59 | J26: 0.05
A27: Composição Auxiliar | B27: 91283 | C27: SINAPI | D27: CORTADORA DE PISO COM MOTOR 4 TEMPOS A GASOLINA, POTÊNCIA DE 13 HP, COM DISCO DE CORTE DIAMANTADO SEGMENTADO PARA CONCRETO, DIÂMETRO DE 350 MM, FURO DE 1" (14 X 1") - CHP DIURNO. AF_08/2015 | E27: CHOR - CUSTOS HORÁRIOS DE MÁQUINAS E EQUIPAMENTOS | G27: CHP | H27: 0.0038 | I27: 9.96 | J27: 0.03
A28: Composição Auxiliar | B28: 91285 | C28: SINAPI | D28: CORTADORA DE PISO COM MOTOR 4 TEMPOS A GASOLINA, POTÊNCIA DE 13 HP, COM DISCO DE CORTE DIAMANTADO SEGMENTADO PARA CONCRETO, DIÂMETRO DE 350 MM, FURO DE 1" (14 X 1") - CHI DIURNO. AF_08/2015 | E28: CHOR - CUSTOS HORÁRIOS DE MÁQUINAS E EQUIPAMENTOS | G28: CHI | H28: 0.097 | I28: 1.04 | J28: 0.1
A29: Insumo | B29: 370 | C29: SINAPI | D29: AREIA MEDIA - POSTO JAZIDA/FORNECEDOR (RETIRADO NA JAZIDA, SEM TRANSPORTE) | E29: Material | G29: m³ | H29: 0.0568 | I29: 105 | J29: 5.96
A30: Insumo | B30: 4741 | C30: SINAPI | D30: PO DE PEDRA (POSTO PEDREIRA/FORNECEDOR, SEM FRETE) | E30: Material | G30: m³ | H30: 0.0098 | I30: 253.71 | J30: 2.48
A31: Insumo | B31: 36155 | C31: SINAPI | D31: BLOQUETE/PISO INTERTRAVADO DE CONCRETO - MODELO ONDA/16 FACES/RETANGULAR/TIJOLINHO/PAVER/HOLANDES/PARALELEPIPEDO, 20 CM X 10 CM, E = 6 CM, RESISTENCIA DE 35 MPA (NBR 9781), COR NATURAL | E31: Material | G31: m² | H31: 1.0041 | I31: 59.37 | J31: 59.61
B32: 0 | E32: MO sem LS => | F32: 2.973278133 | G32: LS => | H32: 3.35 | I32: MO com LS => | J32: 6.32
B33: 0 | E33: Valor do BDI => | F33: 0 | H33: Valor com BDI => | J33: 76.05
B34: 0
A35: 4 | B35: Código | C35: Banco | D35: Descrição | E35: Tipo | G35: Und | H35: Quant. | I35: Valor Unit | J35: Total
A36: Composição | B36: 96398 | C36: SINAPI | D36: EXECUÇÃO E COMPACTAÇÃO DE BASE E OU SUB BASE PARA PAVIMENTAÇÃO DE CONCRETO COMPACTADO COM ROLO - EXCLUSIVE CARGA E TRANSPORTE. AF_11/2019 | E36: PAVI - PAVIMENTAÇÃO | G36: m³ | H36: 1 | I36: 620.01 | J36: 620.01
A37: Composição Auxiliar | B37: 5684 | C37: SINAPI | D37: ROLO COMPACTADOR VIBRATÓRIO DE UM CILINDRO AÇO LISO, POTÊNCIA 80 HP, PESO OPERACIONAL MÁXIMO 8,1 T, IMPACTO DINÂMICO 16,15 / 9,5 T, LARGURA DE TRABALHO 1,68 M - CHP DIURNO. AF_06/2014 | E37: CHOR - CUSTOS HORÁRIOS DE MÁQUINAS E EQUIPAMENTOS | G37: CHP | H37: 0.009 | I37: 148.45 | J37: 1.33
A38: Composição Auxiliar | B38: 5685 | C38: SINAPI | D38: ROLO COMPACTADOR VIBRATÓRIO DE UM CILINDRO AÇO LISO, POTÊNCIA 80 HP, PESO OPERACIONAL MÁXIMO 8,1 T, IMPACTO DINÂMICO 16,15 / 9,5 T, LARGURA DE TRABALHO 1,68 M - CHI DIURNO. AF_06/2014 | E38: CHOR - CUSTOS HORÁRIOS DE MÁQUINAS E EQUIPAMENTOS | G38: CHI | H38: 0.021 | I38: 57.05 | J38: 1.19
A39: Composição Auxiliar | B39: 5901 | C39: SINAPI | D39: CAMINHÃO PIPA 10.000 L TRUCADO, PESO BRUTO TOTAL 23.000 KG, CARGA ÚTIL MÁXIMA 15.935 KG, DISTÂNCIA ENTRE EIXOS 4,8 M, POTÊNCIA 230 CV, INCLUSIVE TANQUE DE AÇO PARA TRANSPORTE DE ÁGUA - CHP DIURNO. AF_06/2014 | E39: CHOR - CUSTOS HORÁRIOS DE MÁQUINAS E EQUIPAMENTOS | G39: CHP | H39: 0.002 | I39: 297.04 | J39: 0.59
A40: Composição Auxiliar | B40: 5903 | C40: SINAPI | D40: CAMINHÃO PIPA 10.000 L TRUCADO, PESO BRUTO TOTAL 23.000 KG, CARGA ÚTIL MÁXIMA 15.935 KG, DISTÂNCIA ENTRE EIXOS 4,8 M, POTÊNCIA 230 CV, INCLUSIVE TANQUE DE AÇO PARA TRANSPORTE DE ÁGUA - CHI DIURNO. AF_06/2014 | E40: CHOR - CUSTOS HORÁRIOS DE MÁQUINAS E EQUIPAMENTOS | G40: CHI | H40: 0.028 | I40: 68.33 | J40: 1.91
A41: Composição Auxiliar | B41: 5932 | C41: SINAPI | D41: MOTONIVELADORA POTÊNCIA BÁSICA LÍQUIDA (PRIMEIRA MARCHA) 125 HP, PESO BRUTO 13032 KG, LARGURA DA LÂMINA DE 3,7 M - CHP DIURNO. AF_06/2014 | E41: CHOR - CUSTOS HORÁRIOS DE MÁQUINAS E EQUIPAMENTOS | G41: CHP | H41: 0.008 | I41: 264.73 | J41: 2.11
A42: Composição Auxiliar | B42: 5934 | C42: SINAPI | D42: MOTONIVELADORA POTÊNCIA BÁSICA LÍQUIDA (PRIMEIRA MARCHA) 125 HP, PESO BRUTO 13032 KG, LARGURA DA LÂMINA DE 3,7 M - CHI DIURNO. AF_06/2014 | E42: CHOR - CUSTOS HORÁRIOS DE MÁQUINAS E EQUIPAMENTOS | G42: CHI | H42: 0.022 | I42: 99.54 | J42: 2.18
A43: Composição Auxiliar | B43: 88316 | C43: SINAPI | D43: SERVENTE COM ENCARGOS COMPLEMENTARES | E43: SEDI - SERVIÇOS DIVERSOS | G43: H | H43: 0.03 | I43: 17.28 | J43: 0.51
A44: Composição Auxiliar | B44: 96395 | C44: SINAPI | D44: USINAGEM DE CONCRETO PARA COMPACTAÇÃO COM ROLO. AF_03/2020 | E44: PAVI - PAVIMENTAÇÃO | G44: m³ | H44: 1 | I44: 607.21 | J44: 607.21
A45: Composição Auxiliar | B45: 96463 | C45: SINAPI | D45: ROLO COMPACTADOR DE PNEUS, ESTATICO, PRESSAO VARIAVEL, POTENCIA 110 HP, PESO SEM/COM LASTRO 10,8/27 T, LARGURA DE ROLAGEM 2,30 M - CHP DIURNO. AF_06/2017 | E45: CHOR - CUSTOS HORÁRIOS DE MÁQUINAS E EQUIPAMENTOS | G45: CHP | H45: 0.004 | I45: 206.8 | J45: 0.82
A46: Composição Auxiliar | B46: 96464 | C46: SINAPI | D46: ROLO COMPACTADOR DE PNEUS, ESTATICO, PRESSAO VARIAVEL, POTENCIA 110 HP, PESO SEM/COM LASTRO 10,8/27 T, LARGURA DE ROLAGEM 2,30 M - CHI DIURNO. AF_06/2017 | E46: CHOR - CUSTOS HORÁRIOS DE MÁQUINAS E EQUIPAMENTOS | G46: CHI | H46: 0.026 | I46: 83.35 | J46: 2.16
B47: 0 | E47: MO sem LS => | F47: 2.149981182 | G47: LS => | H47: 2.42 | I47: MO com LS => | J47: 4.57
B48: 0 | E48: Valor do BDI => | F48: 0 | H48: Valor com BDI => | J48: 620.01
B49: 0
A50: 5 | B50: Código | C50: Banco | D50: Descrição | E50: Tipo | G50: Und | H50: Quant. | I50: Valor Unit | J50: Total
A51: Composição | B51: 95995 | C51: SINAPI | D51: EXECUÇÃO DE PAVIMENTO COM APLICAÇÃO DE CONCRETO ASFÁLTICO, CAMADA DE ROLAMENTO - EXCLUSIVE CARGA E TRANSPORTE. AF_11/2019 | E51: PAVI - PAVIMENTAÇÃO | G51: m³ | H51: 1 | I51: 1417.5 | J51: 1417.5
A52: Composição Auxiliar | B52: 5835 | C52: SINAPI | D52: VIBROACABADORA DE ASFALTO SOBRE ESTEIRAS, LARGURA DE PAVIMENTAÇÃO 1,90 M A 5,30 M, POTÊNCIA 105 HP CAPACIDADE 450 T/H - CHP DIURNO. AF_11/2014 | E52: CHOR - CUSTOS HORÁRIOS DE MÁQUINAS E EQUIPAMENTOS | G52: CHP | H52: 0.0464 | I52: 382.2 | J52: 17.73
A53: Composição Auxiliar | B53: 5837 | C53: SINAPI | D53: VIBROACABADORA DE ASFALTO SOBRE ESTEIRAS, LARGURA DE PAVIMENTAÇÃO 1,90 M A 5,30 M, POTÊNCIA 105 HP CAPACIDADE 450 T/H - CHI DIURNO. AF_11/2014 | E53: CHOR - CUSTOS HORÁRIOS DE MÁQUINAS E EQUIPAMENTOS | G53: CHI | H53: 0.0949 | I53: 149.08 | J53: 14.14
A54: Composição Auxiliar | B54: 88314 | C54: SINAPI | D54: RASTELEIRO COM ENCARGOS COMPLEMENTARES | E54: SEDI - SERVIÇOS DIVERSOS | G54: H | H54: 1.1301 | I54: 15.09 | J54: 17.05
A55: Composição Auxiliar | B55: 91386 | C55: SINAPI | D55: CAMINHÃO BASCULANTE 10 M3, TRUCADO CABINE SIMPLES, PESO BRUTO TOTAL 23.000 KG, CARGA ÚTIL MÁXIMA 15.935 KG, DISTÂNCIA ENTRE EIXOS 4,80 M, POTÊNCIA 230 CV INCLUSIVE CAÇAMBA METÁLICA - CHP DIURNO. AF_06/2014 | E55: CHOR - CUSTOS HORÁRIOS DE MÁQUINAS E EQUIPAMENTOS | G55: CHP | H55: 0.0464 | I55: 251.82 | J55: 11.68
A56: Composição Auxiliar | B56: 95631 | C56: SINAPI | D56: ROLO COMPACTADOR VIBRATORIO TANDEM, ACO LISO, POTENCIA 125 HP, PESO SEM/COM LASTRO 10,20/11,65 T, LARGURA DE TRABALHO 1,73 M - CHP DIURNO. AF_11/2016 | E56: CHOR - CUSTOS HORÁRIOS DE MÁQUINAS E EQUIPAMENTOS | G56: CHP | H56: 0.0805 | I56: 217.03 | J56: 17.47
A57: Composição Auxiliar | B57: 95632 | C57: SINAPI | D57: ROLO COMPACTADOR VIBRATORIO TANDEM, ACO LISO, POTENCIA 125 HP, PESO SEM/COM LASTRO 10,20/11,65 T, LARGURA DE TRABALHO 1,73 M - CHI DIURNO. AF_11/2016 | E57: CHOR - CUSTOS HORÁRIOS DE MÁQUINAS E EQUIPAMENTOS | G57: CHI | H57: 0.0607 | I57: 76.84 | J57: 4.66
A58: Composição Auxiliar | B58: 96155 | C58: SINAPI | D58: TRATOR DE PNEUS COM POTÊNCIA DE 85 CV, TRAÇÃO 4X4, COM VASSOURA MECÂNICA ACOPLADA - CHI DIURNO. AF_02/2017 | E58: CHOR - CUSTOS HORÁRIOS DE MÁQUINAS E EQUIPAMENTOS | G58: CHI | H58: 0.1071 | I58: 40.94 | J58: 4.38
A59: Composição Auxiliar | B59: 96157 | C59: SINAPI | D59: TRATOR DE PNEUS COM POTÊNCIA DE 85 CV, TRAÇÃO 4X4, COM VASSOURA MECÂNICA ACOPLADA - CHP DIURNO. AF_03/2017 | E59: CHOR - CUSTOS HORÁRIOS DE MÁQUINAS E EQUIPAMENTOS | G59: CHP | H59: 0.0341 | I59: 121.8 | J59: 4.15
A60: Composição Auxiliar | B60: 96463 | C60: SINAPI | D60: ROLO COMPACTADOR DE PNEUS, ESTATICO, PRESSAO VARIAVEL, POTENCIA 110 HP, PESO SEM/COM LASTRO 10,8/27 T, LARGURA DE ROLAGEM 2,30 M - CHP DIURNO. AF_06/2017 | E60: CHOR - CUSTOS HORÁRIOS DE MÁQUINAS E EQUIPAMENTOS | G60: CHP | H60: 0.0419 | I60: 206.8 | J60: 8.66
A61: Composição Auxiliar | B61: 96464 | C61: SINAPI | D61: ROLO COMPACTADOR DE PNEUS, ESTATICO, PRESSAO VARIAVEL, POTENCIA 110 HP, PESO SEM/COM LASTRO 10,8/27 T, LARGURA DE ROLAGEM 2,30 M - CHI DIURNO. AF_06/2017 | E61: CHOR - CUSTOS HORÁRIOS DE MÁQUINAS E EQUIPAMENTOS | G61: CHI | H61: 0.099 | I61: 83.35 | J61: 8.25
A62: Insumo | B62: 1518 | C62: SINAPI | D62: CONCRETO BETUMINOSO USINADO A QUENTE (CBUQ) PARA PAVIMENTACAO ASFALTICA, PADRAO DNIT, FAIXA C, COM CAP 50/70 - AQUISICAO POSTO USINA | E62: Material | G62: T | H62: 2.5548 | I62: 512.5 | J62: 1309.33
B63: 0 | E63: MO sem LS => | F63: 11.31915694 | G63: LS => | H63: 12.74 | I63: MO com LS => | J63: 24.06
B64: 0 | E64: Valor do BDI => | F64: 0 | H64: Valor com BDI => | J64: 1417.5
B65: 0
A66: 6 | B66: Código | C66: Banco | D66: Descrição | E66: Tipo | G66: Und | H66: Quant. | I66: Valor Unit | J66: Total
A67: Composição | B67: 94266 | C67: SINAPI | D67: GUIA (MEIO-FIO) CONCRETO, MOLDADA IN LOCO EM TRECHO CURVO COM EXTRUSORA, 15 CM BASE X 30 CM ALTURA. AF_06/2016 | E67: DROP - DRENAGEM/OBRAS DE CONTENÇÃO / POÇOS DE VISITA E CAIXAS | G67: M | H67: 1 | I67: 54.8 | J67: 54.8
A68: Composição Auxiliar | B68: 88243 | C68: SINAPI | D68: AJUDANTE ESPECIALIZADO COM ENCARGOS COMPLEMENTARES | E68: SEDI - SERVIÇOS DIVERSOS | G68: H | H68: 0.142 | I68: 17.34 | J68: 2.46
A69: Composição Auxiliar | B69: 88309 | C69: SINAPI | D69: PEDREIRO COM ENCARGOS COMPLEMENTARES | E69: SEDI - SERVIÇOS DIVERSOS | G69: H | H69: 0.276 | I69: 23.44 | J69: 6.46
A70: Composição Auxiliar | B70: 88316 | C70: SINAPI | D70: SERVENTE COM ENCARGOS COMPLEMENTARES | E70: SEDI - SERVIÇOS DIVERSOS | G70: H | H70: 0.552 | I70: 17.28 | J70: 9.53
A71: Composição Auxiliar | B71: 88631 | C71: SINAPI | D71: ARGAMASSA TRAÇO 1:4 (EM VOLUME DE CIMENTO E AREIA MÉDIA ÚMIDA), PREPARO MANUAL. AF_08/2019 | E71: SEDI - SERVIÇOS DIVERSOS | G71: m³ | H71: 0.002 | I71: 653.54 | J71: 1.3
A72: Composição Auxiliar | B72: 92960 | C72: SINAPI | D72: MÁQUINA EXTRUSORA DE CONCRETO PARA GUIAS E SARJETAS, MOTOR A DIESEL, POTÊNCIA 14 CV - CHP DIURNO. AF_12/2015 | E72: CHOR - CUSTOS HORÁRIOS DE MÁQUINAS E EQUIPAMENTOS | G72: CHP | H72: 0.024 | I72: 18.61 | J72: 0.44
A73: Composição Auxiliar | B73: 92961 | C73: SINAPI | D73: MÁQUINA EXTRUSORA DE CONCRETO PARA GUIAS E SARJETAS, MOTOR A DIESEL, POTÊNCIA 14 CV - CHI DIURNO. AF_12/2015 | E73: CHOR - CUSTOS HORÁRIOS DE MÁQUINAS E EQUIPAMENTOS | G73: CHI | H73: 0.118 | I73: 5.38 | J73: 0.63
A74: Insumo | B74: 370 | C74: SINAPI | D74: AREIA MEDIA - POSTO JAZIDA/FORNECEDOR (RETIRADO NA JAZIDA, SEM TRANSPORTE) | E74: Material | G74: m³ | H74: 0.007 | I74: 105 | J74: 0.73
A75: Insumo | B75: 34492 | C75: SINAPI | D75: CONCRETO USINADO BOMBEAVEL, CLASSE DE RESISTENCIA C20, COM BRITA 0 E 1, SLUMP = 100 +/- 20 MM, EXCLUI SERVICO DE BOMBEAMENTO (NBR 8953) | E75: Material | G75: m³ | H75: 0.05 | I75: 665 | J75: 33.25
B76: 0 | E76: MO sem LS => | F76: 7.146217539 | G76: LS => | H76: 8.04 | I76: MO com LS => | J76: 15.19
B77: 0 | E77: Valor do BDI => | F77: 0 | H77: Valor com BDI => | J77: 54.8
B78: 0
A79: 7 | B79: Código | C79: Banco | D79: Descrição | E79: Tipo | G79: Und | H79: Quant. | I79: Valor Unit | J79: Total
A80: Composição | B80: 102498 | C80: SINAPI | D80: PINTURA DE MEIO-FIO COM TINTA BRANCA A BASE DE CAL (CAIAÇÃO). AF_05/2021 | E80: PINT - PINTURAS | G80: M | H80: 1 | I80: 1.36 | J80: 1.36
A81: Composição Auxiliar | B81: 88310 | C81: SINAPI | D81: PINTOR COM ENCARGOS COMPLEMENTARES | E81: SEDI - SERVIÇOS DIVERSOS | G81: H | H81: 0.037 | I81: 24.66 | J81: 0.91
A82: Composição Auxiliar | B82: 88316 | C82: SINAPI | D82: SERVENTE COM ENCARGOS COMPLEMENTARES | E82: SEDI - SERVIÇOS DIVERSOS | G82: H | H82: 0.016 | I82: 17.28 | J82: 0.27
A83: Insumo | B83: 11161 | C83: SINAPI | D83: CAL HIDRATADA PARA PINTURA | E83: Material | G83: KG | H83: 0.106 | I83: 1.78 | J83: 0.18
B84: 0 | E84: MO sem LS => | F84: 0.4375235228 | G84: LS => | H84: 0.49 | I84: MO com LS => | J84: 0.93
B85: 0 | E85: Valor do BDI => | F85: 0 | H85: Valor com BDI => | J85: 1.36
B86: 0
A87: 8 | B87: Código | C87: Banco | D87: Descrição | E87: Tipo | G87: Und | H87: Quant. | I87: Valor Unit | J87: Total
A88: Composição | B88: 102500 | C88: SINAPI | D88: PINTURA DE DEMARCAÇÃO DE VAGA COM TINTA ACRÍLICA, E = 10 CM, APLICAÇÃO MANUAL. AF_05/2021 | E88: PINT - PINTURAS | G88: M | H88: 1 | I88: 3.51 | J88: 3.51
A89: Composição Auxiliar | B89: 88310 | C89: SINAPI | D89: PINTOR COM ENCARGOS COMPLEMENTARES | E89: SEDI - SERVIÇOS DIVERSOS | G89: H | H89: 0.083 | I89: 24.66 | J89: 2.04
A90: Composição Auxiliar | B90: 88316 | C90: SINAPI | D90: SERVENTE COM ENCARGOS COMPLEMENTARES | E90: SEDI - SERVIÇOS DIVERSOS | G90: H | H90: 0.035 | I90: 17.28 | J90: 0.6
A91: Insumo | B91: 7348 | C91: SINAPI | D91: TINTA ACRILICA PREMIUM PARA PISO | E91: Material | G91: L | H91: 0.043 | I91: 11.79 | J91: 0.5
A92: Insumo | B92: 12815 | C92: SINAPI | D92: FITA CREPE ROLO DE 25 MM X 50 M | E92: Material | G92: UN | H92: 0.04 | I92: 9.36 | J92: 0.37
B93: 0 | E93: MO sem LS => | F93: 0.9879563417 | G93: LS => | H93: 1.11 | I93: MO com LS => | J93: 2.1
B94: 0 | E94: Valor do BDI => | F94: 0 | H94: Valor com BDI => | J94: 3.51
B95: 0
A96: 9 | B96: Código | C96: Banco | D96: Descrição | E96: Tipo | G96: Und | H96: Quant. | I96: Valor Unit | J96: Total
A97: Composição | B97: 101094 | C97: SINAPI | D97: PISO PODOTÁTIL DE ALERTA OU DIRECIONAL, DE BORRACHA, ASSENTADO SOBRE ARGAMASSA. AF_05/2020 | E97: PISO - PISOS | G97: M | H97: 1 | I97: 190.73 | J97: 190.73
A98: Composição Auxiliar | B98: 88309 | C98: SINAPI | D98: PEDREIRO COM ENCARGOS COMPLEMENTARES | E98: SEDI - SERVIÇOS DIVERSOS | G98: H | H98: 0.437 | I98: 23.44 | J98: 10.24
A99: Composição Auxiliar | B99: 88316 | C99: SINAPI | D99: SERVENTE COM ENCARGOS COMPLEMENTARES | E99: SEDI - SERVIÇOS DIVERSOS | G99: H | H99: 0.218 | I99: 17.28 | J99: 3.76
A100: Insumo | B100: 1379 | C100: SINAPI | D100: CIMENTO PORTLAND COMPOSTO CP II-32 | E100: Material | G100: KG | H100: 0.24 | I100: 1 | J100: 0.24
A101: Insumo | B101: 37595 | C101: SINAPI | D101: ARGAMASSA COLANTE TIPO AC III | E101: Material | G101: KG | H101: 1.215 | I101: 3.07 | J101: 3.73
A102: Insumo | B102: 38186 | C102: SINAPI | D102: PISO TATIL DE ALERTA OU DIRECIONAL, DE BORRACHA, COLORIDO, 25 X 25 CM, E = 12 MM, PARA ARGAMASSA | E102: Material | G102: m² | H102: 0.25 | I102: 691.05 | J102: 172.76
B103: 0 | E103: MO sem LS => | F103: 5.461987204 | G103: LS => | H103: 6.15 | I103: MO com LS => | J103: 11.61
B104: 0 | E104: Valor do BDI => | F104: 0 | H104: Valor com BDI => | J104: 190.73
B105: 0
A106: 10 | B106: Código | C106: Banco | D106: Descrição | E106: Tipo | G106: Und | H106: Quant. | I106: Valor Unit | J106: Total
A107: Composição | B107: 92398 | C107: SINAPI | D107: EXECUÇÃO DE PAVIMENTO EM PISO INTERTRAVADO, COM BLOCO RETANGULAR COR NATURAL DE 20 X 10 CM, ESPESSURA 8 CM. AF_10/2022 | E107: PAVI - PAVIMENTAÇÃO | G107: m² | H107: 1 | I107: 94.18 | J107: 94.18
A108: Composição Auxiliar | B108: 88260 | C108: SINAPI | D108: CALCETEIRO COM ENCARGOS COMPLEMENTARES | E108: SEDI - SERVIÇOS DIVERSOS | G108: H | H108: 0.2632 | I108: 21.4 | J108: 5.63
A109: Composição Auxiliar | B109: 88316 | C109: SINAPI | D109: SERVENTE COM ENCARGOS COMPLEMENTARES | E109: SEDI - SERVIÇOS DIVERSOS | G109: H | H109: 0.2632 | I109: 17.28 | J109: 4.54
A110: Composição Auxiliar | B110: 91277 | C110: SINAPI | D110: PLACA VIBRATÓRIA REVERSÍVEL COM MOTOR 4 TEMPOS A GASOLINA, FORÇA CENTRÍFUGA DE 25 KN (2500 KGF), POTÊNCIA 5,5 CV - CHP DIURNO. AF_08/2015 | E110: CHOR - CUSTOS HORÁRIOS DE MÁQUINAS E EQUIPAMENTOS | G110: CHP | H110: 0.0055 | I110: 8.99 | J110: 0.04
A111: Composição Auxiliar | B111: 91278 | C111: SINAPI | D111: PLACA VIBRATÓRIA REVERSÍVEL COM MOTOR 4 TEMPOS A GASOLINA, FORÇA CENTRÍFUGA DE 25 KN (2500 KGF), POTÊNCIA 5,5 CV - CHI DIURNO. AF_08/2015 | E111: CHOR - CUSTOS HORÁRIOS DE MÁQUINAS E EQUIPAMENTOS | G111: CHI | H111: 0.1261 | I111: 0.59 | J111: 0.07
A112: Composição Auxiliar | B112: 91283 | C112: SINAPI | D112: CORTADORA DE PISO COM MOTOR 4 TEMPOS A GASOLINA, POTÊNCIA DE 13 HP, COM DISCO DE CORTE DIAMANTADO SEGMENTADO PARA CONCRETO, DIÂMETRO DE 350 MM, FURO DE 1" (14 X 1") - CHP DIURNO. AF_08/2015 | E112: CHOR - CUSTOS HORÁRIOS DE MÁQUINAS E EQUIPAMENTOS | G112: CHP | H112: 0.0038 | I112: 9.96 | J112: 0.03
A113: Composição Auxiliar | B113: 91285 | C113: SINAPI | D113: CORTADORA DE PISO COM MOTOR 4 TEMPOS A GASOLINA, POTÊNCIA DE 13 HP, COM DISCO DE CORTE DIAMANTADO SEGMENTADO PARA CONCRETO, DIÂMETRO DE 350 MM, FURO DE 1" (14 X 1") - CHI DIURNO. AF_08/2015 | E113: CHOR - CUSTOS HORÁRIOS DE MÁQUINAS E EQUIPAMENTOS | G113: CHI | H113: 0.1278 | I113: 1.04 | J113: 0.13
A114: Insumo | B114: 370 | C114: SINAPI | D114: AREIA MEDIA - POSTO JAZIDA/FORNECEDOR (RETIRADO NA JAZIDA, SEM TRANSPORTE) | E114: Material | G114: m³ | H114: 0.0568 | I114: 105 | J114: 5.96
A115: Insumo | B115: 4741 | C115: SINAPI | D115: PO DE PEDRA (POSTO PEDREIRA/FORNECEDOR, SEM FRETE) | E115: Material | G115: m³ | H115: 0.0098 | I115: 253.71 | J115: 2.48
A116: Insumo | B116: 36170 | C116: SINAPI | D116: BLOQUETE/PISO INTERTRAVADO DE CONCRETO - MODELO ONDA/16 FACES/RETANGULAR/TIJOLINHO/PAVER/HOLANDES/PARALELEPIPEDO, *22 CM X 11* CM, E = 8 CM, RESISTENCIA DE 35 MPA (NBR 9781), COR NATURAL | E116: Material | G116: m² | H116: 1.0041 | I116: 75 | J116: 75.3
B117: 0 | E117: MO sem LS => | F117: 3.885961611 | G117: LS => | H117: 4.37 | I117: MO com LS => | J117: 8.26
B118: 0 | E118: Valor do BDI => | F118: 0 | H118: Valor com BDI => | J118: 94.18
B119: 0
A120: 11 | B120: Código | C120: Banco | D120: Descrição | E120: Tipo | G120: Und | H120: Quant. | I120: Valor Unit | J120: Total
A121: Composição | B121: 103310 | C121: SINAPI | D121: INSTALAÇÃO DE LIXEIRA METÁLICA DUPLA, CAPACIDADE DE 60 L, EM TUBO DE AÇO CARBONO E CESTOS EM CHAPA DE AÇO COM PINTURA ELETROSTÁTICA, SOBRE SOLO. AF_11/2021 | E121: URBA - URBANIZAÇÃO | G121: UN | H121: 1 | I121: 1288.84 | J121: 1288.84
A122: Composição Auxiliar | B122: 102486 | C122: SINAPI | D122: CONCRETO FCK = 15MPA, TRAÇO 1:3,4:3,4 (EM MASSA SECA DE CIMENTO/ AREIA MÉDIA/ SEIXO ROLADO) - PREPARO MANUAL. AF_05/2021 | E122: FUES - FUNDAÇÕES E ESTRUTURAS | G122: m³ | H122: 0.0222 | I122: 1003.71 | J122: 22.28
A123: Composição Auxiliar | B123: 88309 | C123: SINAPI | D123: PEDREIRO COM ENCARGOS COMPLEMENTARES | E123: SEDI - SERVIÇOS DIVERSOS | G123: H | H123: 0.8681 | I123: 23.44 | J123: 20.34
A124: Composição Auxiliar | B124: 88316 | C124: SINAPI | D124: SERVENTE COM ENCARGOS COMPLEMENTARES | E124: SEDI - SERVIÇOS DIVERSOS | G124: H | H124: 0.5787 | I124: 17.28 | J124: 9.99
A125: Insumo | B125: 4721 | C125: SINAPI | D125: PEDRA BRITADA N. 1 (9,5 a 19 MM) POSTO PEDREIRA/FORNECEDOR, SEM FRETE | E125: Material | G125: m³ | H125: 0.0012 | I125: 268.59 | J125: 0.32
A126: Insumo | B126: 42440 | C126: SINAPI | D126: LIXEIRA DUPLA, COM CAPACIDADE VOLUMETRICA DE 60L*, FABRICADA EM TUBO DE ACO CARBONO, CESTOS EM CHAPA DE ACO E PINTURA NO PROCESSO ELETROSTATICO - PARA ACADEMIA AO AR LIVRE / ACADEMIA DA TERCEIRA IDADE - ATI | E126: Material | G126: UN | H126: 1 | I126: 1235.91 | J126: 1235.91
B127: 0 | E127: MO sem LS => | F127: 12.68818216 | G127: LS => | H127: 14.28 | I127: MO com LS => | J127: 26.97
B128: 0 | E128: Valor do BDI => | F128: 0 | H128: Valor com BDI => | J128: 1288.84
B129: 0
A130: 12 | B130: Código | C130: Banco | D130: Descrição | E130: Tipo | G130: Und | H130: Quant. | I130: Valor Unit | J130: Total
A131: Composição | B131: 92435 | C131: SINAPI | D131: MONTAGEM E DESMONTAGEM DE FÔRMA DE PILARES RETANGULARES E ESTRUTURAS SIMILARES, PÉ-DIREITO SIMPLES, EM CHAPA DE MADEIRA COMPENSADA PLASTIFICADA, 12 UTILIZAÇÕES. AF_09/2020 | E131: FUES - FUNDAÇÕES E ESTRUTURAS | G131: m² | H131: 1 | I131: 57.64 | J131: 57.64
A132: Composição Auxiliar | B132: 88239 | C132: SINAPI | D132: AJUDANTE DE CARPINTEIRO COM ENCARGOS COMPLEMENTARES | E132: SEDI - SERVIÇOS DIVERSOS | G132: H | H132: 0.117 | I132: 19.1 | J132: 2.23
A133: Composição Auxiliar | B133: 88262 | C133: SINAPI | D133: CARPINTEIRO DE FORMAS COM ENCARGOS COMPLEMENTARES | E133: SEDI - SERVIÇOS DIVERSOS | G133: H | H133: 0.638 | I133: 23.07 | J133: 14.71
A134: Composição Auxiliar | B134: 92264 | C134: SINAPI | D134: FABRICAÇÃO DE FÔRMA PARA PILARES E ESTRUTURAS SIMILARES, EM CHAPA DE MADEIRA COMPENSADA PLASTIFICADA, E = 18 MM. AF_09/2020 | E134: FUES - FUNDAÇÕES E ESTRUTURAS | G134: m² | H134: 0.094 | I134: 233.04 | J134: 21.9
A135: Insumo | B135: 2692 | C135: SINAPI | D135: DESMOLDANTE PROTETOR PARA FORMAS DE MADEIRA, DE BASE OLEOSA EMULSIONADA EM AGUA | E135: Material | G135: L | H135: 0.004 | I135: 12.86 | J135: 0.05
A136: Insumo | B136: 40271 | C136: SINAPI | D136: LOCACAO DE APRUMADOR METALICO DE PILAR, COM ALTURA E ANGULO REGULAVEIS, EXTENSAO DE *1,50* A *2,80* M | E136: Equipamento | G136: UNXMES | H136: 0.196 | I136: 20.13 | J136: 3.94
A137: Insumo | B137: 40275 | C137: SINAPI | D137: LOCACAO DE VIGA SANDUICHE METALICA VAZADA PARA TRAVAMENTO DE PILARES, ALTURA DE *8* CM, LARGURA DE *6* CM E EXTENSAO DE 2 M | E137: Equipamento | G137: UNXMES | H137: 0.393 | I137: 21.04 | J137: 8.26
A138: Insumo | B138: 40287 | C138: SINAPI | D138: LOCACAO DE BARRA DE ANCORAGEM DE 0,80 A 1,20 M DE EXTENSAO, COM ROSCA DE 5/8", INCLUINDO PORCA E FLANGE | E138: Equipamento | G138: MES | H138: 0.785 | I138: 7.75 | J138: 6.08
A139: Insumo | B139: 40304 | C139: SINAPI | D139: PREGO DE ACO POLIDO COM CABECA DUPLA 17 X 27 (2 1/2 X 11) | E139: Material | G139: KG | H139: 0.019 | I139: 24.83 | J139: 0.47
B140: 0 | E140: MO sem LS => | F140: 8.148287542 | G140: LS => | H140: 9.17 | I140: MO com LS => | J140: 17.32
B141: 0 | E141: Valor do BDI => | F141: 0 | H141: Valor com BDI => | J141: 57.64
B142: 0
A143: 13 | B143: Código | C143: Banco | D143: Descrição | E143: Tipo | G143: Und | H143: Quant. | I143: Valor Unit | J143: Total
A144: Composição | B144: 92761 | C144: SINAPI | D144: ARMAÇÃO DE PILAR OU VIGA DE ESTRUTURA CONVENCIONAL DE CONCRETO ARMADO UTILIZANDO AÇO CA-50 DE 8,0 MM - MONTAGEM. AF_06/2022 | E144: FUES - FUNDAÇÕES E ESTRUTURAS | G144: KG | H144: 1 | I144: 15.29 | J144: 15.29
A145: Composição Auxiliar | B145: 88238 | C145: SINAPI | D145: AJUDANTE DE ARMADOR COM ENCARGOS COMPLEMENTARES | E145: SEDI - SERVIÇOS DIVERSOS | G145: H | H145: 0.0092 | I145: 17.32 | J145: 0.15
A146: Composição Auxiliar | B146: 88245 | C146: SINAPI | D146: ARMADOR COM ENCARGOS COMPLEMENTARES | E146: SEDI - SERVIÇOS DIVERSOS | G146: H | H146: 0.0561 | I146: 23.25 | J146: 1.3
A147: Composição Auxiliar | B147: 92802 | C147: SINAPI | D147: CORTE E DOBRA DE AÇO CA-50, DIÂMETRO DE 8,0 MM. AF_06/2022 | E147: FUES - FUNDAÇÕES E ESTRUTURAS | G147: KG | H147: 1 | I147: 13.06 | J147: 13.06
A148: Insumo | B148: 39017 | C148: SINAPI | D148: ESPACADOR / DISTANCIADOR CIRCULAR COM ENTRADA LATERAL, EM PLASTICO, PARA VERGALHAO *4,2 A 12,5* MM, COBRIMENTO 20 MM | E148: Material | G148: UN | H148: 0.743 | I148: 0.22 | J148: 0.16
A149: Insumo | B149: 43132 | C149: SINAPI | D149: ARAME RECOZIDO 16 BWG, D = 1,65 MM (0,016 KG/M) OU 18 BWG, D = 1,25 MM (0,01 KG/M) | E149: Material | G149: KG | H149: 0.025 | I149: 25 | J149: 0.62
B150: 0 | E150: MO sem LS => | F150: 0.7292058713 | G150: LS => | H150: 0.82 | I150: MO com LS => | J150: 1.55
B151: 0 | E151: Valor do BDI => | F151: 0 | H151: Valor com BDI => | J151: 15.29
B152: 0
A153: 14 | B153: Código | C153: Banco | D153: Descrição | E153: Tipo | G153: Und | H153: Quant. | I153: Valor Unit | J153: Total
A154: Composição | B154: 103685 | C154: SINAPI | D154: CONCRETAGEM DE MURETAS, FCK=25 MPA, COM USO DE BOMBA - LANÇAMENTO, ADENSAMENTO E ACABAMENTO. AF_02/2022_PS | E154: FUES - FUNDAÇÕES E ESTRUTURAS | G154: m³ | H154: 1 | I154: 855.82 | J154: 855.82
A155: Composição Auxiliar | B155: 88262 | C155: SINAPI | D155: CARPINTEIRO DE FORMAS COM ENCARGOS COMPLEMENTARES | E155: SEDI - SERVIÇOS DIVERSOS | G155: H | H155: 0.199 | I155: 23.07 | J155: 4.59
A156: Composição Auxiliar | B156: 88309 | C156: SINAPI | D156: PEDREIRO COM ENCARGOS COMPLEMENTARES | E156: SEDI - SERVIÇOS DIVERSOS | G156: H | H156: 0.795 | I156: 23.44 | J156: 18.63
A157: Composição Auxiliar | B157: 88316 | C157: SINAPI | D157: SERVENTE COM ENCARGOS COMPLEMENTARES | E157: SEDI - SERVIÇOS DIVERSOS | G157: H | H157: 0.894 | I157: 17.28 | J157: 15.44
A158: Composição Auxiliar | B158: 90586 | C158: SINAPI | D158: VIBRADOR DE IMERSÃO, DIÂMETRO DE PONTEIRA 45MM, MOTOR ELÉTRICO TRIFÁSICO POTÊNCIA DE 2 CV - CHP DIURNO. AF_06/2015 | E158: CHOR - CUSTOS HORÁRIOS DE MÁQUINAS E EQUIPAMENTOS | G158: CHP | H158: 0.079 | I158: 1.29 | J158: 0.1
A159: Composição Auxiliar | B159: 90587 | C159: SINAPI | D159: VIBRADOR DE IMERSÃO, DIÂMETRO DE PONTEIRA 45MM, MOTOR ELÉTRICO TRIFÁSICO POTÊNCIA DE 2 CV - CHI DIURNO. AF_06/2015 | E159: CHOR - CUSTOS HORÁRIOS DE MÁQUINAS E EQUIPAMENTOS | G159: CHI | H159: 0.12 | I159: 0.49 | J159: 0.05
A160: Insumo | B160: 1527 | C160: SINAPI | D160: CONCRETO USINADO BOMBEAVEL, CLASSE DE RESISTENCIA C25, BRITA 0 E 1, SLUMP = 100 +/- 20 MM, COM BOMBEAMENTO (DISPONIBILIZACAO DE BOMBA), SEM O LANCAMENTO (NBR 8953) | E160: Material | G160: m³ | H160: 1.103 | I160: 740.72 | J160: 817.01
B161: 0 | E161: MO sem LS => | F161: 14.97929996 | G161: LS => | H161: 16.86 | I161: MO com LS => | J161: 31.84
B162: 0 | E162: Valor do BDI => | F162: 0 | H162: Valor com BDI => | J162: 855.82
B163: 0
A164: 15 | B164: Código | C164: Banco | D164: Descrição | E164: Tipo | G164: Und | H164: Quant. | I164: Valor Unit | J164: Total
A165: Composição | B165: 103314 | C165: SINAPI | D165: INSTALAÇÃO DE PERGOLADO DE MADEIRA, EM MAÇARANDUBA, ANGELIM OU EQUIVALENTE DA REGIÃO, FIXADO COM CONCRETO SOBRE PISO DE CONCRETO EXISTENTE. AF_11/2021 | E165: URBA - URBANIZAÇÃO | G165: m² | H165: 1 | I165: 173.39 | J165: 173.39
A166: Composição Auxiliar | B166: 102486 | C166: SINAPI | D166: CONCRETO FCK = 15MPA, TRAÇO 1:3,4:3,4 (EM MASSA SECA DE CIMENTO/ AREIA MÉDIA/ SEIXO ROLADO) - PREPARO MANUAL. AF_05/2021 | E166: FUES - FUNDAÇÕES E ESTRUTURAS | G166: m³ | H166: 0.0208 | I166: 1003.71 | J166: 20.87
A167: Composição Auxiliar | B167: 5795 | C167: SINAPI | D167: MARTELETE OU ROMPEDOR PNEUMÁTICO MANUAL, 28 KG, COM SILENCIADOR - CHP DIURNO. AF_07/2016 | E167: CHOR - CUSTOS HORÁRIOS DE MÁQUINAS E EQUIPAMENTOS | G167: CHP | H167: 0.0177 | I167: 20.13 | J167: 0.35
A168: Composição Auxiliar | B168: 5952 | C168: SINAPI | D168: MARTELETE OU ROMPEDOR PNEUMÁTICO MANUAL, 28 KG, COM SILENCIADOR - CHI DIURNO. AF_07/2016 | E168: CHOR - CUSTOS HORÁRIOS DE MÁQUINAS E EQUIPAMENTOS | G168: CHI | H168: 0.0597 | I168: 18.43 | J168: 1.1
A169: Composição Auxiliar | B169: 87298 | C169: SINAPI | D169: ARGAMASSA TRAÇO 1:3 (EM VOLUME DE CIMENTO E AREIA MÉDIA ÚMIDA) PARA CONTRAPISO, PREPARO MECÂNICO COM BETONEIRA 400 L. AF_08/2019 | E169: SEDI - SERVIÇOS DIVERSOS | G169: m³ | H169: 0.0012 | I169: 783.05 | J169: 0.93
A170: Composição Auxiliar | B170: 88239 | C170: SINAPI | D170: AJUDANTE DE CARPINTEIRO COM ENCARGOS COMPLEMENTARES | E170: SEDI - SERVIÇOS DIVERSOS | G170: H | H170: 0.5342 | I170: 19.1 | J170: 10.2
A171: Composição Auxiliar | B171: 88262 | C171: SINAPI | D171: CARPINTEIRO DE FORMAS COM ENCARGOS COMPLEMENTARES | E171: SEDI - SERVIÇOS DIVERSOS | G171: H | H171: 0.5342 | I171: 23.07 | J171: 12.32
